Workbook

Sheet Инф-я
A2: По вопросам работы электронного формата расчета НВВ обращаться в ООО "ТОРИ-АУДИТ"
A4: тел. 8-4922-42-32-92
A6: Расчет НВВ на услуги по передаче электрической энергии, устанавливаемых с применением метода долгосрочной индексации необходимой валовой выручки
B9: Информация об организации
A11: № п/п | B11: Требуемая информация | C11: Данные об организации
A12: 1. | B12: Наименование организации в соответствии с Уставом: | C12: Общество с ограниченной ответстваенностью "Энергетик"
B13: полное наименование организации | C13: Общество с ограниченной ответстваенностью "Энергетик"
B14: сокращенное название организации | C14: ООО "Энергетик"
A15: 2. | B15: Муниципальное образование, в котором осуществляется регулируемая деятельность | C15: г.Карабаново
A16: 3. | B16: Адрес организации:
B17: юридический адрес | C17: 601640, Владимирская обл., Александровский р-н, г.Карабаново, ул.Вокзальная, д.9
B18: фактический адрес (месторасположение) | C18: 601640, Владимирская обл., Александровский р-н, г.Карабаново, ул.Вокзальная, д.9
A19: 4. | B19: ИНН | C19: 3311023373
A20: 5. | B20: КПП | C20: 331101001
A21: 6. | B21: ФИО руководителя организации | C21: Окунев Василий Михайлович
B22: контактный телефон/факс | C22: 8(49244)5-23-60
B23: е-mail | C23: oao-energetik@yandex.ru
A24: 7. | B24: ФИО начальника ПЭО
B25: контактный телефон/факс
A26: 8. | B26: ФИО ответственного за электрохозяйство | C26: Ивановский Михаил Владимирович
B27: контактный телефон/факс | C27: 8(49244)5-26-01
A28: 9. | B28: ФИО главного бухгалтера | C28: Макарова Галина Юрьевна
B29: контактный телефон/факс | C29: 8(49244)5-10-79
A30: 10. | B30: ФИО непосредственного исполнителя | C30: Макарова Галина Юрьевна
B31: контактный телефон/факс | C31: 8(49244)5-10-79
B32: е-mail | C32: oao-energetik@yandex.ru
A33: 11. | B33: Банковские реквизиты:
B34: расчетный счет | C34: 40702810710000002518
B35: банк | C35: ВЛАДИМИРСКОЕ ОТДЕЛЕНИЕ №8611 ПАО СБЕРБАНК
B36: корреспондентский счет | C36: 30101810000000000602
B37: БИК | C37: 041708602
A38: 12. | B38: Официальный сайт регулируемой организации в сети «Интернет» | C38: oao-energetik.ru
A39: 13. | B39: Государственное и (или) муниципальное участие в юридическом лице
B40: Наличие (Да, Нет) | C40: да
B41: Сведения о доле, %
B42: Преобладающий тип собственности в юридическом лице (собственность, аренда, концессия, хозяйственное ведение)
A43: 14. | B43: Перечень нерегулируемых видов деятельности (других регулируемых видов деятельности кроме передачи электроэнергии)
A44: 15. | B44: Наличие раздельного учёта затрат по регулируемым видам деятельности
A45: 16. | B45: Плательщик НДС | C45: нет
A46: 17. | B46: Наличие записи в едином реестре субъектов малого и среднего предпринимательства
A47: 18. | B47: Реквизиты решения, которым установлены действующие тарифы
B48: Наименование
B49: Вид
B50: Номер
B51: Дата принятия
A52: 19. | B52: URL-ссылка на утвержденную инвестиционную программу/проект инвестиционной программы
A53: 20. | B53: URL-ссылка на программу энергосбережения и повышения энергетической эффективности
A54: 21. | B54: Заявление и предложение о размере тарифов
B55: Дата регистрации
B56: Номер входящий
B57: Метод регулирования
B58: URL-ссылка на заявление
A59: 22. | B59: Перечень гарантирующих поставщиков электрической энергии (энергосбытовых организаций), у которых осуществляется покупка потерь электрической энергии при ее транспортировке:
A60: Предложение о размере цен (тарифов), долгосрочных параметров регулирования (при применении метода доходности инвестированного капитала или метода долгосрочной необходимой валовой выручки), подлежит раскрытию на официальных сайтах регулируемых организаций или на ином официальном сайте в сети Интернет, определяемом Правительством Российской Федерации, и (или) в периодическом печатном издании, в котором публикуются нормативные правовые акты органа исполнительной власти в области регулирования тарифов, - за 10 дней до представления в регулирующий орган предложения об установлении цен (тарифов) и (или) их предельных уровней, содержащего такую информацию. ( п. 9 Постановления Правительства РФ от 21.01.2004 г. № 24 "Об утверждении стандартов раскрытия информации субъектами оптового и розничных рынков электрической энергии": )
A61: В случае если регулируемая организация не опубликовала предложение о размере цен (тарифов) и долгосрочных параметров регулирования , подлежащих регулированию или указанное опубликованное предложение не соответствует предложению, представляемому в орган регулирования Регулирующий орган отказывает в открытии дела об установлении цены (тарифа).
A62: Организации, осуществляющие регулируемую деятельность, вправе представить в регулирующий орган дополнительные материалы к предложениям об установлении цен (тарифов) по своей инициативе не позднее 30 рабочих дней до даты наступления очередного периода регулирования. Уточненные предложения подлежат опубликованию в порядке, установленном стандартами раскрытия информации субъектами оптового и розничных рынков электрической энергии, утвержденными постановлением Правительства Российской Федерации от 21 января 2004 г. N 24 "Об утверждении стандартов раскрытия информации субъектами оптового и розничных рынков электрической энергии". (Пункт 12 Правил государственного регулирования (пересмотра, применения) цен (тарифов) в электроэнергетике Постановления Правительства РФ от 29 декабря 2011 г. N 1178 "О ценообразовании в области регулируемых цен (тарифов) в электроэнергетике" (с изменениями и дополнениями)
A119: 1 | B119: ООО «Радугагорэнерго»
A120: 2 | B120: МУП «Горэлектросеть» г. Муром
A121: 3 | B121: МУП «Александровэлектросеть»
A122: 4 | B122: ООО «СтройГарант»
A123: 5 | B123: ООО «Костеревские городские электрические сети»
A124: 6 | B124: ООО «Ковровэлектросетьремонт»
A125: 7 | B125: ООО «ПромРЭС»
A126: 8 | B126: ООО «ПромЭнерго» г. Судогда
A127: 9 | B127: ОАО «Энергетик» г. Карабаново
A128: 10 | B128: ООО «Электросистемы»
A129: 11 | B129: ООО «Ярцево-Энерго»
A130: 12 | B130: ПАО «Ставровский завод АТО»
A131: 13 | B131: ООО «ЭнергоАктив»

Sheet Опись док-в
A1: Примерный перечень обосновывающих документов
A2: Опись документов, представленных
A3: ='Инф-я'!C14 -> ООО "Энергетик"
A4: в рамках предложения об установлении цен (тарифов)
A5: № п./п. | B5: Наименование | C5: № страницы обосновывающих материалов | F5: Примечание
A6: 1 | B6: 2 | C6: 3
B7: Заявление и предложение о размере тарифов
B8: Приказ об организации работы по расчетам тарифов
A9: 1. | B9: Общие документы
A10: 1.1. | B10: Информация об организации | C10: 1-5 | F10: Таблица из электронного формата расчета НВВ
A11: 1.2. | B11: Устав | C11: 6-11
A12: 1.3. | B12: Учетная политика | C12: 12-13
A13: 1.4. | B13: Бухгалтерская и статистическая отчетность за 2021 год
A14: 1.4.1. | B14: Бухгалтерский балан на 31 декабря 2021 года | C14: 14-23
A15: 1.5. | B15: Критерии отнесения владельцев объектов электросетевого хозяйства к территориальным сетевым организациям | C15: 24 | F15: Таблица из электронного формата расчета НВВ
A16: 1.6. | B16: Справка о наличии официального сайта в сети Интернет и выделенного абонентского номера | C16: 25
A17: 1.7. | B17: Документы, подтверждающие право собственности, или иные права в отношении объектов, используемых для осуществления деятельности
A18: 1.7.1. | B18: Договор аренды имущества от 04.09.2019 № 13А-19 | C18: 26-49
A19: 1.7.2. | B19: Договор аренды транспортных средств от 01.11.2019 года №1/О-20/24 | C19: 50-54
A20: 1.7.3. | B20: Договор аренды гаражно-складского помещения от 31.12.2019 № 12А-20 | C20: 55-59
A21: 1.7.3. | B21: Договор субаренды имущества от 01.12.2021 №01С/А-21 | C21: 60-65
A22: 1.8. | B22: Договор с Котлодержателем | C22: 66-70
A23: 1.9. | B23: Договор с энергосбытовыми организациями на покупку потерь | C23: 71-77
A24: 1.10. | B24: Проект изменений, вносимых в инвестиционную программу на 2020-2024 гг | C24: 78-84 | F24: с внесенными изменениями
A25: 1.11. | B25: Программа энергосбережения | C25: 85-87
A26: 1.12. | B26: Схемы соединений электрической сети заявителя с обозначением трансформаторных и иных подстанций, а также линий электропередачи | C26: 88
A27: 1.13. | B27: Положение о закупках, приказ о составе закупочной комиссии | C27: 89-91 | F27: Протоколы заседаний закупочной комиссии
A28: 1.14. | B28: Реестры договоров (с реквизитами и контрагентами) с отметкой о наличии/отсутствии проведенной по договору закупочной процедуры за 2021 год | F28: При закупке у единственного поставщика указать обоснования
A29: 2. | B29: Производственные и технико-экономические показатели
A30: 2.1. | B30: Баланс электрической энергии по сетям ВН, СН1, СН2, и НН | C30: 92-93 | F30: Таблица из электронного формата расчета НВВ
A31: 2.2. | B31: Электрическая мощность по диапазонам напряжения | C31: 94 | F31: Таблица из электронного формата расчета НВВ
A32: 2.3. | B32: Объем воздушных линий электропередач (ВЛЭП) и кабельных линий электропередач (КЛЭП) в условных единицах в зависимости от протяженности, напряжения, конструктивного использования и материала опор в период с 2020 по 2023 годы | C32: 95 | F32: Таблица из электронного формата расчета НВВ
A33: 2.4. | B33: Объем подстанций 35-1150 кВ, трансформаторных подстанций (ТП), комплексных трансформаторных подстанций (КТП) и распределительных пунктов(РП) 0,4-20 кВ в условных единицах в период с 2020 по 2023 годы | C33: 96 | F33: Таблица из электронного формата расчета НВВ
A34: 2.5. | B34: Пояснительная записка об изменении условных единиц | F34: увеличение УЕ по отношению к фактическим данным 2021 года
A35: 2.5. | B35: Акты ввода (выбытия) оборудования и договоры аренды, изменившие УЕ
A36: 2.5.1. | B36: Договор подряда от 29.12.2018г №02ИП-2020 на строительство ВЛ 10 кВ от ТП №63 до ТП №64, Дополнительное соглашение к договору подряда № 02ИП-2020 от 29.12.2018, Акт о приемке-передаче здания (сооружения) №1 от 30.06.2021г, Акт №78 от 30.06.2021, Справка КС-3 №1 от 30.06.2021, Акт о приемке выполненных работ №1 от 30.06.2021 | C36: 97-101
A37: 2.5.2. | B37: Договор подряда от 29.12.2018г №02ИП-2021 на строительство ВЛ 10 кВ от ТП №76 до ТП №19, Дополнительное соглашение к договору подряда № 02ИП-2021 от 29.12.2018, Акт о приемке-передаче здания (сооружения) №2 от 30.09.2021г, Акт №118 от 30.09.2021, Справка КС-3 №1 от 30.09.2021, Акт о приемке выполненных работ №1 от 30.09.2021 | C37: 102-106
A38: 2.5.3. | B38: Договор подряда от 29.12.2018г №01ИП-2021 на строительство ТП №64 10/0,4-250 кВА, Дополнительное соглашение к договору подряда № 01ИП-2021 от 29.12.2018, Приказ от 30.11.2021 №24-С, Акт о приемке-передаче здания (сооружения) №3 от 30.11.2021г, Акт №146 от 30.11.2021, Справка КС-3 №1 от 30.11.2021, Акт о приемке выполненных работ №1 от 30.11.2021 | C38: 107-115
A39: 2.6. | B39: Сведения об имуществе и форме собственности на объекты имущества, используемые для осуществления регулируемой деятельности | C39: см. п.1.7. | F39: Таблицы из электронного формата по активам. Возможно предоставление в электронном виде
A40: 3. | B40: Анализ тарифной выручки
A41: 3.1. | B41: Ежемесячные ведомости объемов приема-передачи электроэнергии за 2021 год | C41: 116-127
A42: 3.2. | B42: Ежемесячные акты оказания услуг «Котлодержателю», письма-разногласия к акту об оказании услуг по передаче электрической энергии за 2021 год | C42: 128-139
A43: 3.3. | B43: Счета-фактуры энергосбытовых организаций на покупку потерь за 2021 год | C43: 140-146
A44: 3.4. | B44: Сведения об отпуске (передаче) электроэнергии распределительными сетевыми организациями отдельным категориям потребителей (форма № 46-ЭЭ (передача)) за 2021 год | C44: 147
A45: 3.5. | B45: Анализ фактических расходов на содержание электрических сетей за 2019 год | C45: 148 | F45: Таблица из электронного формата расчета НВВ
A46: 3.5.1. | B46: Ведомость фактического исполнения ремонтной программы за 2019 год (в сопоставлении с планом) с приложением подтверждающих документов | C46: 149
A47: 3.5.1.1. | B47: Акты о приемке выполненных работ по форме КС-2 (капитальный ремонт за 2019 год) | C47: 150-194
A48: 3.6. | B48: Анализ фактических расходов на содержание электрических сетей за 2020 год | C48: 195 | F48: Таблица из электронного формата расчета НВВ
A49: 3.6.1. | B49: Ведомость фактического исполнения ремонтной программы за 2020 год (в сопоставлении с планом) с приложением подтверждающих документов | C49: 196
A50: 3.6.1.1… | B50: Акты о приемке выполненных работ по форме КС-2 (капитальный ремонт за 2020 год) | C50: 197-205
A51: 3.7. | B51: Анализ фактических расходов на содержание электрических сетей за 2021 год | C51: 206 | F51: Таблица из электронного формата расчета НВВ
A52: 3.7.1. | B52: Ведомость фактического исполнения ремонтной программы за 2021 год (в сопоставлении с планом) с приложением подтверждающих документов | C52: 207
A53: 3.7.1.1. | B53: Акты о приемке выполненных работ по форме КС-2 (капитальный ремонт за 2021 год) | C53: 208-226
A54: 3.7.2. | B54: Данные по счетам бухгалтерского учета, подтверждающие фактические расходы на содержание электрических сетей за 2021 год | F54: Иные документы, подтверждающие фактически понесенные расходы в 2021 году
A55: 3.7.2.1… | B55: Оборотно-сальдовая ведомость по счету 20 за 2021 г | C55: 227
A56: 3.7.3. | B56: Оборотно-сальдовая ведомость расходов по счету 26 за 2021 год | C56: 228
A57: 4. | B57: Расчет необходимой валовой выручки на содержание электрических сетей на 2023 год | C57: 229 | F57: Таблица из электронного формата расчета НВВ
A58: 4.1. | B58: Подконтрольные расходы на 2023 год долгосрочного периода регулирования 2020 - 2024 гг. | C58: 230 | F58: Таблица из электронного формата расчета НВВ
A59: 4.2. | B59: Расчет неподконтрольных расходов на 2023 год
A60: 4.2.1.1. | B60: Амортизация основных средств
A61: 4.2.1.2. | B61: Расчет амортизационных отчислений основных средств, участвующих в передаче электрической энергии по максимальному сроку использования и расчет среднегодовой стоимости ОС | C61: 230-231 | F61: Таблица из электронного формата расчета НВВ
A62: 4.2.1.3. | B62: Оборотно-сальдовая ведомость по счету 02 «Амортизационные отчисления» за 2021 г. и за 1 квартал 2022 года | C62: 233-236
A63: 4.2.1.4. | B63: Оборотно-сальдовая ведомость по счету 01 «Основные средства» за 2021 г. и за 1 квартал 2022 года | C63: 237-240
A64: 4.2.1.5. | B64: Справка о вводе основных средств в 2022 году (с 01.04.2022 г.), участвующих в передаче электрической энергии | C64: 241 | F64: Таблица из электронного формата расчета НВВ
A65: 4.2.1.6. | B65: Акты ввода основных средств в 2022 году /инвентарные карточки | C65: -
A66: 4.2.1.6.1. | B66: перечень документов
A67: 4.2.1.7. | B67: Сводный расчет амортизационных отчислений на восстановление основных производственных фондов, участвующих в передаче электрической энергии | C67: 242 | F67: Таблица из электронного формата расчета НВВ
A68: 4.2.2. | B68: Расчет расходов на страховые взносы | C68: 243 | F68: Таблица из электронного формата расчета НВВ
A69: 4.2.2.1. | B69: Уведомление ФСС РФ о размере страховых взносов на обязательное социальное страхование от несчастных случаев на производстве и профессиональных заболеваний | C69: 244
A70: 4.2.2.2. | B70: Расчет по начисленным и уплаченным страховым взносам на обязательное социальное страхование от несчастных случаев на производстве и профессиональных заболеваний, а также по расходам на выплату страхового обеспечения (форма 4-ФСС) за 2021 год | C70: 245
A71: 4.2.2.3. | B71: Расчет по начисленным и уплаченным страховым взносам а обязательное пенсионное страхование в Пенсионный фонд Российской Федерации и на обязательное медицинское страхование в Федеральный фонд обязательного медицинского страхования плательщиками страховых взносов, производящими выплаты и иные вознаграждения физическим лицам (форма РСВ-1 ПФР) за 2021 год | C71: 246-249
A72: 4.2.3. | B72: Расходы на оплату услуг организаций, осуществляющих регулируемые виды деятельности | C72: 250 | F72: Таблица из электронного формата расчета НВВ
A73: 4.2.3.1. | B73: Договоры с организациями
A74: 4.2.3.1.1. | B74: Договор энергосбережения №33300361009094 от 01.04.2018 | C74: 251-268
A75: 4.2.3.1.2. | B75: Договор энергосбережения №33300361009094 от 01.04.2021, дополнительное соглашение | C75: 269-280
A76: 4.2.3.1.3. | B76: Договор на оказание услуг по обращению с твердыми к5оммунальными отходами № 262 ВЛ/А/2019 от 01.12.2019 | C76: 281-284
A77: 4.2.3.1.4. | B77: Договор холодного вовоснабжения и водоотведения №88 от 01.03.2019 | C77: 285-298
A78: 4.2.3.1.5. | B78: Договор энергосбережения тепловой энергией №36 от 07.08.2020 | C78: 299-305
A79: 4.2.3.2. | B79: Акты выполненных работ за 2021 год
A80: 4.2.3.2.1. | B80: ООО "ЭСВ" | C80: 306-318
B81: ООО "Хартия" | C81: 319-330
B82: ООО "Водаканал" | C82: 331-342
B83: МУП "Возрождение" | C83: 343-351
A84: 4.2.4. | B84: Налоги
A85: 4.2.4.1. | B85: Плата за землю | C85: 352 | F85: Таблица из электронного формата расчета НВВ
A86: 4.2.4.1.1. | B86: Договоры на аренду земельных участков
A87: 4.2.4.1.1.1. | B87: Договор субаренды земельного участка № 02С/А-21 от 01.12.2021 | C87: 353-355
A88: 4.2.4.1.2. | B88: Сообщение об исчислении земельного налога от налогового органа за 2021 год
A89: 4.2.4.1.3. | B89: Документы, подтверждающие оплату налога и арендной платы за землю за 2021 год (Акт выполненных работ и услуг) | C89: 356
A90: 4.2.4.2. | B90: Расчет транспортного налога | C90: 357 | F90: Таблица из электронного формата расчета НВВ
A91: 4.2.4.2.1. | B91: Сообщение об исчислении транспортного налога от налогового органа за 2021 год
A92: 4.2.4.2.2. | B92: Документы, подтверждающие оплату налога за 2021 год
A93: 4.2.4.3. | B93: Налог на имущество | C93: 358 | F93: Таблица из электронного формата расчета НВВ
A94: 4.2.4.3.1. | B94: Налоговая декларация по налогу на имущество организаций за 2021 год
A95: 4.2.4.4. | B95: Расчет платы за негативное воздействие на окружающую среду | C95: 359 | F95: Таблица из электронного формата расчета НВВ
A96: 4.2.4.4.1. | B96: Декларация о плате за негативное воздействие на окружающую среду за 2021 год, платежное поручение | C96: 360-367
A97: 4.2.4.5. | B97: Налог организаций, применяющих УСНО от деятельности по передаче и технологического присоединения | C97: 368 | F97: Таблица из электронного формата расчета НВВ
A98: 4.2.4.5.1. | B98: Декларация по налогу, уплачиваемому в связи с применением упрощенной системы налогооблажения за 2021 год | C98: 369-370
A99: 4.2.4.5.2. | B99: Данные бухгалтерского учета по доходам и расходам по видам деятельности за 2021 год | C99: 371-401
B100: ТОМ 2
A101: 4.2.5. | B101: Расходы по аренде имущества | C101: 2 | F101: Таблица из электронного формата расчета НВВ
A102: 4.2.5.1. | B102: Информация о величинах амортизации, налога на имущество, представленных арендодателем электросетевого имущества | F102: К договорам аренды, представленным в п.1.7. Должна быть приложена первичная бухгалтерская документация, подтверждающая размер амортизационных начислений, налога на имущество и других обязательных платежей
A103: 4.2.5.1.1. | B103: Акты выполненных работ и услуг согласно договорам №13А-19 от 04.09.2019, №12А-20 от 31.12.2019, №1/0-20/24 от 01.11.2019, №01С/А-21 от 01.12.2021 | C103: 3-69
A104: 4.2.5.2. | B104: Анализ рыночных цен по аренде помещений и транспорта, сложившиеся на организованных торговых площадках | F104: К договорам аренды, представленным в п.1.7
A105: 4.2.5.2.1. | B105: перечень документов
A106: 4.2.5.3. | B106: Бухгалтерские документы, подтверждающие фактические расходы по аренде имущества за 2021 год
A107: 4.2.6. | B107: Оплата услуг ПАО "ФСК ЕЭС" | F107: Таблица из электронного формата расчета НВВ
A108: 4.2.6.1. | B108: Договор с ПА "ФСК ЕЭС" на предоставление услуг по передаче электрической энергии по единой национальной (общероссийской) электрической сети
A109: 4.2.6.2. | B109: Документ о согласовании суммарной величины заявленной мощности на 2023 год
A110: 4.2.6.3. | B110: Акты оказания услуг ПАО «ФСК ЕЭС» по передаче электрической энергии по единой национальной (общероссийской) электрической сети за 2021 год
A111: 4.2.7. | B111: Прочие неподконтрольные расходы | F111: Таблица из электронного формата расчета НВВ
A112: 4.2.7.1. | B112: Расчет планируемых расходов и обосновывающие документы к нему
A113: 4.2.7.1.1. | B113: перечень документов
A114: 4.2.7.2. | B114: Бухгалтерские документы, подтверждающие фактические прочие неподконтрольные расходы за 2021 год
A115: 4.2.7.2.1. | B115: перечень документов
A116: 4.2.8. | B116: Расходы на капитальные вложения | C116: 70 | F116: Таблица из электронного формата расчета НВВ
A117: 4.2.8.1 | B117: Оборотно-сальдовая ведомость по счету 08 за 2021 год | C117: 71
A118: 4.2.9. | B118: Расходы, связанные с компенсацией выпадающих доходов от льготного технологического присоединения | C118: 72 | F118: Таблица из электронного формата расчета НВВ
A119: 4.2.9.1. | B119: Отчет по технологическому присоединению к сетям за 2021 год | C119: 73-75
A120: 4.2.9.2. | B120: Расчет размера расходов, связанных с осуществлением технологического присоединения энергопринимающих устройств максимальной мощностью, не превышающей 15 кВт включительно, не включаемых в состав платы за технологическое присоединение за 2021 год и плановый период 2023 года | C120: 76 | F120: Таблица из электронного формата расчета НВВ
A121: 4.2.9.3. | B121: Акты ввода основных средств, построенных для технологического присоединения льготной категории заявителей до 15 кВт за 2021 год
A122: 4.2.9.4. | B122: Расчет размера расходов, связанных с осуществлением технологического присоединения к электрическим сетям энергопринимающих устройств максимальной мощностью до 150 кВт включительно, не включаемых в состав платы за технологическое присоединение за 2021 год и плановый период 2023 года | F122: Таблица из электронного формата расчета НВВ
A123: 4.2.9.5. | B123: Акты ввода основных средств, построенных для технологического присоединения заявителей с присоединяемой мощностью энергопринимающих устройств свыше 15 кВт до 150 кВт включительно за 2021 год
A124: 4.2.9.6. | B124: Выпадающие доходы сетевой организации от выплаты процентов по кредитным договорам, связанным с рассрочкой по оплате субъектами малого и среднего предпринимательства технологического присоединения энергопринимающих устройств максимальной мощностью свыше 15 кВт и до 150 кВт включительно в 2023 году | F124: Таблица из электронного формата расчета НВВ
A125: 4.2.9.7. | B125: Расчет размера расходов, связанных с предоставлением беспроцентной рассрочки (для конкретного заявителя) | F125: Таблица из электронного формата расчета НВВ
A126: 4.2.9.8. | B126: Договоры, по которым предусмотрена рассрочка по оплате технологического присоединения и акты тех.присоединения
A127: 4.2.9.8.1. | B127: перечень документов
A128: 4.2.10. | B128: Расходы на возврат и обслуживание долгосрочных заемных средств, направленных на финансирование капитальных вложений | C128: 77
A129: 4.2.10.1. | B129: Кредитное соглашение №КР/002019-000682 ПАО Банк «ВТБ», график погашения кредита и уплаты процентов. | C129: 78-80
A130: 4.2.10.2. | B130: Кредитное соглашение №КР/002019-000683 ПАО Банк «ВТБ», график погашения кредита и уплаты процентов. | C130: 81-84
A131: 4.3. | B131: Расчет расходов, связанных с компенсацией незапланированных расходов и полученного избытка, выявленных по итогам 2021 года
B132: Расходы, связанные с необходимостью корректировки валовой выручки регулируемых организаций, указанной в пункте 9, а также расходы в соответствии с пунктом 10 Методических указаний и корректировка необходимой валовой выручки в соответствии с пунктом 32 Основ ценообразования. | C132: 85 | F132: Таблица из электронного формата расчета НВВ
A133: 4.3.1. | B133: Корректировка подконтрольных расходов по результатам 2021 года | C133: 86 | F133: Таблица из электронного формата расчета НВВ
A134: 4.3.2. | B134: Корректировка неподконтрольных расходов по результатам 2021 года | C134: 87 | F134: Таблица из электронного формата расчета НВВ
A135: 4.3.3. | B135: Корректировка необходимой валовой выручки по доходам от осуществления регулируемой деятельности за 2021 год | C135: 88 | F135: Таблица из электронного формата расчета НВВ
A136: 4.3.4. | B136: Корректировка расходов по обеспечению коммерческого учета | F136: Таблица из электронного формата расчета НВВ
A137: 4.3.4.1. | B137: Документы, подтверждающие фактические расходы по обеспечению коммерческого учета за 2021 год
A138: 4.3.4. | B138: Корректировка НВВ с учетом изменения полезного отпуска и цен на электрическую энергию за 2021 год | C138: 89 | F138: Таблица из электронного формата расчета НВВ
A139: 4.3.5. | B139: Корректировка НВВ в связи с изменением (неисполнением) инвестиционной программы по результатам 2021 года | C139: 90 | F139: Таблица из электронного формата расчета НВВ
A140: 4.3.5.1. | B140: Отчет по выполнению инвестиционных программ сетевых компаний за 2021 год | C140: 91
A141: 4.4. | B141: Расходы, предусмотренные пунктом 5 статьи 37 Федерального закона от 26 марта 2003 г. N 35-ФЗ "Об электроэнергетике" по обеспечению коммерческого учета ээ | C141: 92 | F141: Таблица из электронного формата расчета НВВ
A142: 4.4.1. | B142: Обосновывающие документы
A143: 4.4.1.1. | B143: Акты ООО "МБИ Групп" | C143: 93-113
A144: 4.4.1.2. | B144: Акты приема-передачи работ (оказания услуг), счета-фактуры ФБУ "Ивановский ЦСМ" | C144: 114-127
A145: 4.4.1.3. | B145: Акты, счета-фактуры ООО "Матрица" | C145: 128-130
A146: 4.4.1.4. | B146: Счета-фактуры ООО "Милур ИС" | C146: 131-133
A147: 4.4.1.5. | B147: Счета-фактуры ООО "Май Энерго" | C147: 134-135
A148: 4.5. | B148: Экономия расходов на оплату потерь электрической энергии, полученная сетевой организацией при осуществлении деятельности по передаче электрической энергии в результате проведения мероприятий по сокращению объема используемых энергетических ресурсов, определяемая в соответствии с пунктом 34(3) Основ ценообразования за 2021 год | C148: 136 | F148: Таблица из электронного формата расчета НВВ
A149: 4.6. | B149: Корректировка НВВ с учетом надежности и качества оказываемых услуг по результатам 2021 года | C149: 137 | F149: Таблица из электронного формата расчета НВВ
A150: 4.6.1. | B150: Форма_8.1 - Журнал учета данных первичной информации по всем прекращениям передачи электрической энергии произошедших на объектах сетевой организации 2021 год | C150: 138-142 | F150: Таблица из электронного формата расчета НВВ
A151: 4.6.2. | B151: Форма 8.3. Расчет индикативного показателя уровня надежности оказываемых услуг для территориальных сетевых организаций и организацией по управлению единой национальной (общероссийской) электрической сетью, чей долгосрочный период регулирования начался после 2019 года. | C151: 143 | F151: Таблица из электронного формата расчета НВВ
A152: 4.6.3. | B152: Расчет показателя уровня качества осуществляемого технологического присоединения к сети за 2021 г., Птпр (форма 3.1-3.2) | C152: 144 | F152: Таблица из электронного формата расчета НВВ
A153: 5. | B153: Расходы организации на компенсацию потерь на 2023 год | C153: 145 | F153: Таблица из электронного формата расчета НВВ
A154: 6. | B154: Расчет необходимой валовой выручки (НВВ) на оказание услуги по передаче электрической энергии на 2023 год долгосрочного периода регулирования 2020- 2024 годы по данным предприятия | C154: 146-147 | F154: Таблица из электронного формата расчета НВВ
B155: Подконтрольные расходы
A156: 6.1. | B156: Расходы на оплату труда. Оборотно-сальдовая ведомость по счету 70 за 2020 год | C156: 148-149
A157: 6.2. | B157: Материалы. Оборотно-сальдовая ведомость по счету 10.05, 10.03,10.06,10.09, 10.01 за 2020 год | C157: 150-166
A158: 6.3. | B158: Ремонт основных фондов | C158: см. п.3.7.1.1.-3.7.3.
A159: 6.4. | B159: Работы и услуги производственного характера
A160: 6.4.1. | B160: Акт ООО "Энерго-транс", счет-фактура,товаро-транспортная накладная | C160: 167-168
A161: 6.4.2. | B161: Счета, акты ИП Искорин Д.А. | C161: 169-170
A162: 6.4.3. | B162: Счета-фактуры ООО "ЖелДорЭкспедиция" | C162: 171-176
A163: 6.4.4. | B163: Акты ООО "МБИ Групп" | C163: см.п. 4.4.1.1.
A164: 6.4.5. | B164: Акты ООО "ПРО-Сервис" | C164: 177-188
A165: 6.4.6. | B165: Акты ФГКУ "УВО ВНГ России по Владимирской области" | C165: 189-200
A166: 6.4.7. | B166: Акты приема-передачи работ (оказания услуг), счета-фактуры ФБУ "Ивановский ЦСМ" | C166: см. п. 4.4.1.2.
A167: 6.4.8. | B167: Акты, счета-фактуры ООО "Матрица" | C167: см.п. 4.4.1.3.
A168: 6.5. | B168: Работы и услуги непроизводственного характера.
B169: Услуги связи
A170: 6.5.1. | B170: Счета-фактуры ООО "Комеджик" | C170: 201-214
A171: 6.5.2. | B171: Акты ООО "Инфокар" | C171: 215-227
A172: 6.5.3. | B172: Счета-фактуры ООО "Прмрусинжиниринг" | C172: 228-236
A173: 6.5.4. | B173: Счета-фактуры ООО "Новосистем" | C173: 237-251
A174: 6.5.5. | B174: Акты, счета-фактуры ПАО "Ростелеком" | C174: 252-297
A175: 6.5.6. | B175: Счета-фактуры ПАО "ВымпелКом" | C175: 298-313
A176: 6.5.7. | B176: Счета-фактуры АО "Компания ТрансТелеКом" | C176: 314-329
A177: 6.5.8. | B177: Счета-фактуры ПАО "МегаФон" | C177: 330-355
A178: 6.5.9. | B178: Акт ООО "М2МЭкспресс" | C178: 356
A179: 6.5.10. | B179: Акт об оказании услуг по комплексному информационно-технологическому обслуживанию программного продукта «Креол" | C179: 357-370
A180: 6.5.11. | B180: АО "Производственная фирма "СКБ Контур" | C180: 371
A181: 6.5.12. | B181: Акты ООО "Компания Тензор" | C181: 372-374
A182: 6.5.13. | B182: Акт, счет-фактура АО НИП "Информзащита" | C182: 375
A183: 6.5.14. | B183: Акт ООО "Гранд-Владимир" | C183: 376
A184: 6.5.15. | B184: Акт ИП Николаенко Е.М. | C184: 377
B185: Аудиторские и консультационные услуги
A186: 6.5.16. | B186: Акт ООО "АНИТ-Аудиторские услуги" | C186: 378
A187: 6.5.17. | B187: Акты ООО "Владрегионэнерго" | C187: 379-380
A188: 6.5.18. | B188: Акт ФГБУ "РЭА" Минэнерго России | C188: 381
A189: 6.5.19. | B189: Акты АНО "Управление обеспечения энергоэффективности и энергосбережения в Южно-Сибирском регионе" | C189: 382-383
A190: 6.5.20. | B190: Акт, счет-фактура ООО "Тори-аудит" | C190: 384
A191: 6.5.21. | B191: Акт ИП Ширманова Е.В., Акты ООО "Лига-Олимп", Неганов А.Ю. | C191: 385-404
A192: 6.5.22. | B192: Кадастровые работы ИП Андреяк Т.Н. | C192: 405-406
A193: 6.5.23. | B193: Предрейсовый медицинский осмотр, Акты Злобина Н.Х. | C193: 407-417
A194: 6.5.24. | B194: Акты ООО "Новый мир", Акты ООО"АИФ-Владимир", МАУ "Александровский голос труда" | C194: 418-426
A195: 6.6. | B195: Обеспечение нормальных условий труда и техники безопасности
A196: 6.6.1. | B196: Счета-фактуры, акты ФБУ "ГРЦ стандартизации, метрологии и испытаний в Ивановской области" | C196: 427-429
A197: 6.7. | B197: Расходы на обучение персонала. Акты ООО "ИП Управление ЖКХ" | C197: 430-431
A198: 6.8. | B198: Расходы на услуги банков. Оборотно-сальдовая ведомость по счету 91.02 за 2021 год | C198: 432
A199: 7. | B199: Расчет индивидуальных тарифов на 2023 год долгосрочного периода регулирования 2020 - 2024 годы | C199: 433 | F199: Таблица из электронного формата расчета НВВ

Sheet Соответствие критериям
A2: Критерии отнесения владельцев объектов электросетевого хозяйства к территориальным сетевым организациям (утв. постановлением Правительства РФ от 28 февраля 2015 г. N 184)
A4: ='Инф-я'!C14 -> ООО "Энергетик"
A6: № п./п. | B6: Наименование показателя | C6: Ед. измерения | D6: По данным организации | E6: По данным экспертов | F6: Представляемые обосновывающие материалы
A7: 1 | B7: 2 | C7: 3 | D7: 4 | E7: 5 | F7: 6
A8: 1. | B8: Владение на праве собственности и (или) на ином законном основании на срок не менее долгосрочного периода регулирования трансформаторными и иными подстанциями с установленными силовыми трансформаторами (автотрансформаторами), расположенными и используемыми для осуществления регулируемой деятельности в административных границах субъекта Российской Федерации, сумма номинальных мощностей которых составляет не менее 10 МВА. | C8: МВА | D8: 19.513 | F8: Согласно пункта 17 Правил государственного регулирования (пересмотра, применения) цен (тарифов) в электроэнергетике, утвержденных Постановлением Правительства РФ от 29 декабря 2011 г. N 1178: К заявлениям, направленным в соответствии с пунктами 12, 14 и 16 настоящих Правил, организации, осуществляющие регулируемую деятельность, и органы исполнительной власти субъектов Российской Федерации в области государственного регулирования тарифов прилагают следующие обосновывающие материалы: . . . 13) документы, подтверждающие осуществление (фактическое или планируемое) регулируемой деятельности, - документы, подтверждающие право собственности или иные законные основания владения в отношении объектов, используемых для осуществления деятельности, и (или) договоры на осуществление регулируемой деятельности (при реорганизации юридического лица - передаточные акты); . . . 15) справка о наличии официального сайта в сети Интернет и выделенного абонентского номера для обращений потребителей услуг по передаче электрической энергии и (или) технологическому присоединению, подписанная руководителем или иным уполномоченным лицом заявителя и заверенная печатью заявителя; 16) утвержденные руководителем или иным уполномоченным лицом заявителя и заверенные печатью заявителя (при наличии печати) схемы соединений электрической сети заявителя с обозначением трансформаторных и иных подстанций, а также линий электропередачи, указанных в пунктах 1 и 2 критериев отнесения владельцев объектов электросетевого хозяйства к территориальным сетевым организациям, утвержденных постановлением Правительства Российской Федерации от 28 февраля 2015 г. N 184 "Об отнесении владельцев объектов электросетевого хозяйства к территориальным сетевым организациям" (далее - критерии отнесения владельцев объектов электросетевого хозяйства к территориальным сетевым организациям).
A9: 2. | B9: Владение на праве собственности и (или) на ином законном основании на срок не менее долгосрочного периода регулирования линиями электропередачи (воздушными и (или) кабельными), расположенными и используемыми для осуществления регулируемой деятельности в административных границах субъекта Российской Федерации, непосредственно соединенными с трансформаторными и иными подстанциями, указанными в пункте 1 настоящих критериев, сумма протяженностей которых по трассе составляет не менее 15 км, не менее 2 из следующих проектных номинальных классов напряжения: | C9: км | D9: =D12+D13 -> 221.87 | E9: =E10+E11+E12+E13 -> 0
B10: 110 кВ и выше; | C10: км
B11: 35 кВ; | C11: км
B12: 1 - 20 кВ; | C12: км | D12: 73.38
B13: ниже 1 кВ - трехфазных участков линий электропередачи. | C13: км | D13: 148.49
A14: 3. | B14: 3. Отсутствие за 3 предшествующих расчетных периода регулирования 3 фактов применения органами исполнительной власти субъектов Российской Федерации в области государственного регулирования тарифов понижающих коэффициентов, позволяющих обеспечить соответствие уровня тарифов, установленных для владельца объектов электросетевого хозяйства, уровню надежности и качества поставляемых товаров и оказываемых услуг, а также корректировки цен (тарифов), установленных на долгосрочный период регулирования, в случае представления владельцем объектов электросетевого хозяйства, для которого такие цены (тарифы) установлены, недостоверных отчетных данных, используемых при расчете фактических значений показателей надежности и качества поставляемых товаров и оказываемых услуг, или непредставления таких данных. | C14: х | D14: нет
A15: 4. | B15: 4. Наличие выделенного абонентского номера для обращений потребителей услуг по передаче электрической энергии и (или) технологическому присоединению. | C15: х | D15: есть 8-800-450-01-50
A16: 5. | B16: 5. Наличие официального сайта в информационно-телекоммуникационной сети "Интернет". | C16: х | D16: есть oao-energetik.ru
A17: 6. | B17: 6. Отсутствие во владении и (или) пользовании объектов электросетевого хозяйства, расположенных в административных границах субъекта Российской Федерации и используемых для осуществления регулируемой деятельности в указанных границах, принадлежащих на праве собственности или ином законном основании иному лицу, владеющему объектом по производству электрической энергии (мощности), который расположен в административных границах соответствующего субъекта Российской Федерации и с использованием которого осуществляется производство электрической энергии и мощности с целью ее продажи на оптовом рынке электрической энергии (мощности) и (или) розничных рынках электрической энергии. | C17: х | D17: нет
B19: Руководитель организации | D19: ='Инф-я'!$C$21 -> Окунев Василий Михайлович

Sheet Баланс энергии
A1: Заполняется в тыс. кВт.ч. ! | AF1: тыс. кВт.ч.
A3: Баланс электрической энергии по сетям ВН, СН1, СН2, и НН | H3: ='Инф-я'!C14 -> ООО "Энергетик"
A5: № п.п. | B5: Показатели | C5: Принято регулирующим органом на 2021 год | H5: Факт за 2021 год | M5: Принято регулирующим органом на 2022 год | R5: По данным организации на 2023 год | W5: По данным организации на 1 полугодие 2023 года | AB5: По данным организации на 2 полугодие 2023 года | AG5: По данным экспертов на 2023 год | AL5: По данным экспертов на 1 полугодие 2023 года | AQ5: По данным экспертов на 2 полугодие 2023 года
C6: Всего | D6: ВН | E6: СН1 | F6: СН2 | G6: НН | H6: Всего | I6: ВН | J6: СН1 | K6: СН2 | L6: НН | M6: Всего | N6: ВН | O6: СН1 | P6: СН2 | Q6: НН | R6: Всего | S6: ВН | T6: СН1 | U6: СН2 | V6: НН | W6: Всего | X6: ВН | Y6: СН1 | Z6: СН2 | AA6: НН | AB6: Всего | AC6: ВН | AD6: СН1 | AE6: СН2 | AF6: НН | AG6: Всего | AH6: ВН | AI6: СН1 | AJ6: СН2 | AK6: НН | AL6: Всего | AM6: ВН | AN6: СН1 | AO6: СН2 | AP6: НН | AQ6: Всего | AR6: ВН | AS6: СН1 | AT6: СН2 | AU6: НН
A7: 1 | B7: 2 | C7: 3 | D7: 4 | E7: 5 | F7: 6 | G7: 7 | H7: 18 | I7: 19 | J7: 20 | K7: 21 | L7: 22 | M7: 33 | N7: 34 | O7: 35 | P7: 36 | Q7: 37 | R7: 48 | S7: 49 | T7: 50 | U7: 51 | V7: 52 | W7: 53 | X7: 54 | Y7: 55 | Z7: 56 | AA7: 57 | AB7: 58 | AC7: 59 | AD7: 60 | AE7: 61 | AF7: 62 | AG7: 63 | AH7: 64 | AI7: 65 | AJ7: 66 | AK7: 67 | AL7: 53 | AM7: 54 | AN7: 55 | AO7: 56 | AP7: 57 | AQ7: 58 | AR7: 59 | AS7: 60 | AT7: 61 | AU7: 62
A8: 1. | B8: Поступление эл.энергии в сеть , ВСЕГО | C8: =C18+C20+C21 -> 24276.24 | D8: =D14+D15+D16+D17 -> 24276.24 | E8: =E9+E14+E15+E16+E17 -> 0 | F8: =F9+F14+F15+F16+F17 -> 24276.24 | G8: =G9+G14+G15+G16+G17 -> 16511.94837 | H8: =H18+H20+H21 -> 25621.744 | I8: =I14+I15+I16+I17 -> 25621.744 | J8: =J9+J14+J15+J16+J17 -> 0 | K8: =K9+K14+K15+K16+K17 -> 25621.744 | L8: =L9+L14+L15+L16+L17 -> 17273.012 | M8: =M18+M20+M21 -> 25196.33508 | N8: =N14+N15+N16+N17 -> 25196.33508 | O8: =O9+O14+O15+O16+O17 -> 0 | P8: =P9+P14+P15+P16+P17 -> 25196.33508 | Q8: =Q9+Q14+Q15+Q16+Q17 -> 17165.12507 | R8: =R18+R20+R21 -> 25621.74 | S8: =S14+S15+S16+S17 -> 25621.74 | T8: =T9+T14+T15+T16+T17 -> 0 | U8: =U9+U14+U15+U16+U17 -> 25621.74 | V8: =V9+V14+V15+V16+V17 -> 17272.62256 | W8: =W18+W20+W21 -> 12944.37 | X8: =X14+X15+X16+X17 -> 12944.37 | Y8: =Y9+Y14+Y15+Y16+Y17 -> 0 | Z8: =Z9+Z14+Z15+Z16+Z17 -> 12944.37 | AA8: =AA9+AA14+AA15+AA16+AA17 -> 8717.13 | AB8: =AB18+AB20+AB21 -> 12677.37 | AC8: =AC14+AC15+AC16+AC17 -> 12677.37 | AD8: =AD9+AD14+AD15+AD16+AD17 -> 0 | AE8: =AE9+AE14+AE15+AE16+AE17 -> 12677.37 | AF8: =AF9+AF14+AF15+AF16+AF17 -> 8555.881247 | AG8: =AG18+AG20+AG21 -> 0 | AH8: =AH14+AH15+AH16+AH17 -> 0 | AI8: =AI9+AI14+AI15+AI16+AI17 -> 0 | AJ8: =AJ9+AJ14+AJ15+AJ16+AJ17 -> 0 | AK8: =AK9+AK14+AK15+AK16+AK17 -> 0 | AL8: =AL18+AL20+AL21 -> 0 | AM8: =AM14+AM15+AM16+AM17 -> 0 | AN8: =AN9+AN14+AN15+AN16+AN17 -> 0 | AO8: =AO9+AO14+AO15+AO16+AO17 -> 0 | AP8: =AP9+AP14+AP15+AP16+AP17 -> 0 | AQ8: =AQ18+AQ20+AQ21 -> 0 | AR8: =AR14+AR15+AR16+AR17 -> 0 | AS8: =AS9+AS14+AS15+AS16+AS17 -> 0 | AT8: =AT9+AT14+AT15+AT16+AT17 -> 0 | AU8: =AU9+AU14+AU15+AU16+AU17 -> 0
A9: 1.1. | B9: из смежной сети, всего | C9: х | D9: х | E9: =E11 -> 0 | F9: =F11+F12 -> 24276.24 | G9: =G11+G12+G13 -> 16511.94837 | H9: х | I9: х | J9: =J11 -> 0 | K9: =K11+K12 -> 25621.744 | L9: =L11+L12+L13 -> 17273.012 | M9: х | N9: х | O9: =O11 -> 0 | P9: =P11+P12 -> 25196.33508 | Q9: =Q11+Q12+Q13 -> 17165.12507 | R9: х | S9: х | T9: =T11 -> 0 | U9: =U11+U12 -> 25621.74 | V9: =V11+V12+V13 -> 17272.62256 | W9: х | X9: х | Y9: =Y11 -> 0 | Z9: =Z11+Z12 -> 12944.37 | AA9: =AA11+AA12+AA13 -> 8717.13 | AB9: х | AC9: х | AD9: =AD11 -> 0 | AE9: =AE11+AE12 -> 12677.37 | AF9: =AF11+AF12+AF13 -> 8555.881247 | AG9: х | AH9: х | AI9: =AI11 -> 0 | AJ9: =AJ11+AJ12 -> 0 | AK9: =AK11+AK12+AK13 -> 0 | AL9: х | AM9: х | AN9: =AN11 -> 0 | AO9: =AO11+AO12 -> 0 | AP9: =AP11+AP12+AP13 -> 0 | AQ9: х | AR9: х | AS9: =AS11 -> 0 | AT9: =AT11+AT12 -> 0 | AU9: =AU11+AU12+AU13 -> 0
B10: в том числе из сети | C10: х | D10: х | E10: х | F10: х | G10: х | H10: х | I10: х | J10: х | K10: х | L10: х | M10: х | N10: х | O10: х | P10: х | Q10: х | R10: х | S10: х | T10: х | U10: х | V10: х | W10: х | X10: х | Y10: х | Z10: х | AA10: х | AB10: х | AC10: х | AD10: х | AE10: х | AF10: х | AG10: х | AH10: х | AI10: х | AJ10: х | AK10: х | AL10: х | AM10: х | AN10: х | AO10: х | AP10: х | AQ10: х | AR10: х | AS10: х | AT10: х | AU10: х
A11: 1.1.1. | B11: ВН | C11: х | D11: х | F11: =D8-D18-D20-D21-E11-G11 -> 24276.24 | H11: х | I11: х | K11: =I8-I18-I20-I21-J11-L11 -> 25621.744 | M11: х | N11: х | P11: =N8-N18-N20-N21-O11-Q11 -> 25196.33508 | R11: х | S11: х | U11: =S8-S18-S20-S21-T11-V11 -> 25621.74 | W11: х | X11: х | Z11: =X8-X18-X20-X21-Y11-AA11 -> 12944.37 | AB11: х | AC11: х | AE11: =AC8-AC18-AC20-AC21-AD11-AF11 -> 12677.37 | AG11: х | AH11: х | AJ11: =AH8-AH18-AH20-AH21-AI11-AK11 -> 0 | AL11: х | AM11: х | AO11: =AM8-AM18-AM20-AM21-AN11-AP11 -> 0 | AQ11: х | AR11: х | AT11: =AR8-AR18-AR20-AR21-AS11-AU11 -> 0
A12: 1.1.2. | B12: СН1 | C12: х | D12: х | E12: х | F12: =E8-E18-E20-E21-G12 -> 0 | H12: х | I12: х | J12: х | K12: =J8-J18-J20-J21-L12 -> 0 | M12: х | N12: х | O12: х | P12: =O8-O18-O20-O21-Q12 -> 0 | R12: х | S12: х | T12: х | U12: =T8-T18-T20-T21-V12 -> 0 | W12: х | X12: х | Y12: х | Z12: =Y8-Y18-Y20-Y21-AA12 -> 0 | AB12: х | AC12: х | AD12: х | AE12: =AD8-AD18-AD20-AD21-AF12 -> 0 | AG12: х | AH12: х | AI12: х | AJ12: =AI8-AI18-AI20-AI21-AK12 -> 0 | AL12: х | AM12: х | AN12: х | AO12: =AN8-AN18-AN20-AN21-AP12 -> 0 | AQ12: х | AR12: х | AS12: х | AT12: =AS8-AS18-AS20-AS21-AU12 -> 0
A13: 1.1.3. | B13: СН2 | C13: х | D13: х | E13: х | F13: х | G13: =F8-F18-F20-F21 -> 16511.94837 | H13: х | I13: х | J13: х | K13: х | L13: =K8-K18-K20-K21 -> 17273.012 | M13: х | N13: х | O13: х | P13: х | Q13: =P8-P18-P20-P21 -> 17165.12507 | R13: х | S13: х | T13: х | U13: х | V13: =U8-U18-U20-U21 -> 17272.62256 | W13: х | X13: х | Y13: х | Z13: х | AA13: =Z8-Z18-Z20-Z21 -> 8717.13 | AB13: х | AC13: х | AD13: х | AE13: х | AF13: =AE8-AE18-AE20-AE21 -> 8555.881247 | AG13: х | AH13: х | AI13: х | AJ13: х | AK13: =AJ8-AJ18-AJ20-AJ21 -> 0 | AL13: х | AM13: х | AN13: х | AO13: х | AP13: =AO8-AO18-AO20-AO21 -> 0 | AQ13: х | AR13: х | AS13: х | AT13: х | AU13: =AT8-AT18-AT20-AT21 -> 0
A14: 1.2. | B14: от электростанций | C14: =SUM(D14:G14) -> 0 | H14: =SUM(I14:L14) -> 0 | M14: =SUM(N14:Q14) -> 0 | R14: =SUM(S14:V14) -> 0 | W14: =SUM(X14:AA14) -> 0 | AB14: =SUM(AC14:AF14) -> 0 | AG14: =SUM(AH14:AK14) -> 0 | AL14: =SUM(AM14:AP14) -> 0 | AQ14: =SUM(AR14:AU14) -> 0
A15: 1.3. | B15: от ОАО "ФСК ЕЭС" | C15: =SUM(D15:G15) -> 0 | H15: =SUM(I15:L15) -> 0 | M15: =SUM(N15:Q15) -> 0 | R15: =SUM(S15:V15) -> 0 | W15: =SUM(X15:AA15) -> 0 | AB15: =SUM(AC15:AF15) -> 0 | AG15: =SUM(AH15:AK15) -> 0 | AL15: =SUM(AM15:AP15) -> 0 | AQ15: =SUM(AR15:AU15) -> 0
A16: 1.4. | B16: от филиала "Владимирэнерго" ОАО "МРСК Центра и Приволжья" | C16: =SUM(D16:G16) -> 24276.24 | D16: 24276.24 | E16: 0 | F16: 0 | G16: 0 | H16: =SUM(I16:L16) -> 25621.744 | I16: 25621.744 | M16: =SUM(N16:Q16) -> 25196.33508 | N16: 25196.33508 | O16: 0 | P16: 0 | Q16: 0 | R16: =SUM(S16:V16) -> 25621.74 | S16: 25621.74 | W16: =SUM(X16:AA16) -> 12944.37 | X16: 12944.37 | AB16: =SUM(AC16:AF16) -> 12677.37 | AC16: 12677.37 | AG16: =SUM(AH16:AK16) -> 0 | AL16: =SUM(AM16:AP16) -> 0 | AQ16: =SUM(AR16:AU16) -> 0
A17: 1.5. | B17: от других сетевых организаций | C17: =SUM(D17:G17) -> 0 | H17: =SUM(I17:L17) -> 0 | M17: =SUM(N17:Q17) -> 0 | N17: 0 | O17: 0 | P17: 0 | Q17: 0 | R17: =SUM(S17:V17) -> 0 | W17: =SUM(X17:AA17) -> 0 | AB17: =SUM(AC17:AF17) -> 0 | AG17: =SUM(AH17:AK17) -> 0 | AL17: =SUM(AM17:AP17) -> 0 | AQ17: =SUM(AR17:AU17) -> 0
A18: 2. | B18: Потери электроэнергии в сети | C18: =SUM(D18:G18) -> 2782.039873 | D18: =D8*D19/100 -> 0 | E18: =E8*E19/100 -> 0 | F18: =F8*F19/100 -> 1500.271632 | G18: =G8*G19/100 -> 1281.768241 | H18: =SUM(I18:L18) -> 2369.246094 | I18: =I8*I19/100 -> 0 | J18: =J8*J19/100 -> 0 | K18: =K8*K19/100 -> 1552.288999 | L18: =L8*L19/100 -> 816.9570946 | M18: =SUM(N18:Q18) -> 2887.5 | N18: =N8*N19/100 -> 0 | O18: =O8*O19/100 -> 0 | P18: =P8*P19/100 -> 1557.133508 | Q18: =Q8*Q19/100 -> 1330.366492 | R18: =SUM(S18:V18) -> 2369.672491 | S18: =S8*S19/100 -> 0 | T18: =T8*T19/100 -> 0 | U18: =U8*U19/100 -> 1552.677444 | V18: =V8*V19/100 -> 816.9950469 | W18: =SUM(X18:AA18) -> 1188.96 | X18: =X8*X19/100 -> 0 | Y18: =Y8*Y19/100 -> 0 | Z18: =Z8*Z19/100 -> 768.82 | AA18: =AA8*AA19/100 -> 420.14 | AB18: =SUM(AC18:AF18) -> 1180.285811 | AC18: =AC8*AC19/100 -> 0 | AD18: =AD8*AD19/100 -> 0 | AE18: =AE8*AE19/100 -> 783.4687528 | AF18: =AF8*AF19/100 -> 396.8170578 | AG18: =SUM(AH18:AK18) -> 0 | AH18: =AH8*AH19/100 -> 0 | AI18: =AI8*AI19/100 -> 0 | AJ18: =AJ8*AJ19/100 -> 0 | AK18: =AK8*AK19/100 -> 0 | AL18: =SUM(AM18:AP18) -> 0 | AM18: =AM8*AM19/100 -> 0 | AN18: =AN8*AN19/100 -> 0 | AO18: =AO8*AO19/100 -> 0 | AP18: =AP8*AP19/100 -> 0 | AQ18: =SUM(AR18:AU18) -> 0 | AR18: =AR8*AR19/100 -> 0 | AS18: =AS8*AS19/100 -> 0 | AT18: =AT8*AT19/100 -> 0 | AU18: =AU8*AU19/100 -> 0
A19: 2.1. | B19: то же в % (п.2./п.1.) | C19: =IF(C8=0,0,C18/C8*100) -> 11.45992902 | F19: 6.18 | G19: 7.762671084 | H19: =IF(H8=0,0,H18/H8*100) -> 9.247013373 | K19: 6.05848298 | L19: 4.729673635 | M19: =IF(M8=0,0,M18/M8*100) -> 11.46 | N19: 0 | O19: 0 | P19: 6.18 | Q19: 7.750403721 | R19: =IF(R8=0,0,R18/R8*100) -> 9.248679016 | U19: 6.06 | V19: 4.73 | W19: =IF(W8=0,0,W18/W8*100) -> 9.185151537 | Z19: =768.82*100/12944.37 -> 5.939416132 | AA19: =420.14*100/8717.13 -> 4.819705568 | AB19: =IF(AB8=0,0,AB18/AB8*100) -> 9.310178772 | AE19: =783.469*100/12677.374 -> 6.180057479 | AF19: =396.817*100/8555.88 -> 4.637944899 | AG19: =IF(AG8=0,0,AG18/AG8*100) -> 0 | AL19: =IF(AL8=0,0,AL18/AL8*100) -> 0 | AQ19: =IF(AQ8=0,0,AQ18/AQ8*100) -> 0
A20: 3. | B20: Расход электроэнергии на производственные и хознужды | C20: =SUM(D20:G20) -> 0 | H20: =SUM(I20:L20) -> 0 | M20: =SUM(N20:Q20) -> 0 | R20: =SUM(S20:V20) -> 0 | W20: =SUM(X20:AA20) -> 0 | AB20: =SUM(AC20:AF20) -> 0 | AG20: =SUM(AH20:AK20) -> 0 | AL20: =SUM(AM20:AP20) -> 0 | AQ20: =SUM(AR20:AU20) -> 0
A21: 4. | B21: Полезный отпуск из сети | C21: =SUM(D21:G21) -> 21494.20013 | D21: =D22+D23+D24 -> 0 | E21: =E22+E23+E24 -> 0 | F21: =F22+F23+F24 -> 6264.02 | G21: =G8-G18-G20 -> 15230.18013 | H21: =SUM(I21:L21) -> 23252.49791 | I21: =I22+I23+I24 -> 0 | J21: =J22+J23+J24 -> 0 | K21: =K22+K23+K24 -> 6796.443 | L21: =L8-L18-L20 -> 16456.05491 | M21: =SUM(N21:Q21) -> 22308.83508 | N21: =N22+N23+N24 -> 0 | O21: =O22+O23+O24 -> 0 | P21: =P22+P23+P24 -> 6474.0765 | Q21: =Q8-Q18-Q20 -> 15834.75858 | R21: =SUM(S21:V21) -> 23252.06751 | S21: =S22+S23+S24 -> 0 | T21: =T22+T23+T24 -> 0 | U21: =U22+U23+U24 -> 6796.44 | V21: =V8-V18-V20 -> 16455.62751 | W21: =SUM(X21:AA21) -> 11755.41 | X21: =X22+X23+X24 -> 0 | Y21: =Y22+Y23+Y24 -> 0 | Z21: =Z22+Z23+Z24 -> 3458.42 | AA21: =AA8-AA18-AA20 -> 8296.99 | AB21: =SUM(AC21:AF21) -> 11497.08419 | AC21: =AC22+AC23+AC24 -> 0 | AD21: =AD22+AD23+AD24 -> 0 | AE21: =AE22+AE23+AE24 -> 3338.02 | AF21: =AF8-AF18-AF20 -> 8159.064189 | AG21: =SUM(AH21:AK21) -> 0 | AH21: =AH22+AH23+AH24 -> 0 | AI21: =AI22+AI23+AI24 -> 0 | AJ21: =AJ22+AJ23+AJ24 -> 0 | AK21: =AK8-AK18-AK20 -> 0 | AL21: =SUM(AM21:AP21) -> 0 | AM21: =AM22+AM23+AM24 -> 0 | AN21: =AN22+AN23+AN24 -> 0 | AO21: =AO22+AO23+AO24 -> 0 | AP21: =AP8-AP18-AP20 -> 0 | AQ21: =SUM(AR21:AU21) -> 0 | AR21: =AR22+AR23+AR24 -> 0 | AS21: =AS22+AS23+AS24 -> 0 | AT21: =AT22+AT23+AT24 -> 0 | AU21: =AU8-AU18-AU20 -> 0
A22: 4.1. | B22: потребителям, присоединенным к сети | C22: =SUM(D22:G22) -> 21494.2 | F22: 6264.02 | G22: 15230.18 | H22: =SUM(I22:L22) -> 23252.498 | K22: 6796.443 | L22: 16456.055 | M22: =SUM(N22:Q22) -> 22308.83508 | N22: 0 | O22: 0 | P22: 6474.0765 | Q22: 15834.75858 | R22: =SUM(S22:V22) -> 23252.5 | U22: 6796.44 | V22: 16456.06 | W22: =SUM(X22:AA22) -> 11755.41 | Z22: 3458.42 | AA22: 8296.99 | AB22: =SUM(AC22:AF22) -> 11497.09 | AE22: 3338.02 | AF22: 8159.07 | AG22: =SUM(AH22:AK22) -> 0 | AL22: =SUM(AM22:AP22) -> 0 | AQ22: =SUM(AR22:AU22) -> 0
A23: 4.2. | B23: переток в филиал "Владимирэнерго" ОАО "МРСК Центра и Приволжья" | C23: =SUM(D23:G23) -> 0 | H23: =SUM(I23:L23) -> 0 | M23: =SUM(N23:Q23) -> 0 | R23: =SUM(S23:V23) -> 0 | W23: =SUM(X23:AA23) -> 0 | AB23: =SUM(AC23:AF23) -> 0 | AG23: =SUM(AH23:AK23) -> 0 | AL23: =SUM(AM23:AP23) -> 0 | AQ23: =SUM(AR23:AU23) -> 0
A24: 4.3. | B24: переток в другие сетевые организации | C24: =SUM(D24:G24) -> 0 | H24: =SUM(I24:L24) -> 0 | M24: =SUM(N24:Q24) -> 0 | R24: =SUM(S24:V24) -> 0 | W24: =SUM(X24:AA24) -> 0 | AB24: =SUM(AC24:AF24) -> 0 | AG24: =SUM(AH24:AK24) -> 0 | AL24: =SUM(AM24:AP24) -> 0 | AQ24: =SUM(AR24:AU24) -> 0
B25: Проверка | D25: =D8-D18-D20-D22-D23-D24-E11-F11-G11 -> 0 | E25: =E8-E18-E20-E22-E23-E24-F12-G12 -> 0 | F25: =F8-F18-F20-F22-F23-F24-G13 -> 0 | G25: =G8-G18-G20-G22-G23-G24 -> 0.0001266322543 | I25: =I8-I18-I20-I22-I23-I24-J11-K11-L11 -> 0 | J25: =J8-J18-J20-J22-J23-J24-K12-L12 -> 0 | K25: =K8-K18-K20-K22-K23-K24-L13 -> 0 | L25: =L8-L18-L20-L22-L23-L24 -> -9.398103066e-05 | N25: =N8-N18-N20-N22-N23-N24-O11-P11-Q11 -> 0 | O25: =O8-O18-O20-O22-O23-O24-P12-Q12 -> 0 | P25: =P8-P18-P20-P22-P23-P24-Q13 -> 0 | Q25: =Q8-Q18-Q20-Q22-Q23-Q24 -> 1.818989404e-11 | S25: =S8-S18-S20-S22-S23-S24-T11-U11-V11 -> 0 | T25: =T8-T18-T20-T22-T23-T24-U12-V12 -> 0 | U25: =U8-U18-U20-U22-U23-U24-V13 -> 0 | V25: =V8-V18-V20-V22-V23-V24 -> -0.4324908988 | X25: =X8-X18-X20-X22-X23-X24-Y11-Z11-AA11 -> 0 | Y25: =Y8-Y18-Y20-Y22-Y23-Y24-Z12-AA12 -> 0 | Z25: =Z8-Z18-Z20-Z22-Z23-Z24-AA13 -> 0 | AA25: =AA8-AA18-AA20-AA22-AA23-AA24 -> 1.818989404e-12 | AC25: =AC8-AC18-AC20-AC22-AC23-AC24-AD11-AE11-AF11 -> 0 | AD25: =AD8-AD18-AD20-AD22-AD23-AD24-AE12-AF12 -> 0 | AE25: =AE8-AE18-AE20-AE22-AE23-AE24-AF13 -> 0 | AF25: =AF8-AF18-AF20-AF22-AF23-AF24 -> -0.005810642255 | AH25: =AH8-AH18-AH20-AH22-AH23-AH24-AI11-AJ11-AK11 -> 0 | AI25: =AI8-AI18-AI20-AI22-AI23-AI24-AJ12-AK12 -> 0 | AJ25: =AJ8-AJ18-AJ20-AJ22-AJ23-AJ24-AK13 -> 0 | AK25: =AK8-AK18-AK20-AK22-AK23-AK24 -> 0 | AM25: =AM8-AM18-AM20-AM22-AM23-AM24-AN11-AO11-AP11 -> 0 | AN25: =AN8-AN18-AN20-AN22-AN23-AN24-AO12-AP12 -> 0 | AO25: =AO8-AO18-AO20-AO22-AO23-AO24-AP13 -> 0 | AP25: =AP8-AP18-AP20-AP22-AP23-AP24 -> 0 | AR25: =AR8-AR18-AR20-AR22-AR23-AR24-AS11-AT11-AU11 -> 0 | AS25: =AS8-AS18-AS20-AS22-AS23-AS24-AT12-AU12 -> 0 | AT25: =AT8-AT18-AT20-AT22-AT23-AT24-AU13 -> 0 | AU25: =AU8-AU18-AU20-AU22-AU23-AU24 -> 0
B27: Руководитель организации | D27: ='Инф-я'!$C$21 -> Окунев Василий Михайлович

Sheet Баланс мощности
B2: Электрическая мощность по диапазонам напряжения
B4: ='Инф-я'!C14 -> ООО "Энергетик"
G6: МВт
A7: № п.п. | B7: Показатели | C7: По данным организации на 2023 год | H7: По данным экспертов на 2023 год
C8: Всего | D8: ВН | E8: СН1 | F8: СН2 | G8: НН | H8: Всего | I8: ВН | J8: СН1 | K8: СН2 | L8: НН
A9: 1 | B9: 2 | C9: 3 | D9: 4 | E9: 5 | F9: 6 | G9: 7 | H9: 8 | I9: 9 | J9: 10 | K9: 11 | L9: 12
A10: 1. | B10: Поступление мощности в сеть , ВСЕГО | C10: =C20+C22+C23 -> 4.47 | D10: =D16+D17+D18+D19 -> 4.47 | E10: =E11+E16+E17+E18+E19 -> 0 | F10: =F11+F16+F17+F18+F19 -> 4.47 | G10: =G11+G16+G17+G18+G19 -> 3.421654 | H10: =H20+H22+H23 -> 0 | I10: =I16+I17+I18+I19 -> 0 | J10: =J11+J16+J17+J18+J19 -> 0 | K10: =K11+K16+K17+K18+K19 -> 0 | L10: =L11+L16+L17+L18+L19 -> 0
A11: 1.1. | B11: из смежной сети, всего | C11: х | D11: х | E11: =E13 -> 0 | F11: =F13+F14 -> 4.47 | G11: =G13+G14+G15 -> 3.421654 | H11: х | I11: х | J11: =J13 -> 0 | K11: =K13+K14 -> 0 | L11: =L13+L14+L15 -> 0
B12: в том числе из сети | C12: х | D12: х | E12: х | F12: х | G12: х | H12: х | I12: х | J12: х | K12: х | L12: х
A13: 1.1.1. | B13: ВН | C13: х | D13: х | F13: =D10-D20-D22-D23-G13-E13 -> 4.47 | H13: х | I13: х | K13: =I10-I20-I22-I23-L13-J13 -> 0
A14: 1.1.2. | B14: СН1 | C14: х | D14: х | E14: х | F14: =E10-E20-E22-E23-G14 -> 0 | H14: х | I14: х | J14: х | K14: =J10-J20-J22-J23-L14 -> 0
A15: 1.1.3. | B15: СН2 | C15: х | D15: х | E15: х | F15: х | G15: =F10-F20-F22-F23 -> 3.421654 | H15: х | I15: х | J15: х | K15: х | L15: =K10-K20-K22-K23 -> 0
A16: 1.2. | B16: от электростанций | C16: =SUM(D16:G16) -> 0 | H16: =SUM(I16:L16) -> 0
A17: 1.3. | B17: от ОАО "ФСК ЕЭС" | C17: =SUM(D17:G17) -> 0 | H17: =SUM(I17:L17) -> 0
A18: 1.4. | B18: от филиала "Владимирэнерго" ОАО "МРСК Центра и Приволжья" | C18: =SUM(D18:G18) -> 4.47 | D18: 4.47 | H18: =SUM(I18:L18) -> 0
A19: 1.5. | B19: от других сетевых организаций | C19: =SUM(D19:G19) -> 0 | H19: =SUM(I19:L19) -> 0
A20: 2. | B20: Потери мощности в сети | C20: =SUM(D20:G20) -> 0.6987034537 | D20: =D10*D21/100 -> 0 | E20: =E10*E21/100 -> 0 | F20: =F10*F21/100 -> 0.276246 | G20: =G10*G21/100 -> 0.4224574537 | H20: =SUM(I20:L20) -> 0 | I20: =I10*I21/100 -> 0 | J20: =J10*J21/100 -> 0 | K20: =K10*K21/100 -> 0 | L20: =L10*L21/100 -> 0
A21: 2.1. | B21: то же в % (п.2./п.1.) | C21: =IF(C10=0,0,C20/C10*100) -> 15.63094975 | D21: ='[22]Баланс энергии'!S19 -> 0 | E21: ='[22]Баланс энергии'!T19 -> 0 | F21: ='[22]Баланс энергии'!U19 -> 6.18 | G21: 12.346586 | H21: =IF(H10=0,0,H20/H10*100) -> 0 | I21: ='Баланс энергии'!AH19 -> 0 | J21: ='Баланс энергии'!AI19 -> 0 | K21: ='Баланс энергии'!AJ19 -> 0
A22: 3. | B22: Расход электроэнергии на производственные и хознужды | C22: =SUM(D22:G22) -> 0 | H22: =SUM(I22:L22) -> 0
A23: 4. | B23: Полезный отпуск из сети | C23: =SUM(D23:G23) -> 3.771296546 | D23: =D24+D25+D26 -> 0 | E23: =E24+E25+E26 -> 0 | F23: =F24+F25+F26 -> 0.7721 | G23: =G10-G20-G22 -> 2.999196546 | H23: =SUM(I23:L23) -> 0 | I23: =I24+I25+I26 -> 0 | J23: =J24+J25+J26 -> 0 | K23: =K24+K25+K26 -> 0 | L23: =L10-L20-L22 -> 0
A24: 4.1. | B24: потребителям, присоединенным к сети | C24: =SUM(D24:G24) -> 3.7713 | F24: 0.7721 | G24: 2.9992 | H24: =SUM(I24:L24) -> 0
A25: 4.2. | B25: переток в филиал "Владимирэнерго" ОАО "МРСК Центра и Приволжья" | C25: =SUM(D25:G25) -> 0 | H25: =SUM(I25:L25) -> 0
A26: 4.3. | B26: переток в другие сетевые организации | C26: =SUM(D26:G26) -> 0 | H26: =SUM(I26:L26) -> 0
B27: Проверка | D27: =D10-D20-D22-D24-D25-D26-E13-F13-G13 -> 0 | E27: =E10-E20-E22-E24-E25-E26-F14-G14 -> 0 | F27: =F10-F20-F22-F24-F25-F26-G15 -> 0 | G27: =G10-G20-G22-G24-G25-G26 -> -3.45373244e-06 | I27: =I10-I20-I22-I24-I25-I26-J13-K13-L13 -> 0 | J27: =J10-J20-J22-J24-J25-J26-K14-L14 -> 0 | K27: =K10-K20-K22-K24-K25-K26-L15 -> 0 | L27: =L10-L20-L22-L24-L25-L26 -> 0
B29: Руководитель организации | D29: ='Инф-я'!$C$21 -> Окунев Василий Михайлович

Sheet УЕ ВЛЭП 2020-2023
A3: Объем воздушных линий электропередач (ВЛЭП) и кабельных линий электропередач (КЛЭП) в условных единицах в зависимости от протяженности, напряжения, конструктивного использования и материала опор в период с 2020 по 2023 годы
B4: ='Инф-я'!C14 -> ООО "Энергетик"
A6: ЛЭП | B6: Напряжение, кВ | C6: Количество цепей на опоре | D6: Материал опор | E6: Наименование | F6: Количество условных единиц (у) на 100 км трассы ЛЭП | G6: Протяженность | H6: Объем условных единиц | I6: Протяженность | J6: Объем условных единиц | K6: Протяженность | L6: Объем условных единиц | M6: Количество единиц измерения | N6: Объем условных единиц | O6: Протяженность | P6: Объем условных единиц | Q6: Протяженность | R6: Объем условных единиц | S6: Протяженность | T6: Объем условных единиц
F7: у/100км | G7: км | H7: у | I7: ед.изм. | J7: у | K7: ед.изм. | L7: у | M7: ед.изм. | N7: у | O7: км | P7: у | Q7: км | R7: у | S7: км | T7: у
G8: 2020 год факт | I8: 2021 год утверждено | K8: 2021 год факт по данным организации | M8: 2021 год факт по данным экспертов | O8: 2022 год утверждено | Q8: 2023 год план по данным организации | S8: 2023 год по данным экспертов
A9: 1 | B9: =+A9+1 -> 2 | C9: =+B9+1 -> 3 | D9: =+C9+1 -> 4 | E9: 5 | F9: 6 | G9: 7 | H9: 8 | I9: 9 | J9: 10 | K9: 11 | L9: 12 | M9: 13 | N9: 14 | O9: 15 | P9: 16 | Q9: 17 | R9: 18
A10: ВЛЭП | B10: 1150 | C10: - | D10: металл | E10: ВЛЭП-1150кВ-металл | F10: 800 | H10: =$F10*G10/100 -> 0 | J10: =F10*I10/100 -> 0 | L10: =K10*F10/100 -> 0 | N10: =M10*F10/100 -> 0 | P10: =F10*O10/100 -> 0 | R10: =F10*Q10/100 -> 0 | T10: =$F10*S10/100 -> 0
B11: 750 | C11: 1 | D11: металл | E11: ВЛЭП-750кВ-цепей:1-металл | F11: 600 | H11: =F11*G11/100 -> 0 | J11: 0 | L11: =K11*F11/100 -> 0 | N11: =M11*F11/100 -> 0 | P11: 0 | R11: 0 | T11: 0
B12: 400-500 | C12: 1 | D12: металл | E12: ВЛЭП-400-500кВ-цепей:1-металл | F12: 400 | H12: 0 | J12: 0 | L12: 0 | N12: 0 | P12: 0 | R12: 0 | T12: 0
D13: ж/бетон | E13: ВЛЭП-400-500кВ-ж/бетон | F13: 300 | H13: 0 | J13: 0 | L13: 0 | N13: 0 | P13: 0 | R13: 0 | T13: 0
B14: 330 | C14: 1 | D14: металл | E14: ВЛЭП-330кВ-цепей:1-металл | F14: 230 | H14: 0 | J14: 0 | L14: 0 | N14: 0 | P14: 0 | R14: 0 | T14: 0
D15: ж/бетон | E15: ВЛЭП-330кВ-ж/бетон | F15: 170 | H15: 0 | J15: 0 | L15: 0 | N15: 0 | P15: 0 | R15: 0 | T15: 0
C16: 2 | D16: металл | E16: ВЛЭП-330кВ-цепей:2-металл | F16: 290 | H16: 0 | J16: 0 | L16: 0 | N16: 0 | P16: 0 | R16: 0 | T16: 0
D17: ж/бетон | E17: ВЛЭП-330кВ-ж/бетон | F17: 210 | H17: 0 | J17: 0 | L17: 0 | N17: 0 | P17: 0 | R17: 0 | T17: 0
B18: 220 | C18: 1 | D18: дерево | E18: ВЛЭП-220кВ-цепей:1-дерево | F18: 260 | H18: 0 | J18: 0 | L18: 0 | N18: 0 | P18: 0 | R18: 0 | T18: 0
D19: металл | E19: ВЛЭП-220кВ-металл | F19: 210 | H19: 0 | J19: 0 | L19: 0 | N19: 0 | P19: 0 | R19: 0 | T19: 0
D20: ж/бетон | E20: ВЛЭП-220кВ-ж/бетон | F20: 140 | H20: 0 | J20: 0 | L20: 0 | N20: 0 | P20: 0 | R20: 0 | T20: 0
C21: 2 | D21: металл | E21: ВЛЭП-220кВ-цепей:2-металл | F21: 270 | H21: 0 | J21: 0 | L21: 0 | N21: 0 | P21: 0 | R21: 0 | T21: 0
D22: ж/бетон | E22: ВЛЭП-220кВ-ж/бетон | F22: 180 | H22: 0 | J22: 0 | L22: 0 | N22: 0 | P22: 0 | R22: 0 | T22: 0
B23: 110-150 | C23: 1 | D23: дерево | E23: ВЛЭП-110-150кВ-цепей:1-дерево | F23: 180 | H23: 0 | J23: 0 | L23: 0 | N23: 0 | P23: 0 | R23: 0 | T23: 0
D24: металл | E24: ВЛЭП-110-150кВ-металл | F24: 160 | H24: 0 | J24: 0 | L24: 0 | N24: 0 | P24: 0 | R24: 0 | T24: 0
D25: ж/бетон | E25: ВЛЭП-110-150кВ-ж/бетон | F25: 130 | H25: 0 | J25: 0 | L25: 0 | N25: 0 | P25: 0 | R25: 0 | T25: 0
C26: 2 | D26: металл | E26: ВЛЭП-110-150кВ-цепей:2-металл | F26: 190 | H26: 0 | J26: 0 | L26: 0 | N26: 0 | P26: 0 | R26: 0 | T26: 0
D27: ж/бетон | E27: ВЛЭП-110-150кВ-ж/бетон | F27: 160 | H27: 0 | J27: 0 | L27: 0 | N27: 0 | P27: 0 | R27: 0 | T27: 0
A28: КЛЭП | B28: 220 | C28: - | D28: - | E28: КЛЭП-220кВ | F28: 3000 | H28: 0 | J28: 0 | L28: 0 | N28: 0 | P28: 0 | R28: 0 | T28: 0
B29: 110 | C29: - | D29: - | E29: КЛЭП-110кВ | F29: 2300 | H29: 0 | J29: 0 | L29: 0 | N29: 0 | P29: 0 | R29: 0 | T29: 0
A30: ВН, всего | E30: Итого: | G30: =SUM(G10:G29) -> 0 | H30: 0 | I30: 0 | J30: 0 | K30: 0 | L30: 0 | M30: =SUM(M10:M29) -> 0 | N30: =SUM(N10:N29) -> 0 | O30: 0 | P30: 0 | Q30: 0 | R30: 0 | S30: =SUM(S10:S29) -> 0 | T30: =SUM(T10:T29) -> 0
A31: ВЛЭП | B31: 35 | C31: 1 | D31: дерево | E31: ВЛЭП-35кВ-цепей:1-дерево | F31: 170 | H31: =F31*G31/100 -> 0 | J31: =F31*I31/100 -> 0 | L31: =K31*F31/100 -> 0 | N31: =M31*F31/100 -> 0 | P31: =F31*O31/100 -> 0 | R31: =F31*Q31/100 -> 0 | T31: =$F31*S31/100 -> 0
D32: металл | E32: ВЛЭП-35кВ-металл | F32: 140 | H32: 0 | J32: 0 | L32: =K32*F32/100 -> 0 | N32: =M32*F32/100 -> 0 | P32: 0 | R32: 0 | T32: 0
D33: ж/бетон | E33: ВЛЭП-35кВ-ж/бетон | F33: 120 | H33: 0 | J33: 0 | L33: 0 | N33: 0 | P33: 0 | R33: 0 | T33: 0
C34: 2 | D34: металл | E34: ВЛЭП-35кВ-цепей:2-металл | F34: 180 | H34: 0 | J34: 0 | L34: 0 | N34: 0 | P34: 0 | R34: 0 | T34: 0
D35: ж/бетон | E35: ВЛЭП-35кВ-ж/бетон | F35: 150 | H35: 0 | J35: 0 | L35: 0 | N35: 0 | P35: 0 | R35: 0 | T35: 0
B36: 1 - 20 | C36: - | D36: дерево | E36: ВЛЭП-1-20кВ-дерево | F36: 160 | H36: 0 | J36: 0 | L36: 0 | N36: 0 | P36: 0 | R36: 0 | T36: 0
D37: дерево на ж/б пасынках | E37: ВЛЭП-1-20кВ-дерево на ж/б пасынках | F37: 140 | G37: 0 | H37: 0 | I37: 7.52 | J37: 10.528 | L37: 0 | N37: 0 | O37: 0 | P37: 0 | R37: 0 | T37: 0
D38: ж/бетон, металл | E38: ВЛЭП-1-20кВ-ж/бетон,металл | F38: 110 | G38: 52.01 | H38: 57.211 | I38: 42.45 | J38: 46.695 | K38: =52.01+0.23+2.746+1.99+1.96 -> 58.936 | L38: 64.8296 | N38: 0 | O38: 53.37 | P38: 58.707 | Q38: =58.94+0.387+0.327+0.227+0.541 -> 60.422 | R38: =F38*Q38/100 -> 66.4642 | T38: 0 | V38: 21 год факт= 52,01 (шаблоны актив)+строит в 21(0,73+1,26)+ кап рем 2,75
A39: КЛЭП | B39: 20 -35 | C39: - | D39: - | E39: КЛЭП-20-35кВ | F39: 470 | H39: 0 | J39: 0 | L39: 0 | N39: 0 | P39: 0 | R39: =F39*Q39/100 -> 0 | T39: 0 | V39: 23 год план= 58,94(факт21) + ИП проект на 22год (0,387+0,327)+проектИП на 23 год(0,227+0,541)
B40: 3 - 10 | C40: - | D40: - | E40: КЛЭП-3-10кВ | F40: 350 | G40: 14.44 | H40: 50.54 | I40: 15.97 | J40: 55.895 | K40: 14.44 | L40: 50.54 | N40: 0 | O40: 14.44 | P40: 50.54 | Q40: 14.44 | R40: 50.54 | T40: 0
A41: СН-1, всего | E41: Итого: | G41: =SUM(G31:G35)+G39 -> 0 | H41: 0 | I41: 0 | J41: 0 | K41: 0 | L41: 0 | M41: =SUM(M31:M35)+M39 -> 0 | N41: =SUM(N31:N35)+N39 -> 0 | O41: 0 | P41: 0 | Q41: =SUM(Q31:Q35)+Q39 -> 0 | R41: 0 | S41: =SUM(S31:S35)+S39 -> 0 | T41: =SUM(T31:T35)+T39 -> 0
A42: СН-2, всего | E42: Итого: | G42: =SUM(G36:G38)+G40 -> 66.45 | H42: 107.751 | I42: 65.94 | J42: 113.118 | K42: 73.376 | L42: 115.3696 | M42: =SUM(M36:M38)+M40 -> 0 | N42: =SUM(N36:N38)+N40 -> 0 | O42: 67.81 | P42: 109.247 | Q42: =SUM(Q36:Q38)+Q40 -> 74.862 | R42: 117.0042 | S42: =SUM(S36:S38)+S40 -> 0 | T42: =SUM(T36:T38)+T40 -> 0
A43: ВЛЭП | B43: 0,4 кВ | C43: - | D43: дерево | E43: ВЛЭП-0,4кВ-дерево | F43: 260 | H43: =F43*G43/100 -> 0 | J43: =F43*I43/100 -> 0 | L43: =K43*F43/100 -> 0 | N43: =M43*F43/100 -> 0 | P43: =F43*O43/100 -> 0 | R43: =F43*Q43/100 -> 0 | T43: =$F43*S43/100 -> 0
D44: дерево на ж/б пасынках | E44: ВЛЭП-0,4кВ-дерево на ж/б пасынках | F44: 220 | G44: 0 | H44: =F44*G44/100 -> 0 | I44: 122.81 | J44: =F44*I44/100 -> 270.182 | L44: =K44*F44/100 -> 0 | N44: =M44*F44/100 -> 0 | O44: 0 | P44: =F44*O44/100 -> 0 | Q44: 0 | R44: =F44*Q44/100 -> 0 | T44: =$F44*S44/100 -> 0 | V44: 21 факт= 144,99
D45: ж/бетон, металл | E45: ВЛЭП-0,4кВ-ж/бетон,металл | F45: 150 | G45: 144.988 | H45: =F45*G45/100 -> 217.482 | I45: 15.662 | J45: =F45*I45/100 -> 23.493 | K45: =144.99 -> 144.99 | L45: =K45*F45/100 -> 217.485 | N45: =M45*F45/100 -> 0 | O45: 144.988 | P45: =F45*O45/100 -> 217.482 | Q45: 144.99 | R45: =F45*Q45/100 -> 217.485 | T45: =$F45*S45/100 -> 0
A46: КЛЭП | B46: до 1 кВ | C46: - | D46: - | E46: КЛЭП-до1кВ | F46: 270 | G46: 3.5 | H46: =F46*G46/100 -> 9.45 | I46: 12.4 | J46: =F46*I46/100 -> 33.48 | K46: 3.5 | L46: =K46*F46/100 -> 9.45 | N46: =M46*F46/100 -> 0 | O46: 3.5 | P46: =F46*O46/100 -> 9.45 | Q46: 3.5 | R46: =F46*Q46/100 -> 9.45 | T46: =$F46*S46/100 -> 0
A47: НН, всего | E47: Итого: | G47: =SUM(G43:G46) -> 148.488 | H47: 226.932 | I47: 150.872 | J47: 327.155 | K47: 148.49 | L47: 226.935 | M47: 0 | N47: 0 | O47: 148.488 | P47: 226.932 | Q47: 148.49 | R47: 226.935 | S47: 0 | T47: 0
B48: Итого по уровням напряжения: | E48: ВН | G48: =G30 -> 0 | H48: =H30 -> 0 | I48: =I30 -> 0 | J48: =J30 -> 0 | K48: 0 | L48: 0 | M48: 0 | N48: 0 | O48: 0 | P48: 0 | Q48: 0 | R48: 0 | S48: 0 | T48: 0
E49: СН1 | G49: =G41 -> 0 | H49: 0 | I49: 0 | J49: =J41 -> 0 | K49: 0 | L49: 0 | M49: 0 | N49: 0 | O49: 0 | P49: 0 | Q49: 0 | R49: 0 | S49: 0 | T49: 0
E50: СН2 | G50: 66.45 | H50: 107.751 | I50: 65.94 | J50: =J42 -> 113.118 | K50: 73.376 | L50: 115.3696 | M50: 0 | N50: 0 | O50: 67.81 | P50: 109.247 | Q50: 74.862 | R50: 117.0042 | S50: 0 | T50: 0
E51: НН | G51: =G47 -> 148.488 | H51: =H47 -> 226.932 | I51: =I47 -> 150.872 | J51: =J47 -> 327.155 | K51: 148.49 | L51: 226.935 | M51: 0 | N51: 0 | O51: 148.488 | P51: 226.932 | Q51: 148.49 | R51: 226.935 | S51: 0 | T51: 0
A52: ВСЕГО: | G52: =SUM(G48:G51) -> 214.938 | H52: =SUM(H48:H51) -> 334.683 | I52: 216.812 | J52: 440.273 | K52: 221.866 | L52: 342.3046 | M52: 0 | N52: 0 | O52: 216.298 | P52: 336.179 | Q52: 223.352 | R52: 343.9392 | S52: 0 | T52: 0
E54: Руководитель организации | G54: ='Инф-я'!$C$21 -> Окунев Василий Михайлович
A58: Примечание:
A59: Сведения должны соответствовать данным отраженным в электронном формате по активам организации

Sheet УЕ ТП 2020-2023
A3: Объем подстанций 35-1150 кВ, трансформаторных подстанций (ТП), комплексных трансформаторных подстанций (КТП) и распределительных пунктов(РП) 0,4-20 кВ в условных единицах в период с 2020 по 2023 годы
B4: ='Инф-я'!C14 -> ООО "Энергетик"
A6: № п.п. | B6: Наименование | D6: Единица измерения | E6: Напряжение, кВ | F6: Количество условных единиц (у) на единицу измерения | G6: Количество единиц измерения | H6: Объем условных единиц | I6: Количество единиц измерения | J6: Объем условных единиц | K6: Количество единиц измерения | L6: Объем условных единиц | M6: Количество единиц измерения | N6: Объем условных единиц | O6: Количество единиц измерения | P6: Объем условных единиц | Q6: Количество единиц измерения | R6: Объем условных единиц | S6: Количество единиц измерения | T6: Объем условных единиц
F7: у/ед.изм. | G7: ед.изм. | H7: у | I7: ед.изм. | J7: у | K7: ед.изм. | L7: у | M7: ед.изм. | N7: у | O7: ед.изм. | P7: у | Q7: ед.изм. | R7: у | S7: ед.изм. | T7: у
G8: 2020 год факт | I8: 2021 год утверждено | K8: 2021 год факт по данным организации | M8: 2021 год факт по данным экспертов | O8: 2022 год утверждено | Q8: 2023 год план по данным организации | S8: 2023 год по данным экспертов
A9: 1 | B9: =+A9+1 -> 2 | C9: 3 | D9: 4 | E9: 5 | F9: 6 | G9: 7 | H9: 8 | I9: 9 | J9: 10 | K9: 11 | L9: 12 | M9: 13 | N9: 14 | O9: 15 | P9: 16 | Q9: 17 | R9: 18 | S9: 19 | T9: 20
A10: 1 | B10: Подстанция | C10: =B10 -> Подстанция | D10: П/ст | E10: 1150 | F10: 1000 | H10: =F10*G10 -> 0 | J10: =F10*I10 -> 0 | L10: =K10*F10 -> 0 | N10: =M10*F10 -> 0 | P10: =F10*O10 -> 0 | R10: =F10*Q10 -> 0 | T10: =$F10*S10 -> 0
C11: =B10 -> Подстанция | E11: 750 | F11: 600 | H11: 0 | J11: 0 | L11: =K11*F11 -> 0 | N11: =M11*F11 -> 0 | P11: 0 | R11: 0 | T11: =$F11*S11 -> 0
C12: =B10 -> Подстанция | E12: 400-500 | F12: 500 | H12: 0 | J12: 0 | L12: 0 | N12: 0 | P12: 0 | R12: 0 | T12: 0
C13: =B10 -> Подстанция | E13: 330 | F13: 250 | H13: 0 | J13: 0 | L13: 0 | N13: 0 | P13: 0 | R13: 0 | T13: 0
C14: =B10 -> Подстанция | E14: 220 | F14: 210 | H14: 0 | J14: 0 | L14: 0 | N14: 0 | P14: 0 | R14: 0 | T14: 0
C15: =B10 -> Подстанция | E15: 110-150 | F15: 105 | H15: 0 | J15: 0 | L15: 0 | N15: 0 | P15: 0 | R15: 0 | T15: 0
C16: =B10 -> Подстанция | E16: 35 | F16: 75 | H16: 0 | J16: 0 | L16: 0 | N16: 0 | P16: 0 | R16: 0 | T16: 0
A17: 2 | B17: Силовой трансформатор или реактор (одно- или трехфазный), или вольтодобавочный трансформатор | C17: =B17 -> Силовой трансформатор или реактор (одно- или трехфазный), или вольтодобавочный трансформатор | D17: Ед. оборуд. | E17: 1150 | F17: 60 | H17: 0 | J17: 0 | L17: 0 | N17: 0 | P17: 0 | R17: 0 | T17: 0
C18: =B17 -> Силовой трансформатор или реактор (одно- или трехфазный), или вольтодобавочный трансформатор | E18: 750 | F18: 43 | H18: 0 | J18: 0 | L18: 0 | N18: 0 | P18: 0 | R18: 0 | T18: 0
C19: =B17 -> Силовой трансформатор или реактор (одно- или трехфазный), или вольтодобавочный трансформатор | E19: 400-500 | F19: 28 | H19: 0 | J19: 0 | L19: 0 | N19: 0 | P19: 0 | R19: 0 | T19: 0
C20: =B17 -> Силовой трансформатор или реактор (одно- или трехфазный), или вольтодобавочный трансформатор | E20: 330 | F20: 18 | H20: 0 | J20: 0 | L20: 0 | N20: 0 | P20: 0 | R20: 0 | T20: 0
C21: =B17 -> Силовой трансформатор или реактор (одно- или трехфазный), или вольтодобавочный трансформатор | E21: 220 | F21: 14 | H21: 0 | J21: 0 | L21: 0 | N21: 0 | P21: 0 | R21: 0 | T21: 0
C22: =B17 -> Силовой трансформатор или реактор (одно- или трехфазный), или вольтодобавочный трансформатор | E22: 110-150 | F22: 7.8 | H22: 0 | J22: 0 | L22: 0 | N22: 0 | P22: 0 | R22: 0 | T22: 0
C23: =B17 -> Силовой трансформатор или реактор (одно- или трехфазный), или вольтодобавочный трансформатор | E23: 35 | F23: 2.1 | H23: 0 | J23: 0 | L23: 0 | N23: 0 | P23: 0 | R23: 0 | T23: 0
C24: =B17 -> Силовой трансформатор или реактор (одно- или трехфазный), или вольтодобавочный трансформатор | E24: 1-20 | F24: 1 | H24: 0 | J24: 0 | L24: 0 | N24: 0 | P24: 0 | R24: 0 | T24: 0
A25: 3 | B25: Воздушный выключатель | C25: =B25 -> Воздушный выключатель | D25: 3 фазы | E25: 1150 | F25: 180 | H25: 0 | J25: 0 | L25: 0 | N25: 0 | P25: 0 | R25: 0 | T25: 0
C26: =B25 -> Воздушный выключатель | E26: 750 | F26: 130 | H26: 0 | J26: 0 | L26: 0 | N26: 0 | P26: 0 | R26: 0 | T26: 0
C27: =B25 -> Воздушный выключатель | E27: 400-500 | F27: 88 | H27: 0 | J27: 0 | L27: 0 | N27: 0 | P27: 0 | R27: 0 | T27: 0
C28: =B25 -> Воздушный выключатель | E28: 330 | F28: 66 | H28: 0 | J28: 0 | L28: 0 | N28: 0 | P28: 0 | R28: 0 | T28: 0
C29: =B25 -> Воздушный выключатель | E29: 220 | F29: 43 | H29: 0 | J29: 0 | L29: 0 | N29: 0 | P29: 0 | R29: 0 | T29: 0
C30: =B25 -> Воздушный выключатель | E30: 110-150 | F30: 26 | H30: 0 | J30: 0 | L30: 0 | N30: 0 | P30: 0 | R30: 0 | T30: 0
C31: =B25 -> Воздушный выключатель | E31: 35 | F31: 11 | H31: 0 | J31: 0 | L31: 0 | N31: 0 | P31: 0 | R31: 0 | T31: 0
C32: =B25 -> Воздушный выключатель | E32: 1-20 | F32: 5.5 | H32: 0 | J32: 0 | L32: 0 | N32: 0 | P32: 0 | R32: 0 | T32: 0
A33: 4 | B33: Масляный (вакуумный) выключатель | C33: =B33 -> Масляный (вакуумный) выключатель | D33: - " - | E33: 220 | F33: 23 | H33: 0 | J33: 0 | L33: 0 | N33: 0 | P33: 0 | R33: 0 | T33: 0
C34: =B33 -> Масляный (вакуумный) выключатель | E34: 110-150 | F34: 14 | H34: 0 | J34: 0 | L34: 0 | N34: 0 | P34: 0 | R34: 0 | T34: 0
C35: =B33 -> Масляный (вакуумный) выключатель | E35: 35 | F35: 6.4 | H35: 0 | J35: 0 | L35: 0 | N35: 0 | P35: 0 | R35: 0 | T35: 0
C36: =B33 -> Масляный (вакуумный) выключатель | E36: 1-20 | F36: 3.1 | G36: 13 | H36: 40.3 | I36: 13 | J36: 40.3 | K36: 13 | L36: 40.3 | N36: 0 | O36: 13 | P36: 40.3 | Q36: 13 | R36: 40.3 | T36: 0
A37: 5 | B37: Отделитель с короткозамыкателем | C37: =B37 -> Отделитель с короткозамыкателем | D37: Ед. оборуд. | E37: 400-500 | F37: 35 | H37: 0 | J37: 0 | L37: 0 | N37: 0 | P37: 0 | R37: 0 | T37: 0
C38: =B37 -> Отделитель с короткозамыкателем | E38: 330 | F38: 24 | H38: 0 | J38: 0 | L38: 0 | N38: 0 | P38: 0 | R38: 0 | T38: 0
C39: =B37 -> Отделитель с короткозамыкателем | E39: 220 | F39: 19 | H39: 0 | J39: 0 | L39: 0 | N39: 0 | P39: 0 | R39: 0 | T39: 0
C40: =B37 -> Отделитель с короткозамыкателем | E40: 110-150 | F40: 9.5 | H40: 0 | J40: 0 | L40: 0 | N40: 0 | P40: 0 | R40: 0 | T40: 0
C41: =B37 -> Отделитель с короткозамыкателем | E41: 35 | F41: 4.7 | H41: 0 | J41: 0 | L41: 0 | N41: 0 | P41: 0 | R41: 0 | T41: 0
A42: 6 | B42: Выключатель нагрузки | C42: =B42 -> Выключатель нагрузки | D42: - " - | E42: 1-20 | F42: 2.3 | G42: 219 | H42: 503.7 | I42: 219 | J42: 503.7 | K42: 219 | L42: 503.7 | N42: 0 | O42: 219 | P42: 503.7 | Q42: 219 | R42: 503.7 | T42: 0
A43: 7 | B43: Синхронный компенсатор мощн. до 50 Мвар | C43: =B43 -> Синхронный компенсатор мощн. до 50 Мвар | D43: - " - | E43: 1-20 | F43: 26 | H43: 0 | J43: 0 | L43: 0 | N43: 0 | P43: 0 | R43: 0 | T43: 0
A44: 8 | B44: То же, 50 Мвар и более | C44: Синхронный компенсатор мощн. 50 Мвар и выше | D44: - " - | E44: 1-20 | F44: 48 | H44: 0 | J44: 0 | L44: 0 | N44: 0 | P44: 0 | R44: 0 | T44: 0
A45: 9 | B45: Статические конденсаторы | C45: =B45 -> Статические конденсаторы | D45: 100 конд. | E45: 35 | F45: 2.4 | H45: 0 | J45: 0 | L45: 0 | N45: 0 | P45: 0 | R45: 0 | T45: 0
C46: =B45 -> Статические конденсаторы | E46: 1-20 | F46: 2.4 | H46: 0 | J46: 0 | L46: 0 | N46: 0 | P46: 0 | R46: 0 | T46: 0
A47: 10 | B47: Мачтовая (столбовая) ТП | C47: =B47 -> Мачтовая (столбовая) ТП | D47: ТП | E47: 1-20 | F47: 2.5 | G47: 18 | H47: 45 | I47: 13 | J47: 32.5 | K47: 14 | L47: 35 | N47: 0 | O47: 18 | P47: 45 | Q47: 14 | R47: 35 | T47: 0
A48: 11 | B48: Однотрансфор-маторная ТП, КТП | C48: =B48 -> Однотрансфор-маторная ТП, КТП | D48: ТП, КТП | E48: 1-20 | F48: 2.3 | G48: 26 | H48: 59.8 | I48: 34 | J48: 78.2 | K48: 33 | L48: 75.9 | N48: 0 | O48: 26 | P48: 59.8 | Q48: 33 | R48: 75.9 | T48: 0
A49: 12 | B49: Двухтрансформаторная ТП, КТП | C49: =B49 -> Двухтрансформаторная ТП, КТП | D49: ТП, КТП | E49: 1-20 | F49: 3 | G49: 11 | H49: 33 | I49: 11 | J49: 33 | K49: 10 | L49: 30 | N49: 0 | O49: 11 | P49: 33 | Q49: 10 | R49: 30 | T49: 0
A50: 13 | B50: Однотрансфор-маторная подстанция 34/0,4 кВ | C50: =B50 -> Однотрансфор-маторная подстанция 34/0,4 кВ | D50: п/ст | E50: 35 | F50: 3.5 | H50: 0 | J50: 0 | L50: 0 | N50: 0 | P50: 0 | R50: 0 | T50: 0
B51: Итого по уровням напряжения: | E51: ВН | G51: х | H51: =H10+H11+H12+H13+H17+H18+H19+H20+H25+H26+H27+H28+H37+H38+H40+H39+H34+H33+H30+H29+H22+H21+H15+H14 -> 0 | I51: х | J51: 0 | K51: х | L51: 0 | M51: х | N51: =N10+N11+N12+N13+N17+N18+N19+N20+N25+N26+N27+N28+N37+N38+N40+N39+N34+N33+N30+N29+N22+N21+N15+N14 -> 0 | O51: х | P51: 0 | Q51: х | R51: 0 | S51: х | T51: =T10+T11+T12+T13+T17+T18+T19+T20+T25+T26+T27+T28+T37+T38+T40+T39+T34+T33+T30+T29+T22+T21+T15+T14 -> 0
E52: СН1 | G52: х | H52: =H16+H23+H31+H35+H41+H45+H50 -> 0 | I52: х | J52: 0 | K52: х | L52: 0 | M52: х | N52: =N16+N23+N31+N35+N41+N45+N50 -> 0 | O52: х | P52: 0 | Q52: х | R52: 0 | S52: х | T52: =T16+T23+T31+T35+T41+T45+T50 -> 0
E53: СН2 | G53: х | H53: =H24+H32+H36+H42+H43+H44+H46+H47+H48+H49 -> 681.8 | I53: х | J53: 687.7 | K53: х | L53: 684.9 | M53: х | N53: =N24+N32+N36+N42+N43+N44+N46+N47+N48+N49 -> 0 | O53: х | P53: 681.8 | Q53: х | R53: 684.9 | S53: х | T53: =T24+T32+T36+T42+T43+T44+T46+T47+T48+T49 -> 0
E54: НН | G54: х | H54: =SUM(H10:H50) - H51-H52-H53 -> 0 | I54: х | J54: 0 | K54: х | L54: 0 | M54: х | N54: =SUM(N10:N50) - N51-N52-N53 -> 0 | O54: х | P54: 0 | Q54: х | R54: 0 | S54: х | T54: =SUM(T10:T50) - T51-T52-T53 -> 0
B55: Итого по оборудованию | G55: х | H55: =SUM(H51:H54) -> 681.8 | I55: х | J55: 687.7 | K55: х | L55: 684.9 | M55: х | N55: =SUM(N51:N54) -> 0 | O55: х | P55: 681.8 | Q55: х | R55: 684.9 | S55: х | T55: =SUM(T51:T54) -> 0
B56: Всего активов по уровням напряжения: | E56: ВН | G56: х | H56: =H51+'УЕ ВЛЭП 2020-2023'!H48 -> 0 | I56: х | J56: =J51+'УЕ ВЛЭП 2020-2023'!J48 -> 0 | K56: х | L56: =L51+'УЕ ВЛЭП 2020-2023'!L48 -> 0 | M56: х | N56: =N51+'УЕ ВЛЭП 2020-2023'!N48 -> 0 | O56: х | P56: =P51+'УЕ ВЛЭП 2020-2023'!P48 -> 0 | Q56: х | R56: =R51+'УЕ ВЛЭП 2020-2023'!R48 -> 0 | S56: х | T56: =T51+'УЕ ВЛЭП 2020-2023'!T48 -> 0
E57: СН1 | G57: х | H57: =H52+'УЕ ВЛЭП 2020-2023'!H49 -> 0 | I57: х | J57: =J52+'УЕ ВЛЭП 2020-2023'!J49 -> 0 | K57: х | L57: =L52+'УЕ ВЛЭП 2020-2023'!L49 -> 0 | M57: х | N57: =N52+'УЕ ВЛЭП 2020-2023'!N49 -> 0 | O57: х | P57: =P52+'УЕ ВЛЭП 2020-2023'!P49 -> 0 | Q57: х | R57: =R52+'УЕ ВЛЭП 2020-2023'!R49 -> 0 | S57: х | T57: =T52+'УЕ ВЛЭП 2020-2023'!T49 -> 0
E58: СН2 | G58: х | H58: =H53+'УЕ ВЛЭП 2020-2023'!H50 -> 789.551 | I58: х | J58: =J53+'УЕ ВЛЭП 2020-2023'!J50 -> 800.818 | K58: х | L58: =L53+'УЕ ВЛЭП 2020-2023'!L50 -> 800.2696 | M58: х | N58: =N53+'УЕ ВЛЭП 2020-2023'!N50 -> 0 | O58: х | P58: =P53+'УЕ ВЛЭП 2020-2023'!P50 -> 791.047 | Q58: х | R58: =R53+'УЕ ВЛЭП 2020-2023'!R50 -> 801.9042 | S58: х | T58: =T53+'УЕ ВЛЭП 2020-2023'!T50 -> 0
E59: НН | G59: х | H59: =H54+'УЕ ВЛЭП 2020-2023'!H51 -> 226.932 | I59: х | J59: =J54+'УЕ ВЛЭП 2020-2023'!J51 -> 327.155 | K59: х | L59: =L54+'УЕ ВЛЭП 2020-2023'!L51 -> 226.935 | M59: х | N59: =N54+'УЕ ВЛЭП 2020-2023'!N51 -> 0 | O59: х | P59: =P54+'УЕ ВЛЭП 2020-2023'!P51 -> 226.932 | Q59: х | R59: =R54+'УЕ ВЛЭП 2020-2023'!R51 -> 226.935 | S59: х | T59: =T54+'УЕ ВЛЭП 2020-2023'!T51 -> 0
B60: Количество активов - всего | G60: х | H60: =H56+H57+H58+H59 -> 1016.483 | I60: х | J60: =J56+J57+J58+J59 -> 1127.973 | K60: х | L60: =L56+L57+L58+L59 -> 1027.2046 | M60: х | N60: =N56+N57+N58+N59 -> 0 | O60: х | P60: =P56+P57+P58+P59 -> 1017.979 | Q60: х | R60: =R56+R57+R58+R59 -> 1028.8392 | S60: х | T60: =T56+T57+T58+T59 -> 0
C62: Руководитель организации | E62: ='Инф-я'!$C$21 -> Окунев Василий Михайлович
B68: Примечание:
B69: Сведения должны соответствовать данным отраженным в электронном формате по активам организации

Sheet Подконтрольные расходы
A2: Подконтрольные расходы на 2023 год долгосрочного периода регулирования 2020 - 2024 гг.
A4: ='Инф-я'!C14 -> ООО "Энергетик"
A6: № п.п. | B6: Наименование | C6: Ед.изм. | D6: 2022 год | E6: 2023 год
D7: Утверждено | E7: По данным организации | F7: По данным экспертов
A8: 1 | B8: 2 | C8: 3 | D8: 4 | E8: 5 | F8: 6
A9: Показатели для расчета подконтрольных расходов
A10: 1 | B10: Индекс эффективности подконтрольных расходов (Хэф) | C10: % | D10: 0.05 | E10: 0.05 | F10: =E10 -> 0.05
A11: 2 | B11: Коэффициент эластичности подконтрольных расходов по количеству активов (К эл) | C11: знач. | D11: 0.75 | E11: 0.75 | F11: 0.75
A12: 3 | B12: Индекс потребительских цен (ИПЦ) | C12: % | D12: х | E12: 0.2
A13: 4 | B13: Количество активов (УЕ) | C13: усл.ед. | D13: ='УЕ ТП 2020-2023'!P60 -> 1017.979 | E13: ='УЕ ТП 2020-2023'!R60 -> 1028.8392 | F13: ='УЕ ТП 2020-2023'!T60 -> 0
A14: 5 | B14: Индекс изменения количества активов (ИКА) | C14: % | D14: Х | E14: =IF(D13=0,0,(E13-D13)/D13) -> 0.01066839296 | F14: =IF(D13=0,0,(F13-D13)/D13) -> -1
A15: 6 | B15: Общий коэффициент индексации подконтрольных расходов ПР= ИПЦ*(1+(Кэл*ИКА))*(1-Хэф) | C15: знач. | D15: Х | E15: =(1+E12)*(1+(E11*E14))*(1-E10) -> 1.149121476 | F15: =(1+F12)*(1+(F11*F14))*(1-F10) -> 0.2375
A16: Подконтрольные расходы организации (ПР)
A17: 1 | B17: Расходы на оплату труда | C17: тыс.руб. | D17: 14353.03041 | E17: =D17*$E$15 -> 16493.37549 | F17: =D17*$F$15 -> 3408.844723
A18: 2 | B18: Материалы | C18: тыс.руб. | D18: 7679.795086 | E18: =D18*$E$15 -> 8825.017465 | F18: =D18*$F$15 -> 1823.951333
A19: 3 | B19: Ремонт основных фондов | C19: тыс.руб. | D19: 6814.588451 | E19: 7830.789939 | F19: =D19*$F$15 -> 1618.464757
A20: 4 | B20: Другие обоснованные подконтрольные расходы, в том числе: | C20: тыс.руб. | D20: =D21+D22+D23+D24+D25+D26+D27+D28 -> 1110.539056 | E20: 1276.144279 | F20: 263.7530257
A21: 4.1 | B21: Работы и услуги производственного характера | C21: тыс.руб. | D21: 117.2642599 | E21: 134.7508794 | F21: 27.85026173
A22: 4.2 | B22: Работы и услуги непроизводственного характера | C22: тыс.руб. | D22: 572.0721335 | E22: 657.3803745 | F22: 135.8671317
A23: 4.3 | B23: Обеспечение нормальных условий труда и техники безопасности | C23: тыс.руб. | D23: 354.1497412 | E23: 406.9610733 | F23: 84.11056353
A24: 4.4. | B24: Расходы на командировки | C24: тыс.руб. | D24: 0 | E24: 0 | F24: 0
A25: 4.5 | B25: Расходы на обучение персонала | C25: тыс.руб. | D25: 0 | E25: 0 | F25: 0
A26: 4.6 | B26: Расходы на страхование | C26: тыс.руб. | D26: 0 | E26: 0 | F26: 0
A27: 4.7 | B27: Расходы на услуги банков | C27: тыс.руб. | D27: 67.05292093 | E27: 77.05195146 | F27: 15.92506872
A28: 4.8 | B28: Прочие обоснованные подконтрольные расходы | C28: тыс.руб. | E28: 0 | F28: 0
A29: 5 | B29: Расходы из прибыли, в том числе: | C29: тыс.руб. | D29: =D30+D31 -> 728.0214564 | E29: 836.5850905 | F29: 172.9050959
A30: 5.1 | B30: Расходы по коллективным договорам | C30: тыс.руб. | D30: 728.0214564 | E30: 836.5850905 | F30: 172.9050959
A31: 5.2 | B31: Прочие обоснованные расходы из прибыли | C31: тыс.руб. | D31: 0 | E31: 0 | F31: 0
B32: Итого ПР | C32: тыс.руб. | D32: =D17+D18+D19+D20+D29 -> 30685.97446 | E32: 35261.91227 | F32: =D32*F$15 -> 7287.918935
B34: Руководитель организации | D34: ='Инф-я'!$C$21 -> Окунев Василий Михайлович

Sheet Расчет аморт. max срок
A1: Заполняется в Рублях !
A2: Расчет амортизационных отчислений основных средств, участвующих в передаче электрической энергии по максимальному сроку использования и расчет среднегодовой стоимости ОС
A3: ='[23]Инф-я'!C13 -> 0
A5: Группа учета ОС \ Амортизационная группа \ Основное средство, Инвентарный номер, Дата принятия к учету | B5: Год ввода | C5: Срок полезного использования, мес. | E5: На начало 01.01.2022 г. | H5: За 1 квартал 2022 года | L5: На конец 31.03.2022 г. | O5: Амортизация (2-4 квартал 2022) | P5: Амортизация (2022 год) | Q5: Остаточная стоимость на начало 2023 года | R5: Амортизация на 2023 год | T5: Остаточная стоимость на начало 2024 года | U5: Налоговая ставка (%) | V5: Среднегодовая остаточная стоимость ОС
C6: бух.учет | D6: Максимальный срок по группе | E6: Стоимость | F6: Накопленная амортизация (износ) | G6: Остаточная стоимость | H6: Увеличение стоимости | I6: Начисление амортизации (износа) | J6: Уменьшение стоимости | K6: Списание амортизации (износа) | L6: Стоимость | M6: Накопленная амортизация (износ) | N6: Остаточная стоимость | P6: Амортизация (2015 год) | Q6: Остаточная стоимость на начало 2016 года | R6: бух.учет | S6: Максимальный срок по группе | V6: облагаемых по ставке 2,2 % | W6: необлагаемых налогом (движимое имущество)
A7: Первая группа (от 1 года до 2 лет включительно)
D8: 24 | O8: =IF(C8>0,IF(N8>L8/C8*9,(L8/C8*9),N8),0) -> 0 | P8: =I8+O8 -> 0 | Q8: =IF((N8-O8)>0,(N8-O8),0) -> 0 | R8: =IF(C8>0,IF(Q8>L8/C8*12,(L8/C8*12),Q8),0) -> 0 | S8: =IF(D8>0,IF(Q8>L8/D8*12,(L8/D8*12),Q8),0) -> 0 | T8: =IF((Q8-R8)>0,(Q8-R8),0) -> 0 | V8: =IF(U8=2.2,(T8+Q8)/2,0) -> 0 | W8: =IF(U8=0,(T8+Q8)/2,0) -> 0
D9: =$D$8 -> 24 | O9: 0 | P9: =I9+O9 -> 0 | Q9: =IF((N9-O9)>0,(N9-O9),0) -> 0 | R9: =IF(C9>0,IF(Q9>L9/C9*12,(L9/C9*12),Q9),0) -> 0 | S9: =IF(D9>0,IF(Q9>L9/D9*12,(L9/D9*12),Q9),0) -> 0 | T9: =IF((Q9-R9)>0,(Q9-R9),0) -> 0 | V9: =IF(U9=2.2,(T9+Q9)/2,0) -> 0 | W9: =IF(U9=0,(T9+Q9)/2,0) -> 0
D10: =$D$8 -> 24 | O10: 0 | P10: =I10+O10 -> 0 | Q10: =IF((N10-O10)>0,(N10-O10),0) -> 0 | R10: =IF(C10>0,IF(Q10>L10/C10*12,(L10/C10*12),Q10),0) -> 0 | S10: =IF(D10>0,IF(Q10>L10/D10*12,(L10/D10*12),Q10),0) -> 0 | T10: =IF((Q10-R10)>0,(Q10-R10),0) -> 0 | V10: =IF(U10=2.2,(T10+Q10)/2,0) -> 0 | W10: =IF(U10=0,(T10+Q10)/2,0) -> 0
A11: Добавить
A12: Вторая группа (свыше 2 лет до 3 лет включительно)
D13: 36 | O13: =IF(C13>0,IF(N13>L13/C13*9,(L13/C13*9),N13),0) -> 0 | P13: =I13+O13 -> 0 | Q13: =IF((N13-O13)>0,(N13-O13),0) -> 0 | R13: =IF(C13>0,IF(Q13>L13/C13*12,(L13/C13*12),Q13),0) -> 0 | S13: =IF(D13>0,IF(Q13>L13/D13*12,(L13/D13*12),Q13),0) -> 0 | T13: =IF((Q13-R13)>0,(Q13-R13),0) -> 0 | V13: =IF(U13=2.2,(T13+Q13)/2,0) -> 0 | W13: =IF(U13=0,(T13+Q13)/2,0) -> 0
D14: =$D$13 -> 36 | O14: =IF(C14>0,IF(N14>L14/C14*9,(L14/C14*9),N14),0) -> 0 | P14: =I14+O14 -> 0 | Q14: =IF((N14-O14)>0,(N14-O14),0) -> 0 | R14: =IF(C14>0,IF(Q14>L14/C14*12,(L14/C14*12),Q14),0) -> 0 | S14: =IF(D14>0,IF(Q14>L14/D14*12,(L14/D14*12),Q14),0) -> 0 | T14: =IF((Q14-R14)>0,(Q14-R14),0) -> 0 | V14: =IF(U14=2.2,(T14+Q14)/2,0) -> 0 | W14: =IF(U14=0,(T14+Q14)/2,0) -> 0
D15: =$D$13 -> 36 | O15: 0 | P15: =I15+O15 -> 0 | Q15: =IF((N15-O15)>0,(N15-O15),0) -> 0 | R15: =IF(C15>0,IF(Q15>L15/C15*12,(L15/C15*12),Q15),0) -> 0 | S15: =IF(D15>0,IF(Q15>L15/D15*12,(L15/D15*12),Q15),0) -> 0 | T15: =IF((Q15-R15)>0,(Q15-R15),0) -> 0 | V15: =IF(U15=2.2,(T15+Q15)/2,0) -> 0 | W15: =IF(U15=0,(T15+Q15)/2,0) -> 0
A16: Добавить
A17: Третья группа (свыше 3 лет до 5 лет включительно)
D18: 60 | O18: =IF(C18>0,IF(N18>L18/C18*9,(L18/C18*9),N18),0) -> 0 | P18: =I18+O18 -> 0 | Q18: =IF((N18-O18)>0,(N18-O18),0) -> 0 | R18: =IF(C18>0,IF(Q18>L18/C18*12,(L18/C18*12),Q18),0) -> 0 | S18: =IF(D18>0,IF(Q18>L18/D18*12,(L18/D18*12),Q18),0) -> 0 | T18: =IF((Q18-R18)>0,(Q18-R18),0) -> 0 | V18: =IF(U18=2.2,(T18+Q18)/2,0) -> 0 | W18: =IF(U18=0,(T18+Q18)/2,0) -> 0
D19: =$D$18 -> 60 | O19: 0 | P19: =I19+O19 -> 0 | Q19: =IF((N19-O19)>0,(N19-O19),0) -> 0 | R19: =IF(C19>0,IF(Q19>L19/C19*12,(L19/C19*12),Q19),0) -> 0 | S19: =IF(D19>0,IF(Q19>L19/D19*12,(L19/D19*12),Q19),0) -> 0 | T19: =IF((Q19-R19)>0,(Q19-R19),0) -> 0 | V19: =IF(U19=2.2,(T19+Q19)/2,0) -> 0 | W19: =IF(U19=0,(T19+Q19)/2,0) -> 0
D20: =$D$18 -> 60 | O20: 0 | P20: =I20+O20 -> 0 | Q20: =IF((N20-O20)>0,(N20-O20),0) -> 0 | R20: =IF(C20>0,IF(Q20>L20/C20*12,(L20/C20*12),Q20),0) -> 0 | S20: =IF(D20>0,IF(Q20>L20/D20*12,(L20/D20*12),Q20),0) -> 0 | T20: =IF((Q20-R20)>0,(Q20-R20),0) -> 0 | V20: =IF(U20=2.2,(T20+Q20)/2,0) -> 0 | W20: =IF(U20=0,(T20+Q20)/2,0) -> 0
A21: Добавить
A22: Четвертая группа (свыше 5 лет до 7 лет включительно)
D23: 84 | O23: =IF(C23>0,IF(N23>L23/C23*9,(L23/C23*9),N23),0) -> 0 | P23: =I23+O23 -> 0 | Q23: =IF((N23-O23)>0,(N23-O23),0) -> 0 | R23: =IF(C23>0,IF(Q23>L23/C23*12,(L23/C23*12),Q23),0) -> 0 | S23: =IF(D23>0,IF(Q23>L23/D23*12,(L23/D23*12),Q23),0) -> 0 | T23: =IF((Q23-R23)>0,(Q23-R23),0) -> 0 | V23: =IF(U23=2.2,(T23+Q23)/2,0) -> 0 | W23: =IF(U23=0,(T23+Q23)/2,0) -> 0
D24: =$D$23 -> 84 | O24: 0 | P24: =I24+O24 -> 0 | Q24: =IF((N24-O24)>0,(N24-O24),0) -> 0 | R24: =IF(C24>0,IF(Q24>L24/C24*12,(L24/C24*12),Q24),0) -> 0 | S24: =IF(D24>0,IF(Q24>L24/D24*12,(L24/D24*12),Q24),0) -> 0 | T24: =IF((Q24-R24)>0,(Q24-R24),0) -> 0 | V24: =IF(U24=2.2,(T24+Q24)/2,0) -> 0 | W24: =IF(U24=0,(T24+Q24)/2,0) -> 0
D25: =$D$23 -> 84 | O25: 0 | P25: =I25+O25 -> 0 | Q25: =IF((N25-O25)>0,(N25-O25),0) -> 0 | R25: =IF(C25>0,IF(Q25>L25/C25*12,(L25/C25*12),Q25),0) -> 0 | S25: =IF(D25>0,IF(Q25>L25/D25*12,(L25/D25*12),Q25),0) -> 0 | T25: =IF((Q25-R25)>0,(Q25-R25),0) -> 0 | V25: =IF(U25=2.2,(T25+Q25)/2,0) -> 0 | W25: =IF(U25=0,(T25+Q25)/2,0) -> 0
A26: Добавить
A27: Пятая группа (свыше 7 лет до 10 лет включительно)
D28: 120 | O28: =IF(C28>0,IF(N28>L28/C28*9,(L28/C28*9),N28),0) -> 0 | P28: =I28+O28 -> 0 | Q28: =IF((N28-O28)>0,(N28-O28),0) -> 0 | R28: =IF(C28>0,IF(Q28>L28/C28*12,(L28/C28*12),Q28),0) -> 0 | S28: =IF(D28>0,IF(Q28>L28/D28*12,(L28/D28*12),Q28),0) -> 0 | T28: =IF((Q28-R28)>0,(Q28-R28),0) -> 0 | V28: =IF(U28=2.2,(T28+Q28)/2,0) -> 0 | W28: =IF(U28=0,(T28+Q28)/2,0) -> 0
D29: =$D$28 -> 120 | O29: 0 | P29: =I29+O29 -> 0 | Q29: =IF((N29-O29)>0,(N29-O29),0) -> 0 | R29: =IF(C29>0,IF(Q29>L29/C29*12,(L29/C29*12),Q29),0) -> 0 | S29: =IF(D29>0,IF(Q29>L29/D29*12,(L29/D29*12),Q29),0) -> 0 | T29: =IF((Q29-R29)>0,(Q29-R29),0) -> 0 | V29: =IF(U29=2.2,(T29+Q29)/2,0) -> 0 | W29: =IF(U29=0,(T29+Q29)/2,0) -> 0
D30: =$D$28 -> 120 | O30: =IF(C30>0,IF(N30>L30/C30*9,(L30/C30*9),N30),0) -> 0 | P30: =I30+O30 -> 0 | Q30: =IF((N30-O30)>0,(N30-O30),0) -> 0 | R30: =IF(C30>0,IF(Q30>L30/C30*12,(L30/C30*12),Q30),0) -> 0 | S30: =IF(D30>0,IF(Q30>L30/D30*12,(L30/D30*12),Q30),0) -> 0 | T30: =IF((Q30-R30)>0,(Q30-R30),0) -> 0 | V30: =IF(U30=2.2,(T30+Q30)/2,0) -> 0 | W30: =IF(U30=0,(T30+Q30)/2,0) -> 0
D31: =$D$28 -> 120 | O31: 0 | P31: =I31+O31 -> 0 | Q31: =IF((N31-O31)>0,(N31-O31),0) -> 0 | R31: =IF(C31>0,IF(Q31>L31/C31*12,(L31/C31*12),Q31),0) -> 0 | S31: =IF(D31>0,IF(Q31>L31/D31*12,(L31/D31*12),Q31),0) -> 0 | T31: =IF((Q31-R31)>0,(Q31-R31),0) -> 0 | V31: =IF(U31=2.2,(T31+Q31)/2,0) -> 0 | W31: =IF(U31=0,(T31+Q31)/2,0) -> 0
A32: Добавить
A33: Шестая группа (свыше 10 лет до 15 лет включительно)
A34: Возд. двухц(ВЛ)10кВ от ПС"Караб."доТП13 ф1003,1005 | B34: 2012 | C34: 180 | D34: 180 | E34: 1398812.18 | F34: 823901.06 | G34: =E34-F34 -> 574911.12 | I34: 21293.01 | L34: =E34 -> 1398812.18 | M34: =F34+I34 -> 845194.07 | N34: =L34-M34 -> 553618.11 | O34: =IF(C34>0,IF(N34>L34/C34*9,(L34/C34*9),N34),0) -> 69940.609 | P34: =I34+O34 -> 91233.619 | Q34: =IF((N34-O34)>0,(N34-O34),0) -> 483677.501 | R34: =IF(C34>0,IF(Q34>L34/C34*12,(L34/C34*12),Q34),0) -> 93254.14533 | S34: =IF(D34>0,IF(Q34>L34/D34*12,(L34/D34*12),Q34),0) -> 93254.14533 | T34: =IF((Q34-R34)>0,(Q34-R34),0) -> 390423.3557 | V34: =IF(U34=2.2,(T34+Q34)/2,0) -> 0 | W34: =IF(U34=0,(T34+Q34)/2,0) -> 437050.4283
A35: Возд. одноц(ВЛ)10кВ от ТП 2 до ТП 62 ф1003 | B35: 2011 | C35: 180 | D35: 180 | E35: 659289.64 | F35: 439526.4 | G35: =E35-F35 -> 219763.24 | I35: 10988.16 | L35: =E35 -> 659289.64 | M35: =F35+I35 -> 450514.56 | N35: =L35-M35 -> 208775.08 | O35: 32964.482 | P35: =I35+O35 -> 43952.642 | Q35: =IF((N35-O35)>0,(N35-O35),0) -> 175810.598 | R35: =IF(C35>0,IF(Q35>L35/C35*12,(L35/C35*12),Q35),0) -> 43952.64267 | S35: =IF(D35>0,IF(Q35>L35/D35*12,(L35/D35*12),Q35),0) -> 43952.64267 | T35: =IF((Q35-R35)>0,(Q35-R35),0) -> 131857.9553 | V35: =IF(U35=2.2,(T35+Q35)/2,0) -> 0 | W35: =IF(U35=0,(T35+Q35)/2,0) -> 153834.2767
A36: Возд. одноц(ВЛ)10кВ от ТП 55 до ТП 41 ф1022 | B36: 2012 | C36: 180 | D36: 180 | E36: 748971.92 | F36: 470188.48 | G36: 278783.44 | I36: 12482.85 | L36: 748971.92 | M36: 482671.33 | N36: 266300.59 | O36: 37448.596 | P36: 49931.446 | Q36: 228851.994 | R36: 49931.46133 | S36: 49931.46133 | T36: 178920.5327 | V36: 0 | W36: 203886.2633
A37: Возд. одноц(ВЛ)10кВ от ТП 55 до ТП3 ф1022 | B37: 2011 | C37: 180 | D37: 180 | E37: 558227.64 | F37: 372151.2 | G37: 186076.44 | I37: 9303.81 | L37: 558227.64 | M37: 381455.01 | N37: 176772.63 | O37: 27911.382 | P37: 37215.192 | Q37: 148861.248 | R37: 37215.176 | S37: 37215.176 | T37: 111646.072 | V37: 0 | W37: 130253.66
A38: Возд. одноц(ВЛ)10кВ от ТП 55 до ТП54ф1022 | B38: 2011 | C38: 180 | D38: 180 | E38: 400737.9 | F38: 267158.4 | G38: 133579.5 | I38: 6678.98 | L38: 400737.9 | M38: 273837.38 | N38: 126900.52 | O38: 20036.895 | P38: 26715.875 | Q38: 106863.625 | R38: 26715.86 | S38: 26715.86 | T38: 80147.765 | V38: 0 | W38: 93505.695
A39: Возд-каб. двухц(ВЛ)10кВ от ТП 1 до ТП 63ф1003,1005 | B39: 2013 | C39: 180 | D39: 180 | E39: 2303696.72 | F39: 1299436.47 | G39: 1004260.25 | I39: 37194.81 | L39: 2303696.72 | M39: 1336631.28 | N39: 967065.44 | O39: 115184.836 | P39: 152379.646 | Q39: 851880.604 | R39: 153579.7813 | S39: 153579.7813 | T39: 698300.8227 | V39: 0 | W39: 775090.7133
A40: Возд-каб. двухц(ВЛ+КЛ)10кВотПС"Караб"доТП51 | B40: 2013 | C40: 180 | D40: 180 | E40: 8415145.52 | F40: 4487989.03 | G40: 3927156.49 | I40: 140255.58 | L40: 8415145.52 | M40: 4628244.61 | N40: 3786900.91 | O40: 420757.276 | P40: 561012.856 | Q40: 3366143.634 | R40: 561009.7013 | S40: 561009.7013 | T40: 2805133.933 | V40: 0 | W40: 3085638.783
A41: Воздушн. одноц.(ВЛ)10кВ от ТП8 до ТП83,84 ф1001 | B41: 2013 | C41: 180 | D41: 180 | E41: 616520.09 | F41: 328810.56 | G41: 287709.53 | I41: 10275.33 | L41: 616520.09 | M41: 339085.89 | N41: 277434.2 | O41: 30826.0045 | P41: 41101.3345 | Q41: 246608.1955 | R41: 41101.33933 | S41: 41101.33933 | T41: 205506.8562 | V41: 0 | W41: 226057.5258
A42: Воздушн. одноцеп. (ВЛ) 10кВ от ТП39 до ТП40 ф1004 | B42: 2013 | C42: 180 | D42: 180 | E42: 700537.25 | F42: 385295.13 | G42: 315242.12 | I42: 11675.64 | L42: 700537.25 | M42: 396970.77 | N42: 303566.48 | O42: 35026.8625 | P42: 46702.5025 | Q42: 268539.6175 | R42: 46702.48333 | S42: 46702.48333 | T42: 221837.1342 | V42: 0 | W42: 245188.3758
A43: Воздушн. одноцеп. (ВЛ) 10кВ отТП38 доТП39 ф1004 | B43: 2013 | C43: 180 | D43: 180 | E43: 1096068.19 | F43: 602837.73 | G43: 493230.46 | I43: 18267.79 | L43: 1096068.19 | M43: 621105.52 | N43: 474962.67 | O43: 54803.4095 | P43: 73071.1995 | Q43: 420159.2605 | R43: 73071.21267 | S43: 73071.21267 | T43: 347088.0478 | V43: 0 | W43: 383623.6542
A44: Воздушн. одноцеп. (ВЛ) 10кВ отТП40 доТП58/37 ф1004 | B44: 2013 | C44: 180 | D44: 180 | E44: 537327.7 | F44: 295529.85 | G44: 241797.85 | I44: 8955.48 | L44: 537327.7 | M44: 304485.33 | N44: 232842.37 | O44: 26866.385 | P44: 35821.865 | Q44: 205975.985 | R44: 35821.84667 | S44: 35821.84667 | T44: 170154.1383 | V44: 0 | W44: 188065.0617
A45: Воздушн. одноцеп. (ВЛ) 10кВ отТП55 доТП56 ф1022 | B45: 2013 | C45: 180 | D45: 180 | E45: 833308.07 | F45: 458319.51 | G45: 374988.56 | I45: 13888.47 | L45: 833308.07 | M45: 472207.98 | N45: 361100.09 | O45: 41665.4035 | P45: 55553.8735 | Q45: 319434.6865 | R45: 55553.87133 | S45: 55553.87133 | T45: 263880.8152 | V45: 0 | W45: 291657.7508
A46: Воздушн. одноцеп. (ВЛ) 10кВ отТП56 доТП20 ф1022 | B46: 2013 | C46: 180 | D46: 180 | E46: 429493.27 | F46: 236220.93 | G46: 193272.34 | I46: 7158.24 | L46: 429493.27 | M46: 243379.17 | N46: 186114.1 | O46: 21474.6635 | P46: 28632.9035 | Q46: 164639.4365 | R46: 28632.88467 | S46: 28632.88467 | T46: 136006.5518 | V46: 0 | W46: 150322.9942
A47: Воздушн. одноцеп.(ВЛ)10кВ от опоры №16доТП44 ф1001 | B47: 2013 | C47: 180 | D47: 180 | E47: 187578.58 | F47: 100041.6 | G47: 87536.98 | I47: 3126.33 | L47: 187578.58 | M47: 103167.93 | N47: 84410.65 | O47: 9378.929 | P47: 12505.259 | Q47: 75031.721 | R47: 12505.23867 | S47: 12505.23867 | T47: 62526.48233 | V47: 0 | W47: 68779.10167
A48: Воздушная двухц(ВЛ)10кВ от ТП1 до ТП61 ф1003,1005 | B48: 2011 | C48: 180 | D48: 180 | E48: 641304.05 | F48: 427536 | G48: 213768.05 | I48: 10688.4 | L48: 641304.05 | M48: 438224.4 | N48: 203079.65 | O48: 32065.2025 | P48: 42753.6025 | Q48: 171014.4475 | R48: 42753.60333 | S48: 42753.60333 | T48: 128260.8442 | V48: 0 | W48: 149637.6458
A49: Воздушная двухц(ВЛ)10кВ от ТП13 до ТП1 ф1003,1005 | B49: 2013 | C49: 180 | D49: 180 | E49: 2130397.72 | F49: 1204954.28 | G49: 925443.44 | I49: 34275.69 | L49: 2130397.72 | M49: 1239229.97 | N49: 891167.75 | O49: 106519.886 | P49: 140795.576 | Q49: 784647.864 | R49: 142026.5147 | S49: 142026.5147 | T49: 642621.3493 | V49: 0 | W49: 713634.6067
A50: Воздушная двухц(ВЛ)10кВ от ТП72-ТП8-ТП32-ТП18 ф1001,1005 | B50: 2014 | C50: 180 | D50: 180 | E50: 4547113.62 | F50: 2273556.6 | G50: 2273557.02 | I50: 75785.22 | L50: 4547113.62 | M50: 2349341.82 | N50: 2197771.8 | O50: 227355.681 | P50: 303140.901 | Q50: 1970416.119 | R50: 303140.908 | S50: 303140.908 | T50: 1667275.211 | V50: 0 | W50: 1818845.665
A51: ВЛ 10кВ ТП №11-ТП №66 Ф 1001 | B51: 2015 | C51: 180 | D51: 180 | E51: 2604937.89 | F51: 1085391 | G51: 1519546.89 | I51: 43415.64 | L51: 2604937.89 | M51: 1128806.64 | N51: 1476131.25 | O51: 130246.8945 | P51: 173662.5345 | Q51: 1345884.356 | R51: 173662.526 | S51: 173662.526 | T51: 1172221.83 | V51: 0 | W51: 1259053.093
A52: ВЛ 10кВ ТП №12-ТП №11 Ф 1001 | B52: 2015 | C52: 180 | D52: 180 | E52: 1804578.12 | F52: 781983.54 | G52: 1022594.58 | I52: 30076.32 | L52: 1804578.12 | M52: 812059.86 | N52: 992518.26 | O52: 90228.906 | P52: 120305.226 | Q52: 902289.354 | R52: 120305.208 | S52: 120305.208 | T52: 781984.146 | V52: 0 | W52: 842136.75
A53: ВЛ 0,4 кВ и мачтовые подстанции №94 ул.Первомайская, №90 ул.Пионерская, №97 ВРУ 0,4 кВ | B53: 2017 | C53: 180 | D53: 180 | E53: 8559056.22 | F53: 2626227.01 | G53: 5932829.21 | I53: 144703.14 | L53: 8559056.22 | M53: 2770930.15 | N53: 5788126.07 | O53: 427952.811 | P53: 572655.951 | Q53: 5360173.259 | R53: 570603.748 | S53: 570603.748 | T53: 4789569.511 | V53: 0 | W53: 5074871.385
A54: ВЛ 10 кВ и мачтовые подстанции №93 СНТ "Заря" и №92 ул.Красногорская | B54: 2017 | C54: 180 | D54: 180 | E54: 1460815.16 | F54: 453647.56 | G54: 1007167.6 | I54: 24565.05 | L54: 1460815.16 | M54: 478212.61 | N54: 982602.55 | O54: 73040.758 | P54: 97605.808 | Q54: 909561.792 | R54: 97387.67733 | S54: 97387.67733 | T54: 812174.1147 | V54: 0 | W54: 860867.9533
A55: ВЛ 0,4 кВ от ТП 41 до ул. Мира 30А | B55: 2015 | C55: 180 | D55: 180 | E55: 171464.46 | F55: 74301.24 | G55: 97163.22 | I55: 2857.74 | L55: 171464.46 | M55: 77158.98 | N55: 94305.48 | O55: 8573.223 | P55: 11430.963 | Q55: 85732.257 | R55: 11430.964 | S55: 11430.964 | T55: 74301.293 | V55: 0 | W55: 80016.775
A56: ВЛ от ТП 32 по ул. Красноармейская с подкл. В ТП 18 | B56: 2015 | C56: 180 | D56: 180 | E56: 245516.82 | F56: 106390.44 | G56: 139126.38 | I56: 4091.94 | L56: 245516.82 | M56: 110482.38 | N56: 135034.44 | O56: 12275.841 | P56: 16367.781 | Q56: 122758.599 | R56: 16367.788 | S56: 16367.788 | T56: 106390.811 | V56: 0 | W56: 114574.705
A57: Воздушная линия 10 кВ Ф1004 | B57: 2017 | C57: 180 | D57: 180 | E57: 5287101.45 | F57: 1674249.03 | G57: 3612852.42 | I57: 88118.34 | L57: 5287101.45 | M57: 1762367.37 | N57: 3524734.08 | O57: 264355.0725 | P57: 352473.4125 | Q57: 3260379.008 | R57: 352473.43 | S57: 352473.43 | T57: 2907905.578 | V57: 0 | W57: 3084142.293
A58: Воздушная двухц(ВЛ)10кВ от ТП2 до ТП22 ф1003,1005 | B58: 2011 | C58: 180 | D58: 180 | E58: 192147.14 | F58: 128097.6 | G58: 64049.54 | I58: 3202.47 | L58: 192147.14 | M58: 131300.07 | N58: 60847.07 | O58: 9607.357 | P58: 12809.827 | Q58: 51239.713 | R58: 12809.80933 | S58: 12809.80933 | T58: 38429.90367 | V58: 0 | W58: 44834.80833
A59: ВЛ 10кВ энергетический комплекс "Больница" Ф 1001 | B59: 2018 | C59: 180 | D59: 180 | E59: 4726559.22 | F59: 1234157.02 | G59: 3492402.2 | I59: 78775.98 | L59: 4726559.22 | M59: 1312933 | N59: 3413626.22 | O59: 236327.961 | P59: 315103.941 | Q59: 3177298.259 | R59: 315103.948 | S59: 315103.948 | T59: 2862194.311 | V59: 0 | W59: 3019746.285
A60: Воздушная линия 0,4 кВ от ТП45 | B60: 2018 | C60: 180 | D60: 180 | E60: 4600845.55 | F60: 920169 | G60: 3680676.55 | I60: 76680.75 | L60: 4600845.55 | M60: 996849.75 | N60: 3603995.8 | O60: 230042.2775 | P60: 306723.0275 | Q60: 3373953.522 | R60: 306723.0367 | S60: 306723.0367 | T60: 3067230.486 | V60: 0 | W60: 3220592.004
A61: ВЛ 10 кВ ТП72-ТП62 | B61: 2018 | C61: 180 | D61: 180 | E61: 1554512.01 | F61: 328174.84 | G61: 1226337.17 | I61: 25908.54 | L61: 1554512.01 | M61: 354083.38 | N61: 1200428.63 | O61: 77725.6005 | P61: 103634.1405 | Q61: 1122703.029 | R61: 103634.134 | S61: 103634.134 | T61: 1019068.895 | V61: 0 | W61: 1070885.962
A62: ВЛ 10 кВ (двухцепная) от ПС "Карабаново" до ТП12 Ф1001 ул.Иванова | B62: 2019 | C62: 180 | D62: 180 | E62: 3604938.1 | F62: 660905.19 | G62: 2944032.91 | I62: 60082.29 | L62: 3604938.1 | M62: 720987.48 | N62: 2883950.62 | O62: 180246.905 | P62: 240329.195 | Q62: 2703703.715 | R62: 240329.2067 | S62: 240329.2067 | T62: 2463374.508 | V62: 0 | W62: 2583539.112
A63: ВЛ 10 кВ (двухцепная) от ТП10 до ТП27 Ф1001 ул.Горького-Больничный городок | B63: 2019 | C63: 180 | D63: 180 | E63: 2138149.4 | F63: 391994.13 | G63: 1746155.27 | I63: 35635.83 | L63: 2138149.4 | M63: 427629.96 | N63: 1710519.44 | O63: 106907.47 | P63: 142543.3 | Q63: 1603611.97 | R63: 142543.2933 | S63: 142543.2933 | T63: 1461068.677 | V63: 0 | W63: 1532340.323
A64: ВЛ 10 кВ (двухцепная) от ТП12 до ТП62 Ф1001 ул.Иванова-2я Школьная | B64: 2019 | C64: 180 | D64: 180 | E64: 1783832.9 | F64: 327035.94 | G64: 1456796.96 | I64: 29730.54 | L64: 1783832.9 | M64: 356766.48 | N64: 1427066.42 | O64: 89191.645 | P64: 118922.185 | Q64: 1337874.775 | R64: 118922.1933 | S64: 118922.1933 | T64: 1218952.582 | V64: 0 | W64: 1278413.678
A65: КРУН (10 кВ) на выходе из ПС"Карабаново" Ф1003 (2 ячейки) | B65: 2019 | C65: 180 | D65: 180 | E65: 2341653.73 | F65: 131718.15 | G65: 2209935.58 | I65: 14635.33 | L65: 2341653.73 | M65: 146353.48 | N65: 2195300.25 | O65: 117082.6865 | P65: 131718.0165 | Q65: 2078217.563 | R65: 156110.2487 | S65: 156110.2487 | T65: 1922107.315 | V65: 0 | W65: 2000162.439
A66: КРУН (10 кВ) на выходе из ПС"Карабаново" Ф1001 (1 ячейка) | B66: 2019 | C66: 180 | D66: 180 | E66: 1010134.84 | F66: 56820.15 | G66: 953314.69 | I66: 6313.35 | L66: 1010134.84 | M66: 63133.5 | N66: 947001.34 | O66: 50506.742 | P66: 56820.092 | Q66: 896494.598 | R66: 67342.32267 | S66: 67342.32267 | T66: 829152.2753 | V66: 0 | W66: 862823.4367
A67: КРУН (10 кВ) на выходе из ПС"Карабаново" Ф1022 (2 ячейки) | B67: 2019 | C67: 180 | D67: 180 | E67: 2240770.81 | F67: 121375.02 | G67: 2119395.79 | I67: 14035.74 | L67: 2240770.81 | M67: 135410.76 | N67: 2105360.05 | O67: 112038.5405 | P67: 126074.2805 | Q67: 1993321.509 | R67: 149384.7207 | S67: 149384.7207 | T67: 1843936.789 | V67: 0 | W67: 1918629.149
A68: ВЛ 0,4 кВ и мачтовые подстанции от ТП №11 | B68: 2017 | C68: 180 | D68: 180 | E68: 5742091.26 | F68: 1882130.09 | G68: 3859961.17 | I68: 31900.51 | L68: 5742091.26 | M68: 1914030.6 | N68: 3828060.66 | O68: 287104.563 | P68: 319005.073 | Q68: 3540956.097 | R68: 382806.084 | S68: 382806.084 | T68: 3158150.013 | V68: 0 | W68: 3349553.055
A69: ВЛ 0,4 кВ ул.Почтовая | B69: 2017 | C69: 180 | D69: 180 | E69: 788791.59 | F69: 258548.62 | G69: 530242.97 | I69: 4382.17 | L69: 788791.59 | M69: 262930.79 | N69: 525860.8 | O69: 39439.5795 | P69: 43821.7495 | Q69: 486421.2205 | R69: 52586.106 | S69: 52586.106 | T69: 433835.1145 | V69: 0 | W69: 460128.1675
A70: ВЛ 0,4 кВ ул.Зеленая и мачтовая подстанция №100 | B70: 2017 | C70: 180 | D70: 180 | E70: 1295023.12 | F70: 424479.63 | G70: 870543.49 | I70: 7194.57 | L70: 1295023.12 | M70: 431674.2 | N70: 863348.92 | O70: 64751.156 | P70: 71945.726 | Q70: 798597.764 | R70: 86334.87467 | S70: 86334.87467 | T70: 712262.8893 | V70: 0 | W70: 755430.3267
A71: ВЛ 0,4 кВ и мачтовые трансформаторные подстанции от ТП№8 | B71: 2017 | C71: 180 | D71: 180 | E71: 7584542.89 | F71: 2486044.65 | G71: 5098498.24 | I71: 42136.35 | L71: 7584542.89 | M71: 2528181 | N71: 5056361.89 | O71: 379227.1445 | P71: 421363.4945 | Q71: 4677134.746 | R71: 505636.1927 | S71: 505636.1927 | T71: 4171498.553 | V71: 0 | W71: 4424316.649
A72: ВЛ 0,4 кВ от ТП №102 ул.Строителей, ул.Красноармейская | B72: 2017 | C72: 180 | D72: 180 | E72: 2063779.82 | F72: 653530.08 | G72: 1410249.74 | I72: 11465.45 | L72: 2063779.82 | M72: 664995.53 | N72: 1398784.29 | O72: 103188.991 | P72: 114654.441 | Q72: 1295595.299 | R72: 137585.3213 | S72: 137585.3213 | T72: 1158009.978 | V72: 0 | W72: 1226802.638
A73: ВЛ 0,4 кВ от ТП №35 1-ый Садовый пер., Баня, Детский Дом ул.Гагарина | B73: 2017 | C73: 180 | D73: 180 | E73: 1747422.6 | F73: 553350.3 | G73: 1194072.3 | I73: 9707.9 | L73: 1747422.6 | M73: 563058.2 | N73: 1184364.4 | O73: 87371.13 | P73: 97079.03 | Q73: 1096993.27 | R73: 116494.84 | S73: 116494.84 | T73: 980498.43 | V73: 0 | W73: 1038745.85
A74: ВЛ 0,4 кВ от ТП №40 с тех.прис. Ул.1я Воронцова,2я Воронцова | B74: 2020 | C74: 180 | D74: 180 | E74: 2055747.5 | F74: 201122.43 | G74: 1854625.07 | I74: 34344.9 | L74: 2055747.5 | M74: 235467.33 | N74: 1820280.17 | O74: 102787.375 | P74: 137132.275 | Q74: 1717492.795 | R74: 137049.8333 | S74: 137049.8333 | T74: 1580442.962 | V74: 0 | W74: 1648967.878
A75: ВЛ 10кВ (двухцепная) от ТП 72 до ж/д перехода Ф 1003,1005 | B75: 2020 | C75: 180 | D75: 180 | E75: 408180.19 | F75: 34015.05 | G75: 374165.14 | I75: 6803.01 | L75: 408180.19 | M75: 40818.06 | N75: 367362.13 | O75: 20409.0095 | P75: 27212.0195 | Q75: 346953.1205 | R75: 27212.01267 | S75: 27212.01267 | T75: 319741.1078 | V75: 0 | W75: 333347.1142
A76: ВЛ 10кВ (двуцепная) от ТП63 до ТП64 Ф1003,1005 | B76: 2021 | C76: 180 | D76: =$D$34 -> 180 | E76: 1958259.3 | F76: 65275.32 | G76: 1892983.98 | I76: 32637.66 | L76: 1958259.3 | M76: 97912.98 | N76: 1860346.32 | O76: 97912.965 | P76: =I76+O76 -> 130550.625 | Q76: =IF((N76-O76)>0,(N76-O76),0) -> 1762433.355 | R76: =IF(C76>0,IF(Q76>L76/C76*12,(L76/C76*12),Q76),0) -> 130550.62 | S76: =IF(D76>0,IF(Q76>L76/D76*12,(L76/D76*12),Q76),0) -> 130550.62 | T76: =IF((Q76-R76)>0,(Q76-R76),0) -> 1631882.735 | V76: =IF(U76=2.2,(T76+Q76)/2,0) -> 0 | W76: =IF(U76=0,(T76+Q76)/2,0) -> 1697158.045
A77: ВЛ 10кВ (двуцепная) от ТП76 до ТП19 Ф1003,1005 | B77: 2021 | C77: 180 | D77: =$D$34 -> 180 | E77: 1279460 | F77: 21324.33 | G77: 1258135.67 | I77: 21324.33 | L77: 1279460 | M77: 42648.66 | N77: 1236811.34 | O77: 63973 | P77: =I77+O77 -> 85297.33 | Q77: =IF((N77-O77)>0,(N77-O77),0) -> 1172838.34 | R77: =IF(C77>0,IF(Q77>L77/C77*12,(L77/C77*12),Q77),0) -> 85297.33333 | S77: =IF(D77>0,IF(Q77>L77/D77*12,(L77/D77*12),Q77),0) -> 85297.33333 | T77: =IF((Q77-R77)>0,(Q77-R77),0) -> 1087541.007 | V77: =IF(U77=2.2,(T77+Q77)/2,0) -> 0 | W77: =IF(U77=0,(T77+Q77)/2,0) -> 1130189.673
A78: Добавить
A79: Седьмая группа (свыше 15 лет до 20 лет включительно)
A80: Трансформаторная подстанция ТП 61 10/0,4-250кВА | B80: 2011 | C80: 240 | D80: 240 | E80: 1636018.1 | F80: 818008.8 | G80: =E80-F80 -> 818009.3 | I80: =6816.74*3 -> 20450.22 | L80: =E80 -> 1636018.1 | M80: =F80+I80 -> 838459.02 | N80: =L80-M80 -> 797559.08 | O80: =IF(C80>0,IF(N80>L80/C80*9,(L80/C80*9),N80),0) -> 61350.67875 | P80: =I80+O80 -> 81800.89875 | Q80: =IF((N80-O80)>0,(N80-O80),0) -> 736208.4013 | R80: =IF(C80>0,IF(Q80>L80/C80*12,(L80/C80*12),Q80),0) -> 81800.905 | S80: =IF(D80>0,IF(Q80>L80/D80*12,(L80/D80*12),Q80),0) -> 81800.905 | T80: =IF((Q80-R80)>0,(Q80-R80),0) -> 654407.4963 | V80: =IF(U80=2.2,(T80+Q80)/2,0) -> 0 | W80: =IF(U80=0,(T80+Q80)/2,0) -> 695307.9488
A81: Трансформаторная подстанция ТП 66 10/0,4-250кВА | B81: 2011 | C81: 240 | D81: =$D$80 -> 240 | E81: 1653625.37 | F81: 744131.88 | G81: =E81-F81 -> 909493.49 | I81: =7579.11*3 -> 22737.33 | L81: =E81 -> 1653625.37 | M81: =F81+I81 -> 766869.21 | N81: =L81-M81 -> 886756.16 | O81: 62010.95138 | P81: =I81+O81 -> 84748.28138 | Q81: =IF((N81-O81)>0,(N81-O81),0) -> 824745.2086 | R81: =IF(C81>0,IF(Q81>L81/C81*12,(L81/C81*12),Q81),0) -> 82681.2685 | S81: =IF(D81>0,IF(Q81>L81/D81*12,(L81/D81*12),Q81),0) -> 82681.2685 | T81: =IF((Q81-R81)>0,(Q81-R81),0) -> 742063.9401 | V81: =IF(U81=2.2,(T81+Q81)/2,0) -> 0 | W81: =IF(U81=0,(T81+Q81)/2,0) -> 783404.5744
A82: Мачтовая ТП 95 10/0,4-100кВА | B82: 2014 | C82: 240 | D82: =$D$80 -> 240 | E82: 334555.91 | F82: 125458.2 | G82: 209097.71 | I82: =1393.98*3 -> 4181.94 | L82: 334555.91 | M82: 129640.14 | N82: 204915.77 | O82: =IF(C82>0,IF(N82>L82/C82*9,(L82/C82*9),N82),0) -> 12545.84663 | P82: =I82+O82 -> 16727.78663 | Q82: =IF((N82-O82)>0,(N82-O82),0) -> 192369.9234 | R82: =IF(C82>0,IF(Q82>L82/C82*12,(L82/C82*12),Q82),0) -> 16727.7955 | S82: =IF(D82>0,IF(Q82>L82/D82*12,(L82/D82*12),Q82),0) -> 16727.7955 | T82: =IF((Q82-R82)>0,(Q82-R82),0) -> 175642.1279 | V82: =IF(U82=2.2,(T82+Q82)/2,0) -> 0 | W82: =IF(U82=0,(T82+Q82)/2,0) -> 184006.0256
A83: Мачтовая ТП 96 10/0,4-100кВА | B83: 2014 | C83: 240 | D83: =$D$80 -> 240 | E83: 334555.91 | F83: 125458.2 | G83: 209097.71 | I83: =1393.98*3 -> 4181.94 | L83: 334555.91 | M83: 129640.14 | N83: 204915.77 | O83: 12545.84663 | P83: =I83+O83 -> 16727.78663 | Q83: =IF((N83-O83)>0,(N83-O83),0) -> 192369.9234 | R83: =IF(C83>0,IF(Q83>L83/C83*12,(L83/C83*12),Q83),0) -> 16727.7955 | S83: =IF(D83>0,IF(Q83>L83/D83*12,(L83/D83*12),Q83),0) -> 16727.7955 | T83: =IF((Q83-R83)>0,(Q83-R83),0) -> 175642.1279 | V83: =IF(U83=2.2,(T83+Q83)/2,0) -> 0 | W83: =IF(U83=0,(T83+Q83)/2,0) -> 184006.0256
A84: Мачтовая ТП 88 10/0,4-100кВА ул. Чулкова | B84: 2017 | C84: 240 | D84: =$D$80 -> 240 | E84: 296331.11 | F84: 72847.89 | G84: 223483.22 | I84: 1234.71 | L84: 296331.11 | M84: 74082.6 | N84: 222248.51 | O84: 11112.41662 | P84: =I84+O84 -> 12347.12663 | Q84: =IF((N84-O84)>0,(N84-O84),0) -> 211136.0934 | R84: =IF(C84>0,IF(Q84>L84/C84*12,(L84/C84*12),Q84),0) -> 14816.5555 | S84: =IF(D84>0,IF(Q84>L84/D84*12,(L84/D84*12),Q84),0) -> 14816.5555 | T84: =IF((Q84-R84)>0,(Q84-R84),0) -> 196319.5379 | V84: =IF(U84=2.2,(T84+Q84)/2,0) -> 0 | W84: =IF(U84=0,(T84+Q84)/2,0) -> 203727.8156
A85: Добавить
A86: Восьмая группа (свыше 20 лет до 25 лет включительно)
D87: 300 | O87: =IF(C87>0,IF(N87>L87/C87*9,(L87/C87*9),N87),0) -> 0 | P87: =I87+O87 -> 0 | Q87: =IF((N87-O87)>0,(N87-O87),0) -> 0 | R87: =IF(C87>0,IF(Q87>L87/C87*12,(L87/C87*12),Q87),0) -> 0 | S87: =IF(D87>0,IF(Q87>L87/D87*12,(L87/D87*12),Q87),0) -> 0 | T87: =IF((Q87-R87)>0,(Q87-R87),0) -> 0 | V87: =IF(U87=2.2,(T87+Q87)/2,0) -> 0 | W87: =IF(U87=0,(T87+Q87)/2,0) -> 0
D88: =$D$87 -> 300 | O88: 0 | P88: =I88+O88 -> 0 | Q88: =IF((N88-O88)>0,(N88-O88),0) -> 0 | R88: =IF(C88>0,IF(Q88>L88/C88*12,(L88/C88*12),Q88),0) -> 0 | S88: =IF(D88>0,IF(Q88>L88/D88*12,(L88/D88*12),Q88),0) -> 0 | T88: =IF((Q88-R88)>0,(Q88-R88),0) -> 0 | V88: =IF(U88=2.2,(T88+Q88)/2,0) -> 0 | W88: =IF(U88=0,(T88+Q88)/2,0) -> 0
D89: =$D$87 -> 300 | O89: 0 | P89: =I89+O89 -> 0 | Q89: =IF((N89-O89)>0,(N89-O89),0) -> 0 | R89: =IF(C89>0,IF(Q89>L89/C89*12,(L89/C89*12),Q89),0) -> 0 | S89: =IF(D89>0,IF(Q89>L89/D89*12,(L89/D89*12),Q89),0) -> 0 | T89: =IF((Q89-R89)>0,(Q89-R89),0) -> 0 | V89: =IF(U89=2.2,(T89+Q89)/2,0) -> 0 | W89: =IF(U89=0,(T89+Q89)/2,0) -> 0
A90: Добавить
A91: Девятая группа (свыше 25 лет до 30 лет включительно)
A92: Трансформаторная подстанция ТП 44 10/0,4-250кВА | B92: 2013 | C92: 360 | D92: 360 | E92: 298798.03 | F92: 79679.04 | G92: =E92-F92 -> 219118.99 | I92: =830*3 -> 2490 | L92: =E92 -> 298798.03 | M92: =F92+I92 -> 82169.04 | N92: =L92-M92 -> 216628.99 | O92: =IF(C92>0,IF(N92>L92/C92*9,(L92/C92*9),N92),0) -> 7469.95075 | P92: =I92+O92 -> 9959.95075 | Q92: =IF((N92-O92)>0,(N92-O92),0) -> 209159.0393 | R92: =IF(C92>0,IF(Q92>L92/C92*12,(L92/C92*12),Q92),0) -> 9959.934333 | S92: =IF(D92>0,IF(Q92>L92/D92*12,(L92/D92*12),Q92),0) -> 9959.934333 | T92: =IF((Q92-R92)>0,(Q92-R92),0) -> 199199.1049 | V92: =IF(U92=2.2,(T92+Q92)/2,0) -> 0 | W92: =IF(U92=0,(T92+Q92)/2,0) -> 204179.0721
D93: =$D$92 -> 360 | O93: 0 | P93: 0 | Q93: 0 | R93: 0 | S93: 0 | T93: 0 | V93: 0 | W93: 0
D94: 360 | O94: =IF(C94>0,IF(N94>L94/C94*9,(L94/C94*9),N94),0) -> 0 | P94: 0 | Q94: 0 | R94: 0 | S94: 0 | T94: 0 | V94: 0 | W94: 0
D95: 360 | O95: 0 | P95: 0 | Q95: 0 | R95: 0 | S95: 0 | T95: 0 | V95: 0 | W95: 0
D96: 360 | O96: 0 | P96: 0 | Q96: 0 | R96: 0 | S96: 0 | T96: 0 | V96: 0 | W96: 0
D97: 360 | O97: 0 | P97: 0 | Q97: 0 | R97: 0 | S97: 0 | T97: 0 | V97: 0 | W97: 0
D98: 360 | O98: 0 | P98: 0 | Q98: 0 | R98: 0 | S98: 0 | T98: 0 | V98: 0 | W98: 0
A99: Добавить
A100: Десятая группа (свыше 30 лет)
A101: Трансформаторная подстанция ТП 38 10/0,4-250кВА | B101: 2013 | C101: 479.999564 | D101: =MAX(361,C101) -> 479.999564 | E101: 1200003.71 | F101: 240000.96 | G101: =E101-F101 -> 960002.75 | I101: =2500.01*3 -> 7500.03 | L101: =E101 -> 1200003.71 | M101: =F101+I101 -> 247500.99 | N101: =L101-M101 -> 952502.72 | O101: =IF(C101>0,IF(N101>L101/C101*9,(L101/C101*9),N101),0) -> 22500.09 | P101: =I101+O101 -> 30000.12 | Q101: =IF((N101-O101)>0,(N101-O101),0) -> 930002.63 | R101: =IF(C101>0,IF(Q101>L101/C101*12,(L101/C101*12),Q101),0) -> 30000.12 | S101: =IF(D101>0,IF(Q101>L101/D101*12,(L101/D101*12),Q101),0) -> 30000.12 | T101: =IF((Q101-R101)>0,(Q101-R101),0) -> 900002.51 | V101: =IF(U101=2.2,(T101+Q101)/2,0) -> 0 | W101: =IF(U101=0,(T101+Q101)/2,0) -> 915002.57
A102: Трансформаторная подстанция ТП 39 10/0,4-250кВА | B102: 2013 | C102: 479.9999917 | D102: =MAX(361,C102) -> 479.9999917 | E102: 1725143.97 | F102: 345028.8 | G102: =E102-F102 -> 1380115.17 | I102: =3594.05*3 -> 10782.15 | L102: =E102 -> 1725143.97 | M102: =F102+I102 -> 355810.95 | N102: =L102-M102 -> 1369333.02 | O102: 32346.45 | P102: 43128.6 | Q102: 1336986.57 | R102: 43128.6 | S102: 43128.6 | T102: 1293857.97 | V102: 0 | W102: 1315422.27
A103: Трансформаторная подстанция ТП 45 10/0,4-250кВА | B103: 2013 | C103: 600.0006756 | D103: 600.0006756 | E103: 1714123.93 | F103: 356940.84 | G103: 1357183.09 | I103: =2692.82*3 -> 8078.46 | L103: 1714123.93 | M103: 365019.3 | N103: 1349104.63 | O103: 25711.83 | P103: 33790.29 | Q103: 1323392.8 | R103: 34282.44 | S103: 34282.44 | T103: 1289110.36 | V103: 0 | W103: 1306251.58
A104: Трансформаторная подстанция ТП 51 Очистные сооружения | B104: 2013 | C104: 599.9997126 | D104: =MAX(361,C104) -> 599.9997126 | E104: 4153930.01 | F104: 664629.12 | G104: 3489300.89 | I104: =6923.22*3 -> 20769.66 | L104: 4153930.01 | M104: 685398.78 | N104: 3468531.23 | O104: =IF(C104>0,IF(N104>L104/C104*9,(L104/C104*9),N104),0) -> 62308.98 | P104: 83078.64 | Q104: 3406222.25 | R104: 83078.64 | S104: 83078.64 | T104: 3323143.61 | V104: 0 | W104: 3364682.93
A105: Трансформаторная подстанция ТП 54 10/0,4-250кВА | B105: 2013 | C105: 479.9999047 | D105: 479.9999047 | E105: 1459986.91 | F105: 429382.2 | G105: 1030604.71 | I105: =2683.87*3 -> 8051.61 | L105: 1459986.91 | M105: 437433.81 | N105: 1022553.1 | O105: 27374.76 | P105: 35426.37 | Q105: 995178.34 | R105: 36499.68 | S105: 36499.68 | T105: 958678.66 | V105: 0 | W105: 976928.5
A106: Трансформаторная подстанция ТП 55 10/0,4-400кВА | B106: 2013 | C106: 480.0000204 | D106: 480.0000204 | E106: 2112753.69 | F106: 523512.56 | G106: 1589241.13 | I106: =4138.65*3 -> 12415.95 | L106: 2112753.69 | M106: 535928.51 | N106: 1576825.18 | O106: 39614.13 | P106: 52030.08 | Q106: 1537211.05 | R106: 52818.84 | S106: 52818.84 | T106: 1484392.21 | V106: 0 | W106: 1510801.63
A107: Трансформаторная подстанция ТП 56 10/0,4-400кВА*2 | B107: 2013 | C107: 599.9999425 | D107: 599.9999425 | E107: 3337073.68 | F107: 533931.84 | G107: 2803141.84 | I107: =5561.79*3 -> 16685.37 | L107: 3337073.68 | M107: 550617.21 | N107: 2786456.47 | O107: 50056.11 | P107: 66741.48 | Q107: 2736400.36 | R107: 66741.48 | S107: 66741.48 | T107: 2669658.88 | V107: 0 | W107: 2703029.62
A108: Трансформаторная подстанция ТП 62 10/0,4-400кВА | B108: 2013 | C108: 600.0003777 | D108: 600.0003777 | E108: 4367990.75 | F108: 872310.14 | G108: 3495680.61 | I108: =6935.87*3 -> 20807.61 | L108: 4367990.75 | M108: 893117.75 | N108: 3474873 | O108: 65519.82 | P108: 86327.43 | Q108: 3409353.18 | R108: 87359.76 | S108: 87359.76 | T108: 3321993.42 | V108: 0 | W108: 3365673.3
A109: Трансформаторная подстанция ТП 63 10/0,4-400кВА*2 | B109: 2013 | C109: 599.9996676 | D109: 599.9996676 | E109: 4241739.65 | F109: 678678.72 | G109: 3563060.93 | I109: =7069.57*3 -> 21208.71 | L109: 4241739.65 | M109: 699887.43 | N109: 3541852.22 | O109: 63626.13 | P109: 84834.84 | Q109: 3478226.09 | R109: 84834.84 | S109: 84834.84 | T109: 3393391.25 | V109: 0 | W109: 3435808.67
A110: Трансформаторная подстанция ТП 91 10/0,4-250кВА | B110: 2013 | C110: 479.999766 | D110: 479.999766 | E110: 1702885.57 | F110: 340577.28 | G110: 1362308.29 | I110: =3547.68*3 -> 10643.04 | L110: 1702885.57 | M110: 351220.32 | N110: 1351665.25 | O110: 31929.12 | P110: 42572.16 | Q110: 1319736.13 | R110: 42572.16 | S110: 42572.16 | T110: 1277163.97 | V110: 0 | W110: 1298450.05
A111: Трансформаторная подстанция ТП 10 10/0,4-100кВА | B111: 2015 | C111: 599.9994172 | D111: 599.9994172 | E111: 1708942.34 | F111: 205073.28 | G111: 1503869.06 | I111: =2848.24*3 -> 8544.72 | L111: 1708942.34 | M111: 213618 | N111: 1495324.34 | O111: 25634.16 | P111: 34178.88 | Q111: 1469690.18 | R111: 34178.88 | S111: 34178.88 | T111: 1435511.3 | V111: 0 | W111: 1452600.74
A112: Трансформаторная подстанция ТП 11 10/0,4-250кВА | B112: 2015 | C112: 600.0008468 | D112: 600.0008468 | E112: 1339231.89 | F112: 160707.6 | G112: 1178524.29 | I112: =2232.05*3 -> 6696.15 | L112: 1339231.89 | M112: 167403.75 | N112: 1171828.14 | O112: 20088.45 | P112: 26784.6 | Q112: 1151739.69 | R112: 26784.6 | S112: 26784.6 | T112: 1124955.09 | V112: 0 | W112: 1138347.39
A113: Трансформаторная подстанция ТП 58/37 10/0,4-250кВА*2 | B113: 2015 | C113: 599.9992537 | D113: 599.9992537 | E113: 2315283.12 | F113: 277834.32 | G113: 2037448.8 | I113: =3858.8*3 -> 11576.4 | L113: 2315283.12 | M113: 289410.72 | N113: 2025872.4 | O113: 34729.29 | P113: 46305.69 | Q113: 1991143.11 | R113: 46305.72 | S113: 46305.72 | T113: 1944837.39 | V113: 0 | W113: 1967990.25
A114: Подстанция ТП-13 | B114: 2015 | C114: 600.0021083 | D114: 600.0021083 | E114: 660254.32 | F114: 79230.24 | G114: 581024.08 | I114: =1100.42*3 -> 3301.26 | L114: 660254.32 | M114: 82531.5 | N114: 577722.82 | O114: 9903.78 | P114: 13205.04 | Q114: 567819.04 | R114: 13205.04 | S114: 13205.04 | T114: 554614 | V114: 0 | W114: 561216.52
A115: Подстанция ТП-2 | B115: 2015 | C115: 599.9992944 | D115: 599.9992944 | E115: 875872.97 | F115: 105104.88 | G115: 770768.09 | I115: =1459.79*3 -> 4379.37 | L115: 875872.97 | M115: 109484.25 | N115: 766388.72 | O115: 13138.11 | P115: 17517.48 | Q115: 753250.61 | R115: 17517.48 | S115: 17517.48 | T115: 735733.13 | V115: 0 | W115: 744491.87
A116: КТП 41 ул. Мира | B116: 2018 | C116: 480 | D116: 480 | E116: 5933777.67 | F116: 581015.88 | G116: 5352761.79 | I116: =12362.04*3 -> 37086.12 | L116: 5933777.67 | M116: 618102 | N116: 5315675.67 | O116: 111258.3313 | P116: 148344.4513 | Q116: 5204417.339 | R116: 148344.4417 | S116: 148344.4417 | T116: 5056072.897 | V116: 0 | W116: 5130245.118
A117: Трансформаторная подстанция ТП 40 10/0,4-250кВА ул.1-я Воронцова | B117: 2017 | C117: 480 | D117: 480 | E117: 2028474.33 | F117: 249333.41 | G117: 1779140.92 | I117: 4225.99 | L117: 2028474.33 | M117: 253559.4 | N117: 1774914.93 | O117: 38033.89369 | P117: 42259.88369 | Q117: 1736881.036 | R117: 50711.85825 | S117: 50711.85825 | T117: 1686169.178 | V117: 0 | W117: 1711525.107
A118: Трансформаторная подстанция ТП 72 10/0,4-400кВА*2 | B118: 2020 | C118: 480 | D118: 480 | E118: 7627241.52 | F118: 282177.33 | G118: =E118-F118 -> 7345064.19 | I118: =15898.41*3 -> 47695.23 | L118: =E118 -> 7627241.52 | M118: 329872.56 | N118: =L118-M118 -> 7297368.96 | O118: 143010.7785 | P118: 190706.0085 | Q118: 7154358.181 | R118: 190681.038 | S118: 190681.038 | T118: 6963677.144 | V118: 0 | W118: 7059017.662
A119: Трансформаторная подстанция ТП 64 10/0,4-250кВА | B119: 2020 | C119: 480 | D119: 480 | E119: 6633690.14 | F119: 13820.19 | G119: 6619869.95 | I119: =13820.19*3 -> 41460.57 | L119: 6633690.14 | M119: 55280.76 | N119: 6578409.38 | O119: 124381.6901 | P119: 165842.2601 | Q119: 6454027.69 | R119: 165842.2535 | S119: 165842.2535 | T119: 6288185.436 | V119: 0 | W119: 6371106.563
A120: Добавить
A121: Неамортизируемое имущество (Земельные участки)
O122: х | P122: х | Q122: х | R122: х | S122: х | T122: =Q122 -> х | U122: х | V122: х | W122: х
O123: х | P123: х | Q123: х | R123: х | S123: х | T123: =Q123 -> х | U123: х | V123: х | W123: х
O124: х | P124: х | Q124: х | R124: х | S124: х | T124: =Q124 -> х | U124: х | V124: х | W124: х
O125: х | P125: х | Q125: х | R125: х | S125: х | T125: =Q125 -> х | U125: х | V125: х | W125: х
O126: х | P126: х | Q126: х | R126: х | S126: х | T126: =Q126 -> х | U126: х | V126: х | W126: х
A127: Добавить
A128: Итого | B128: x | C128: x | D128: x | E128: =SUM(E7:E126) -> 155147126.8 | F128: 41060784.19 | G128: 114086342.6 | H128: 0 | I128: 1674204.17 | J128: 0 | K128: 0 | L128: 155147126.8 | M128: 42734988.36 | N128: 112412138.4 | O128: =SUM(O8:O10)+SUM(O13:O15)+SUM(O18:O20)+SUM(O23:O25)+SUM(O28:O31)+SUM(O34:O77)+SUM(O80:O84)+SUM(O87:O89)+SUM(O92:O98)+SUM(O101:O119)+SUM(O122:O126) -> 5880943.702 | P128: 7555147.872 | Q128: 106531194.7 | R128: 7841258.269 | S128: 7841258.269 | T128: 98689936.42 | U128: х | V128: =SUM(V8:V10)+SUM(V13:V15)+SUM(V18:V20)+SUM(V23:V25)+SUM(V28:V31)+SUM(V34:V77)+SUM(V80:V84)+SUM(V87:V89)+SUM(V92:V98)+SUM(V101:V119) -> 0 | W128: =SUM(W8:W10)+SUM(W13:W15)+SUM(W18:W20)+SUM(W23:W25)+SUM(W28:W31)+SUM(W34:W77)+SUM(W80:W84)+SUM(W87:W89)+SUM(W92:W98)+SUM(W101:W119)+SUM(W122:W126) -> 102610565.6
A130: Руководитель организации В.М.Окунев | F130: ='[23]Инф-я'!$C$21 -> 0

Sheet Ввод выбытие ОС
A2: Справка о вводе основных средств в 2022 году (с 01.04.2022 г.), участвующих в передаче электрической энергии
A4: ='Инф-я'!C14 -> ООО "Энергетик"
A6: Наименование вводимых объектов основных фондов | B6: По данным организации | L6: По данным экспертов
B7: Является ли ОС недвижимым имуществом? (да/нет) | C7: Амортизационная группа | D7: Порядковый номер месяца ввода | E7: Первоначальная стоимость, тыс. руб. | F7: Норма амортизационных отчислений, % | G7: Корректировка годовой суммы амортизационных отчислений по вводимым объектам (тыс. руб.) | H7: Амортизация 2022 год | I7: Остаточная стоимость на 01.01.2023 | J7: Остаточная стоимость на 01.01.2024 | K7: Среднегодовая остаточная стоимость ОС за 2023 год | L7: Является ли ОС недвижимым имуществом? (да/нет) | M7: Амортизационная группа | N7: Порядковый номер месяца ввода | O7: Первоначальная стоимость, тыс. руб. | P7: Норма амортизационных отчислений, % | Q7: Корректировка годовой суммы амортизационных отчислений по вводимым объектам (тыс. руб.) | R7: Амортизация 2022 год | S7: Остаточная стоимость на 01.01.2023 | T7: Остаточная стоимость на 01.01.2024 | U7: Среднегодовая остаточная стоимость ОС за 2023 год
A8: 1 | B8: 2 | C8: 3 | D8: 4 | E8: 5 | F8: 6 | G8: 7 | H8: 8 | I8: 9 | J8: 10 | K8: 11 | L8: 12 | M8: 13 | N8: 14 | O8: 15 | P8: 16 | Q8: 17 | R8: 18 | S8: 19 | T8: 20 | U8: 21
A9: Строительство ТП №76 | B9: да | C9: 10 | D9: 7 | E9: 7613.86 | F9: 0.025 | G9: =E9*F9 -> 190.3465 | H9: =(12-D9)*E9/12*F9 -> 79.31104167 | I9: =E9-H9 -> 7534.548958 | J9: =I9-G9 -> 7344.202458 | K9: =IF(B9="да",(I9+J9)/2,"") -> 7439.375708 | Q9: =O9*P9 -> 0 | R9: =(12-N9)*O9/12*P9 -> 0 | S9: =O9-R9 -> 0 | T9: =S9-Q9 -> 0 | U9: =IF(L9="да",(S9+T9)/2,"") -> 
A10: ВЛ 10кВ от ТП 34 до ТП 58 Ф 1022 | B10: да | C10: 6 | D10: 9 | E10: 956.872 | F10: 0.0667 | G10: =E10*F10 -> 63.8233624 | H10: =(12-D10)*E10/12*F10 -> 15.9558406 | I10: =E10-H10 -> 940.9161594 | J10: =I10-G10 -> 877.092797 | K10: =IF(B10="да",(I10+J10)/2,"") -> 909.0044782 | Q10: =O10*P10 -> 0 | R10: =(12-N10)*O10/12*P10 -> 0 | S10: =O10-R10 -> 0 | T10: =S10-Q10 -> 0 | U10: =IF(L10="да",(S10+T10)/2,"") -> 
A11: ВЛ 10кВ от ТП 41 до ТП 34 Ф 1023 | B11: да | C11: 6 | D11: 9 | E11: 967.788 | F11: 0.0667 | G11: =E11*F11 -> 64.5514596 | H11: =(12-D11)*E11/12*F11 -> 16.1378649 | I11: =E11-H11 -> 951.6501351 | J11: =I11-G11 -> 887.0986755 | K11: =IF(B11="да",(I11+J11)/2,"") -> 919.3744053 | Q11: =O11*P11 -> 0 | R11: =(12-N11)*O11/12*P11 -> 0 | S11: =O11-R11 -> 0 | T11: =S11-Q11 -> 0 | U11: =IF(L11="да",(S11+T11)/2,"") -> 
A12: Добавить
A13: Всего по вводимым объектам в 2022 году (с 01.04.2022 г.), участвующим в передаче электрической энергии | B13: х | C13: х | D13: х | E13: =SUM(E9:E11) -> 9538.52 | F13: х | G13: =SUM(G9:G11) -> 318.721322 | H13: =SUM(H9:H11) -> 111.4047472 | I13: =SUM(I9:I11) -> 9427.115253 | J13: =SUM(J9:J11) -> 9108.393931 | K13: =SUM(K9:K11) -> 9267.754592 | L13: х | M13: х | N13: х | O13: х | P13: х | Q13: =SUM(Q9:Q11) -> 0 | R13: =SUM(R9:R11) -> 0 | S13: =SUM(S9:S11) -> 0 | T13: =SUM(T9:T11) -> 0 | U13: =SUM(U9:U11) -> 0
A16: Справка о выбытии не полностью самортизированных основных средств в 2022 году (с 01.04.2022 г.), участвующих в передаче электрической энергии
A19: Наименование вводимых объектов основных фондов | B19: По данным организации | L19: По данным экспертов
B20: Является ли ОС недвижимым имуществом? (да/нет) | C20: Амортизационная группа | D20: Остаточная стоимость на начало 2022 года, тыс. руб. | E20: Первоначальная стоимость, тыс. руб. | F20: Норма амортизационных отчислений, % | G20: Корректировка годовой суммы амортизационных отчислений по выбывающим объектам (тыс. руб.) | H20: Амортизация 2022 год | I20: Остаточная стоимость на 01.01.2023 | J20: Остаточная стоимость на 01.01.2024 | K20: Среднегодовая остаточная стоимость ОС за 2023 год | L20: Является ли ОС недвижимым имуществом? (да/нет) | M20: Амортизационная группа | N20: Остаточная стоимость на начало 2022 года, тыс. руб. | O20: Первоначальная стоимость, тыс. руб. | P20: Норма амортизационных отчислений, % | Q20: Корректировка годовой суммы амортизационных отчислений по вводимым объектам (тыс. руб.) | R20: Амортизация 2022 год | S20: Остаточная стоимость на 01.01.2023 | T20: Остаточная стоимость на 01.01.2024 | U20: Среднегодовая остаточная стоимость ОС за 2023 год
A21: 1 | B21: 2 | C21: 3 | D21: 4 | E21: 5 | F21: 6 | G21: 7 | H21: 8 | I21: 9 | J21: 10 | K21: 11 | L21: 12 | M21: 13 | N21: 14 | O21: 15 | P21: 16 | Q21: 17 | R21: 18 | S21: 19 | T21: 20 | U21: 21
G22: =E22*F22 -> 0 | H22: =E22*F22 -> 0 | I22: =IF(D22>H22,D22-H22,0) -> 0 | J22: =IF(I22>H22,I22-H22,0) -> 0 | K22: =IF(B22="да",(I22+J22)/2,"") ->  | Q22: =O22*P22 -> 0 | R22: =O22*P22 -> 0 | S22: =IF(N22>R22,N22-R22,0) -> 0 | T22: =IF(S22>R22,S22-R22,0) -> 0 | U22: =IF(L22="да",(S22+T22)/2,"") -> 
G23: =E23*F23 -> 0 | H23: =E23*F23 -> 0 | I23: =IF(D23>H23,D23-H23,0) -> 0 | J23: =IF(I23>H23,I23-H23,0) -> 0 | K23: =IF(B23="да",(I23+J23)/2,"") ->  | Q23: =O23*P23 -> 0 | R23: =O23*P23 -> 0 | S23: =IF(N23>R23,N23-R23,0) -> 0 | T23: =IF(S23>R23,S23-R23,0) -> 0 | U23: =IF(L23="да",(S23+T23)/2,"") -> 
G24: =E24*F24 -> 0 | H24: =E24*F24 -> 0 | I24: =IF(D24>H24,D24-H24,0) -> 0 | J24: =IF(I24>H24,I24-H24,0) -> 0 | K24: =IF(B24="да",(I24+J24)/2,"") ->  | Q24: =O24*P24 -> 0 | R24: =O24*P24 -> 0 | S24: =IF(N24>R24,N24-R24,0) -> 0 | T24: =IF(S24>R24,S24-R24,0) -> 0 | U24: =IF(L24="да",(S24+T24)/2,"") -> 
G25: =E25*F25 -> 0 | H25: =E25*F25 -> 0 | I25: =IF(D25>H25,D25-H25,0) -> 0 | J25: =IF(I25>H25,I25-H25,0) -> 0 | K25: =IF(B25="да",(I25+J25)/2,"") ->  | Q25: =O25*P25 -> 0 | R25: =O25*P25 -> 0 | S25: =IF(N25>R25,N25-R25,0) -> 0 | T25: =IF(S25>R25,S25-R25,0) -> 0 | U25: =IF(L25="да",(S25+T25)/2,"") -> 
A26: Добавить
A27: Всего по выбывающим объектам в 2022 году (с 01.04.2022 г.), участвующим в передаче электрической энергии | B27: х | C27: х | D27: х | E27: =SUM(E22:E25) -> 0 | F27: х | G27: =SUM(G22:G25) -> 0 | H27: х | I27: х | J27: х | K27: =SUM(K22:K25) -> 0 | L27: х | M27: х | N27: х | O27: х | P27: х | Q27: =SUM(Q22:Q25) -> 0 | R27: х | S27: х | T27: х | U27: =SUM(U22:U25) -> 0
A29: Руководитель организации | G29: ='Инф-я'!$C$21 -> Окунев Василий Михайлович
A31: В справке о выбытии основных средств указывается информация о выбывающих объектах (продажа, ликвидация)

Sheet Свод по амортизации
A2: Сводный расчет амортизационных отчислений на восстановление основных производственных фондов, участвующих в передаче электрической энергии
A4: ='Инф-я'!C14 -> ООО "Энергетик"
A6: Наименование | B6: 2021 год | D6: 2022 год | F6: 2023 год | H6: 2021 год
B7: Утверждено | C7: Факт | D7: Утверждено | E7: Ожидаемые | F7: По данным организации | G7: По данным экспертов | H7: Факт по данным экспертов
A8: 1 | B8: 2 | C8: 3 | D8: 4 | E8: 5 | F8: 6 | G8: 7 | H8: 7
A9: Амортизационные отчисления на 2023 год по основным средствам по состоянию на 01.04.2022 г. | B9: х | C9: х | D9: х | E9: х | F9: ='Расчет аморт. max срок'!S128/1000 -> 7841.258269 | H9: х
A10: Корректировка годовой суммы амортизационных отчислений, в том числе: | B10: х | C10: х | D10: х | E10: х | F10: =F11-F12 -> 318.721322 | G10: =G11-G12 -> 0 | H10: х
A11: по вводимым объектам основных средств после 01.04.2022 г. (+) | B11: х | C11: х | D11: х | E11: х | F11: ='Ввод выбытие ОС '!G13 -> 318.721322 | G11: ='Ввод выбытие ОС '!Q13 -> 0 | H11: х
A12: по выбывающим объектам основных средств после 01.04.2022 г.(-) | B12: х | C12: х | D12: х | E12: х | F12: ='Ввод выбытие ОС '!G27 -> 0 | G12: ='Ввод выбытие ОС '!Q27 -> 0 | H12: х
A13: Годовая сумма амортизационных отчислений | B13: 7399.229315 | C13: 7322.29605 | D13: 7437.68867 | E13: 7779.6431 | F13: =F9+F10 -> 8159.979591 | G13: =G9+G10 -> 0
A15: Руководитель организации | D15: ='Инф-я'!C21 -> Окунев Василий Михайлович

Sheet Страховые взносы
AA1: да
B2: Расчет расходов на страховые взносы | AA2: нет
B4: ='Инф-я'!C14 -> ООО "Энергетик"
I5: тыс. руб.
A6: № п/п | B6: Наименование | C6: Ед.изм. | D6: 2021 год | F6: 2022 год | H6: 2023 год | J6: 2021 год
D7: Утверждено | E7: Факт | F7: Утверждено | G7: Ожидаемые | H7: По данным организации | I7: По данным экспертов | J7: Факт по данным экспертов
A8: 1 | B8: 2 | C8: 3 | D8: 4 | E8: 5 | F8: 6 | G8: 7 | H8: 8 | I8: 9 | J8: 10
A9: Является ли организация субъектом малого и среднего предпринимательства? | D9: х | E9: х | F9: да | G9: да | H9: да | I9: нет
A10: 1. | B10: Сумма выплат и иных вознаграждений, начисленных в пользу физических лиц, в соответствии со статьей 420 НК РФ | C10: тыс. руб. | D10: х | E10: х | F10: =F11+F12 -> 15081.05187 | G10: =G11 -> 18242.52419 | H10: =H11+H12 -> 17329.96058 | I10: =I11+I12 -> 3581.749819 | J10: х | L10: фот
A11: 1.1. | B11: Расходы из фонда оплаты труда | C11: тыс. руб. | D11: х | E11: х | F11: 14353.03041 | G11: =16813.38635*1.085 -> 18242.52419 | H11: ='Подконтрольные расходы'!E17 -> 16493.37549 | I11: ='Подконтрольные расходы'!F17 -> 3408.844723 | J11: х
A12: 1.2. | B12: Расходы по коллективным договорам | C12: тыс. руб. | D12: х | E12: х | F12: 728.0214564 | G12: 0 | H12: ='Подконтрольные расходы'!E30 -> 836.5850905 | I12: ='Подконтрольные расходы'!F30 -> 172.9050959 | J12: х
A13: 2. | B13: Суммы, не подлежащие обложению страховыми взносами, в соответствии со статьей 422 НК РФ | C13: тыс. руб. | D13: х | E13: х | F13: 126.539194 | G13: 0 | H13: =F13*'Подконтрольные расходы'!E15 -> 145.4089054 | J13: х
A14: 3. | B14: Тарифы страховых взносов: | C14: % | D14: х | E14: х | F14: х | G14: х | H14: х | I14: х | J14: х
A15: 3.1. | B15: на обязательное пенсионное страхование | C15: % | D15: х | E15: х | F15: 0.22 | G15: 0.22 | H15: 0.22 | I15: 0.22 | J15: х
A16: 3.2. | B16: на обязательное медицинское страхование | C16: % | D16: х | E16: х | F16: 0.051 | G16: 0.051 | H16: 0.051 | I16: 0.051 | J16: х
A17: 3.3. | B17: на обязательное социальное страхование на случай временной нетрудоспособности и в связи с материнством | C17: % | D17: х | E17: х | F17: 0.029 | G17: 0.029 | H17: 0.029 | I17: 0.029 | J17: х
A18: 3.4. | B18: на обязательное страхование от несчастных случаев | C18: % | D18: х | E18: х | F18: 0.004 | G18: 0.004 | H18: 0.004 | J18: х
A19: 3.5. | B19: Пониженная суммарная ставка страховых взносов для микропредприятий | C19: % | F19: 0.15 | G19: 0.15 | H19: 0.15 | I19: 0.15
A20: 4. | B20: Утвержденная численность всего персонала на первый год долгосрочного опериода | C20: чел. | F20: 38 | G20: 38 | H20: 38.73832232
A21: 5. | B21: Минимальный размер оплаты труда (МРОТ) | C21: тыс. руб. | F21: 13.89 | G21: 13.89 | H21: 13.89 | I21: 13.89
A22: 6. | B22: Расходы на страховые взносы: | C22: тыс. руб. | D22: 4584.300781 | E22: 3403.52415 | F22: ='[24]Страховые взносы'!$Q$18 -> 3245.099237 | G22: =IF(G9="нет",(G10-G13)*(G15+G16+G17+G18),(G20*G21*12)*(G15+G16+G17+G18)+(G10-G13-G20*G21*12)*(G19+G18)) -> 3759.424725 | H22: 3614.956493 | I22: 1074.524946
B23: Страховые взносы, относимые на услугу по передаче электрической энергии | C23: тыс. руб. | D23: 4584.300781 | E23: 3403.52415 | F23: =F22 -> 3245.099237 | G23: =G22 -> 3759.424725 | H23: =H22 -> 3614.956493 | L23: Условное форматирование: если в ячейке не указано значение -форматируется красным цветом
B25: Руководитель организации | E25: ='Инф-я'!$C$21 -> Окунев Василий Михайлович

Sheet Расходы рег. орг-ий
A2: Расходы на оплату услуг организаций, осуществляющих регулируемые виды деятельности
A4: ='Инф-я'!C14 -> ООО "Энергетик"
G6: тыс. руб.
A7: Наименование | B7: 2021 год | D7: 2022 год | F7: 2023 год | H7: 2021 год
B8: Утверждено | C8: Факт | D8: Утверждено | E8: Ожидаемые | F8: По данным организации | G8: По данным экспертов | H8: Факт по данным экспертов
A9: 1 | B9: 2 | C9: 3 | D9: 4 | E9: 5 | F9: 6 | G9: 7 | H9: 8
A10: Тепловая энергия | B10: 244.4489033 | C10: =SUM(C11:C11) -> 247.50046 | D10: 207.5767155 | E10: =SUM(E11:E11) -> 268.2904986 | F10: =SUM(F11:F11) -> 268.2904986 | G10: =SUM(G11:G11) -> 0 | H10: =SUM(H11:H11) -> 0
A11: договор с МУП "Возрождение" от 07.08.2020 №36 на___________ | C11: 247.50046 | E11: =247.50046*1.084 -> 268.2904986 | F11: =C11*1.084 -> 268.2904986
A12: Добавить
A13: Водоснабжение и канализация | B13: 14.67043332 | C13: =SUM(C14:C15) -> 8.122 | D13: 26.8675722 | E13: =SUM(E14:E15) -> 8.804248 | F13: =SUM(F14:F15) -> 8.804248 | G13: =SUM(G14:G15) -> 0 | H13: =SUM(H14:H15) -> 0
A14: договор с _ООО "ВодаКанал" от 01.03.2019 г. №88 на_________ | B14: х | C14: 8.122 | D14: х | E14: =8.122*1.084 -> 8.804248 | F14: =C14*1.084 -> 8.804248
A15: договор с _____ от_____№ __ на_________ | B15: х | D15: х
A16: Добавить
A17: Прочие услуги по регулируемым тарифам | B17: 13.87660934 | C17: =SUM(C18:C20) -> 186.77846 | D17: 8.842163501 | E17: =SUM(E18:E20) -> 32.58855216 | F17: =SUM(F18:F20) -> 202.4678506 | G17: =SUM(G18:G20) -> 0 | H17: =SUM(H18:H20) -> 0
A18: договор с ООО "Хартия" от 01.12.2019 №262 Вл/А/2019 на_________ | B18: х | C18: 10.02108 | D18: х | E18: =10.02108*1.084 -> 10.86285072 | F18: =C18*1.084 -> 10.86285072
A19: договор с ООО "ЭСВ" от 01.04.2021 № 33300361009094 | B19: х | C19: 103.93823 | D19: х | E19: =10.02108*1.084 -> 10.86285072 | F19: =C19*1.084 -> 112.6690413
A20: договор с ООО "ЭСВ" от 01.04.2018 № 33300361009094 | B20: х | C20: 72.81915 | D20: х | E20: 10.86285072 | F20: 78.9359586
A21: Добавить
A22: Всего расходы на оплату услуг организаций, осуществляющих регулируемые виды деятельности, в том числе: | B22: =B10+B13+B17 -> 272.9959459 | C22: 442.40092 | D22: 243.2864512 | E22: 309.6832988 | F22: 479.5625973 | G22: 0 | H22: 0
A23: относимые на услугу по передаче электрической энергии | B23: =B22 -> 272.9959459 | C23: =C22 -> 442.40092 | D23: =D22 -> 243.2864512 | E23: =E22 -> 309.6832988 | F23: 287.96 | J23: Условное форматирование: если в ячейке не указано значение -форматируется красным цветом
A25: Руководитель организации | D25: ='Инф-я'!C21 -> Окунев Василий Михайлович

Sheet Аренда имущества
A2: Расходы по аренде имущества
A4: ='Инф-я'!C14 -> ООО "Энергетик"
A6: Наименование | B6: 2021 год | D6: 2022 год | F6: 2023 год | V6: 2021 год Факт по данным экспертов
F7: По данным организации | N7: По расчету экспертов
F8: Сумма арендной платы для включения в тариф | G8: Стоимость арендной платы по договору | H8: Стоимость арендной платы в соответствии с требованиями п. 28 Основ ценообразования | N8: Сумма арендной платы для включения в тариф | O8: Стоимость арендной платы по договору | P8: Стоимость арендной платы расчитанной в соответствии с требованиями п. 28 Основ ценообразования
B9: Утверждено | C9: Факт | D9: Утверждено | E9: Ожидаемые | H9: Всего | I9: амортизационные отчисления | J9: налог на имущество | K9: транспортный налог | L9: плата за землю | M9: иные обязательные платежи предусмотренные законодательством, связанные с арендуемым имуществом | P9: Всего | Q9: амортизационные отчисления | R9: налог на имущество | S9: транспортный налог | T9: плата за землю | U9: иные обязательные платежи предусмотренные законодательством, связанные с арендуемым имуществом
A10: 1 | B10: 2 | C10: 3 | D10: 4 | E10: 5 | F10: 6 | G10: 7 | H10: 8 | I10: 9 | J10: 10 | K10: 11 | L10: 12 | M10: 13 | N10: 14 | O10: 15 | P10: 16 | Q10: 17 | R10: 18 | S10: 19 | T10: 20 | U10: 21 | V10: 22
A11: Аренда объектов электроэнергетики, иных объектов производственного назначения, участвующих в процессе передачи электроэнергии | B11: =SUM(B12:B15) -> 2976 | C11: =SUM(C12:C15) -> 2976 | D11: 2976 | E11: 2976 | F11: 2976 | G11: 2976 | H11: 2976 | I11: 2976 | J11: 0 | K11: 0 | L11: 0 | M11: 0 | N11: =SUM(N12:N15) -> 0 | O11: =SUM(O12:O15) -> 0 | P11: 0 | Q11: 0 | R11: 0 | S11: 0 | T11: 0 | U11: 0 | V11: 0
A12: договор с ООО "Техстройэнерго" от 04.09.2019 № 13А-19 | B12: 2976 | C12: =248+248+248+248+248+248+248+248+248+248+248+248 -> 2976 | D12: 2976 | E12: 2976 | F12: =MIN(G12,H12) -> 2976 | G12: 2976 | H12: =I12+J12+K12+L12+M12 -> 2976 | I12: 2976 | N12: =MIN(O12,P12) -> 0 | P12: =Q12+R12+S12+T12+U12 -> 0
F13: =MIN(G13,H13) -> 0 | H13: =I13+J13+K13+L13+M13 -> 0 | N13: =MIN(O13,P13) -> 0 | P13: =Q13+R13+S13+T13+U13 -> 0
A14: договор с _____ от_____№ __ | F14: =MIN(G14,H14) -> 0 | H14: =I14+J14+K14+L14+M14 -> 0 | N14: =MIN(O14,P14) -> 0 | P14: =Q14+R14+S14+T14+U14 -> 0
A15: договор с _____ от_____№ __ | F15: =MIN(G15,H15) -> 0 | H15: =I15+J15+K15+L15+M15 -> 0 | N15: =MIN(O15,P15) -> 0 | P15: =Q15+R15+S15+T15+U15 -> 0
A16: Добавить
A17: Аренда помещений | B17: =SUM(B18:B21) -> 228.48 | C17: =SUM(C18:C21) -> 460.89203 | D17: 3017.42 | E17: 228.48 | F17: 228.48 | G17: х | H17: х | I17: х | J17: х | K17: х | L17: х | M17: х | N17: 0 | O17: х | P17: х | Q17: х | R17: х | S17: х | T17: х | U17: х | V17: =SUM(V18:V21) -> 0
A18: договор с ООО "Техстройэнерго" от 31.12.2019 № 12А-20 | B18: 228.48 | C18: =19.04+19.04+19.04+19.04+19.04+19.04+19.04+19.04+19.04+19.04+19.04+19.04 -> 228.48 | D18: 228.48 | E18: 228.48 | F18: 228.48 | G18: х | H18: х | I18: х | J18: х | K18: х | L18: х | M18: х | O18: х | P18: х | Q18: х | R18: х | S18: х | T18: х | U18: х
A19: договор с ООО "Техстройэнерго" от 01.12.2021 № 01С/А-21 | C19: =232.41203 -> 232.41203 | D19: 2788.94 | G19: х | H19: х | I19: х | J19: х | K19: х | L19: х | M19: х | O19: х | P19: х | Q19: х | R19: х | S19: х | T19: х | U19: х
A20: договор с _____ от_____ № ___ | G20: х | H20: х | I20: х | J20: х | K20: х | L20: х | M20: х | O20: х | P20: х | Q20: х | R20: х | S20: х | T20: х | U20: х
A21: договор с _____ от_____№ __ | G21: х | H21: х | I21: х | J21: х | K21: х | L21: х | M21: х | O21: х | P21: х | Q21: х | R21: х | S21: х | T21: х | U21: х
A22: Добавить
A23: Аренда транспортных средств | B23: =SUM(B24:B28) -> 1530.8 | C23: =SUM(C24:C28) -> 1566.01956 | D23: 1530.8 | E23: 1530.8 | F23: 1530.8 | G23: х | H23: х | I23: х | J23: х | K23: х | L23: х | M23: х | N23: 0 | O23: х | P23: х | Q23: х | R23: х | S23: х | T23: х | U23: х | V23: =SUM(V24:V28) -> 0
A24: договор с ООО "Техстройэнерго" от 01.11.2019г. № 1/О-20/24 на аренду транспортных средств | B24: 1530.8 | C24: =130.50163+130.50163+130.50163+130.50163+130.50163+130.50163+130.50163+130.50163+130.50163+130.50163+130.50163+130.50163 -> 1566.01956 | D24: 1530.8 | E24: 1530.8 | F24: 1530.8 | G24: х | H24: х | I24: х | J24: х | K24: х | L24: х | M24: х | O24: х | P24: х | Q24: х | R24: х | S24: х | T24: х | U24: х
A25: договор с _____от_____№ __ | G25: х | H25: х | I25: х | J25: х | K25: х | L25: х | M25: х | O25: х | P25: х | Q25: х | R25: х | S25: х | T25: х | U25: х
A26: договор с _____ от_____№ __ | G26: х | H26: х | I26: х | J26: х | K26: х | L26: х | M26: х | O26: х | P26: х | Q26: х | R26: х | S26: х | T26: х | U26: х
A27: договор с _____ от_____№ __ | G27: х | H27: х | I27: х | J27: х | K27: х | L27: х | M27: х | O27: х | P27: х | Q27: х | R27: х | S27: х | T27: х | U27: х
A28: договор с _____ от_____№ __ | G28: х | H28: х | I28: х | J28: х | K28: х | L28: х | M28: х | O28: х | P28: х | Q28: х | R28: х | S28: х | T28: х | U28: х
A29: Добавить
A30: Лизинг | B30: =SUM(B31:B35) -> 0 | C30: =SUM(C31:C35) -> 0 | D30: =SUM(D31:D35) -> 0 | E30: =SUM(E31:E35) -> 0 | F30: =SUM(F31:F35) -> 0 | G30: х | H30: х | I30: х | J30: х | K30: х | L30: х | M30: х | N30: =SUM(N31:N35) -> 0 | O30: х | P30: х | Q30: х | R30: х | S30: х | T30: х | U30: х | V30: =SUM(V31:V35) -> 0
A31: объектов электросетевого хозяйства договор с _____ от_____№ __ | G31: х | H31: х | I31: х | J31: х | K31: х | L31: х | M31: х | O31: х | P31: х | Q31: х | R31: х | S31: х | T31: х | U31: х
A32: иного имущества договор с _____ от_____№ __ | G32: х | H32: х | I32: х | J32: х | K32: х | L32: х | M32: х | O32: х | P32: х | Q32: х | R32: х | S32: х | T32: х | U32: х
A33: договор с _____ от_____№ __ | G33: х | H33: х | I33: х | J33: х | K33: х | L33: х | M33: х | O33: х | P33: х | Q33: х | R33: х | S33: х | T33: х | U33: х
A34: договор с _____ от_____№ __ | G34: х | H34: х | I34: х | J34: х | K34: х | L34: х | M34: х | O34: х | P34: х | Q34: х | R34: х | S34: х | T34: х | U34: х
A35: договор с _____ от_____№ __ | G35: х | H35: х | I35: х | J35: х | K35: х | L35: х | M35: х | O35: х | P35: х | Q35: х | R35: х | S35: х | T35: х | U35: х
A36: Добавить
A37: ИТОГО расходы по аренде имущества, всего в том числе | B37: =B11+B17+B23+B30 -> 4735.28 | C37: =C11+C17+C23+C30 -> 5002.91159 | D37: 7524.22 | E37: 4735.28 | F37: 4735.28 | G37: х | H37: х | I37: х | J37: х | K37: х | L37: х | M37: х | N37: =N11+N17+N23+N30 -> 0 | O37: х | P37: х | Q37: х | R37: х | S37: х | T37: х | U37: х | V37: =V11+V17+V23+V30 -> 0
A38: Расходы по аренде имущества, относимые на услугу по передаче электрической энергии | B38: 4735.28 | C38: =C37 -> 5002.91159 | D38: =D37 -> 7524.22 | E38: =E37 -> 4735.28 | F38: =F37 -> 4735.28 | G38: х | H38: х | I38: х | J38: х | K38: х | L38: х | M38: х | O38: х | P38: х | Q38: х | R38: х | S38: х | T38: х | U38: х | Y38: Условное форматирование: если в ячейке не указано значение -форматируется красным цветом
A39: в т.ч. по уровням напряжения: ВН | B39: х | C39: х | E39: х | G39: х | H39: х | I39: х | J39: х | K39: х | L39: х | M39: х | O39: х | P39: х | Q39: х | R39: х | S39: х | T39: х | U39: х
A40: СН1 | B40: х | C40: х | E40: х | G40: х | H40: х | I40: х | J40: х | K40: х | L40: х | M40: х | O40: х | P40: х | Q40: х | R40: х | S40: х | T40: х | U40: х
A41: СН2 | B41: х | C41: х | E41: х | G41: х | H41: х | I41: х | J41: х | K41: х | L41: х | M41: х | O41: х | P41: х | Q41: х | R41: х | S41: х | T41: х | U41: х
A42: НН | B42: х | C42: х | E42: х | G42: х | H42: х | I42: х | J42: х | K42: х | L42: х | M42: х | O42: х | P42: х | Q42: х | R42: х | S42: х | T42: х | U42: х
A43: Для проверки прибыли на капитальные вложения (аренда и лизинг объектов электросетевого хозяйства) | B43: =B11+B31 -> 2976 | C43: =C11+C31 -> 2976 | D43: =D11+D31 -> 2976 | E43: =E11+E31 -> 2976 | F43: =F11+F31 -> 2976 | G43: х | H43: х | I43: х | J43: х | K43: х | L43: х | M43: х | N43: =N11+N31 -> 0 | O43: х | P43: х | Q43: х | R43: х | S43: х | T43: х | U43: х | V43: =V11+V31 -> 0
A45: Руководитель организации | D45: ='Инф-я'!$C$21 -> Окунев Василий Михайлович
A49: Примечание:
A50: Сведения должны соответствовать данным отраженным в электронном формате по активам организации

Sheet Плата за землю
A2: Плата за землю
A4: ='Инф-я'!C14 -> ООО "Энергетик"
G5: тыс. руб.
A6: Наименование | B6: 2021 год | D6: 2022 год | F6: 2023 год | H6: 2021 год
B7: Утверждено | C7: Факт | D7: Утверждено | E7: Ожидаемые | F7: По данным организации | G7: По данным экспертов | H7: Факт по данным экспертов
A8: 1 | B8: 2 | C8: 3 | D8: 4 | E8: 5 | F8: 6 | G8: 7 | H8: 8
A9: Земельный налог
A11: Аренда земельных участков | B11: 240.7619326 | C11: =SUM(C12:C15) -> 1.42965 | D11: 17.16 | E11: =SUM(E12:E15) -> 1.42965 | F11: =SUM(F12:F15) -> 1.42965 | G11: =SUM(G12:G15) -> 0 | H11: =SUM(H12:H15) -> 0
A12: договор № 02С/А-21 от 01.12.2021 | B12: x | C12: 1.42965 | D12: x | E12: 1.42965 | F12: 1.42965
B13: x | D13: x
B14: x | D14: x
B15: x | D15: x
A16: Добавить
A17: Всего плата за землю, в том числе | B17: =B9+B11 -> 240.7619326 | C17: =C9+C11 -> 1.42965 | D17: 17.16 | E17: 1.42965 | F17: 1.42965 | G17: 0 | H17: 0
A18: относимая на услугу по передаче электрической энергии | B18: =B17 -> 240.7619326 | C18: 1.43 | D18: =D17 -> 17.16 | E18: 1.42965 | F18: 1.42965 | J18: Условное форматирование: если в ячейке не указано значение -форматируется красным цветом
A20: Руководитель организации | D20: ='Инф-я'!$C$21 -> Окунев Василий Михайлович

Sheet Транспортный налог
A2: Расчет транспортного налога
A4: ='Инф-я'!C14 -> ООО "Энергетик"
I5: тыс. руб.
A6: Объект налогообложения (вид и марка транспортного средства) | B6: Налоговая база, (л.с.) | C6: Налоговая ставка, руб. | D6: 2021 год | F6: 2022 год | H6: 2023 год | L6: 2021 год
H7: По расчету организации | J7: По расчету экспертов | L7: Факт по данным экспертов
D8: Утверждено | E8: Факт | F8: Утверждено | G8: Ожидаемые | H8: Коэф. использ. | I8: Годовая сумма налога, тыс.руб. | J8: Коэф. использ. | K8: Годовая сумма налога, тыс. руб.
A9: 1 | B9: 2 | C9: 3 | D9: 4 | E9: 5 | F9: 6 | G9: 7 | H9: 8 | I9: 9 | J9: 10 | K9: 11
D10: х | F10: х | I10: =B10*C10*H10/1000 -> 0 | K10: =B10*C10*J10/1000 -> 0
D11: х | F11: х | I11: =B11*C11*H11/1000 -> 0 | K11: =B11*C11*J11/1000 -> 0
D12: х | F12: х | I12: =B12*C12*H12/1000 -> 0 | K12: =B12*C12*J12/1000 -> 0
D13: х | F13: х | I13: =B13*C13*H13/1000 -> 0 | K13: =B13*C13*J13/1000 -> 0
D14: х | F14: х | I14: 0 | K14: 0
D15: х | F15: х | I15: 0 | K15: 0
D16: х | F16: х | I16: 0 | K16: 0
A17: Добавить
A18: Транспортный налог всего, в т.ч. | B18: х | C18: х | E18: =SUM(E10:E16) -> 0 | G18: =SUM(G10:G16) -> 0 | H18: х | I18: =SUM(I10:I16) -> 0 | J18: х | K18: =SUM(K10:K16) -> 0 | L18: =SUM(L10:L16) -> 0
A19: относимый на услугу по передаче электрической энергии | B19: х | C19: х | D19: 0 | E19: 0 | F19: - | G19: 0 | H19: х | I19: 0 | J19: х | N19: Условное форматирование: если в ячейке не указано значение -форматируется красным цветом
A21: Руководитель организации | D21: ='Инф-я'!$C$21 -> Окунев Василий Михайлович

Sheet Негативное возд. на окр. среду
A2: Расчет платы за негативное воздействие на окружающую среду
B4: ='Инф-я'!C14 -> ООО "Энергетик"
G5: тыс.руб. | H5: тыс. руб.
A6: № п./п. | B6: Наименование | C6: 2021 год | E6: 2022 год | G6: 2023 год | I6: 2021 год
C7: Утверждено | D7: Факт | E7: Утверждено | F7: Ожидаемые | G7: По данным организации | H7: По данным экспертов | I7: Факт по данным экспертов
A8: 1 | B8: 2 | C8: 3 | D8: 4 | E8: 5 | F8: 6 | G8: 7 | H8: 8 | I8: 9
A9: 1. | B9: Плата за выбросы загрязняющих веществ в атмосферный воздух стационарными объектами, исчисленная без учета корректировки, в том числе: | C9: x | D9: =SUM(D10:D12) -> 0 | E9: x | F9: x | G9: =SUM(G10:G12) -> 0 | H9: =SUM(H10:H12) -> 0 | I9: =SUM(I10:I12) -> 0
A10: 1.1. | B10: плата за выбросы в пределах предельно-допустимых выбросов (ПДВ) | C10: x | E10: x | F10: x
A11: 1.2. | B11: плата за выбросы в пределах лимитов на выбросы загрязняющих веществ (временно согласованные выбросы ВСВ) | C11: x | E11: x | F11: x
A12: 1.3. | B12: плата за выбросы, превышающие установленные разрешениями на выброс загрязняющих веществ в атмосферный воздух | C12: x | E12: x | F12: x
A13: 2. | B13: Плата за сбросы загрязняющих веществ в водные объекты | C13: x | D13: =SUM(D14:D16) -> 0 | E13: x | F13: x | G13: =SUM(G14:G16) -> 0 | H13: =SUM(H14:H16) -> 0 | I13: =SUM(I14:I16) -> 0
A14: 2.1. | B14: плата за сбросы в пределах нормативов допустимых сбросов (НДС) | C14: x | E14: x | F14: x
A15: 2.2. | B15: плата за сбросы в пределах лимитов на сбросы загрязняющих веществ (временно согласованный сбор ВСС) | C15: x | E15: x | F15: x
A16: 2.3. | B16: плата за сбросы, превышающие установленные разрешениями на сброс загрязняющих веществ (сверх лимита на сбросы) | C16: x | E16: x | F16: x
A17: 3. | B17: Плата за размещение отходов производства и потребления, исчисленная без учета корректировки, в том числе: | C17: x | D17: =SUM(D18:D19) -> 0.15083 | E17: x | F17: x | G17: =SUM(G18:G19) -> 0 | H17: =SUM(H18:H19) -> 0 | I17: =SUM(I18:I19) -> 0
A18: 3.1. | B18: плата за размещение отходов в пределах установленного лимита на их размещение | C18: x | D18: 0.15083 | E18: x | F18: x
A19: 3.2. | B19: плата за размещение отходов сверх установленного лимита на их размещение | C19: x | E19: x | F19: x
A20: 4. | B20: Сумма средств на выполнение мероприятий по снижению негативного воздействия на окружающую среду, всего (п.4.1.+п.4.2.+п.4.3.), в том числе | C20: x | D20: =D21+D23+D25 -> 0 | E20: x | F20: x | G20: =G21+G23+G25 -> 0 | H20: =H21+H23+H25 -> 0 | I20: =I21+I23+I25 -> 0
A21: 4.1. | B21: платы за выбросы | C21: x | E21: x | F21: x
A22: 4.1.1. | B22: средства, уменьшающие плату за выбросы в части предельно допустимых выбросов | C22: x | D22: =IF(D9=0,0,D21*((D10+D11)/D9)) -> 0 | E22: x | F22: x | G22: =IF(G9=0,0,G21*((G10+G11)/G9)) -> 0 | H22: =IF(H9=0,0,H21*((H10+H11)/H9)) -> 0 | I22: =IF(I9=0,0,I21*((I10+I11)/I9)) -> 0
A23: 4.2. | B23: платы за сбросы | C23: x | E23: x | F23: x
A24: 4.2.1. | B24: средства, уменьшающие плату за сбросы в части нормативов сбросов | C24: x | D24: =IF(D13=0,0,D23*((D14+D15)/D13)) -> 0 | E24: x | F24: x | G24: =IF(G13=0,0,G23*((G14+G15)/G13)) -> 0 | H24: =IF(H13=0,0,H23*((H14+H15)/H13)) -> 0 | I24: =IF(I13=0,0,I23*((I14+I15)/I13)) -> 0
A25: 4.3. | B25: платы за размещение отходов | C25: x | E25: x | F25: x
A26: 4.3.1. | B26: средства, уменьшающие плату за размещение отходов в части лимита | C26: x | D26: =IF(D17=0,0,D25*(D18/D17)) -> 0 | E26: x | F26: x | G26: =IF(G17=0,0,G25*(G18/G17)) -> 0 | H26: =IF(H17=0,0,H25*(H18/H17)) -> 0 | I26: =IF(I17=0,0,I25*(I18/I17)) -> 0
A27: 5. | B27: Сумма платы, подлежащей внесению в бюджет, всего (п.1+п.2+п.3-п.4), в том числе | C27: x | D27: =D9+D13+D17-D20 -> 0.15083 | E27: x | F27: x | G27: =G9+G13+G17-G20 -> 0 | H27: =H9+H13+H17-H20 -> 0 | I27: =I9+I13+I17-I20 -> 0
A28: Плата за негативное воздействие на окружающую среду в пределах лимитов всего, в т.ч. | D28: =D10+D11-D22+D14+D15-D24+D18-D26 -> 0.15083 | G28: =G10+G11-G22+G14+G15-G24+G18-G26 -> 0 | H28: =H10+H11-H22+H14+H15-H24+H18-H26 -> 0 | I28: =I10+I11-I22+I14+I15-I24+I18-I26 -> 0
A29: Плата за негативное воздействие на окружающую среду, относимая на услугу по передаче электрической энергии | C29: 0 | D29: 0.15083 | E29: 0 | F29: 0.15083 | G29: 0.15083 | J29: Условное форматирование: если в ячейке не указано значение -форматируется красным цветом
B31: Руководитель организации | E31: ='Инф-я'!$C$21 -> Окунев Василий Михайлович
B35: Плата вносится раздельно по четырем компонентам окружающей среды: плата за выбросы, плата за выбросы ПНГ, плата за сбросы в водные объекты и плата за размещение отходов. Каждая по своему КБК (коду бюджетной классификации)
B36: 1. Плата за выбросы загрязняющих веществ в атмосферный воздух стационарными объектами, исчисленная без учета корректировки, в том числе:
B37: 1.1. плата за выбросы в пределах предельно-допустимых выбросов (ПДВ)
B38: 1.2. плата за выбросы в пределах лимитов на выбросы загрязняющих веществ (временно согласованные выбросы ВСВ)
B39: 1.3. плата за выбросы, превышающие установленные разрешениями на выброс загрязняющих веществ в атмосферный воздух
B40: 2. Плата за выбросы загрязняющих веществ при сжигании и (или) рассеивании попутного нефтяного газа
B41: 2.1. плата за выбросы ПНГ в пределах ПДВ
B42: 2.2. плата за выбросы ПНГ в пределах лимитов на выбросы загрязняющих веществ (ВСВ)
B43: 2.3. плата за выбросы ПНГ сверх лимита на выбросы
B44: 3. Плата за сбросы загрязняющих веществ в водные объекты
B45: 3.1. плата за сбросы в пределах НДС
B46: 3.2. плата за сбросы в пределах лимитов на сбросы загрязняющих веществ (ВСС)
B47: 3.3. плата за сбросы, превышающие установленные разрешениями на сброс загрязняющих веществ (сверх лимита на сбросы)
B48: 4. Плата за размещение отходов производства и потребления, исчисленная без учета корректировки, в том числе:
B49: 4.1. плата за размещение отходов в пределах установленного лимита на их размещение
B50: 4.2. плата за размещение отходов сверх установленного лимита на их размещение
B51: 5. Сумма средств на выполнение мероприятий по снижению негативного воздействия на окружающую среду, всего
B52: 5.1. платы за выбросы
B53: 5.2. платы за выбросы ПНГ
B54: 5.3. платы за сбросы
B55: 5.4. платы за размещение отходов
B56: Сумма платы, подлежащей внесению в бюджет, всего (п.1+п.2+п.3+п.4-п.5)
B58: НК, Статья 270. Расходы, не учитываемые в целях налогообложения
B59: 4) в виде суммы налога, а также суммы платежей за выбросы загрязняющих веществ в атмосферный воздух, сбросы загрязняющих веществ в составе сточных вод в водные объекты,
B60: осуществляемые с превышением нормативов допустимых сбросов, за размещение отходов производства и потребления с превышением установленных лимитов на их размещение;

Sheet Налог на имущество
A2: Налог на имущество
A4: ='Инф-я'!C14 -> ООО "Энергетик"
G5: тыс. руб.
A6: Наименование | B6: 2021 год | D6: 2022 год | F6: 2023 год | H6: 2021 год
B7: Утверждено | C7: Факт | D7: Утверждено | E7: Ожидаемые | F7: По данным организации | G7: По данным экспертов | H7: Факт по данным экспертов
A8: 1 | B8: 2 | C8: 3 | D8: 4 | E8: 5 | F8: 6 | G8: 7 | H8: 8
A9: Среднегодовая остаточная стоимость основных средств, всего, в том числе: | B9: х | C9: =C10+C11 -> 0 | D9: х | E9: =E10+E11 -> 0 | F9: =F10+F11 -> 111878.3201 | G9: =G10+G11 -> 0 | H9: =H10+H11 -> 0
A10: -облагаемых по ставке 2,2 % | B10: х | D10: х | F10: ='Расчет аморт. max срок'!V128/1000+'Ввод выбытие ОС '!K13-'Ввод выбытие ОС '!K27 -> 9267.754592
A11: - необлагаемых (движимое имущество) | B11: х | F11: ='Расчет аморт. max срок'!W128/1000 -> 102610.5656
A12: Налог на имущество всего, в т.ч. | C12: =C10*2.2% -> 0 | E12: =E10*2.2% -> 0 | F12: =F10*2.2% -> 203.890601 | G12: =G10*2.2% -> 0 | H12: =H10*2.2% -> 0
A13: Налог на имущество, относимый на услугу по передаче электрической энергии | B13: 0 | C13: 0 | D13: 0 | E13: 0 | F13: 0 | K13: Условное форматирование: если в ячейке не указано значение -форматируется красным цветом
A15: Руководитель организации | D15: ='Инф-я'!$C$21 -> Окунев Василий Михайлович

Sheet Услуги ФСК
A2: Оплата услуг ПАО "ФСК ЕЭС"
A3: ='Инф-я'!C14 -> ООО "Энергетик"
L4: тыс. руб.
A5: Показатели | B5: 2021 год | F5: 2022 год | J5: 2023 год | P5: 2021 год
B6: Утверждено | C6: Факт | F6: Утверждено | G6: Ожидаемые | J6: По данным организации | M6: По данным экспертов | P6: Факт по данным экспертов
B7: год | C7: 1 полугодие | D7: 2 полугодие | E7: год | F7: год | G7: 1 полугодие | H7: 2 полугодие | I7: год | J7: 1 полугодие | K7: 2 полугодие | L7: год | M7: 1 полугодие | N7: 2 полугодие | O7: год
A8: 1 | B8: 2 | C8: 3 | D8: 4 | E8: 5 | F8: 6 | G8: 7 | H8: 8 | I8: 9 | J8: 10 | K8: 11 | L8: 12 | M8: 13 | N8: 14 | O8: 15 | P8: 16
A9: Расходы на содержание сетей, тыс. руб. | B9: х | C9: =O26 -> 0 | D9: =P26 -> 0 | E9: =D9+C9 -> 0 | F9: х | G9: =G10*G11*6/1000 -> 0 | H9: =H10*H11*6/1000 -> 0 | I9: =H9+G9 -> 0 | J9: =J10*J11*6/1000 -> 0 | K9: =K10*K11*6/1000 -> 0 | L9: =K9+J9 -> 0 | M9: =M10*M11*6/1000 -> 0 | N9: =N10*N11*6/1000 -> 0 | O9: =M9+N9 -> 0 | P9: х
A10: Заявленная мощность в точках присоединения к сетям ПАО "ФСК ЕЭС", МВт | B10: х | C10: =B24 -> 0 | D10: =H24 -> 0 | E10: х | F10: х | I10: х | L10: х | O10: х | P10: х
A11: Ставка тарифа услуги по передаче электрической энергии на содержание объектов электросетевого хозяйства, входящих в ЕНЭС, руб. МВт/мес. | B11: х | C11: =B25 -> 0 | D11: =H25 -> 0 | E11: х | F11: х | I11: х | L11: х | O11: х | P11: х
A12: Расходы на компенсацию потерь, тыс. руб. | B12: х | C12: =C13*C16 ->  | D12: =D13*D16 ->  | E12: =D12+C12 ->  | F12: х | G12: =G13*G16 -> 0 | H12: =H13*H16 -> 0 | I12: =G12+H12 -> 0 | J12: =J13*J16 -> 0 | K12: =K13*K16 -> 0 | L12: =J12+K12 -> 0 | M12: =M13*M16 -> 0 | N12: =N13*N16 -> 0 | O12: =M12+N12 -> 0 | P12: х
A13: Объем технологических потерь электрической энергии при ее передаче по ЕНЭС, млн. кВт.ч | B13: х | C13: =C14*C15% -> 0 | D13: =D14*D15% -> 0 | E13: =E14*E15% -> 0 | F13: х | G13: =G14*G15% -> 0 | H13: 0 | I13: 0 | J13: 0 | K13: 0 | L13: 0 | M13: 0 | N13: 0 | O13: 0 | P13: х
A14: Объем отпуска электроэнергии из сети ПАО "ФСК ЕЭС" в сеть организации, млн. кВт.ч | B14: х | C14: =O28/1000 -> 0 | D14: =P28/1000 -> 0 | E14: =D14+C14 -> 0 | F14: х | I14: =H14+G14 -> 0 | L14: =K14+J14 -> 0 | O14: =N14+M14 -> 0 | P14: х
A15: Норматив технологических потерь электрической энергии при ее передаче по ЕНЭС, применяемый к отпуску электроэнергии из сети ПАО "ФСК ЕЭС", % | B15: х | C15: =B29 -> 3.89 | D15: =B29 -> 3.89 | E15: 3.89 | F15: х | G15: 3.45 | H15: 3.45 | I15: 3.45 | J15: 3.45 | K15: 3.45 | L15: 3.45 | M15: 3.45 | N15: 3.45 | O15: 3.89 | P15: х
A16: Ставка тарифа на оплату нормативных технологических потерь электрической энергии в ЕНЭС, руб./МВт.ч | B16: х | C16: =O31 ->  | D16: =P31 ->  | E16: х | F16: х | I16: х | L16: х | O16: х | P16: х
A17: ИТОГО оплата услуг ПАО "ФСК ЕЭС" | C17: =C9+C12 ->  | D17: =D9+D12 ->  | E17: =IFERROR(E9+E12,0) -> 0 | G17: =G9+G12 -> 0 | H17: 0 | I17: 0 | J17: 0 | K17: 0 | L17: 0 | M17: 0 | N17: 0 | O17: 0
A19: Руководитель организации | D19: ='Инф-я'!$C$21 -> Окунев Василий Михайлович
A21: Факт по данным организации за 2021 год
B23: янв | C23: фев | D23: мар | E23: апр | F23: май | G23: июн | H23: июль | I23: авг | J23: сент | K23: окт | L23: ноя | M23: дек | N23: Итого | O23: 1 полуг | P23: 2 полуг
A24: Заявленная мощность в точках присоединения к сетям ПАО "ФСК ЕЭС", МВт | N24: х | O24: х | P24: х
A25: Ставка тарифа услуги по передаче электрической энергии на содержание объектов электросетевого хозяйства, входящих в ЕНЭС, руб. МВт/мес. | C25: =B25 -> 0 | D25: =C25 -> 0 | E25: =D25 -> 0 | F25: =E25 -> 0 | G25: =F25 -> 0 | I25: =H25 -> 0 | J25: =I25 -> 0 | K25: =J25 -> 0 | L25: =K25 -> 0 | M25: =L25 -> 0 | N25: х | O25: х | P25: х
A26: Стоимость услуги по передаче электрической энергии на содержание объектов элкутросетевого хозяйства, тыс. руб. | B26: =B24*B25/1000 -> 0 | C26: =C24*C25/1000 -> 0 | D26: 0 | E26: 0 | F26: 0 | G26: 0 | H26: 0 | I26: 0 | J26: 0 | K26: 0 | L26: 0 | M26: =M24*M25/1000 -> 0 | N26: =SUM(B26:M26) -> 0 | O26: =SUM(B26:G26) -> 0 | P26: =SUM(H26:M26) -> 0
B27: янв | C27: фев | D27: мар | E27: апр | F27: май | G27: июн | H27: июль | I27: авг | J27: сент | K27: окт | L27: ноя | M27: дек | N27: Итого | O27: 1 полуг | P27: 2 полуг
A28: Отпуск электрической энергии из сетей ПАО "ФСК ЕЭС" напряжением 220 кВ и ниже, МВт.ч | N28: =SUM(B28:M28) -> 0 | O28: =SUM(B28:G28) -> 0 | P28: =SUM(H28:M28) -> 0
A29: Норматив технологических потерь электрической энергии при ее передаче по ЕНЭС, применяемый к отпуску электроэнергии из сети ПАО "ФСК ЕЭС" , % | B29: 3.89 | C29: =B29 -> 3.89 | D29: =C29 -> 3.89 | E29: 3.89 | F29: 3.89 | G29: 3.89 | H29: 3.89 | I29: 3.89 | J29: 3.89 | K29: 3.89 | L29: 3.89 | M29: =L29 -> 3.89 | N29: х | O29: х | P29: х
A30: Объем технологических потерь электрической энергии при ее передаче по ЕНЭС, МВт.ч | B30: =ROUND(B28*B29/100,3) -> 0 | C30: =ROUND(C28*C29/100,3) -> 0 | D30: 0 | E30: 0 | F30: 0 | G30: 0 | H30: 0 | I30: 0 | J30: 0 | K30: 0 | L30: 0 | M30: =ROUND(M28*M29/100,3) -> 0 | N30: =SUM(B30:M30) -> 0 | O30: =SUM(B30:G30) -> 0 | P30: =SUM(H30:M30) -> 0
A31: Ставка тарифа на оплату нормативных технологических потерь электрической энергии в ЕНЭС, руб./МВт.ч | N31: =N32/N30*1000 ->  | O31: =O32/O30*1000 ->  | P31: =P32/P30*1000 -> 
A32: Расходы на компенсацию потерь, тыс. руб. | B32: =B30*B31/1000 -> 0 | C32: =C30*C31/1000 -> 0 | D32: 0 | E32: 0 | F32: 0 | G32: 0 | H32: 0 | I32: 0 | J32: 0 | K32: 0 | L32: 0 | M32: =M30*M31/1000 -> 0 | N32: =SUM(B32:M32) -> 0 | O32: =SUM(B32:G32) -> 0 | P32: =SUM(H32:M32) -> 0
A33: Итого расходы на услуги ФСК, тыс. руб. | B33: =B26+B32 -> 0 | C33: =C26+C32 -> 0 | D33: 0 | E33: 0 | F33: 0 | G33: 0 | H33: 0 | I33: 0 | J33: 0 | K33: 0 | L33: 0 | M33: =M26+M32 -> 0 | N33: =N26+N32 -> 0 | O33: =O26+O32 -> 0 | P33: =P26+P32 -> 0

Sheet Налог на прибыль
B2: Налог организаций, применяющих УСНО от деятельности по передаче и технологического присоединения
B4: ='Инф-я'!C14 -> ООО "Энергетик"
G5: тыс. руб.
A6: № п/п | B6: Наименование | C6: 2021 год | E6: 2022 год | F6: 2023 год | H6: 2021 год
C7: Утверждено | D7: Факт | E7: Утверждено | F7: По данным организации | G7: По данным экспертов | H7: Факт по данным экспертов
A8: 1 | B8: 2 | C8: 3 | D8: 4 | E8: 5 | F8: 6 | G8: 7 | H8: 8
A9: 5.3. | B9: прочие услуги | C9: х | D9: 1170.664 | E9: х | F9: х | G9: х
A10: Итого налог на прибыль от услуги по передаче и от технологического присоединения (п.5.1.+п.5.2) | C10: 1138.132 | D10: =D9 -> 1170.664 | E10: 778.507 | F10: =D10 -> 1170.664 | G10: =H10 -> 0 | H10: =H9 -> 0
A12: Постановлением Правительства РФ от 11 июня 2014 года № 542 внесены изменения в п. 20 Основ ценообразования в области регулируемых цен (тарифов) в электроэнергетике, утвержденных постановлением Правительства РФ от 29 декабря 2011 г. № 1178 в части определения налога на прибыль: «В необходимую валовую выручку включается величина налога на прибыль организаций по регулируемому виду деятельности, сформированная по данным бухгалтерского учета за последний истекший период. При установлении тарифов на услуги по передаче электрической энергии учитывается величина налога на прибыль организаций, которая относится по данным раздельного учета к деятельности по оказанию услуг по передаче электрической энергии и осуществлению технологического присоединения к электрическим сетям».

Sheet Прочие НР
A2: Прочие обоснованные неподконтрольные расходы
A3: ='Инф-я'!C14 -> ООО "Энергетик"
A5: Наименование | B5: 2021 год | D5: 2022 год | F5: 2023 год | H5: 2021 год
B6: Утверждено | C6: Факт | D6: Утверждено | E6: Ожидаемые | F6: По данным организации | G6: По данным экспертов | H6: Факт по данным экспертов
A7: 1 | B7: 2 | C7: 3 | D7: 4 | E7: 5 | F7: 6 | G7: 7 | H7: 8
A8: Расходы на компенсацию потерь электрической энергии собственников или иных законных владельцев электросетевого хозяйства, возникших в объектах, через которые опосредованно присоединены потребители электрической энергии
A14: Добавить
A15: ИТОГО прочие обоснованные неподконтрольные расходы | B15: =SUM(B8:B13) -> 0 | C15: 0 | D15: 0 | E15: 0 | F15: 0 | G15: 0 | H15: 0
A17: Руководитель организации | D17: ='Инф-я'!$C$21 -> Окунев Василий Михайлович

Sheet КВЛ
A2: Расходы на капитальные вложения
A4: ='Инф-я'!C14 -> ООО "Энергетик"
A6: Наименование капитальных вложений | B6: 2021 год | D6: 2022 год | F6: 2023 год | H6: 2021 год
B7: Утверждено | C7: Факт | D7: Утверждено | E7: Ожидаемые | F7: По данным организации | G7: По данным экспертов | H7: Факт
A8: 1 | B8: 2 | C8: 3 | D8: 4 | E8: 5 | F8: 6 | G8: 7 | H8: 8
A9: Строительство ТП 64 10/0,4-250кВаА | B9: 6633.686297 | C9: 6633.69041
A10: Строительство ВЛ 10 кВ (одноцепная) от ТП 76 до ТП 19 фидер 1005 | B10: 1279.460445 | C10: 1279.46
A11: Строительство ВЛ 10 кВ (двухцепная) от ТП 72 до железнодорожного перехода фидер 1003,1005 | B11: 408.2569786 | C11: 0
A12: Реконструкция здания производственной базы (2 этап) | B12: 2647.636494 | C12: 2647.64
A13: Строительство двуцепной ВЛ-10 кВ от ТП№63 до ТП№64 ф.1003, 1005 | B13: 0 | C13: 1958.2593
A14: Строительство ВЛ-0,4 кВ от ТП40 для подключения потребителей ул.1-я и 2-я Воронцова | D14: 1924.66 | E14: 0
A15: Реконструкция ВЛ-10 кВ от ТП34 до ТП58, ф.1022 (проект кор.ИП) | D15: 0 | E15: 956.872 | I15: вносим изменения в ИП
A16: Реконструкция ВЛ-10 кВ от ТП41 до ТП34, ф.1022 (проект кор.ИП) | D16: 0 | E16: 967.788 | I16: вносим изменения в ИП
A17: Строительство трансформаторной подстанции №76 | D17: 7613.86 | E17: 7613.86
A18: Реконструкция здания производственной базы, 3 этап | D18: 1154.56 | E18: 1154.56
A19: Строительство многофункционального пункта (диспетчерской) , 1,2,3 этап | B19: 0 | C19: 1168.79373 | F19: 6215.99
A20: Строительство ВЛ 10 кВ (двухцепная) от ТП19 до ТП64 | F20: 597.78
A21: Реконструкция здания производственной базы, 4 этап | F21: 4717.9
A22: Добавить
A23: ИТОГО капитальных вложений | B23: =SUM(B9:B21) -> 10969.04021 | C23: 13687.84344 | D23: 10693.08 | E23: 10693.08 | F23: 11531.67 | G23: 0 | H23: 0
A24: - амортизация | B24: ='[24] КВЛ'!$E$23 -> 7399.229315 | C24: ='Свод по амортизации'!C13 -> 7322.29605 | D24: ='[24] КВЛ'!$H$23 -> 7437.68867 | E24: ='Свод по амортизации'!E13 -> 7779.6431 | F24: ='Свод по амортизации'!F13 -> 8159.979591 | G24: ='Свод по амортизации'!G13 -> 0
A25: - прочие средства
A26: - прибыль | B26: =IF((B23-B24-B25)<=0,0,(B23-B24-B25)) -> 3569.810899 | C26: =IF((C23-C24-C25)<=0,0,(C23-C24-C25)) -> 6365.54739 | D26: 3255.39133 | E26: 2913.4369 | F26: =IF((F23-F24-F25)<=0,0,(F23-F24-F25)) -> 3371.690409 | G26: 0
A28: Руководитель организации | D28: ='Инф-я'!$C$21 -> Окунев Василий Михайлович
D32: согл.выписке из протокола ДЦТ кап.вложения 3 493,4 т.р.

Sheet Выпадающий доход
A2: Расходы, связанные с компенсацией выпадающих доходов по льготному технологическому присоединению
A4: ='Инф-я'!C14 -> ООО "Энергетик"
D5: тыс. руб.
A6: Наименование | B6: 2021 год | C6: 2022 год | D6: 2023 год
B7: Утверждено | C7: Утверждено | D7: По данным организации | E7: По данным экспертов
A8: 1 | B8: 2 | C8: 3 | D8: 4 | E8: 5
A9: выпадающие доходы сетевой организации от присоединения энергопринимающих устройств максимальной мощностью, не превышающей 15 кВт включительно, исходя из стоимости мероприятий по технологическому присоединению в размере не более 550 рублей; | B9: =SUM(B10:B14) -> 1070.72 | C9: =SUM(C10:C14) -> 1793.01 | D9: =SUM(D10:D14) -> 1170.200082 | E9: =SUM(E10:E14) -> 0
A10: за 2019 год | B10: ='Расчет выпадающих до 15 кВт'!C52 -> 795.56 | C10: х | D10: х | E10: х
A11: за 2020 год | B11: х | C11: ='[24]Выпадающий доход'!$E$12 -> 994.2 | D11: х | E11: х
A12: за 2021 год | B12: ='Расчет выпадающих до 15 кВт'!C53 -> 275.16 | C12: х | D12: ='Расчет выпадающих до 15 кВт'!C55 -> 385.657092
A13: за 2022 год | B13: х | C13: ='[24]Выпадающий доход'!$E$14 -> 798.81 | D13: х | E13: х
A14: за 2023 год | B14: х | C14: х | D14: ='Расчет выпадающих до 15 кВт'!C56 -> 784.54299
A15: выпадающие доходы сетевой организации от присоединения энергопринимающих устройств максимальной мощностью не более, чем 150 кВт на покрытие расходов на строительство объектов электросетевого хозяйства | B15: =SUM(B16:B20) -> 0 | C15: =SUM(C16:C20) -> 0 | D15: =SUM(D16:D20) -> 0 | E15: =SUM(E16:E20) -> 0
A16: за 2019 год | B16: ='Расчет выпадающих до 150 кВт'!C57 -> 0 | C16: х | D16: х | E16: х
A17: за 2020 год | B17: х | D17: х | E17: х
A18: за 2021 год | B18: ='Расчет выпадающих до 150 кВт'!C58 -> 0 | C18: х | D18: ='Расчет выпадающих до 150 кВт'!C60 -> 0
A19: за 2022 год | B19: х | D19: х | E19: х
A20: за 2023 год | B20: х | C20: х | D20: ='Расчет выпадающих до 150 кВт'!C61 -> 0
A21: выпадающие доходы сетевой организации от выплаты процентов по кредитным договорам, связанным с рассрочкой по оплате субъектами малого и среднего предпринимательства технологического присоединения энергопринимающих устройств максимальной мощностью свыше 15 кВт и до 150 кВт включительно | D21: ='СВОД по % по рассрочке'!J18 -> 0
A22: Итого расходы, связанные с компенсацией выпадающих доходов по льготному технологическому присоединению | B22: =B9+B21+B15 -> 1070.72 | C22: =C9+C21+C15 -> 1793.01 | D22: =D9+D21+D15 -> 1170.200082 | E22: =E9+E21+E15 -> 0
A26: Руководитель организации | C26: ='Инф-я'!$C$21 -> Окунев Василий Михайлович

Sheet Расчет выпадающих до 15 кВт
G1: Приложение 1
G2: к Методическим указаниям,
G3: утвержденным приказом ФСТ от 11.09.2014 г. №215-э/1
A5: Расчет размера расходов, связанных с осуществлением технологического присоединения энергопринимающих устройств максимальной мощностью, не превышающей 15 кВт включительно, не включаемых в состав платы за технологическое присоединение за 2021 год и плановый период 2023 года
A7: ='Инф-я'!$C$14 -> ООО "Энергетик"
A9: № п./п. | B9: Показатели | C9: Фактические данные за 2021 год | F9: Расчетные (фактические) данные за 2021 год | I9: Плановые показатели на 2023 год
C11: фактически сложившаяся ставка платы (руб./кВт, руб./км) | D11: мощность, длина линий, количество (кВт, км, шт.) | E11: Сумма, тыс. руб. | F11: стандартизированная ставка платы (руб./кВт, руб./км, руб./шт.) | G11: мощность, длина линий, количество (кВт, км, шт.) | H11: Сумма, тыс. руб. | I11: стандартизированная ставка платы (руб./кВт, руб./км, руб./шт.) | J11: мощность, длина линий, количество (кВт, км, шт.) | K11: Сумма, тыс. руб.
A12: 1 | B12: 2 | C12: 3 | D12: 4 | E12: 5 | F12: 6 | G12: 7 | H12: 8 | I12: 9 | J12: 10 | K12: 11
A13: 1. | B13: Расходы на выполнение организационно-технических мероприятий, связанные с осуществлением технологического присоединения [п. 1.1 + п. 1.2]: | C13: =SUM(C14:C15) -> 25314.20125 | D13: =F46 -> 24 | E13: =SUM(E14:E15) -> 607.54083 | F13: =SUM(F14:F15) -> 7738.59 | G13: =D13 -> 24 | H13: =SUM(H14:H15) -> 185.72616 | I13: =I14+I15 -> 24232.36 | J13: =F47 -> 33 | K13: =I13*J13/1000 -> 799.66788
A14: 1.1. | B14: подготовка и выдача сетевой организацией технических условий (ТУ) Заявителю | C14: =IF(D14=0,0,E14/D14*1000) -> 4877.63 | D14: =D13 -> 24 | E14: 117.06312 | F14: 7738.59 | G14: =G13 -> 24 | H14: =F14*G14/1000 -> 185.72616 | I14: 5338.28 | J14: х | K14: х
A15: 1.2. | B15: проверка сетевой организацией выполнения Заявителем ТУ | C15: =IF(D15=0,0,E15/D15*1000) -> 20436.57125 | D15: =D13 -> 24 | E15: 490.47771 | F15: 0 | G15: =G13 -> 24 | H15: =F15*G15/1000 -> 0 | I15: 18894.08 | J15: х | K15: х
A16: 2. | B16: Расходы по мероприятиям "последней мили", связанные с осуществлением технологического присоединения | C16: х | D16: х | E16: =SUM(E17:E34) -> 0 | F16: =C16 -> х | G16: =D16 -> х | H16: =SUM(H17:H34) -> 0 | I16: =F16 -> х | J16: =G16 -> х | K16: =SUM(K17:K34) -> 0
A17: 2.1. | B17: строительство воздушных линий, на уровне напряжения i и (или) диапазоне мощности j | C17: =IF(D17=0,0,E17/D17*1000) -> 0 | G17: =D17 -> 0 | H17: =F17*G17/1000 -> 0 | K17: =I17*J17/1000 -> 0
B18: строительство воздушных линий, на уровне напряжения i и (или) диапазоне мощности j | C18: =IF(D18=0,0,E18/D18*1000) -> 0 | G18: =D18 -> 0 | H18: =F18*G18/1000 -> 0 | K18: =I18*J18/1000 -> 0
B19: строительство воздушных линий, на уровне напряжения i и (или) диапазоне мощности j | C19: =IF(D19=0,0,E19/D19*1000) -> 0 | G19: =D19 -> 0 | H19: =F19*G19/1000 -> 0 | K19: =I19*J19/1000 -> 0
A20: Добавить
A21: 2.2. | B21: строительство кабельных линий, на уровне напряжения i и (или) диапазоне мощности j | C21: =IF(D21=0,0,E21/D21*1000) -> 0 | G21: =D21 -> 0 | H21: =F21*G21/1000 -> 0 | K21: =I21*J21/1000 -> 0
B22: строительство кабельных линий, на уровне напряжения i и (или) диапазоне мощности j | C22: =IF(D22=0,0,E22/D22*1000) -> 0 | G22: =D22 -> 0 | H22: =F22*G22/1000 -> 0 | K22: =I22*J22/1000 -> 0
A23: Добавить
A24: 2.3. | B24: строительством пунктов секционирования, на уровне напряжения i и (или) диапазоне мощности j | C24: =IF(D24=0,0,E24/D24*1000) -> 0 | G24: =D24 -> 0 | H24: =F24*G24/1000 -> 0 | K24: =I24*J24/1000 -> 0
A25: Добавить
A26: 2.4. | B26: строительство комплектных трансформаторных подстанций (КТП) с уровнем напряжения до 35 кВ, на уровне напряжения i и (или) диапазоне мощности j | C26: =IF(D26=0,0,E26/D26*1000) -> 0 | G26: =D26 -> 0 | H26: =F26*G26/1000 -> 0 | K26: =I26*J26/1000 -> 0
A27: 2.4. | B27: строительство комплектных трансформаторных подстанций (КТП) с уровнем напряжения до 35 кВ, на уровне напряжения i и (или) диапазоне мощности j | C27: =IF(D27=0,0,E27/D27*1000) -> 0 | G27: =D27 -> 0 | H27: =F27*G27/1000 -> 0 | K27: =I27*J27/1000 -> 0
A28: Добавить
A29: 2.5. | B29: строительство распределительных трансформаторных подстанций (РТП) с уровнем напряжения до 35 кВ, на уровне напряжения i и (или) диапазоне мощности j | C29: =IF(D29=0,0,E29/D29*1000) -> 0 | G29: =D29 -> 0 | H29: =F29*G29/1000 -> 0 | K29: =I29*J29/1000 -> 0
A30: 2.5. | B30: строительство распределительных трансформаторных подстанций (РТП) с уровнем напряжения до 35 кВ, на уровне напряжения i и (или) диапазоне мощности j | C30: =IF(D30=0,0,E30/D30*1000) -> 0 | G30: =D30 -> 0 | H30: =F30*G30/1000 -> 0 | K30: =I30*J30/1000 -> 0
A31: Добавить
A32: 2.6. | B32: строительство центров питания, подстанций уровнем напряжения 35 кВ и выше (ПС), на уровне напряжения i и (или) диапазоне мощности j | C32: =IF(D32=0,0,E32/D32*1000) -> 0 | G32: =D32 -> 0 | H32: =F32*G32/1000 -> 0 | K32: =I32*J32/1000 -> 0
A33: 2.7. | B33: Обеспечение средствами коммерческого учета электрической энергии (мощности) 8(1).j однофазный (j = 1), трехфазный (j = 2) 8(1).j.k прямого включения (k = 1), полукосвенного включения (k = 2), косвенного включения (k = 3) | C33: =IF(D33=0,0,E33/D33*1000) -> 0 | G33: =D33 -> 0 | H33: =F33*G33/1000 -> 0 | K33: =I33*J33/1000 -> 0
A34: Добавить
A35: 3. | B35: Суммарный размер платы за технологическое присоединение [п. 3.1 * п. 3.2 / 1000]: | C35: х | D35: х | E35: =E36*E37/1000 -> 10.99992 | F35: х | G35: х | H35: =H36*H37/1000 -> 10.99992 | I35: х | J35: х | K35: =K36*K37/1000 -> 15.12489
A36: 3.1. | B36: Размер платы за технологическое присоединение (руб. без НДС) | C36: х | D36: х | E36: 458.33 | F36: х | G36: х | H36: 458.33 | I36: х | J36: х | K36: 458.33
A37: 3.2. | B37: Плановое количество договоров на осуществление технологическое присоединение к электрическим сетям (плановое количество членов объединений (организаций), указанных в п. 9 Методических указаний по определению размера платы за технологическое присоединение к электрическим сетям, утвержденных приказом ФАС России от 29 августа 2017 года, N 1135/17) (шт.) | C37: х | D37: х | E37: =C46 -> 24 | F37: х | G37: х | H37: =C46 -> 24 | I37: х | J37: х | K37: =C47 -> 33
A38: 4. | B38: Размер расходов, связанных с осуществлением технологического присоединения к электрическим сетям, не включаемых в состав платы за технологическое присоединение (п. 1 + п. 2 - п. 3) | C38: х | D38: х | E38: =E13+E16-E35 -> 596.54091 | F38: х | G38: х | H38: =H13+H16-H35 -> 174.72624 | I38: х | J38: х | K38: =K13+K16-K35 -> 784.54299
B41: Фактические средние данные по выполненым договорам технологического присоединения за 3 предыдущих года
B43: Год | C43: Количество членов объединений (организаций) технологического присоединения, ед. (для расчета Доходов) | F43: Количество технологических присоединений (договоров), ед. (для расчета Расходов)
B44: Факт 2019 г. | C44: 33 | F44: 33
B45: Факт 2020 г. | C45: 42 | F45: 42
B46: Факт 2021 г. | C46: 24 | F46: 24
B47: План 2022 г. (расчет плановых значений исходя из данных за 3 предыдущих периода) | C47: =ROUND((C44+C45+C46)/3,0) -> 33 | F47: =ROUND((F44+F45+F46)/3,0) -> 33
B49: Сводный расчет выпадающих доходов от льготного ТП, подлежащих учету в 2023 году, тыс. руб.
B51: Выпадающие доходы, учтенные при тарифном регулировании на 2021 год всего в т.ч. | C51: =C52+C53 -> 1070.72
B52: фактические по итогам 2019 года | C52: 795.56
B53: планового периода 2021 года | C53: 275.16
B54: Выпадающие доходы по итогам 2021 года за минусом плановых показателей 2021 года, подлежащие учету в 2023 году, тыс. руб. | C54: =E38-C53 -> 321.38091 | G54: ИПЦ, %
B55: Выпадающие доходы по итогам 2021 года c учетом ИПЦ, подлежащие учету в 2023 году, тыс. руб. | C55: =C54*(1+H55)*(1+H56) -> 385.657092 | G55: 2022 г. к 2021 г.
B56: Плановые выпадающие доходы на 2023 год | C56: =K38 -> 784.54299 | G56: 2023 г. к 2022 г. | H56: ='Подконтрольные расходы'!E12 -> 0.2
B57: Итого выпадающие доходы от льготного ТП подлежащие учету в 2023 году, тыс. руб. | C57: =C56+C55 -> 1170.200082
B59: Руководитель организации | D59: ='Инф-я'!$C$21 -> Окунев Василий Михайлович
A68: Виды строительства по МУ
A70: 3 | B70: Строительство воздушных линий
A71: 3. j | B71: Материал опоры (деревянные (j = 1), металлические (j = 2), железобетонные (j = 3)
A72: 3. j.k | B72: Тип провода (изолированный провод (k = 1), неизолированный провод (k = 2)
A73: 3. j.k.l | B73: Материал провода (медный (l=1), стальной (l = 2), сталеалюминиевый (l = 3), алюминиевый (l = 4)
A74: 3. j.k.l.m | B74: Сечение провода (диапазон до 50 квадратных мм включительно (m = 1), от 50 до 100 квадратных мм включительно (m = 2), от 100 до 200 квадратных мм включительно (m = 3), от 200 до 500 квадратных мм включительно (m = 4), от 500 до 800 квадратных мм включительно (m = 5), свыше 800 квадратных мм (m = 6)
A75: 4 | B75: Строительство кабельных линий
A76: 4. j | B76: Способ прокладки кабельных линий (в траншеях (j = 1), в блоках (j = 2), в каналах (j = 3), в туннелях и коллекторах (j = 4), в галереях и эстакадах (j = 5), горизонтальное наклонное бурение (j = 6)
A77: 4. j.k | B77: Одножильные (k = 1) и многожильные (k = 2)
A78: 4. j.k.l | B78: Кабели с резиновой и пластмассовой изоляцией (l=1), бумажной изоляцией (l = 2)
A79: 4. j.k.l.m | B79: Сечение провода (диапазон до 50 квадратных мм включительно (m = 1), от 50 до 100 квадратных мм включительно (m = 2), от 100 до 200 квадратных мм включительно (m = 3), от 200 до 500 квадратных мм включительно (m = 4), от 500 до 800 квадратных мм включительно (m = 5), свыше 800 квадратных мм (m = 6)
A80: 5 | B80: Строительство пунктов секционирования
A81: 5. j | B81: Реклоузеры (j = 1 распределительные пункты (РП) (j = 2), переключательные пункты (ПП) (j = 3)
A82: 5. j.k | B82: Номинальный ток до 100 А включительно (k = 1), от 100 до 250 А включительно (k = 2), от 250 до 500 А включительно (k = 3), от 500 А до 1 000 А включительно (k = 4), свыше 1 000 А (k = 5)
A83: 6 | B83: Строительство трансформаторных подстанций (ТП), за исключением распределительных трансформаторных подстанций (РТП), с уровнем напряжения до 35 кВ
A84: 6. j | B84: Трансформаторные подстанции (ТП), за исключением распределительных трансформаторных подстанций (РТП)
A85: 6. j.k | B85: Однотрансформаторные (k=1), двухтрансформаторные и более (k = 2)
A86: 6. j.k.l | B86: Трансформаторная мощность до 25 кВА включительно (l = 1), от 25 до 100 кВА включительно (l = 2), от 100 до 250 кВА включительно (l = 3), от 250 до 500 кВА (l = 4), от 500 до 900 кВА включительно (l = 5), свыше 1000 кВА (l = 6)
A87: 7 | B87: Строительство распределительных трансформаторных подстанций (РТП) с уровнем напряжения до 35 кВ
A88: 7. j | B88: Распределительные трансформаторные подстанции (РТП)
A89: 7. j.k | B89: Однотрансформаторные (k=1), двухтрансформаторные и более (k = 2)
A90: 7. j.k.l | B90: Трансформаторная мощность до 25 кВА включительно (l=1), от 25 до 100 кВ А включительно (l = 2), от 100 до 250 кВА включительно (l = 3), от 250 до 500 кВА (l = 4), от 500 до 900 кВА включительно (l = 5), свыше 1000 кВА (l = 6)
A91: 8 | B91: Строительство центров питания, подстанций уровнем напряжения 35 кВ и выше (ПС)
A92: 8. j | B92: ПС 35 кВ (j = 1), ПС 110 кВ и выше (j = 2)

Sheet Расчет выпадающих до 150 кВт
G1: Приложение 1
G2: к Методическим указаниям,
G3: утвержденным приказом ФСТ от 11.09.2014 г. №215-э/1
A5: Расчет размера расходов, связанных с осуществлением технологического присоединения к электрическим сетям энергопринимающих устройств максимальной мощностью до 150 кВт включительно, не включаемых в состав платы за технологическое присоединение за 2021 год и плановый период 2023 года
A7: ='Инф-я'!$C$14 -> ООО "Энергетик"
A9: № п./п. | B9: Показатели | C9: Фактические данные за 2021 год | F9: Расчетные (фактические) данные за 2021 год | I9: Плановые показатели на 2023 год
C11: фактически сложившаяся ставка платы (руб./кВт, руб./км) | D11: мощность, длина линий, количество (кВт, км, шт.) | E11: Расходы на строительство объекта, тыс. руб. | F11: стандартизированная ставка платы (руб./кВт, руб./км, руб./шт.) | G11: мощность, длина линий, количество (кВт, км, шт.) | H11: Расходы на строительство объекта, тыс. руб. | I11: стандартизированная ставка платы (руб./кВт, руб./км, руб./шт.) | J11: мощность, длина линий, количество (кВт, км, шт.) | K11: Расходы на строительство объекта, тыс. руб.
A12: 1 | B12: 2 | C12: 3 | D12: 4 | E12: 5 | F12: 6 | G12: 7 | H12: 8 | I12: 9 | J12: 10 | K12: 11
A13: 1. | B13: Расходы по мероприятиям "последней мили", связанные с осуществлением технологического присоединения к электрическим сетям [п.1.1 + п.1.2 + п.1.3 + п.1.4+ п.1.5+ п.1.6]: | C13: х | D13: х | E13: =SUM(E14:E27) -> 0 | F13: =C13 -> х | G13: =D13 -> х | H13: =SUM(H14:H27) -> 0 | I13: =F13 -> х | J13: =G13 -> х | K13: =SUM(K14:K27) -> 0
A14: 1.1. | B14: строительство воздушных линий, на уровне напряжения i и (или) диапазоне мощности j | C14: =IF(D14=0,0,E14/D14*1000) -> 0 | G14: =D14 -> 0 | H14: =F14*G14/1000 -> 0 | K14: =I14*J14/1000 -> 0
B15: строительство воздушных линий, на уровне напряжения i и (или) диапазоне мощности j | C15: =IF(D15=0,0,E15/D15*1000) -> 0 | G15: =D15 -> 0 | H15: =F15*G15/1000 -> 0 | K15: =I15*J15/1000 -> 0
B16: строительство воздушных линий, на уровне напряжения i и (или) диапазоне мощности j | C16: =IF(D16=0,0,E16/D16*1000) -> 0 | G16: =D16 -> 0 | H16: =F16*G16/1000 -> 0 | K16: =I16*J16/1000 -> 0
A17: Добавить
A18: 1.2. | B18: строительство кабельных линий, на уровне напряжения i и (или) диапазоне мощности j | C18: =IF(D18=0,0,E18/D18*1000) -> 0 | G18: =D18 -> 0 | H18: =F18*G18/1000 -> 0 | K18: =I18*J18/1000 -> 0
A19: Добавить
A20: 1.3. | B20: строительством пунктов секционирования, на уровне напряжения i и (или) диапазоне мощности j | C20: =IF(D20=0,0,E20/D20*1000) -> 0 | G20: =D20 -> 0 | H20: =F20*G20/1000 -> 0 | K20: =I20*J20/1000 -> 0
A21: Добавить
A22: 1.4. | B22: строительство комплектных трансформаторных подстанций (КТП) с уровнем напряжения до 35 кВ, на уровне напряжения i и (или) диапазоне мощности j | C22: =IF(D22=0,0,E22/D22*1000) -> 0 | G22: =D22 -> 0 | H22: =F22*G22/1000 -> 0 | K22: =I22*J22/1000 -> 0
A23: Добавить
A24: 1.5. | B24: строительство распределительных трансформаторных подстанций (РТП) с уровнем напряжения до 35 кВ, на уровне напряжения i и (или) диапазоне мощности j | C24: =IF(D24=0,0,E24/D24*1000) -> 0 | G24: =D24 -> 0 | H24: =F24*G24/1000 -> 0 | K24: =I24*J24/1000 -> 0
A25: Добавить
A26: 1.6. | B26: строительство центров питания, подстанций уровнем напряжения 35 кВ и выше (ПС), на уровне напряжения i и (или) диапазоне мощности j | C26: =IF(D26=0,0,E26/D26*1000) -> 0 | G26: =D26 -> 0 | H26: =F26*G26/1000 -> 0 | K26: =I26*J26/1000 -> 0
A27: Добавить
A28: 2. | B28: Суммарный размер платы за технологическое присоединение в части мероприятий "последней мили" [n.2.1 + п.2.2 + п.2.3 + п.2.4 + п.2.5+ п.2.6]: | C28: х | D28: х | E28: =SUM(E29:E42) -> 0 | F28: =C28 -> х | G28: =D28 -> х | H28: =SUM(H29:H42) -> 0 | I28: =F28 -> х | J28: =G28 -> х | K28: =SUM(K29:K42) -> 0
A29: 2.1. | B29: строительство воздушных линий, на уровне напряжения i и (или) диапазоне мощности j | C29: =IF(D29=0,0,E29/D29*1000) -> 0 | G29: =D29 -> 0 | H29: =F29*G29/1000 -> 0 | K29: =I29*J29/1000 -> 0
B30: строительство воздушных линий, на уровне напряжения i и (или) диапазоне мощности j | C30: =IF(D30=0,0,E30/D30*1000) -> 0 | G30: =D30 -> 0 | H30: =F30*G30/1000 -> 0 | K30: =I30*J30/1000 -> 0
B31: строительство воздушных линий, на уровне напряжения i и (или) диапазоне мощности j | C31: =IF(D31=0,0,E31/D31*1000) -> 0 | G31: =D31 -> 0 | H31: =F31*G31/1000 -> 0 | K31: =I31*J31/1000 -> 0
A32: Добавить
A33: 2.2. | B33: строительство кабельных линий, на уровне напряжения i и (или) диапазоне мощности j | C33: =IF(D33=0,0,E33/D33*1000) -> 0 | G33: =D33 -> 0 | H33: =F33*G33/1000 -> 0 | K33: =I33*J33/1000 -> 0
A34: Добавить
A35: 2.3. | B35: строительством пунктов секционирования, на уровне напряжения i и (или) диапазоне мощности j | C35: =IF(D35=0,0,E35/D35*1000) -> 0 | G35: =D35 -> 0 | H35: =F35*G35/1000 -> 0 | K35: =I35*J35/1000 -> 0
A36: Добавить
A37: 2.4. | B37: строительство комплектных трансформаторных подстанций (КТП) с уровнем напряжения до 35 кВ, на уровне напряжения i и (или) диапазоне мощности j | C37: =IF(D37=0,0,E37/D37*1000) -> 0 | G37: =D37 -> 0 | H37: =F37*G37/1000 -> 0 | K37: =I37*J37/1000 -> 0
A38: Добавить
A39: 2.5. | B39: строительство распределительных трансформаторных подстанций (РТП) с уровнем напряжения до 35 кВ, на уровне напряжения i и (или) диапазоне мощности j | C39: =IF(D39=0,0,E39/D39*1000) -> 0 | G39: =D39 -> 0 | H39: =F39*G39/1000 -> 0 | K39: =I39*J39/1000 -> 0
A40: Добавить
A41: 2.6. | B41: строительство центров питания, подстанций уровнем напряжения 35 кВ и выше (ПС), на уровне напряжения i и (или) диапазоне мощности j | C41: =IF(D41=0,0,E41/D41*1000) -> 0 | G41: =D41 -> 0 | H41: =F41*G41/1000 -> 0 | K41: =I41*J41/1000 -> 0
A42: Добавить
A43: 3. | B43: Размер расходов по мероприятиям "последней мили", связанных с осуществлением технологического присоединения к электрическим сетям, не включаемых в плату за технологическое присоединение [п.1 - п.2] | C43: х | D43: х | E43: =E13-E28 -> 0 | F43: х | G43: х | H43: =H13-H28 -> 0 | I43: х | J43: х | K43: =K13-K28 -> 0
B46: Фактические средние данные по выполненым договорам технологического присоединения за 3 предыдущих года
B48: Год | C48: строительство ВЛ, км | D48: строительство КЛ, км | E48: строительство пунктов секционирования, шт | F48: строительство КТП с уровнем напряжения до 35 кВ, шт. | G48: строительство РТП с уровнем напряжения до 35 кВ, шт. | H48: строительство ПС, шт.
B49: Факт 2019 г.
B50: Факт 2020 г.
B51: Факт 2021 г.
B52: План 2022 г. (расчет плановых значений исходя из данных за 3 предыдущих периода) | C52: =(C49+C50+C51)/3 -> 0 | D52: 0 | E52: 0 | F52: 0 | G52: 0 | H52: 0
B54: Сводный расчет выпадающих доходов от льготного ТП, подлежащих учету в 2023 году, тыс. руб.
B56: Выпадающие доходы, учтенные при тарифном регулировании на 2021 год всего в т.ч. | C56: =C57+C58 -> 0
B57: фактические по итогам 2019 года
B58: планового периода 2021 года
B59: Выпадающие доходы по итогам 2021 года за минусом плановых показателей 2021 года, подлежащие учету в 2023 году, тыс. руб. | C59: =E43-C58 -> 0 | G59: ИПЦ, %
B60: Выпадающие доходы по итогам 2021 года c учетом ИПЦ, подлежащие учету в 2023 году, тыс. руб. | C60: =C59*(1+H60)*(1+H61) -> 0 | G60: 2022 г. к 2021 г.
B61: Плановые выпадающие доходы на 2023 год | C61: =K43 -> 0 | G61: 2023 г. к 2022 г.
B62: Итого выпадающие доходы от льготного ТП подлежащие учету в 2023 году, тыс. руб. | C62: =C61+C60 -> 0
B64: Руководитель организации | D64: ='Инф-я'!$C$21 -> Окунев Василий Михайлович
A73: Виды строительства по МУ
A75: 3 | B75: Строительство воздушных линий
A76: 3. j | B76: Материал опоры (деревянные (j = 1), металлические (j = 2), железобетонные (j = 3)
A77: 3. j.k | B77: Тип провода (изолированный провод (k = 1), неизолированный провод (k = 2)
A78: 3. j.k.l | B78: Материал провода (медный (l=1), стальной (l = 2), сталеалюминиевый (l = 3), алюминиевый (l = 4)
A79: 3. j.k.l.m | B79: Сечение провода (диапазон до 50 квадратных мм включительно (m = 1), от 50 до 100 квадратных мм включительно (m = 2), от 100 до 200 квадратных мм включительно (m = 3), от 200 до 500 квадратных мм включительно (m = 4), от 500 до 800 квадратных мм включительно (m = 5), свыше 800 квадратных мм (m = 6)
A80: 4 | B80: Строительство кабельных линий
A81: 4. j | B81: Способ прокладки кабельных линий (в траншеях (j = 1), в блоках (j = 2), в каналах (j = 3), в туннелях и коллекторах (j = 4), в галереях и эстакадах (j = 5), горизонтальное наклонное бурение (j = 6)
A82: 4. j.k | B82: Одножильные (k = 1) и многожильные (k = 2)
A83: 4. j.k.l | B83: Кабели с резиновой и пластмассовой изоляцией (l=1), бумажной изоляцией (l = 2)
A84: 4. j.k.l.m | B84: Сечение провода (диапазон до 50 квадратных мм включительно (m = 1), от 50 до 100 квадратных мм включительно (m = 2), от 100 до 200 квадратных мм включительно (m = 3), от 200 до 500 квадратных мм включительно (m = 4), от 500 до 800 квадратных мм включительно (m = 5), свыше 800 квадратных мм (m = 6)
A85: 5 | B85: Строительство пунктов секционирования
A86: 5. j | B86: Реклоузеры (j = 1 распределительные пункты (РП) (j = 2), переключательные пункты (ПП) (j = 3)
A87: 5. j.k | B87: Номинальный ток до 100 А включительно (k = 1), от 100 до 250 А включительно (k = 2), от 250 до 500 А включительно (k = 3), от 500 А до 1 000 А включительно (k = 4), свыше 1 000 А (k = 5)
A88: 6 | B88: Строительство трансформаторных подстанций (ТП), за исключением распределительных трансформаторных подстанций (РТП), с уровнем напряжения до 35 кВ
A89: 6. j | B89: Трансформаторные подстанции (ТП), за исключением распределительных трансформаторных подстанций (РТП)
A90: 6. j.k | B90: Однотрансформаторные (k=1), двухтрансформаторные и более (k = 2)
A91: 6. j.k.l | B91: Трансформаторная мощность до 25 кВА включительно (l = 1), от 25 до 100 кВА включительно (l = 2), от 100 до 250 кВА включительно (l = 3), от 250 до 500 кВА (l = 4), от 500 до 900 кВА включительно (l = 5), свыше 1000 кВА (l = 6)
A92: 7 | B92: Строительство распределительных трансформаторных подстанций (РТП) с уровнем напряжения до 35 кВ
A93: 7. j | B93: Распределительные трансформаторные подстанции (РТП)
A94: 7. j.k | B94: Однотрансформаторные (k=1), двухтрансформаторные и более (k = 2)
A95: 7. j.k.l | B95: Трансформаторная мощность до 25 кВА включительно (l=1), от 25 до 100 кВ А включительно (l = 2), от 100 до 250 кВА включительно (l = 3), от 250 до 500 кВА (l = 4), от 500 до 900 кВА включительно (l = 5), свыше 1000 кВА (l = 6)
A96: 8 | B96: Строительство центров питания, подстанций уровнем напряжения 35 кВ и выше (ПС)
A97: 8. j | B97: ПС 35 кВ (j = 1), ПС 110 кВ и выше (j = 2)

Sheet СВОД по % по рассрочке
B2: Выпадающие доходы сетевой организации от выплаты процентов по кредитным договорам, связанным с рассрочкой по оплате субъектами малого и среднего предпринимательства технологического присоединения энергопринимающих устройств максимальной мощностью свыше 15 кВт и до 150 кВт включительно в 2023 году
A4: ='Инф-я'!$C$14 -> ООО "Энергетик"
A6: N п/п | B6: Информация о договоре технологического присоединения (Контрагент (наименование), № договора ТП, Дата заключения договора) | F6: Ставка рефинансирования Центрального банка Российской Федерации | G6: Год закрытия | H6: Квартал закрытия | I6: Сумма договора,тыс. руб. с НДС | J6: Размер расходов, связанных с предоставлением беспроцентной рассрочки в 2023 году, тыс. руб.
A9: 1 | B9: 2 | F9: 3 | G9: 4 | H9: 5 | I9: 6 | J9: 7
A10: 1 | B10: =Заявитель1!A4 -> 0 | F10: =Заявитель1!B31 -> 0 | G10: =Заявитель1!B34 -> 0 | H10: =Заявитель1!B32 -> 0 | I10: =Заявитель1!B33 -> 0 | J10: =Заявитель1!G36 -> 0
A11: 2 | B11: =Заявитель2!A4 -> 0 | F11: =Заявитель2!B31 -> 0 | G11: =Заявитель2!B34 -> 0 | H11: =Заявитель2!B32 -> 0 | I11: =Заявитель2!B33 -> 0 | J11: =Заявитель2!G36 -> 0
A12: 3 | B12: =Заявитель3!A4 -> 0 | F12: =Заявитель3!B31 -> 0 | G12: =Заявитель3!B34 -> 0 | H12: =Заявитель3!B32 -> 0 | I12: =Заявитель3!B33 -> 0 | J12: =Заявитель3!G36 -> 0
A13: 4 | B13: =Заявитель4!A4 -> 0 | F13: =Заявитель4!B31 -> 0 | G13: =Заявитель4!B34 -> 0 | H13: =Заявитель4!B32 -> 0 | I13: =Заявитель4!B33 -> 0 | J13: =Заявитель4!G36 -> 0
A17: Добавить
A18: ИТОГО | I18: =SUM(I10:I17) -> 0 | J18: =SUM(J10:J17) -> 0
B20: Свод по кварталам | C20: Сумма по договорам
B21: 1 | C21: =SUMIF(H$6:H$22,B21,I$6:I$22) -> 0
B22: 2 | C22: =SUMIF(H$6:H$22,B22,I$6:I$22) -> 0
B23: 3 | C23: =SUMIF(H$6:H$22,B23,I$6:I$22) -> 0
B24: 4 | C24: =SUMIF(H$6:H$22,B24,I$6:I$22) -> 0
B25: ГОД | C25: =SUM(C21:C24) -> 0
C26: =C25-I18 -> 0
F28: Приложение 2 к Методическим указаниям, утвержденным приказом ФСТ от 11.09.2014 г. №215-э/1
A32: Таблица 1. Расчет суммарного размера платы за технологическое присоединение, подлежащего беспроцентной рассрочке
B34: ='Инф-я'!C14 -> ООО "Энергетик"
Q35: тыс. руб. с НДС
A36: N п/п | B36: Показатель | F36: Фактические данные за предыдущий период регулирования | K36: Ожидаемые данные за текущий период регулирования | P36: Плановые показатели на следующий период регулирования
F37: 1 кв. | G37: 2 кв. | H37: 3 кв. | I37: 4 кв. | J37: всего за год | K37: 1 кв. | L37: 2 кв. | M37: 3 кв. | N37: 4 кв. | O37: всего за год | P37: 1 кв. | Q37: 2 кв. | R37: 3 кв. | S37: 4 кв. | T37: всего за год
A38: 1 | B38: Суммарный размер платы за технологическое присоединение, тыс. руб., в т.ч.: | J38: =SUM(F38:I38) -> 0 | O38: =SUM(K38:N38) -> 0 | P38: =C21 -> 0 | Q38: =C22 -> 0 | R38: =C23 -> 0 | S38: =C24 -> 0 | T38: =SUM(P38:S38) -> 0
A39: 2 | B39: Суммарный размер платы за технологическое присоединение, подлежащий беспроцентной рассрочке | J39: =SUM(F39:I39) -> 0 | O39: =SUM(K39:N39) -> 0 | P39: =P38*0.95 -> 0 | Q39: =Q38*0.95 -> 0 | R39: =R38*0.95 -> 0 | S39: =S38*0.95 -> 0 | T39: =T38*0.95 -> 0
B41: Руководитель организации | D41: ='Инф-я'!C21 -> Окунев Василий Михайлович
A43: Примечание:
A44: 1) Суммарный размер платы за технологическое присоединение (п. 1) за каждый квартал следующего расчетного периода регулирования представляет собой прогнозную величину платы за технологическое присоединение для заявителей, обращающихся за беспроцентной рассрочкой, определенную на основе фактических данных о заявителях, обратившихся за рассрочкой за последний год, но не ниже документально подтвержденных данных о заявителях, обратившихся за рассрочкой на следующий период регулирования.
A45: 2) Суммарный размер платы за технологическое присоединение, подлежащий беспроцентной рассрочке (п. 2), за каждый квартал определяется как суммарный размер платы за технологическое присоединение (п. 1) за каждый квартал, умноженный на 0,95.

Sheet Заявитель1
C1: Приложение 2 к Методическим указаниям, утвержденным приказом ФСТ от 11.09.2014 г. №215-э/1
A3: Расчет размера расходов, связанных с предоставлением беспроцентной рассрочки (для конкретного заявителя)
B5: (Контрагент (наименование), № договора ТП, Дата заключения договора)
A7: N п/п | B7: Квартал, на который рассчитывается размер расходов, связанных с предоставлением беспроцентной рассрочки | C7: Расходы, связанные с предоставлением беспроцентной рассрочки, тыс. руб. (с учетом НДС) | H7: Номер квартала i
C8: в отношении суммарного размера платы за технологическое присоединение в 1 квартале | D8: в отношении суммарного размера платы за технологическое присоединение во 2 квартале | E8: в отношении суммарного размера платы за технологическое присоединение в 3 квартале | F8: в отношении суммарного размера платы за технологическое присоединение в 4 квартале | G8: всего в год
A9: 1 | B9: =CONCATENATE("1 год (",$B$34,"г.):") -> 1 год (г.): | C9: =SUM(C10:C13) -> 0 | D9: =SUM(D10:D13) -> 0 | E9: =SUM(E10:E13) -> 0 | F9: =SUM(F10:F13) -> 0 | G9: =SUM(C9:F9) -> 0
A10: 1.1. | B10: 1 квартал | C10: =IF($H10>=$B$32,Заявитель1!$B$33*0.95*((12+$B$32-$H10)/12)*($B$31/4),0) -> 0 | G10: 0 | H10: 1
A11: 1.2. | B11: 2 квартал | D11: =IF($H11>=$B$32,Заявитель1!$B$33*0.95*((12+$B$32-$H11)/12)*($B$31/4),0) -> 0 | G11: 0 | H11: 2
A12: 1.3. | B12: 3 квартал | E12: =IF($H12>=$B$32,Заявитель1!$B$33*0.95*((12+$B$32-$H12)/12)*($B$31/4),0) -> 0 | G12: 0 | H12: 3
A13: 1.4. | B13: 4 квартал | F13: =IF($H13>=$B$32,Заявитель1!$B$33*0.95*((12+$B$32-$H13)/12)*($B$31/4),0) -> 0 | G13: 0 | H13: 4
A14: 2 | B14: =CONCATENATE("1 год (",$B$34+1,"г.):") -> 1 год (1г.): | C14: =SUM(C15:C18) -> 0 | D14: =SUM(D15:D18) -> 0 | E14: =SUM(E15:E18) -> 0 | F14: =SUM(F15:F18) -> 0 | G14: 0
A15: 2.1. | B15: 5 квартал | C15: =Заявитель1!$B$33*0.95*((12+$B$32-$H15)/12)*($B$31/4) -> 0 | G15: 0 | H15: 5
A16: 2.2. | B16: 6 квартал | D16: =Заявитель1!$B$33*0.95*((12+$B$32-$H16)/12)*($B$31/4) -> 0 | G16: 0 | H16: 6
A17: 2.3. | B17: 7 квартал | E17: =Заявитель1!$B$33*0.95*((12+$B$32-$H17)/12)*($B$31/4) -> 0 | G17: 0 | H17: 7
A18: 2.4. | B18: 8 квартал | F18: =Заявитель1!$B$33*0.95*((12+$B$32-$H18)/12)*($B$31/4) -> 0 | G18: 0 | H18: 8
A19: 3 | B19: =CONCATENATE("1 год (",$B$34+2,"г.):") -> 1 год (2г.): | C19: =SUM(C20:C23) -> 0 | D19: =SUM(D20:D23) -> 0 | E19: =SUM(E20:E23) -> 0 | F19: =SUM(F20:F23) -> 0 | G19: 0
A20: 3.1. | B20: 9 квартал | C20: =Заявитель1!$B$33*0.95*((12+$B$32-$H20)/12)*($B$31/4) -> 0 | G20: 0 | H20: 9
A21: 3.2. | B21: 10 квартал | D21: =Заявитель1!$B$33*0.95*((12+$B$32-$H21)/12)*($B$31/4) -> 0 | G21: 0 | H21: 10
A22: 3.3. | B22: 11 квартал | E22: =Заявитель1!$B$33*0.95*((12+$B$32-$H22)/12)*($B$31/4) -> 0 | G22: 0 | H22: 11
A23: 3.4. | B23: 12 квартал | F23: =Заявитель1!$B$33*0.95*((12+$B$32-$H23)/12)*($B$31/4) -> 0 | G23: 0 | H23: 12
A24: 4 | B24: =CONCATENATE("1 год (",$B$34+3,"г.):") -> 1 год (3г.): | C24: =SUM(C25:C27) -> 0 | D24: =SUM(D25:D27) -> 0 | E24: =SUM(E25:E27) -> 0 | F24: =SUM(F25:F27) -> 0 | G24: 0
A25: 4.1. | B25: 13 квартал | C25: =Заявитель1!$B$33*0.95*((12+$B$32-$H25)/12)*($B$31/4) -> 0 | G25: 0 | H25: 13
A26: 4.2. | B26: 14 квартал | D26: =IF((Заявитель1!$B$33*0.95*((12+$B$32-$H26)/12)*($B$31/4))<0,0,Заявитель1!$B$33*0.95*((12+$B$32-$H26)/12)*($B$31/4)) -> 0 | G26: 0 | H26: 14
A27: 4.3. | B27: 15 квартал | E27: =IF((Заявитель1!$B$33*0.95*((12+$B$32-$H27)/12)*($B$31/4))<0,0,Заявитель1!$B$33*0.95*((12+$B$32-$H27)/12)*($B$31/4)) -> 0 | G27: 0 | H27: 15
A28: 5 | B28: Итого | C28: =C9+C14+C19+C24 -> 0 | D28: =D9+D14+D19+D24 -> 0 | E28: =E9+E14+E19+E24 -> 0 | F28: =F9+F14+F19+F24 -> 0 | G28: =G9+G14+G19+G24 -> 0
A32: k
A34: Год закрытия договора
A36: Размера расходов, связанных с предоставлением беспроцентной рассрочки в 2023 году | G36: =IF(B34<2019,0,IF(B34=2019,G24,IF(B34=2021,G19,IF(B34=2022,G14)))) -> 0 | H36: тыс. руб.
A38: Размер расходов, связанных с предоставлением беспроцентной рассрочки, в i-м квартале в течение трехлетнего периода предоставления беспроцентной рассрочки рассчитывается по формуле (1):
D40: , (1)
A42: где:
A43: - суммарный размер платы за технологическое присоединение, начисляемый заявителям, которым предоставляется рассрочка, в квартале k периода регулирования (тыс. руб.);
A44: k - номер квартала по порядку в периоде регулирования, в который начисляется размер платы за технологическое присоединение (равен от 1 до 4);
A45: i - номер квартала по порядку, начиная с момента начисления размера платы за технологическое присоединение с условием предоставления беспроцентной рассрочки в квартале k, с учетом квартала, в котором произведены начисления, в течение трехлетнего периода предоставления беспроцентной рассрочки (равен от k до 12 + k - 1);
A46: - ставка рефинансирования Центрального банка Российской Федерации на дату представления сетевой организацией заявки на установление размера платы за технологическое присоединение в регулирующий орган.
A47: В случае отклонения фактического значения процентной ставки по кредитам, связанным с рассрочкой по оплате технологического присоединения, от ставки рефинансирования Центрального банка Российской Федерации, при расчете фактического размера расходов, связанных с предоставлением беспроцентной рассрочки, применяется величина процентной ставки в соответствии с пунктом 87 Основ ценообразования.
A49: Примечание:
A50: 1) Периодом предоставления беспроцентной рассрочки считается 3 года.
A51: 2) Размер расходов, связанных с предоставлением беспроцентной рассрочки, в каждый квартал периода регулирования в течение трехлетнего периода предоставления беспроцентной рассрочки в отношении планируемого к получению (фактически полученного) от заявителей суммарного размера платы за технологическое присоединение, определяется в соответствии с формулой (1) Методических указаний по определению выпадающих доходов, связанных с осуществлением технологического присоединения к электрическим сетям.
A52: 3) При расчете планируемых значений показателей при заполнении таблиц 1 и 2 применяется планируемая к получению величина суммарного размера платы за технологическое присоединение, подлежащего беспроцентной рассрочке.
A53: 4) При расчете фактических значений показателей при заполнении таблиц 1 и 2 применяется суммарная плата за технологическое присоединение, начисленная с беспроцентной рассрочкой в соответствии с заключенными договорами об осуществлении технологического присоединения к электрическим сетям.

Sheet Заявитель2
C1: Приложение 2 к Методическим указаниям, утвержденным приказом ФСТ от 11.09.2014 г. №215-э/1
A3: Расчет размера расходов, связанных с предоставлением беспроцентной рассрочки (для конкретного заявителя)
B5: (Контрагент (наименование), № договора ТП, Дата заключения договора)
A7: N п/п | B7: Квартал, на который рассчитывается размер расходов, связанных с предоставлением беспроцентной рассрочки | C7: Расходы, связанные с предоставлением беспроцентной рассрочки, тыс. руб. (с учетом НДС) | H7: Номер квартала i
C8: в отношении суммарного размера платы за технологическое присоединение в 1 квартале | D8: в отношении суммарного размера платы за технологическое присоединение во 2 квартале | E8: в отношении суммарного размера платы за технологическое присоединение в 3 квартале | F8: в отношении суммарного размера платы за технологическое присоединение в 4 квартале | G8: всего в год
A9: 1 | B9: =CONCATENATE("1 год (",$B$34,"г.):") -> 1 год (г.): | C9: =SUM(C10:C13) -> 0 | D9: =SUM(D10:D13) -> 0 | E9: =SUM(E10:E13) -> 0 | F9: =SUM(F10:F13) -> 0 | G9: =SUM(C9:F9) -> 0
A10: 1.1. | B10: 1 квартал | C10: =IF($H10>=$B$32,Заявитель2!$B$33*0.95*((12+$B$32-$H10)/12)*($B$31/4),0) -> 0 | G10: 0 | H10: 1
A11: 1.2. | B11: 2 квартал | D11: =IF($H11>=$B$32,Заявитель2!$B$33*0.95*((12+$B$32-$H11)/12)*($B$31/4),0) -> 0 | G11: 0 | H11: 2
A12: 1.3. | B12: 3 квартал | E12: =IF($H12>=$B$32,Заявитель2!$B$33*0.95*((12+$B$32-$H12)/12)*($B$31/4),0) -> 0 | G12: 0 | H12: 3
A13: 1.4. | B13: 4 квартал | F13: =IF($H13>=$B$32,Заявитель2!$B$33*0.95*((12+$B$32-$H13)/12)*($B$31/4),0) -> 0 | G13: 0 | H13: 4
A14: 2 | B14: =CONCATENATE("1 год (",$B$34+1,"г.):") -> 1 год (1г.): | C14: =SUM(C15:C18) -> 0 | D14: =SUM(D15:D18) -> 0 | E14: =SUM(E15:E18) -> 0 | F14: =SUM(F15:F18) -> 0 | G14: 0
A15: 2.1. | B15: 5 квартал | C15: =Заявитель2!$B$33*0.95*((12+$B$32-$H15)/12)*($B$31/4) -> 0 | G15: 0 | H15: 5
A16: 2.2. | B16: 6 квартал | D16: =Заявитель2!$B$33*0.95*((12+$B$32-$H16)/12)*($B$31/4) -> 0 | G16: 0 | H16: 6
A17: 2.3. | B17: 7 квартал | E17: =Заявитель2!$B$33*0.95*((12+$B$32-$H17)/12)*($B$31/4) -> 0 | G17: 0 | H17: 7
A18: 2.4. | B18: 8 квартал | F18: =Заявитель2!$B$33*0.95*((12+$B$32-$H18)/12)*($B$31/4) -> 0 | G18: 0 | H18: 8
A19: 3 | B19: =CONCATENATE("1 год (",$B$34+2,"г.):") -> 1 год (2г.): | C19: =SUM(C20:C23) -> 0 | D19: =SUM(D20:D23) -> 0 | E19: =SUM(E20:E23) -> 0 | F19: =SUM(F20:F23) -> 0 | G19: 0
A20: 3.1. | B20: 9 квартал | C20: =Заявитель2!$B$33*0.95*((12+$B$32-$H20)/12)*($B$31/4) -> 0 | G20: 0 | H20: 9
A21: 3.2. | B21: 10 квартал | D21: =Заявитель2!$B$33*0.95*((12+$B$32-$H21)/12)*($B$31/4) -> 0 | G21: 0 | H21: 10
A22: 3.3. | B22: 11 квартал | E22: =Заявитель2!$B$33*0.95*((12+$B$32-$H22)/12)*($B$31/4) -> 0 | G22: 0 | H22: 11
A23: 3.4. | B23: 12 квартал | F23: =Заявитель2!$B$33*0.95*((12+$B$32-$H23)/12)*($B$31/4) -> 0 | G23: 0 | H23: 12
A24: 4 | B24: =CONCATENATE("1 год (",$B$34+3,"г.):") -> 1 год (3г.): | C24: =SUM(C25:C27) -> 0 | D24: =SUM(D25:D27) -> 0 | E24: =SUM(E25:E27) -> 0 | F24: =SUM(F25:F27) -> 0 | G24: 0
A25: 4.1. | B25: 13 квартал | C25: =Заявитель2!$B$33*0.95*((12+$B$32-$H25)/12)*($B$31/4) -> 0 | G25: 0 | H25: 13
A26: 4.2. | B26: 14 квартал | D26: =IF((Заявитель2!$B$33*0.95*((12+$B$32-$H26)/12)*($B$31/4))<0,0,Заявитель2!$B$33*0.95*((12+$B$32-$H26)/12)*($B$31/4)) -> 0 | G26: 0 | H26: 14
A27: 4.3. | B27: 15 квартал | E27: =IF((Заявитель2!$B$33*0.95*((12+$B$32-$H27)/12)*($B$31/4))<0,0,Заявитель2!$B$33*0.95*((12+$B$32-$H27)/12)*($B$31/4)) -> 0 | G27: 0 | H27: 15
A28: 5 | B28: Итого | C28: =C9+C14+C19+C24 -> 0 | D28: =D9+D14+D19+D24 -> 0 | E28: =E9+E14+E19+E24 -> 0 | F28: =F9+F14+F19+F24 -> 0 | G28: =G9+G14+G19+G24 -> 0
A32: k
A34: Год закрытия договора
A36: Размера расходов, связанных с предоставлением беспроцентной рассрочки в 2023 году | G36: =IF(B34<2019,0,IF(B34=2019,G24,IF(B34=2021,G19,IF(B34=2022,G14)))) -> 0 | H36: тыс. руб.
A38: Размер расходов, связанных с предоставлением беспроцентной рассрочки, в i-м квартале в течение трехлетнего периода предоставления беспроцентной рассрочки рассчитывается по формуле (1):
D40: , (1)
A42: где:
A43: - суммарный размер платы за технологическое присоединение, начисляемый заявителям, которым предоставляется рассрочка, в квартале k периода регулирования (тыс. руб.);
A44: k - номер квартала по порядку в периоде регулирования, в который начисляется размер платы за технологическое присоединение (равен от 1 до 4);
A45: i - номер квартала по порядку, начиная с момента начисления размера платы за технологическое присоединение с условием предоставления беспроцентной рассрочки в квартале k, с учетом квартала, в котором произведены начисления, в течение трехлетнего периода предоставления беспроцентной рассрочки (равен от k до 12 + k - 1);
A46: - ставка рефинансирования Центрального банка Российской Федерации на дату представления сетевой организацией заявки на установление размера платы за технологическое присоединение в регулирующий орган.
A47: В случае отклонения фактического значения процентной ставки по кредитам, связанным с рассрочкой по оплате технологического присоединения, от ставки рефинансирования Центрального банка Российской Федерации, при расчете фактического размера расходов, связанных с предоставлением беспроцентной рассрочки, применяется величина процентной ставки в соответствии с пунктом 87 Основ ценообразования.
A49: Примечание:
A50: 1) Периодом предоставления беспроцентной рассрочки считается 3 года.
A51: 2) Размер расходов, связанных с предоставлением беспроцентной рассрочки, в каждый квартал периода регулирования в течение трехлетнего периода предоставления беспроцентной рассрочки в отношении планируемого к получению (фактически полученного) от заявителей суммарного размера платы за технологическое присоединение, определяется в соответствии с формулой (1) Методических указаний по определению выпадающих доходов, связанных с осуществлением технологического присоединения к электрическим сетям.
A52: 3) При расчете планируемых значений показателей при заполнении таблиц 1 и 2 применяется планируемая к получению величина суммарного размера платы за технологическое присоединение, подлежащего беспроцентной рассрочке.
A53: 4) При расчете фактических значений показателей при заполнении таблиц 1 и 2 применяется суммарная плата за технологическое присоединение, начисленная с беспроцентной рассрочкой в соответствии с заключенными договорами об осуществлении технологического присоединения к электрическим сетям.

Sheet Заявитель3
C1: Приложение 2 к Методическим указаниям, утвержденным приказом ФСТ от 11.09.2014 г. №215-э/1
A3: Расчет размера расходов, связанных с предоставлением беспроцентной рассрочки (для конкретного заявителя)
B5: (Контрагент (наименование), № договора ТП, Дата заключения договора)
A7: N п/п | B7: Квартал, на который рассчитывается размер расходов, связанных с предоставлением беспроцентной рассрочки | C7: Расходы, связанные с предоставлением беспроцентной рассрочки, тыс. руб. (с учетом НДС) | H7: Номер квартала i
C8: в отношении суммарного размера платы за технологическое присоединение в 1 квартале | D8: в отношении суммарного размера платы за технологическое присоединение во 2 квартале | E8: в отношении суммарного размера платы за технологическое присоединение в 3 квартале | F8: в отношении суммарного размера платы за технологическое присоединение в 4 квартале | G8: всего в год
A9: 1 | B9: =CONCATENATE("1 год (",$B$34,"г.):") -> 1 год (г.): | C9: =SUM(C10:C13) -> 0 | D9: =SUM(D10:D13) -> 0 | E9: =SUM(E10:E13) -> 0 | F9: =SUM(F10:F13) -> 0 | G9: =SUM(C9:F9) -> 0
A10: 1.1. | B10: 1 квартал | C10: =IF($H10>=$B$32,Заявитель3!$B$33*0.95*((12+$B$32-$H10)/12)*($B$31/4),0) -> 0 | G10: 0 | H10: 1
A11: 1.2. | B11: 2 квартал | D11: =IF($H11>=$B$32,Заявитель3!$B$33*0.95*((12+$B$32-$H11)/12)*($B$31/4),0) -> 0 | G11: 0 | H11: 2
A12: 1.3. | B12: 3 квартал | E12: =IF($H12>=$B$32,Заявитель3!$B$33*0.95*((12+$B$32-$H12)/12)*($B$31/4),0) -> 0 | G12: 0 | H12: 3
A13: 1.4. | B13: 4 квартал | F13: =IF($H13>=$B$32,Заявитель3!$B$33*0.95*((12+$B$32-$H13)/12)*($B$31/4),0) -> 0 | G13: 0 | H13: 4
A14: 2 | B14: =CONCATENATE("1 год (",$B$34+1,"г.):") -> 1 год (1г.): | C14: =SUM(C15:C18) -> 0 | D14: =SUM(D15:D18) -> 0 | E14: =SUM(E15:E18) -> 0 | F14: =SUM(F15:F18) -> 0 | G14: 0
A15: 2.1. | B15: 5 квартал | C15: =Заявитель3!$B$33*0.95*((12+$B$32-$H15)/12)*($B$31/4) -> 0 | G15: 0 | H15: 5
A16: 2.2. | B16: 6 квартал | D16: =Заявитель3!$B$33*0.95*((12+$B$32-$H16)/12)*($B$31/4) -> 0 | G16: 0 | H16: 6
A17: 2.3. | B17: 7 квартал | E17: =Заявитель3!$B$33*0.95*((12+$B$32-$H17)/12)*($B$31/4) -> 0 | G17: 0 | H17: 7
A18: 2.4. | B18: 8 квартал | F18: =Заявитель3!$B$33*0.95*((12+$B$32-$H18)/12)*($B$31/4) -> 0 | G18: 0 | H18: 8
A19: 3 | B19: =CONCATENATE("1 год (",$B$34+2,"г.):") -> 1 год (2г.): | C19: =SUM(C20:C23) -> 0 | D19: =SUM(D20:D23) -> 0 | E19: =SUM(E20:E23) -> 0 | F19: =SUM(F20:F23) -> 0 | G19: 0
A20: 3.1. | B20: 9 квартал | C20: =Заявитель3!$B$33*0.95*((12+$B$32-$H20)/12)*($B$31/4) -> 0 | G20: 0 | H20: 9
A21: 3.2. | B21: 10 квартал | D21: =Заявитель3!$B$33*0.95*((12+$B$32-$H21)/12)*($B$31/4) -> 0 | G21: 0 | H21: 10
A22: 3.3. | B22: 11 квартал | E22: =Заявитель3!$B$33*0.95*((12+$B$32-$H22)/12)*($B$31/4) -> 0 | G22: 0 | H22: 11
A23: 3.4. | B23: 12 квартал | F23: =Заявитель3!$B$33*0.95*((12+$B$32-$H23)/12)*($B$31/4) -> 0 | G23: 0 | H23: 12
A24: 4 | B24: =CONCATENATE("1 год (",$B$34+3,"г.):") -> 1 год (3г.): | C24: =SUM(C25:C27) -> 0 | D24: =SUM(D25:D27) -> 0 | E24: =SUM(E25:E27) -> 0 | F24: =SUM(F25:F27) -> 0 | G24: 0
A25: 4.1. | B25: 13 квартал | C25: =Заявитель3!$B$33*0.95*((12+$B$32-$H25)/12)*($B$31/4) -> 0 | G25: 0 | H25: 13
A26: 4.2. | B26: 14 квартал | D26: =IF((Заявитель3!$B$33*0.95*((12+$B$32-$H26)/12)*($B$31/4))<0,0,Заявитель3!$B$33*0.95*((12+$B$32-$H26)/12)*($B$31/4)) -> 0 | G26: 0 | H26: 14
A27: 4.3. | B27: 15 квартал | E27: =IF((Заявитель3!$B$33*0.95*((12+$B$32-$H27)/12)*($B$31/4))<0,0,Заявитель3!$B$33*0.95*((12+$B$32-$H27)/12)*($B$31/4)) -> 0 | G27: 0 | H27: 15
A28: 5 | B28: Итого | C28: =C9+C14+C19+C24 -> 0 | D28: =D9+D14+D19+D24 -> 0 | E28: =E9+E14+E19+E24 -> 0 | F28: =F9+F14+F19+F24 -> 0 | G28: =G9+G14+G19+G24 -> 0
A32: k
A34: Год закрытия договора
A36: Размера расходов, связанных с предоставлением беспроцентной рассрочки в 2023 году | G36: =IF(B34<2019,0,IF(B34=2019,G24,IF(B34=2021,G19,IF(B34=2022,G14)))) -> 0 | H36: тыс. руб.
A38: Размер расходов, связанных с предоставлением беспроцентной рассрочки, в i-м квартале в течение трехлетнего периода предоставления беспроцентной рассрочки рассчитывается по формуле (1):
D40: , (1)
A42: где:
A43: - суммарный размер платы за технологическое присоединение, начисляемый заявителям, которым предоставляется рассрочка, в квартале k периода регулирования (тыс. руб.);
A44: k - номер квартала по порядку в периоде регулирования, в который начисляется размер платы за технологическое присоединение (равен от 1 до 4);
A45: i - номер квартала по порядку, начиная с момента начисления размера платы за технологическое присоединение с условием предоставления беспроцентной рассрочки в квартале k, с учетом квартала, в котором произведены начисления, в течение трехлетнего периода предоставления беспроцентной рассрочки (равен от k до 12 + k - 1);
A46: - ставка рефинансирования Центрального банка Российской Федерации на дату представления сетевой организацией заявки на установление размера платы за технологическое присоединение в регулирующий орган.
A47: В случае отклонения фактического значения процентной ставки по кредитам, связанным с рассрочкой по оплате технологического присоединения, от ставки рефинансирования Центрального банка Российской Федерации, при расчете фактического размера расходов, связанных с предоставлением беспроцентной рассрочки, применяется величина процентной ставки в соответствии с пунктом 87 Основ ценообразования.
A49: Примечание:
A50: 1) Периодом предоставления беспроцентной рассрочки считается 3 года.
A51: 2) Размер расходов, связанных с предоставлением беспроцентной рассрочки, в каждый квартал периода регулирования в течение трехлетнего периода предоставления беспроцентной рассрочки в отношении планируемого к получению (фактически полученного) от заявителей суммарного размера платы за технологическое присоединение, определяется в соответствии с формулой (1) Методических указаний по определению выпадающих доходов, связанных с осуществлением технологического присоединения к электрическим сетям.
A52: 3) При расчете планируемых значений показателей при заполнении таблиц 1 и 2 применяется планируемая к получению величина суммарного размера платы за технологическое присоединение, подлежащего беспроцентной рассрочке.
A53: 4) При расчете фактических значений показателей при заполнении таблиц 1 и 2 применяется суммарная плата за технологическое присоединение, начисленная с беспроцентной рассрочкой в соответствии с заключенными договорами об осуществлении технологического присоединения к электрическим сетям.

Sheet Заявитель4
C1: Приложение 2 к Методическим указаниям, утвержденным приказом ФСТ от 11.09.2014 г. №215-э/1
A3: Расчет размера расходов, связанных с предоставлением беспроцентной рассрочки (для конкретного заявителя)
B5: (Контрагент (наименование), № договора ТП, Дата заключения договора)
A7: N п/п | B7: Квартал, на который рассчитывается размер расходов, связанных с предоставлением беспроцентной рассрочки | C7: Расходы, связанные с предоставлением беспроцентной рассрочки, тыс. руб. (с учетом НДС) | H7: Номер квартала i
C8: в отношении суммарного размера платы за технологическое присоединение в 1 квартале | D8: в отношении суммарного размера платы за технологическое присоединение во 2 квартале | E8: в отношении суммарного размера платы за технологическое присоединение в 3 квартале | F8: в отношении суммарного размера платы за технологическое присоединение в 4 квартале | G8: всего в год
A9: 1 | B9: =CONCATENATE("1 год (",$B$34,"г.):") -> 1 год (г.): | C9: =SUM(C10:C13) -> 0 | D9: =SUM(D10:D13) -> 0 | E9: =SUM(E10:E13) -> 0 | F9: =SUM(F10:F13) -> 0 | G9: =SUM(C9:F9) -> 0
A10: 1.1. | B10: 1 квартал | C10: =IF($H10>=$B$32,Заявитель4!$B$33*0.95*((12+$B$32-$H10)/12)*($B$31/4),0) -> 0 | G10: 0 | H10: 1
A11: 1.2. | B11: 2 квартал | D11: =IF($H11>=$B$32,Заявитель4!$B$33*0.95*((12+$B$32-$H11)/12)*($B$31/4),0) -> 0 | G11: 0 | H11: 2
A12: 1.3. | B12: 3 квартал | E12: =IF($H12>=$B$32,Заявитель4!$B$33*0.95*((12+$B$32-$H12)/12)*($B$31/4),0) -> 0 | G12: 0 | H12: 3
A13: 1.4. | B13: 4 квартал | F13: =IF($H13>=$B$32,Заявитель4!$B$33*0.95*((12+$B$32-$H13)/12)*($B$31/4),0) -> 0 | G13: 0 | H13: 4
A14: 2 | B14: =CONCATENATE("1 год (",$B$34+1,"г.):") -> 1 год (1г.): | C14: =SUM(C15:C18) -> 0 | D14: =SUM(D15:D18) -> 0 | E14: =SUM(E15:E18) -> 0 | F14: =SUM(F15:F18) -> 0 | G14: 0
A15: 2.1. | B15: 5 квартал | C15: =Заявитель4!$B$33*0.95*((12+$B$32-$H15)/12)*($B$31/4) -> 0 | G15: 0 | H15: 5
A16: 2.2. | B16: 6 квартал | D16: =Заявитель4!$B$33*0.95*((12+$B$32-$H16)/12)*($B$31/4) -> 0 | G16: 0 | H16: 6
A17: 2.3. | B17: 7 квартал | E17: =Заявитель4!$B$33*0.95*((12+$B$32-$H17)/12)*($B$31/4) -> 0 | G17: 0 | H17: 7
A18: 2.4. | B18: 8 квартал | F18: =Заявитель4!$B$33*0.95*((12+$B$32-$H18)/12)*($B$31/4) -> 0 | G18: 0 | H18: 8
A19: 3 | B19: =CONCATENATE("1 год (",$B$34+2,"г.):") -> 1 год (2г.): | C19: =SUM(C20:C23) -> 0 | D19: =SUM(D20:D23) -> 0 | E19: =SUM(E20:E23) -> 0 | F19: =SUM(F20:F23) -> 0 | G19: 0
A20: 3.1. | B20: 9 квартал | C20: =Заявитель4!$B$33*0.95*((12+$B$32-$H20)/12)*($B$31/4) -> 0 | G20: 0 | H20: 9
A21: 3.2. | B21: 10 квартал | D21: =Заявитель4!$B$33*0.95*((12+$B$32-$H21)/12)*($B$31/4) -> 0 | G21: 0 | H21: 10
A22: 3.3. | B22: 11 квартал | E22: =Заявитель4!$B$33*0.95*((12+$B$32-$H22)/12)*($B$31/4) -> 0 | G22: 0 | H22: 11
A23: 3.4. | B23: 12 квартал | F23: =Заявитель4!$B$33*0.95*((12+$B$32-$H23)/12)*($B$31/4) -> 0 | G23: 0 | H23: 12
A24: 4 | B24: =CONCATENATE("1 год (",$B$34+3,"г.):") -> 1 год (3г.): | C24: =SUM(C25:C27) -> 0 | D24: =SUM(D25:D27) -> 0 | E24: =SUM(E25:E27) -> 0 | F24: =SUM(F25:F27) -> 0 | G24: 0
A25: 4.1. | B25: 13 квартал | C25: =Заявитель4!$B$33*0.95*((12+$B$32-$H25)/12)*($B$31/4) -> 0 | G25: 0 | H25: 13
A26: 4.2. | B26: 14 квартал | D26: =IF((Заявитель4!$B$33*0.95*((12+$B$32-$H26)/12)*($B$31/4))<0,0,Заявитель4!$B$33*0.95*((12+$B$32-$H26)/12)*($B$31/4)) -> 0 | G26: 0 | H26: 14
A27: 4.3. | B27: 15 квартал | E27: =IF((Заявитель4!$B$33*0.95*((12+$B$32-$H27)/12)*($B$31/4))<0,0,Заявитель4!$B$33*0.95*((12+$B$32-$H27)/12)*($B$31/4)) -> 0 | G27: 0 | H27: 15
A28: 5 | B28: Итого | C28: =C9+C14+C19+C24 -> 0 | D28: =D9+D14+D19+D24 -> 0 | E28: =E9+E14+E19+E24 -> 0 | F28: =F9+F14+F19+F24 -> 0 | G28: =G9+G14+G19+G24 -> 0
A32: k
A34: Год закрытия договора
A36: Размера расходов, связанных с предоставлением беспроцентной рассрочки в 2023 году | G36: =IF(B34<2019,0,IF(B34=2019,G24,IF(B34=2021,G19,IF(B34=2022,G14)))) -> 0 | H36: тыс. руб.
A38: Размер расходов, связанных с предоставлением беспроцентной рассрочки, в i-м квартале в течение трехлетнего периода предоставления беспроцентной рассрочки рассчитывается по формуле (1):
D40: , (1)
A42: где:
A43: - суммарный размер платы за технологическое присоединение, начисляемый заявителям, которым предоставляется рассрочка, в квартале k периода регулирования (тыс. руб.);
A44: k - номер квартала по порядку в периоде регулирования, в который начисляется размер платы за технологическое присоединение (равен от 1 до 4);
A45: i - номер квартала по порядку, начиная с момента начисления размера платы за технологическое присоединение с условием предоставления беспроцентной рассрочки в квартале k, с учетом квартала, в котором произведены начисления, в течение трехлетнего периода предоставления беспроцентной рассрочки (равен от k до 12 + k - 1);
A46: - ставка рефинансирования Центрального банка Российской Федерации на дату представления сетевой организацией заявки на установление размера платы за технологическое присоединение в регулирующий орган.
A47: В случае отклонения фактического значения процентной ставки по кредитам, связанным с рассрочкой по оплате технологического присоединения, от ставки рефинансирования Центрального банка Российской Федерации, при расчете фактического размера расходов, связанных с предоставлением беспроцентной рассрочки, применяется величина процентной ставки в соответствии с пунктом 87 Основ ценообразования.
A49: Примечание:
A50: 1) Периодом предоставления беспроцентной рассрочки считается 3 года.
A51: 2) Размер расходов, связанных с предоставлением беспроцентной рассрочки, в каждый квартал периода регулирования в течение трехлетнего периода предоставления беспроцентной рассрочки в отношении планируемого к получению (фактически полученного) от заявителей суммарного размера платы за технологическое присоединение, определяется в соответствии с формулой (1) Методических указаний по определению выпадающих доходов, связанных с осуществлением технологического присоединения к электрическим сетям.
A52: 3) При расчете планируемых значений показателей при заполнении таблиц 1 и 2 применяется планируемая к получению величина суммарного размера платы за технологическое присоединение, подлежащего беспроцентной рассрочке.
A53: 4) При расчете фактических значений показателей при заполнении таблиц 1 и 2 применяется суммарная плата за технологическое присоединение, начисленная с беспроцентной рассрочкой в соответствии с заключенными договорами об осуществлении технологического присоединения к электрическим сетям.

Sheet Возврат заемных средств
A2: Расходы на возврат и обслуживание долгосрочных заемных средств, направляемых на финансирование капитальных вложений
A4: ='Инф-я'!C14 -> ООО "Энергетик"
A6: Показатели | B6: 2021 год | D6: 2022 год | F6: 2023 год | H6: 2021 год
B7: Утверждено | C7: Факт | D7: Утверждено | E7: Ожидаемые | F7: По данным организации | G7: По данным экспертов | H7: Факт по данным экспертов
A8: 1 | B8: 2 | C8: 3 | D8: 4 | E8: 5 | F8: 6 | G8: 7 | H8: 7
A9: Расходы по возврату заемных средств, направляемых на финансирование капитальных вложений | C9: 1775.62418 | E9: 1775.62418 | F9: 1775.62418
A10: Расходы на обслуживание долгосрочных заемных средств, направляемых на финансирование капитальных вложений | C10: 1160.53917 | E10: 1160.53917 | F10: 1160.53917
A11: Итого расходы на возврат и обслуживание долгосрочных заемных средств, направляемых на финансирование капитальных вложений | B11: =B10+B9 -> 0 | C11: =C10+C9 -> 2936.16335 | D11: 0 | E11: 2936.16335 | F11: 2936.16335 | G11: 0 | H11: =H10+H9 -> 0
A12: в т.ч. по уровням напряжения: ВН | B12: х | C12: х | E12: х
A13: СН1 | B13: х | C13: х | E13: х
A14: СН11 | B14: х | C14: х | E14: х
A15: НН | B15: х | C15: х | E15: х
A17: Руководитель организации | D17: ='Инф-я'!$C$21 -> Окунев Василий Михайлович

Sheet Корр. ПР
A2: Корректировка подконтрольных расходов по результатам 2021 года
A4: ='Инф-я'!C14 -> ООО "Энергетик"
A6: № п.п. | B6: Наименование | C6: Ед.изм. | D6: 2021 год
D8: По расчету организации | E8: По расчету экспертов
A9: 1 | B9: 2 | C9: 3 | D9: 4 | E9: 5
A10: 1. | B10: Величина подконтрольных расходов, утвержденных на 2020 год | C10: тыс. руб. | D10: 31353.66631
A11: 2. | B11: Величина подконтрольных расходов, утвержденных на 2021 год | C11: тыс. руб. | D11: 30935.19736
A12: 3. | B12: Фактический индекс потребительских цен 2021 года (ИПЦ) | C12: % | D12: 0.084
A13: 4. | B13: Индекс эффективности подконтрольных расходов (Хэф) | C13: %
A14: 5. | B14: Индекс изменения количества активов (ИКА ф) ((стр.5.1.- стр. 5.2.)/стр.5.2*100) | C14: % | D14: =IF(D16=0,0,(D15-D16)/D16) -> 0.01054774158 | E14: =IF(E16=0,0,(E15-E16)/E16) -> -1
A15: 5.1. | B15: фактический объем условных единиц 2021 года | C15: усл. ед. | D15: ='УЕ ТП 2020-2023'!L60 -> 1027.2046 | E15: ='УЕ ТП 2020-2023'!N60 -> 0
A16: 5.2. | B16: фактический объем условных единиц 2020 года | C16: усл. ед. | D16: ='УЕ ТП 2020-2023'!H60 -> 1016.483 | E16: =D16 -> 1016.483
A17: 6. | B17: Коэффициент эластичности подконтрольных расходов по количеству активов (К эл) | C17: знач. | D17: 0.75 | E17: 0.75
A18: Итого корректировка подконтрольных расходов без учета индексов | C18: тыс. руб. | D18: =D10*(1+D12)*(1+D17*D14)*(1-D13)-D11 -> 3321.044456 | E18: =E10*(1+E12)*(1+E17*E14)*(1-E13)-E11 -> 0
B20: Руководитель организации | D20: ='Инф-я'!$C$21 -> Окунев Василий Михайлович

Sheet Корр. НР
A2: Корректировка неподконтрольных расходов по результатам 2021 года
A4: ='Инф-я'!C14 -> ООО "Энергетик"
A6: № п/п | B6: Наименование показателей | C6: 2021 год утверждено | D6: По данным организации | F6: По данным экспертов
D7: Факт 2021 год | E7: Величина корректировки НР | F7: Факт 2021 год | G7: Величина корректировки НР
A8: 1 | B8: 2 | C8: 3 | D8: 4 | E8: 5 | F8: 6 | G8: 7
A9: 1. | B9: Страховые взносы во внебюджетные фонды | C9: ='Страховые взносы'!D23 -> 4584.300781 | D9: 3403.52415 | E9: =D9-C9 -> -1180.776631 | F9: ='Страховые взносы'!J23 -> 0 | G9: =F9-C9 -> -4584.300781
A10: 2. | B10: Расходы на оплату услуг организаций, осуществляющих регулируемые виды деятельности | C10: ='Расходы рег. орг-ий'!B23 -> 272.9959459 | D10: ='Расходы рег. орг-ий'!C23 -> 442.40092 | E10: 169.4049741 | F10: ='Расходы рег. орг-ий'!H23 -> 0 | G10: -272.9959459
A11: 3. | B11: Плата за землю | C11: ='Плата за землю'!B18 -> 240.7619326 | D11: ='Плата за землю'!C18 -> 1.43 | E11: -239.3319326 | F11: ='Плата за землю'!H18 -> 0 | G11: -240.7619326
A12: 4. | B12: Транспортный налог | C12: ='Транспортный налог'!D19 -> 0 | D12: ='Транспортный налог'!E19 -> 0 | E12: 0 | F12: ='Транспортный налог'!L19 -> 0 | G12: 0
A13: 5. | B13: Налог на имущество | C13: ='Налог на имущество'!B13 -> 0 | D13: ='Налог на имущество'!C13 -> 0 | E13: 0 | F13: ='Налог на имущество'!H13 -> 0 | G13: 0
A14: 6. | B14: Плата за негативное воздействие на окружающую среду | C14: ='Негативное возд. на окр. среду '!C29 -> 0 | D14: ='Негативное возд. на окр. среду '!D29 -> 0.15083 | E14: 0.15083 | F14: ='Негативное возд. на окр. среду '!I29 -> 0 | G14: 0
A15: 7. | B15: Налог на прибыль | C15: ='Налог на прибыль'!C10 -> 1138.132 | D15: ='Налог на прибыль'!D10 -> 1170.664 | E15: 32.532 | F15: ='Налог на прибыль'!H10 -> 0 | G15: -1138.132
A16: 8. | B16: Плата за аренду имущества | C16: ='Аренда имущества'!B38 -> 4735.28 | D16: ='Аренда имущества'!C38 -> 5002.91159 | E16: 267.63159 | F16: ='Аренда имущества'!V38 -> 0 | G16: -4735.28
A17: 9. | B17: Оплата услуг ПАО "ФСК ЕЭС" | C17: ='Услуги ФСК'!B17 -> 0 | D17: ='Услуги ФСК'!E17 -> 0 | E17: 0 | F17: ='Услуги ФСК'!P17 -> 0 | G17: 0
A18: 10. | B18: Прочие обоснованные неподконтрольные расходы | C18: ='Прочие НР'!B15 -> 0 | D18: ='Прочие НР'!C15 -> 0 | E18: 0 | F18: ='Прочие НР'!H15 -> 0 | G18: 0
A19: Итого корректировка неподконтрольных расходов по результатам 2021 года без учета индексов | C19: =SUM(C9:C18) -> 10971.47066 | D19: =SUM(D9:D18) -> 10021.08149 | E19: =SUM(E9:E18) -> -950.3891691 | F19: =SUM(F9:F18) -> 0 | G19: =SUM(G9:G18) -> -10971.47066
A21: Руководитель организации | C21: ='Инф-я'!$C$21 -> Окунев Василий Михайлович

Sheet Корр. ПО
A2: Корректировка НВВ с учетом изменения полезного отпуска и цен на электрическую энергию за 2021 год
A4: ='Инф-я'!C14 -> ООО "Энергетик"
B8: - фактический объем отпуска электрической энергии в сеть территориальной сетевой организации, определяемый регулирующими органами в (i-2)-том году долгосрочного периода регулирования;
B9: - уровень потерь электрической энергии при ее передаче по электрическим сетям, установленный регулирующим органом на долгосрочный период регулирования, к которому относится год (i-2), в соответствии с пунктом 40(1) Основ ценообразования;
B10: - прогнозная цена покупки потерь электрической энергии в сетях (с учетом мощности) в году i-2, учтенная при установлении тарифа на услуги по передаче электрической энергии по электрическим сетям, принадлежащим на праве собственности или ином законном основании территориальным сетевым организациям;
B11: - средневзвешенная фактическая цена покупки потерь электрической энергии в сетях (с учетом мощности) в году i-2;
B12: - величина фактических потерь электрической энергии в сетях в году i-2.
A15: Месяц (Период) | B15: Вход электрической энергии в сеть организации | D15: Норматив потерь | E15: Объем потерь 2021 года | G15: Цена покупки потерь электрической энергии
B16: План | C16: Факт | E16: Согласовано регулирующим органом | F16: Факт | G16: Учтенная при установлении тарифа | H16: Фактическая цена
A17: Ед.изм. | B17: тыс.кВт.ч. | C17: тыс.кВт.ч. | D17: % | E17: тыс.кВт.ч. | F17: тыс.кВт.ч. | G17: руб/тыс.кВт.ч | H17: руб/тыс.кВт.ч
A18: По данным организации
A19: Январь | B19: х | C19: 2522.192 | D19: х | E19: х | F19: 222.946 | G19: х | H19: 3260.652
A20: Февраль | B20: х | C20: 2335.402 | D20: х | E20: х | F20: 233.202 | G20: х | H20: 3379.07
A21: Март | B21: х | C21: 2363.378 | D21: х | E21: х | F21: 227.087 | G21: х | H21: 3244.39
A22: Апрель | B22: х | C22: 2098.196 | D22: х | E22: х | F22: 195.342 | G22: х | H22: 3380.46
A23: Май | B23: х | C23: 1902.164 | D23: х | E23: х | F23: 167.714 | G23: х | H23: 3081.92
A24: Июнь | B24: х | C24: 1723.04 | D24: х | E24: х | F24: 142.672 | G24: х | H24: 3487.54
A25: 1 полугодие | B25: 12018.35387 | C25: =C19+C20+C21+C22+C23+C24 -> 12944.372 | D25: х | E25: 1285.7 | F25: =F19+F20+F21+F22+F23+F24 -> 1188.963 | G25: 3408.3 | H25: х
A26: Июль | B26: х | C26: 1772 | D26: х | E26: х | F26: 151.064 | G26: х | H26: 3476.47
A27: Август | B27: х | C27: 1782.396 | D27: х | E27: х | F27: 149.026 | G27: х | H27: 3606.17
A28: Сентябрь | B28: х | C28: 2025.086 | D28: х | E28: х | F28: 174.436 | G28: х | H28: 3668.8
A29: Октябрь | B29: х | C29: 2266.396 | D29: х | E29: х | F29: 206.556 | G29: х | H29: 3460.15
A30: Ноябрь | B30: х | C30: 2283.862 | D30: х | E30: х | F30: 229.114 | G30: х | H30: 3471.22
A31: Декабрь | B31: х | C31: 2547.632 | D31: х | E31: х | F31: 270.087 | G31: х | H31: 3270.32
A32: 2 полугодие | B32: 12257.81664 | C32: =C26+C27+C28+C29+C30+C31 -> 12677.372 | D32: х | E32: 1496.3 | F32: =F26+F27+F28+F29+F30+F31 -> 1180.283 | G32: 3491.55 | H32: х
A33: ВСЕГО: | B33: =B25+B32 -> 24276.17051 | C33: =C25+C32 -> 25621.744 | D33: =E33/B33 -> 0.1145979758 | E33: =E25+E32 -> 2782 | F33: =F25+F32 -> 2369.246 | G33: =IF(E33=0,0,(E25*G25+E32*G32)/E33) -> 3453.076051 | H33: =IF(F33=0,0,(F19*H19+F20*H20+F21*H21+F22*H22+F23*H23+F24*H24+F26*H26+F27*H27+F28*H28+F29*H29+F30*H30+F31*H31)/F33) -> 3386.039002
A34: По данным экспертов
A35: Январь | B35: х | D35: х | E35: х | G35: х
A36: Февраль | B36: х | D36: х | E36: х | G36: х
A37: Март | B37: х | D37: х | E37: х | G37: х
A38: Апрель | B38: х | D38: х | E38: х | G38: х
A39: Май | B39: х | D39: х | E39: х | G39: х
A40: Июнь | B40: х | D40: х | E40: х | G40: х
A41: 1 полугодие | C41: =C35+C36+C37+C38+C39+C40 -> 0 | D41: х | F41: =F35+F36+F37+F38+F39+F40 -> 0 | H41: х
A42: Июль | B42: х | D42: х | E42: х | G42: х
A43: Август | B43: х | D43: х | E43: х | G43: х
A44: Сентябрь | B44: х | D44: х | E44: х | G44: х
A45: Октябрь | B45: х | D45: х | E45: х | G45: х
A46: Ноябрь | B46: х | D46: х | E46: х | G46: х
A47: Декабрь | B47: х | D47: х | E47: х | G47: х
A48: 2 полугодие | C48: =C42+C43+C44+C45+C46+C47 -> 0 | D48: х | F48: =F42+F43+F44+F45+F46+F47 -> 0 | H48: х
A49: ВСЕГО: | B49: =B41+B48 -> 0 | C49: =C41+C48 -> 0 | D49: =E49/B49 ->  | E49: =E41+E48 -> 0 | F49: =F41+F48 -> 0 | G49: =IF(E49=0,0,(E41*G41+E48*G48)/E49) -> 0 | H49: =IF(F49=0,0,(F35*H35+F36*H36+F37*H37+F38*H38+F39*H39+F40*H40+F42*H42+F43*H43+F44*H44+F45*H45+F46*H46+F47*H47)/F49) -> 0
A51: № п/п | B51: Наименование показателя | C51: Обозначение | D51: Расчет Общества | E51: Расчет экспертов
A52: 1. | B52: Фактический вход электрической энергии в сеть организации | D52: =C33 -> 25621.744 | E52: =C49 -> 0
A53: 2. | B53: Цена покупки потерь электрической энергии, учтенная при установлении тарифа | D53: =G33 -> 3453.076051 | E53: =G49 -> 0
A54: 3. | B54: Фактическая цена | D54: =H33 -> 3386.039002 | E54: =H49 -> 0
A55: 4. | B55: Норматив потерь | D55: =D33 -> 0.1145979758 | E55: =D49 -> 
A56: 5. | B56: Фактический объем потерь 2021 года | D56: =F33 -> 2369.246 | E56: =F49 -> 0
A57: Величина корректировки НВВ с учетом изменения полезного отпуска и цен на электрическую энергию за 2021 год без учета индексов | D57: =IFERROR(MIN(D56,D52*D55)*D54-D52*D53*D55,)/1000 -> -2116.562534 | E57: =IFERROR(MIN(E56,E52*E55)*E54-E52*E53*E55,0)/1000 -> 0
A59: Руководитель организации | F59: ='Инф-я'!$C$21 -> Окунев Василий Михайлович

Sheet ∆НВВ сод
A1: Корректировка необходимой валовой выручки по доходам от осуществления регулируемой деятельности за 2021 год
A2: ='Инф-я'!C14 -> ООО "Энергетик"
C4: тыс. руб.
B5: Наименование показателя | C5: Расчет Общества | D5: Расчет Экспертов | G5: 1 полугодие 2021 г. | J5: 2 полугодие 2021 г.
B6: НВВ сод 2021 | C6: =' НВВ содержание'!C52 -> 55381.35236 | D6: =C6 -> 55381.35236 | G6: Двухставочный тариф | I6: Одноставочный тариф | J6: Двухставочный тариф | L6: Одноставоч-ный тариф
B7: НВВ факт 2021 | C7: =E32+M32 -> 59912.81508 | D7: =E47+M47 -> 0 | G7: ставка за содержание электрических сетей | H7: ставка на оплату технологического расхода (потерь) | J7: ставка за содержание электрических сетей | K7: ставка на оплату технологического расхода (потерь)
B8: ∆ НВВ сод за 2021 год без учета индексов | C8: =C6-C7 -> -4531.462723 | D8: =D6-D7 -> 55381.35236 | G8: руб./кВт мес. | H8: руб./ кВт ч | I8: руб./ кВт ч | J8: руб./кВт мес. | K8: руб./ кВт ч | L8: руб./ кВт ч
G9: 1032.00197 | H9: 0.40829 | I9: 2.98833 | J9: 1032.00197 | K9: 0.48547 | L9: 3.05859
B11: Руководитель организации | D11: ='Инф-я'!C21 -> Окунев Василий Михайлович
B14: Расчет доходов, полученных согласно актам оказания услуг Владимирэнерго
B15: 1. Доходы по двухставочному тарифу | I15: 1. Итого доходы по двухставочному тарифу, тыс. руб. | J15: 2. Доходы по одноставочному тарифу
C16: 1.1. Доходы на содержание сетей | E16: Доходы на содержание сетей, тыс. руб. | F16: 1.2. Доходы на компенсацию потерь | H16: Доходы на компенсацию нормативных потерь, тыс. руб. | J16: полезный отпуск, тыс кВт ч | K16: одноставочный инд тариф, руб./тыс. кВт ч | L16: Итого доходы по одноставочному тарифу, тыс. руб.
C17: договорная мощность, МВт | D17: ставка на содержание сетей, руб./МВт мес. | F17: полезный отпуск, тыс кВт ч | G17: инд тариф на потери, руб./ тыс.кВт ч | L17: Всего: | M17: в том числе, доходы на содержание сетей
B18: январь | D18: =$G$9*1000 -> 1032001.97 | E18: =C18*D18/1000 -> 0 | G18: =$H$9*1000 -> 408.29 | H18: =F18*$G$18/1000 -> 0 | I18: =E18+H18 -> 0 | J18: 2299.246 | K18: =$I$9*1000 -> 2988.33 | L18: =J18*K18/1000 -> 6870.905799 | M18: =J18*(K18-G18)/1000 -> 5932.14665
B19: февраль | D19: 1032001.97 | E19: 0 | G19: 408.29 | H19: 0 | I19: 0 | J19: 2102.2 | K19: 2988.33 | L19: 6282.067326 | M19: 5423.760088
B20: март | D20: 1032001.97 | E20: 0 | G20: 408.29 | H20: 0 | I20: 0 | J20: 2136.291 | K20: 2988.33 | L20: 6383.942484 | M20: 5511.716232
B21: апрель | D21: 1032001.97 | E21: 0 | G21: 408.29 | H21: 0 | I21: 0 | J21: 1902.854 | K21: 2988.33 | L21: 5686.355694 | M21: 4909.439434
B22: май | D22: 1032001.97 | E22: 0 | G22: 408.29 | H22: 0 | I22: 0 | J22: 1734.45 | K22: 2988.33 | L22: 5183.108969 | M22: 4474.950378
B23: июнь | D23: 1032001.97 | E23: 0 | G23: 408.29 | H23: 0 | I23: 0 | J23: 1580.368 | K23: 2988.33 | L23: 4722.661105 | M23: 4077.412655
B24: Итого 1 пол. | C24: х | D24: х | E24: =SUM(E18:E23) -> 0 | F24: =SUM(F18:F23) -> 0 | G24: х | H24: =SUM(H18:H23) -> 0 | I24: 0 | J24: =SUM(J18:J23) -> 11755.409 | K24: х | L24: =SUM(L18:L23) -> 35129.04138 | M24: =SUM(M18:M23) -> 30329.42544
B25: июль | D25: =$J$9*1000 -> 1032001.97 | E25: =C25*D25/1000 -> 0 | G25: =$K$9*1000 -> 485.47 | H25: =F25*$G$25/1000 -> 0 | I25: 0 | J25: 1620.936 | K25: =$L$9*1000 -> 3058.59 | L25: =J25*K25/1000 -> 4957.77864 | M25: =J25*(K25-G25)/1000 -> 4170.86284
B26: август | D26: 1032001.97 | E26: 0 | G26: 485.47 | H26: 0 | I26: 0 | J26: 1633.37 | K26: 3058.59 | L26: 4995.809148 | M26: 4202.857014
B27: сентябрь | D27: 1032001.97 | E27: 0 | G27: 485.47 | H27: 0 | I27: 0 | J27: 1850.65 | K27: 3058.59 | L27: 5660.379584 | M27: 4761.944528
B28: октябрь | D28: 1032001.97 | E28: 0 | G28: 485.47 | H28: 0 | I28: 0 | J28: 2059.84 | K28: 3058.59 | L28: 6300.206026 | M28: 5300.215501
B29: ноябрь | D29: 1032001.97 | E29: 0 | G29: 485.47 | H29: 0 | I29: 0 | J29: 2054.748 | K29: 3058.59 | L29: 6284.631685 | M29: 5287.113174
B30: декабрь | D30: 1032001.97 | E30: 0 | G30: 485.47 | H30: 0 | I30: 0 | J30: 2277.545 | K30: 3058.59 | L30: 6966.076362 | M30: 5860.39659
B31: Итого 2 пол. | C31: х | D31: х | E31: =SUM(E25:E30) -> 0 | F31: =SUM(F25:F30) -> 0 | G31: х | H31: =SUM(H25:H30) -> 0 | I31: 0 | J31: =SUM(J25:J30) -> 11497.089 | K31: х | L31: =SUM(L25:L30) -> 35164.88144 | M31: =SUM(M25:M30) -> 29583.38965
B32: Всего за 2021 г. | C32: х | D32: х | E32: =E24+E31 -> 0 | F32: =F24+F31 -> 0 | G32: х | H32: =H24+H31 -> 0 | I32: =I24+I31 -> 0 | J32: =J24+J31 -> 23252.498 | K32: х | L32: =L24+L31 -> 70293.92282 | M32: =M24+M31 -> 59912.81508
B33: январь | D33: =$G$9*1000 -> 1032001.97 | E33: =C33*D33/1000 -> 0 | G33: =$H$9*1000 -> 408.29 | H33: =F33*$G$33/1000 -> 0 | I33: =E33+H33 -> 0 | K33: =$I$9*1000 -> 2988.33 | L33: =J33*K33/1000 -> 0 | M33: =J33*(K33-G33)/1000 -> 0
B34: февраль | D34: 1032001.97 | E34: 0 | G34: 408.29 | H34: 0 | I34: 0 | K34: 2988.33 | L34: 0 | M34: 0
B35: март | D35: 1032001.97 | E35: 0 | G35: 408.29 | H35: 0 | I35: 0 | K35: 2988.33 | L35: 0 | M35: 0
B36: апрель | D36: 1032001.97 | E36: 0 | G36: 408.29 | H36: 0 | I36: 0 | K36: 2988.33 | L36: 0 | M36: 0
B37: май | D37: 1032001.97 | E37: 0 | G37: 408.29 | H37: 0 | I37: 0 | K37: 2988.33 | L37: 0 | M37: 0
B38: июнь | D38: 1032001.97 | E38: 0 | G38: 408.29 | H38: 0 | I38: 0 | K38: 2988.33 | L38: 0 | M38: 0
B39: Итого 1 пол. | C39: =SUM(C33:C38) -> 0 | D39: х | E39: =SUM(E33:E38) -> 0 | F39: =SUM(F33:F38) -> 0 | G39: х | H39: =SUM(H33:H38) -> 0 | I39: 0 | J39: =SUM(J33:J38) -> 0 | K39: х | L39: =SUM(L33:L38) -> 0 | M39: =SUM(M33:M38) -> 0
B40: июль | D40: =$J$9*1000 -> 1032001.97 | E40: =C40*D40/1000 -> 0 | G40: =$K$9*1000 -> 485.47 | H40: =F40*$G$40/1000 -> 0 | I40: 0 | K40: =$L$9*1000 -> 3058.59 | L40: =J40*K40/1000 -> 0 | M40: =J40*(K40-G40)/1000 -> 0
B41: август | D41: 1032001.97 | E41: 0 | G41: 485.47 | H41: 0 | I41: 0 | K41: 3058.59 | L41: 0 | M41: 0
B42: сентябрь | D42: 1032001.97 | E42: 0 | G42: 485.47 | H42: 0 | I42: 0 | K42: 3058.59 | L42: 0 | M42: 0
B43: октябрь | D43: 1032001.97 | E43: 0 | G43: 485.47 | H43: 0 | I43: 0 | K43: 3058.59 | L43: 0 | M43: 0
B44: ноябрь | D44: 1032001.97 | E44: 0 | G44: 485.47 | H44: 0 | I44: 0 | K44: 3058.59 | L44: 0 | M44: 0
B45: декабрь | D45: 1032001.97 | E45: 0 | G45: 485.47 | H45: 0 | I45: 0 | K45: 3058.59 | L45: 0 | M45: 0
B46: Итого 2 пол. | C46: =SUM(C40:C45) -> 0 | D46: х | E46: =SUM(E40:E45) -> 0 | F46: =SUM(F40:F45) -> 0 | G46: х | H46: =SUM(H40:H45) -> 0 | I46: 0 | J46: =SUM(J40:J45) -> 0 | K46: х | L46: =SUM(L40:L45) -> 0 | M46: =SUM(M40:M45) -> 0
B47: Всего за 2021 г. | C47: х | D47: х | E47: =E39+E46 -> 0 | F47: =F39+F46 -> 0 | G47: х | H47: =H39+H46 -> 0 | I47: х | J47: =J39+J46 -> 0 | K47: х | L47: =L39+L46 -> 0 | M47: =M39+M46 -> 0

Sheet Корр. ИП
A2: Корректировка НВВ в связи с изменением (неисполнением) инвестиционной программы по результатам 2021 года
A4: ='Инф-я'!C14 -> ООО "Энергетик"
A6: № п/п | B6: Наименование показателей | C6: Обозначение в методических указаниях | D6: По данным организации | E6: По данным экспертов
A7: 1 | B7: 2 | C7: 3 | D7: 4 | E7: 5
A8: 1. | B8: Расчетная величина собственных средств регулируемой организации для финансирования инвестиционной программы, учтенная при установлении тарифов в 2021 году, которая не может принимать отрицательные значения, всего, в том числе: | D8: =IF((D9+D10)>=D11,D11,(D9+D10)) -> 10969.04021 | E8: =IF((E9+E10)>=E11,E11,(E9+E10)) -> 0
B9: -амортизация | D9: =' КВЛ'!B24 -> 7399.229315
B10: - капитальные вложения из прибыли | D10: =' КВЛ'!B26 -> 3569.810899
A11: 2. | B11: Плановый размер финансирования инвестиционной программы, представляющей собой совокупность инвестиционных проектов, утвержденной (скорректированной) в установленном порядке на 2021 год до его начала, за счет собственных средств (выручки от реализации товаров (услуг) по регулируемым ценам (тарифам)) без НДС | D11: =' КВЛ'!B23-' КВЛ'!B25 -> 10969.04021
A12: 3. | B12: Объем фактического финансирования инвестиционной программы, представляющей собой совокупность инвестиционных проектов, утвержденной (скорректированной) в установленном порядке на 2021 год до его начала, за счет собственных средств (выручки от реализации товаров (услуг) по регулируемым ценам (тарифам)) без НДС в 2021 году | D12: =' КВЛ'!C23-' КВЛ'!C25 -> 13687.84344
A13: 4. | B13: Учтенная при расчете тарифов на 2022 год корректировка необходимой валовой выручки на 2021-ой год долгосрочного периода регулирования, осуществленная в связи с изменением (неисполнением) инвестиционной программы за истекший период 2021-го года по результатам 9 месяцев | D13: 0 | F13: ?
B14: Итого корректировка НВВ в связи с изменением (неисполнением) инвестиционной программы по результатам 2021 года без учета индексов | D14: =IF(D11=0,0,D8*(D12/D11-1)-D13) -> 2718.803226 | E14: =IF(E11=0,0,E8*(E12/E11-1)) -> 0
A17: Руководитель организации | C17: ='Инф-я'!$C$21 -> Окунев Василий Михайлович

Sheet корр НВВ по факт
A1: Расходы, связанных с необходимостью корректировки валовой выручки регулируемых организаций, указанной в пункте 9, а также расходы в соответствии с пунктом 10 Методических указаний и корректировка необходимой валовой выручки в соответствии с пунктом 32 Основ ценообразования.
A2: ='Инф-я'!C14 -> ООО "Энергетик"
B7: где | C7: - расходы i-го года долгосрочного периода регулирования, связанные с компенсацией незапланированных расходов (со знаком "плюс") или полученного избытка (со знаком "минус"), выявленных в том числе по итогам последнего истекшего года долгосрочного периода регулирования, за который известны фактические значения параметров расчета тарифов, связанных с необходимостью корректировки валовой выручки регулируемых организаций, указанной в пункте 9, а также расходы в соответствии с пунктом 10 Методических указаний (тыс.руб.) и корректировка необходимой валовой выручки в соответствии с пунктом 32 Основ ценообразования.
C8: - компенсация выпадающих/излишне полученных доходов регулируемой организации за предшестрасходы i-го года долгосрочного периода регулирования, связанные с компенсацией незапланированных расходов (со знаком "плюс") или полученного избытка (со знаком "минус"), выявленных по итогам последнего истекшего года долгосрочного периода регулирования, за который известны фактические значения параметров расчета тарифов, связанных с необходимостью корректировки валовой выручки регулируемых организаций, указанной в пункте 9 Методических указаний, а также расходы в соответствии с пунктом 10 Методических указаний, возникающих в результате отличия фактических значений параметров регулирования от установленных при утверждении тарифов.
C9: - корректировка необходимой валовой выручки на i-тый год долгосрочного периода регулирования, осуществляемая в связи с изменением (неисполнением) инвестиционной программы на (i-1)-й год.
C10: не определяется для территориальных сетевых организаций, необходимая валовая выручка которых с учетом расходов на оплату потерь и оплату услуг других территориальных сетевых организаций за 3 последних периода регулирования не превысила 10 процентов суммарной необходимой валовой выручки территориальных сетевых организаций, учтенной при установлении единых (котловых) тарифов на услуги по передаче электрической энергии, за исключением результатов деятельности регулируемой организации за предыдущие годы до начала долгосрочного периода регулирования методом долгосрочной индексации необходимой валовой выручки или до изменения метода регулирования согласно абзацу второму пункта 39 Основ ценообразования.
C11: - индексы потребительских цен, определенный на i-й и i-1 год долгосрочного периода регулирования;
B14: где:
C15: - корректировка подконтрольных расходов в связи с изменением планируемых параметров расчета тарифов. Не определяется для случаев, если год (i-2) является первым годом долгосрочного периода регулирования;
C16: - корректировка неподконтрольных расходов исходя из фактических значений указанного параметра;
C17: - корректировка фактических расходов, признанных регулирующим органом экономически обоснованными в году i-2, на выполнение, предусмотренных пунктом 5 статьи 37 Федерального закона от 26 марта 2003 г. N 35-ФЗ "Об электроэнергетике", обязанностей сетевой организации по обеспечению коммерческого учета электрической энергии (мощности), не относящиеся к капитальным вложениям, определяемая до завершения долгосрочного периода регулирования, на который базовый уровень подконтрольных расходов устанавливался до вступления в силу постановления Правительства Российской Федерации от 7 марта 2022 г. N 246 "О внесении изменений в некоторые акты Правительства Российской Федерации по вопросу установления регулируемых цен (тарифов) в электроэнергетике и признании утратившими силу отдельных положений некоторых актов Правительства Российской Федерации", которая может принимать как положительные, так и отрицательные значения, рассчитываемая по следующей формуле:
C18: - корректировка необходимой валовой выручки по доходам от осуществления регулируемой деятельности;
C19: - корректировка необходимой валовой выручки регулируемой организации с учетом изменения полезного отпуска электрической энергии и цен на электрическую энергию;
C22: тыс. руб.
B23: № п/п | C23: Наименование показателя | D23: Обозначение | E23: Расчет Общества | F23: Расчет экспертов | G23: Расчет экспертов (приведенный)
B24: 1. | C24: Корректировка подконтрольных расходов | E24: ='Корр. ПР'!D18 -> 3321.044456 | F24: ='Корр. ПР'!E18 -> 0 | G24: =F24*(1+$F$31)*(1+$F$32) -> 0
B25: 2. | C25: Корректировка неподконтрольных расходов | E25: ='Корр. НР'!E19 -> -950.3891691 | F25: ='Корр. НР'!G19 -> -10971.47066 | G25: =F25*(1+$F$31)*(1+$F$32) -> -10971.47066
B26: 3. | C26: Корректировка необходимой валовой выручки по доходам от осуществления регулируемой деятельности | E26: ='∆НВВ сод'!C8 -> -4531.462723 | F26: ='∆НВВ сод'!D8 -> 55381.35236 | G26: =F26*(1+$F$31)*(1+$F$32) -> 55381.35236
B27: 4. | C27: Корректировка НВВ с учетом изменения полезного отпуска и цен на электрическую энергию | E27: ='Корр. ПО'!D57 -> -2116.562534 | F27: ='Корр. ПО'!E57 -> 0 | G27: 0
B28: 5. | C28: Корректировка расходов по обеспечению коммерческого учета ээ | E28: 607.54082 | G28: =F28*(1+$F$31)*(1+$F$32) -> 0
B29: 6. | C29: (п.1+п.2+п.3+п.4+п.5) | E29: =E24+E25+E26+E27+E28 -> -3669.82915 | F29: =F24+F25+F26+F27+F28 -> 44409.8817
B30: 7. | C30: Корректировка НВВ в связи с изменением (неисполнением) инвестиционной программы | E30: ='Корр. ИП'!D14 -> 2718.803226 | F30: ='Корр. ИП'!E14 -> 0 | G30: =F30*(1+$F$31)*(1+$F$32) -> 0
B31: 8. | C31: ИПЦ 2022 к 2021 | E31: 0.043
B32: 9. | C32: ИПЦ 2023 к 2022 | E32: ='Подконтрольные расходы'!E12 -> 0.2 | F32: ='Подконтрольные расходы'!F12 -> 0
C33: и с учетом ИПЦ (п.6+п.7)*(1+п.8)*(1+п.9) | E33: =(E29+E30)*(1+E31)*(1+E32) -> -1190.304047 | F33: =(F29+F30)*(1+F31)*(1+F32) -> 44409.8817 | G33: =G24+G25+G26+G27+G28+G30 -> 44409.8817
B36: Руководитель организации | D36: ='Инф-я'!$C$21 -> Окунев Василий Михайлович

Sheet Корр. КНК
A2: Корректировка НВВ с учетом надежности и качества оказываемых услуг по результатам 2021 года
A4: ='Инф-я'!C14 -> ООО "Энергетик"
A6: № п/п | B6: Наименование показателей | C6: Обзнач. в МУ | D6: По данным организации | E6: По данным экспертов
A7: 1 | B7: 2 | C7: 3 | D7: 4 | E7: 5
A8: 1. | B8: Коэффициент достижения (недостижения, перевыполнения) уровня надежности оказываемых услуг | D8: =(IF(AND(D23=0,E23=0),0,IF(AND(D23=0,E23>0),-1,IF(AND(70<F23,F23<=130),0,IF(F23>130,-1,IF(F23<=70,1)))))) -> 1 | E8: =(IF(AND(G23=0,D23=0),0,IF(AND(D23=0,G23>0),-1,IF(AND(70<H23,H23<=130),0,IF(H23>130,-1,IF(H23<=70,1)))))) -> 1
A9: 2. | B9: Коэффициент достижения (недостижения, перевыполнения) уровня надежности оказываемых услуг | D9: =(IF(AND(D24=0,E24=0),0,IF(AND(D24=0,E24>0),-1,IF(AND(70<F24,F24<=130),0,IF(F24>130,-1,IF(F24<=70,1)))))) -> 1 | E9: =(IF(AND(G24=0,D24=0),0,IF(AND(D24=0,G24>0),-1,IF(AND(70<H24,H24<=130),0,IF(H24>130,-1,IF(H24<=70,1)))))) -> 1 | F9: ,
A10: 3. | B10: Оценка достижения показателя уровня качества оказываемых услуг, (для территориальной сетевой организации) | D10: =(IF(AND(D25=0,E25=0),0,IF(AND(D25=0,E25>0),-1,IF(AND(71<F25,F25<=129),0,IF(F25>129,-1,IF(F25<=71,1)))))) -> 0 | E10: =(IF(AND(G25=0,D25=0),0,IF(AND(D25=0,G25>0),-1,IF(AND(71<H25,H25<129),0,IF(H25>=129,-1,IF(H25<=71,1)))))) -> 0
A11: 4. | B11: Показатель качества исполнения Единых стандартов качества обслуживания сетевыми организациями потребителей услуг сетевых организаций, утвержденных приказом Минэнерго России от 15 апреля 2014 г. N 186 (зарегистрирован Минюстом России 18 июня 2014 г., регистрационный N 32761), с изменениями, внесенными приказом Минэнерго России от 6 апреля 2015 г. N 217 (зарегистрирован Минюстом России 30 июня 2015 г., регистрационный N 37834) (далее - приказ Минэнерго России N 186). | D11: 0
A12: 5. | B12: Обобщенный показатель уровня надежности и качества оказываемых услуг | D12: =D8*0.3+D9*0.3+D10*0.3+D11*0.1 -> 0.6 | E12: =E8*0.3+E9*0.3+E10*0.3+E11*0.1 -> 0.6
A13: 6. | B13: Максимальный процент корректировки, % | D13: 0.02 | E13: 0.02
A14: 7. | B14: Коэффициент, корректирующий НВВ с учетом надежности и качества оказываемых услуг | D14: =D12*D13 -> 0.012 | E14: =E12*E13 -> 0.012
A15: 7. | B15: Утвержденная НВВ на содержание электрических сетей (тыс. руб.) | D15: =' НВВ содержание'!C52 -> 55381.35236 | E15: =D15 -> 55381.35236
A16: 8. | B16: Величина корректировки НВВ с учетом надежности и качества оказываемых услуг | D16: =D14*D15 -> 664.5762283 | E16: =E14*E15 -> 664.5762283
A18: Показатели уровня надежности и уровня качества оказываемых услуг
A20: № п/п | B20: Наименование показателей | C20: Обзнач. в МУ | D20: Утверждено на 2021 год | E20: По данным организации | G20: По данным экспертов
E21: Факт | F21: % отклонения | G21: Факт | H21: % отклонения
A22: 1 | B22: 2 | C22: 3 | D22: 4 | E22: 5 | F22: 6 | G22: 7 | H22: 8
A23: 1. | B23: Показатель средней продолжительности прекращений передачи электрической энергии на точку поставки , час. | C23: Пsaidi | D23: 1.5512 | E23: ='Форма 8.3'!C22 -> 0.01560682435 | F23: =IF(D23=0,0,E23/D23*100) -> 1.006112967 | G23: ='Форма 8.3'!D22 -> 0 | H23: =IF(D23=0,0,G23/D23*100) -> 0
A24: 2. | B24: Показатель средней частоты прекращений передачи электрической энергии на точку поставки , шт. | C24: Пsaifi | D24: 0.8079 | E24: ='Форма 8.3'!C23 -> 0.02869329197 | F24: =IF(D24=0,0,E24/D24*100) -> 3.55158955 | G24: ='Форма 8.3'!D23 -> 0 | H24: =IF(D24=0,0,G24/D24*100) -> 0
A25: 3. | B25: Показатель уровня качества осуществляемого технологического присоединения | C25: Птпр | D25: 1 | E25: ='Форма 3.1-3.2'!D29 -> 1 | F25: =IF(D25=0,0,E25/D25*100) -> 100 | G25: ='Форма 3.1-3.2'!E29 -> 1 | H25: =IF(D25=0,0,G25/D25*100) -> 100
A26: 4. | B26: Показатель качества исполнения Единых стандартов качества обслуживания сетевыми организациями потребителей услуг сетевых организаций | C26: ссылка на сайт | D26: oao-energetik.ru
A28: Руководитель организации | C28: ='Инф-я'!C21 -> Окунев Василий Михайлович
A31: Приказ Министерства энергетики РФ от 18 октября 2017 г. N 976 "Об утверждении базовых значений показателей надежности, значений коэффициентов допустимых отклонений фактических значений показателей надежности от плановых и максимальной динамики улучшения плановых показателей надежности для групп территориальных сетевых организаций, имеющих сопоставимые друг с другом экономические и технические характеристики и (или) условия деятельности, с применением метода сравнения аналогов" : Значения коэффициентов допустимых отклонений фактических значений показателей надежности от плановых =0,3
A33: N пп | B33: Группы территориальных сетевых организаций** | C33: Базовые | D33: Максимальная | E33: Значения коэффициентов допустимых
C34: значения | D34: динамика | E34: отклонений фактических значений показателей надежности от плановых
C35: показателей | D35: улучшения
C36: надежности | D36: плановых
D37: показателей
D38: надежности | E38: Коэффициент | F38: Коэффициент
E39: *** | F39: ***
A40: 1 | B40: 2 | C40: 3 | D40: 4 | E40: 5 | F40: 6
A41: 1 | B41: ЛЭП 7 500 км и более, доля КЛ менее 10%, средняя летняя температура 20°С и более | C41: 9.6239 | D41: 0.09249 | E41: 0.3 | F41: 0.3
A42: 2 | B42: ЛЭП 7 500 км и более, доля КЛ менее 10%, средняя летняя температура менее 20°С, число разъединителей и выключателей менее 25 000 штук | C42: 4.73976 | D42: 0.08958 | E42: 0.3 | F42: 0.3
A43: 3 | B43: ЛЭП 7 500 км и более, доля КЛ менее 10%, средняя летняя температура менее 20°С, число разъединителей и выключателей 25 000 штук и более | C43: 2.92521 | D43: 0.09119 | E43: 0.3 | F43: 0.3
A44: 4 | B44: ЛЭП 7 500 км и более, доля КЛ 10% и более | C44: 3.3358 | D44: 0.1339 | E44: 0.3 | F44: 0.3
A45: 5 | B45: ЛЭП 10 км и более и менее 7500 км, доля КЛ 30% и более | C45: 2.33098 | D45: 0.21968 | E45: 0.3 | F45: 0.3
A46: 6 | B46: ЛЭП 10 км и более и менее 7500 км, доля КЛ менее 30%, плотность менее 20 штук/км, число точек поставки менее 10 000 штук | C46: 4.50546 | D46: 0.28362 | E46: 0.3 | F46: 0.3
A47: 7 | B47: ЛЭП 10 км и более и менее 7500 км, доля КЛ менее 30%, плотность менее 20 штук/км, число точек поставки 10 000 штук и более | C47: 6.11309 | D47: 0.1817 | E47: 0.3 | F47: 0.3
A48: 8 | B48: ЛЭП 10 км и более и менее 7500 км, доля КЛ менее 30%, плотность 20 штук/км и более | C48: 5.85076 | D48: 0.18958 | E48: 0.3 | F48: 0.3
A49: 9 | B49: ЛЭП менее 10 км | C49: 1.30368 | D49: 0.19007 | E49: 0.3 | F49: 0.3
A51: N пп | B51: Группы территориальных сетевых организаций** | C51: Базовые | D51: Максимальная | E51: Значения коэффициентов допустимых
C52: значения | D52: динамика | E52: отклонений фактических значений показателей надежности от плановых
C53: показателей | D53: улучшения
C54: надежности | D54: плановых
D55: показателей
D56: надежности | E56: Коэффициент | F56: Коэффициент
E57: *** | F57: ***
A58: 1 | B58: 2 | C58: 3 | D58: 4 | E58: 5 | F58: 6
A59: 1 | B59: ЛЭП 7 500 км и более, доля КЛ менее 10% | C59: 1.96744 | D59: 0.079 | E59: 0.3 | F59: 0.3
A60: 2 | B60: ЛЭП 7 500 км и более, доля КЛ 10% и более | C60: 1.23355 | D60: 0.13948 | E60: 0.3 | F60: 0.3
A61: 3 | B61: ЛЭП 3 000 км и более и менее 7 500 км, доля КЛ менее 15% | C61: 1.78816 | D61: 0.14553 | E61: 0.3 | F61: 0.3
A62: 4 | B62: ЛЭП 3 000 км и более и менее 7 500 км, доля КЛ 15% и более | C62: 0.75108 | D62: 0.17702 | E62: 0.3 | F62: 0.3
A63: 5 | B63: ЛЭП 100 км и более и менее 3 000 км, доля КЛ 35% и более | C63: 0.56439 | D63: 0.17379 | E63: 0.3 | F63: 0.3
A64: 6 | B64: ЛЭП 100 км и более и менее 3 000 км, доля КЛ менее 35% | C64: 1.00795 | D64: 0.16107 | E64: 0.3 | F64: 0.3
A65: 7 | B65: ЛЭП от 10 км и более и менее 100 км | C65: 0.78503 | D65: 0.24091 | E65: 0.3 | F65: 0.3
A66: 8 | B66: ЛЭП менее 10 км | C66: 0.92642 | D66: 0.12407 | E66: 0.3 | F66: 0.3

Sheet ∆ЭП
A1: Экономия расходов на оплату потерь электрической энергии, полученная сетевой организацией при осуществлении деятельности по передаче электрической энергии в результате проведения мероприятий по сокращению объема используемых энергетических ресурсов, определяемая в соответствии с пунктом 34(3) Основ ценообразования за 2021 год
A2: ='Инф-я'!C14 -> ООО "Энергетик"
B7: где, N | C7: - максимальное значение уровня потерь электрической энергии при ее передаче по электрическим сетям из значений уровня потерь электрической энергии, являющихся долгосрочными параметрами регулирования, определенными в соответствии с пунктом 40 1 настоящего документа для долгосрочного периода регулирования, к которому относится 2019 год, и следующих за ним долгосрочных периодов регулирования, но не ранее долгосрочного периода регулирования, к которому относится год, предшествующий на 10 лет году j-2, за который определяется экономия
C8: - фактическая величина суммарного отпуска электрической энергии в сеть сетевой организации в году j-2 (тыс. кВт•ч);
C9: - величина фактических потерь электрической энергии в сетях сетевой организации в году j-2 (тыс. кВт•ч);
C10: фактически сложившаяся за год j-2 средневзвешенная цена покупки электрической энергии (мощности) в целях компенсации потерь электрической энергии при ее передаче по электрическим сетям (руб./кВт•ч)
B14: № п/п | C14: Наименование показателя | D14: Обозначение | E14: Расчет Общества | F14: Расчет экспертов
B15: 1. | C15: Максимальное значение уровня потерь электрической энергии при ее передаче по электрическим сетям | D15: N | E15: =MAX(E16:E17) -> 0.1404 | F15: =MAX(F16:F17) -> 0
B16: 1.1. | C16: уровень потерь электрической энергии установленный для долгосрочного периода регулирования, к которому относится 2019 год | D16: % | E16: 0.1404
B17: 1.2. | C17: уровень потерь электрической энергии установленный на долгосрочный период 2020-2024 гг. | D17: % | E17: 0.1146
B18: 2. | C18: Величина суммарного фактического отпуска ээ в сеть | D18: W2021 | E18: ='Корр. ПО'!C33 -> 25621.744 | F18: ='Корр. ПО'!C49 -> 0
B19: 3. | C19: Величина фактических потерь ЭЭ | D19: П2021 | E19: ='Корр. ПО'!F33 -> 2369.246 | F19: ='Корр. ПО'!F49 -> 0
B20: 4. | C20: Фактически средневзвешенная цена покупки ээ | D20: ЦП2021 | E20: ='Корр. ПО'!H33/1000 -> 3.386039002 | F20: ='Корр. ПО'!H49/1000 -> 0
B21: Экономия расходов на оплату потерь ээ | E21: =MAX(0,(E15*E18-E19)*E20) -> 4158.214556 | F21: =MAX(0,(F15*F18-F19)*F20) -> 0
B23: Руководитель организации | D23: ='Инф-я'!$C$21 -> Окунев Василий Михайлович

Sheet Расходы ком. учет
A1: Расходы, предусмотренные пунктом 5 статьи 37 Федерального закона от 26 марта 2003 г. N 35-ФЗ "Об электроэнергетике" по обеспечению коммерческого учета ээ
A2: ='Инф-я'!C14 -> ООО "Энергетик"
D3: Факт 21год
B4: № п/п | C4: Наименование показателя | D4: Расчет Общества | E4: Расчет экспертов
B5: 1. | C5: Расходы на приобретение, установку, замену приборов учета | D5: =653.16+49.95+100.94+49.95+104.364+130.08 -> 1088.444 | H5: =1683.6+7874.4+33470.4 -> 43028.4 | I5: матрица
B6: 2. | C6: Расходы на допуск в эксплуатацию и поверку приборов учета | D6: =91.1364+43.0284 -> 134.1648 | H6: =8000+18000+70000+8000+10000+14000+8000+10000+4000+8000+14000+4000+6000+12000+2000+18000+18000+84000+18000+18000+16000 -> 368000 | I6: мби
B7: 3. | C7: Расходы на приобретение и эксплуатацию нематериальных активов, которые необходимы для обеспечения коммерческого учета | D7: 368 | H7: =15852+11490+15061.2+4755.6+10303.2+4357.2+13868.4+15448.8 -> 91136.4 | I7: +
I8: в охрану тр
B12: Расходы по обеспечению коммерческого учета ээ | D12: =SUM(D5:D11) -> 1590.6088 | E12: =SUM(E5:E11) -> 0
B14: Руководитель организации | D14: ='Инф-я'!$C$21 -> Окунев Василий Михайлович

Sheet НВВ на потери
A3: Расходы организации на компенсацию потерь на 2023 год
A5: ='Инф-я'!C14 -> ООО "Энергетик"
A7: № п/п | B7: Показатели | C7: Ед.измер. | D7: 2022 год утверждено | G7: 2023 год
G8: По данным организации | J8: По данным экспертов
D9: 1-е полугодие | E9: 2-е полугодие | F9: Год | G9: 1-е полугодие | H9: 2-е полугодие | I9: Год | J9: 1-е полугодие | K9: 2-е полугодие | L9: Год
A10: 1 | B10: 2 | C10: 3 | D10: 4 | E10: 5 | F10: 6 | G10: 7 | H10: 8 | I10: 9 | J10: 10 | K10: 11 | L10: 12
A11: 1 | B11: Величина технологического расхода (потерь) электрической энергии | C11: млн.кВт.ч. | D11: 1.6122 | E11: 1.2753 | F11: =D11+E11 -> 2.8875 | G11: ='Баланс энергии'!W18/1000 -> 1.18896 | H11: ='Баланс энергии'!AB18/1000 -> 1.180285811 | I11: =G11+H11 -> 2.369245811 | J11: ='Баланс энергии'!AL18/1000 -> 0 | K11: ='Баланс энергии'!AQ18/1000 -> 0 | L11: =J11+K11 -> 0
A12: 2 | B12: Прогнозная цена (тариф) покупки потерь электрической энергии | C12: руб./МВт.ч. | D12: 2903.797 | E12: 3064.837267 | F12: =IF(F11=0,0,F13/F11) -> 2974.922421 | G12: 3064.84 | H12: =3064.84*1.084 -> 3322.28656 | I12: =IF(I11=0,0,I13/I11) -> 3193.092003 | L12: =IF(L11=0,0,L13/L11) -> 0
B13: Итого расходы на компенсацию потерь: | C13: тыс.руб. | D13: =D11*D12 -> 4681.501523 | E13: =E11*E12 -> 3908.586967 | F13: =D13+E13 -> 8590.08849 | G13: =G11*G12 -> 3643.972166 | H13: =H11*H12 -> 3921.247686 | I13: =G13+H13 -> 7565.219852 | J13: =J11*J12 -> 0 | K13: =K11*K12 -> 0 | L13: =J13+K13 -> 0
A15: Руководитель организации | C15: ='Инф-я'!$C$21 -> Окунев Василий Михайлович

Sheet НВВ содержание
A2: Расчет необходимой валовой выручки на содержание электрических сетей на 2023 год
A4: ='Инф-я'!C14 -> ООО "Энергетик"
A6: № | B6: Наименование | C6: 2021 год | F6: 2022 год | G6: 2023 год | I6: Темп роста планируемых затрат по расчету организации, % | K6: Темп роста затрат организации по расчету экспертов, %
C7: Утверждено | D7: Факт по данным Общества | E7: Факт по данным Экспертов | F7: Утверждено | G7: По данным организации | H7: По данным экспертов | I7: к факту 2021 года | J7: к утвержденным 2022 года | K7: к факту 2021 года | L7: к утвержденным 2022 года
A8: 1 | B8: 2 | C8: 3 | D8: 4 | E8: 5 | F8: 6 | G8: 7 | H8: 8 | I8: 9 | J8: 10 | K8: 11 | L8: 12
A9: 1. | B9: Подконтрольные расходы (ПР) | C9: =C10+C11+C12+C13+C22 -> 30935.19736 | D9: =D10+D11+D12+D13+D22 -> 32305.344 | E9: =E10+E11+E12+E13+E22 -> 0 | F9: ='Подконтрольные расходы'!D32 -> 30685.97446 | G9: ='Подконтрольные расходы'!E32 -> 35261.91227 | H9: =H10+H11+H12+H13+H22 -> 7287.91 | I9: =IF(D9=0,IF(G9=0,0,100),G9/D9*100) -> 109.1519479 | J9: =IF(F9=0,IF(G9=0,0,100),G9/F9*100) -> 114.9121476 | K9: =IF(E9=0,IF(H9=0,0,100),H9/E9*100) -> 100 | L9: =IF(F9=0,IF(H9=0,0,100),H9/F9*100) -> 23.74997088
A10: 1.1. | B10: Расходы на оплату труда | C10: 14469.60171 | D10: 16686.38635 | F10: ='Подконтрольные расходы'!D17 -> 14353.03041 | G10: ='Подконтрольные расходы'!E17 -> 16493.37549 | H10: =ROUND('Подконтрольные расходы'!F17,2) -> 3408.84 | I10: =IF(D10=0,IF(G10=0,0,100),G10/D10*100) -> 98.84330343 | J10: =IF(F10=0,IF(G10=0,0,100),G10/F10*100) -> 114.9121476 | K10: =IF(E10=0,IF(H10=0,0,100),H10/E10*100) -> 100 | L10: 23.74996709
A11: 1.2 | B11: Материалы | C11: 7742.168232 | D11: =667.1991+868.58534+246.793+4040.91412+101.71805-0.238-0.3-0.88-0.384-0.8-0.24-0.132 -> 5922.23561 | F11: ='Подконтрольные расходы'!D18 -> 7679.795086 | G11: ='Подконтрольные расходы'!E18 -> 8825.017465 | H11: =ROUND('Подконтрольные расходы'!F18,2) -> 1823.95 | I11: 149.0149674 | J11: 114.9121476 | K11: 100 | L11: 23.74998264
A12: 1.3 | B12: Ремонт основных фондов | C12: 6869.934631 | D12: 6869.9 | F12: ='Подконтрольные расходы'!D19 -> 6814.588451 | G12: ='Подконтрольные расходы'!E19 -> 7830.789939 | H12: =ROUND('Подконтрольные расходы'!F19,2) -> 1618.46 | I12: 113.9869567 | J12: 114.9121476 | K12: 100 | L12: 23.74993019
A13: 1.4 | B13: Другие обоснованные подконтрольные расходы, в том числе: | C13: =SUM(C14:C21) -> 1119.558543 | D13: =SUM(D14:D21) -> 2826.82204 | E13: =SUM(E14:E21) -> 0 | F13: ='Подконтрольные расходы'!D20 -> 1110.539056 | G13: ='Подконтрольные расходы'!E20 -> 1276.144279 | H13: =ROUND('Подконтрольные расходы'!F20,2) -> 263.75 | I13: 45.1441322 | J13: 114.9121476 | K13: 100 | L13: 23.74972755
A14: 1.4.1 | B14: Работы и услуги производственного характера | C14: 118.2166474 | D14: =30.00652+300+184.056+91.1364+43.0284+68 -> 716.22732 | F14: ='Подконтрольные расходы'!D21 -> 117.2642599 | G14: ='Подконтрольные расходы'!E21 -> 134.7508794 | H14: =ROUND('Подконтрольные расходы'!F21,2) -> 27.85 | I14: 18.81398205 | J14: 114.9121476 | K14: 100 | L14: 23.7497768 | N14: 716227.32
A15: 1.4.2 | B15: Работы и услуги непроизводственного характера | C15: 576.7183432 | D15: =34+58+67.97612+137.565+96+136.9254+360+1105.21 -> 1995.67652 | F15: ='Подконтрольные расходы'!D22 -> 572.0721335 | G15: ='Подконтрольные расходы'!E22 -> 657.3803745 | H15: =ROUND('Подконтрольные расходы'!F22,2) -> 135.87 | I15: 32.94022693 | J15: 114.9121476 | K15: 100 | L15: 23.75050139
A16: 1.4.3 | B16: Обеспечение нормальных условий труда и техники безопасности | C16: 357.0260462 | D16: =8.2272+2.974 -> 11.2012 | F16: =('Подконтрольные расходы'!D23) -> 354.1497412 | G16: =('Подконтрольные расходы'!E23) -> 406.9610733 | H16: =ROUND('Подконтрольные расходы'!F23,2) -> 84.11 | I16: 3633.191741 | J16: 114.9121476 | K16: 100 | L16: 23.74984088
A17: 1.4.4. | B17: Расходы на командировки | C17: 0 | D17: 0 | F17: =('Подконтрольные расходы'!D24) -> 0 | G17: =('Подконтрольные расходы'!E24) -> 0 | H17: =ROUND('Подконтрольные расходы'!F24,2) -> 0 | I17: 0 | J17: 0 | K17: 0 | L17: 0
A18: 1.4.5 | B18: Расходы на обучение персонала | C18: 0 | D18: 26.5 | F18: =('Подконтрольные расходы'!D25) -> 0 | G18: =('Подконтрольные расходы'!E25) -> 0 | H18: =ROUND('Подконтрольные расходы'!F25,2) -> 0 | I18: 0 | J18: 0 | K18: 0 | L18: 0
A19: 1.4.6 | B19: Расходы на страхование | C19: 0 | D19: 0 | F19: =('Подконтрольные расходы'!D26) -> 0 | G19: =('Подконтрольные расходы'!E26) -> 0 | H19: =ROUND('Подконтрольные расходы'!F26,2) -> 0 | I19: 0 | J19: 0 | K19: 0 | L19: 0
A20: 1.4.7 | B20: Расходы на услуги банков | C20: 67.59750598 | D20: 77.217 | F20: =('Подконтрольные расходы'!D27) -> 67.05292093 | G20: =('Подконтрольные расходы'!E27) -> 77.05195146 | H20: =ROUND('Подконтрольные расходы'!F27,2) -> 15.93 | I20: 99.78625363 | J20: 114.9121476 | K20: 100 | L20: 23.75735431
A21: 1.4.8 | B21: Прочие обоснованные подконтрольные расходы | D21: 0 | F21: =('Подконтрольные расходы'!D28) -> 0 | G21: =('Подконтрольные расходы'!E28) -> 0 | H21: =ROUND('Подконтрольные расходы'!F28,2) -> 0 | I21: 0 | J21: 0 | K21: 0 | L21: 0
A22: 1.5 | B22: Расходы из прибыли, в том числе: | C22: =C23+C24 -> 733.9342428 | D22: =SUM(D23:D24) -> 0 | E22: =SUM(E23:E24) -> 0 | F22: ='Подконтрольные расходы'!D29 -> 728.0214564 | G22: ='Подконтрольные расходы'!E29 -> 836.5850905 | H22: =ROUND('Подконтрольные расходы'!F29,2) -> 172.91 | I22: 100 | J22: 114.9121476 | K22: 100 | L22: 23.75067362
A23: 1.5.1 | B23: Расходы по коллективным договорам | C23: 733.9342428 | D23: 0 | F23: =('Подконтрольные расходы'!D30) -> 728.0214564 | G23: =('Подконтрольные расходы'!E30) -> 836.5850905 | H23: =ROUND('Подконтрольные расходы'!F30,2) -> 172.91 | I23: 100 | J23: 114.9121476 | K23: 100 | L23: 23.75067362
A24: 1.5.2 | B24: Прочие обоснованные расходы из прибыли | D24: 0 | F24: ='Подконтрольные расходы'!D31 -> 0 | G24: ='Подконтрольные расходы'!E31 -> 0 | H24: =ROUND('Подконтрольные расходы'!F31,2) -> 0 | I24: 0 | J24: 0 | K24: 0 | L24: 0
A25: 2. | B25: Неподконтрольные расходы (НР) | C25: =C26+C27+C28+C29+C35+C36+C37+C38+C39+C40 -> 23011.23087 | D25: =D26+D27+D28+D29+D35+D36+D37+D38+D40 -> 26645.08828 | E25: =E26+E27+E28+E29+E35+E36+E37+E38+E40 -> 0 | F25: =F26+F27+F28+F29+F35+F36+F37+F38+F39+F40 -> 24294.36269 | G25: =G26+G27+G28+G29+G35+G36+G37+G38+G39+G40 -> 25448.47 | H25: =H26+H27+H28+H29+H35+H36+H37+H38+H39+H40 -> 0 | I25: =IF(D25=0,IF(G25=0,0,100),G25/D25*100) -> 95.50904742 | J25: =IF(F25=0,IF(G25=0,0,100),G25/F25*100) -> 104.7505149 | K25: 0 | L25: 0 | N25: ? | O25: 2022 год выписка ДЦТ 24 532,38
A26: 2.1. | B26: Амортизация основных средств | C26: ='Свод по амортизации'!B13 -> 7399.229315 | D26: ='Свод по амортизации'!C13 -> 7322.29605 | E26: ='Свод по амортизации'!H13 -> 0 | F26: =('Свод по амортизации'!D13) -> 7437.68867 | G26: =ROUND('Свод по амортизации'!F13,2) -> 8159.98 | H26: =ROUND('Свод по амортизации'!G13,2) -> 0 | I26: =IF(D26=0,IF(G26=0,0,100),G26/D26*100) -> 111.4401814 | J26: =IF(F26=0,IF(G26=0,0,100),G26/F26*100) -> 109.7112337 | K26: 0 | L26: 0
A27: 2.2. | B27: Расходы на страховые взносы | C27: ='Страховые взносы'!D23 -> 4584.300781 | D27: ='Страховые взносы'!E23 -> 3403.52415 | E27: ='Страховые взносы'!J23 -> 0 | F27: =('Страховые взносы'!F23) -> 3245.099237 | G27: =ROUND('Страховые взносы'!H23,2) -> 3614.96 | H27: =ROUND('Страховые взносы'!I23,2) -> 0 | I27: =IF(D27=0,IF(G27=0,0,100),G27/D27*100) -> 106.2122624 | J27: =IF(F27=0,IF(G27=0,0,100),G27/F27*100) -> 111.3975178 | K27: 0 | L27: 0
A28: 2.3. | B28: Расходы на оплату услуг организаций, осуществляющие регулируемые виды деятельности | C28: ='Расходы рег. орг-ий'!B23 -> 272.9959459 | D28: ='Расходы рег. орг-ий'!C23 -> 442.40092 | E28: ='Расходы рег. орг-ий'!H23 -> 0 | F28: =('Расходы рег. орг-ий'!D23) -> 243.2864512 | G28: =ROUND('Расходы рег. орг-ий'!F23,2) -> 287.96 | H28: =ROUND('Расходы рег. орг-ий'!G23,2) -> 0 | I28: 65.09028055 | J28: 118.3625305 | K28: 0 | L28: 0
A29: 2.4. | B29: Налоги и сборы, в том числе: | C29: =(C30+C31+C32+C33+C34) -> 1378.893933 | D29: =D30+D31+D32+D33+D34 -> 1172.24483 | E29: =E30+E31+E32+E33+E34 -> 0 | F29: =(F30+F31+F32+F33+F34) -> 795.667 | G29: =ROUND(G30+G31+G32+G33+G34,2) -> 1172.24 | H29: =ROUND(H30+H31+H32+H33+H34,2) -> 0 | I29: 99.99958797 | J29: 147.3279651 | K29: 0 | L29: 0
A30: 2.4.1. | B30: Плата за землю | C30: ='Плата за землю'!B18 -> 240.7619326 | D30: ='Плата за землю'!C18 -> 1.43 | E30: ='Плата за землю'!H18 -> 0 | F30: =('Плата за землю'!D18) -> 17.16 | G30: =ROUND('Плата за землю'!F18,2) -> 1.43 | H30: =ROUND('Плата за землю'!G18,2) -> 0 | I30: 100 | J30: 8.333333333 | K30: 0 | L30: 0
A31: 2.4.2. | B31: Транспортный налог | C31: ='Транспортный налог'!D19 -> 0 | D31: ='Транспортный налог'!E19 -> 0 | E31: ='Транспортный налог'!L19 -> 0 | F31: 0 | G31: =ROUND('Транспортный налог'!I19,2) -> 0 | H31: =ROUND('Транспортный налог'!K19,2) -> 0 | I31: 0 | J31: 0 | K31: 0 | L31: 0
A32: 2.4.3. | B32: Налог на имущество | C32: =('Налог на имущество'!B13) -> 0 | D32: ='Налог на имущество'!C13 -> 0 | E32: ='Налог на имущество'!H13 -> 0 | F32: =('Налог на имущество'!D13) -> 0 | G32: =ROUND('Налог на имущество'!F13,2) -> 0 | H32: =ROUND('Налог на имущество'!G13,2) -> 0 | I32: 0 | J32: 0 | K32: 0 | L32: 0
A33: 2.4.4. | B33: Плата за негативное воздействие на окружающую среду | C33: ='Негативное возд. на окр. среду '!C29 -> 0 | D33: ='Негативное возд. на окр. среду '!D29 -> 0.15083 | E33: ='Негативное возд. на окр. среду '!I29 -> 0 | F33: =('Негативное возд. на окр. среду '!E29) -> 0 | G33: =ROUND('Негативное возд. на окр. среду '!G29,2) -> 0.15 | H33: =ROUND('Негативное возд. на окр. среду '!H29,2) -> 0 | I33: 99.4497116 | J33: 100 | K33: 0 | L33: 0
A34: 2.4.5. | B34: Налог на прибыль | C34: ='Налог на прибыль'!C10 -> 1138.132 | D34: ='Налог на прибыль'!D10 -> 1170.664 | E34: ='Налог на прибыль'!H10 -> 0 | F34: =('Налог на прибыль'!E10) -> 778.507 | G34: =ROUND('Налог на прибыль'!F10,2) -> 1170.66 | H34: =ROUND('Налог на прибыль'!G10,2) -> 0 | I34: 99.99965831 | J34: 150.3724437 | K34: 0 | L34: 0
A35: 2.5. | B35: Плата за аренду имущества | C35: ='Аренда имущества'!B38 -> 4735.28 | D35: ='Аренда имущества'!C38 -> 5002.91159 | E35: ='Аренда имущества'!V38 -> 0 | F35: =('Аренда имущества'!D38) -> 7524.22 | G35: =ROUND('Аренда имущества'!F38,2) -> 4735.28 | H35: =ROUND('Аренда имущества'!N38,2) -> 0 | I35: 94.65048332 | J35: 62.93383234 | K35: 0 | L35: 0
A36: 2.6. | B36: Оплата услуг ПАО "ФСК ЕЭС" | C36: ='Услуги ФСК'!B17 -> 0 | D36: ='Услуги ФСК'!E17 -> 0 | E36: ='Услуги ФСК'!P17 -> 0 | F36: =('Услуги ФСК'!F17) -> 0 | G36: =ROUND('Услуги ФСК'!L17,2) -> 0 | H36: =ROUND('Услуги ФСК'!O17,2) -> 0 | I36: 0 | J36: 0 | K36: 0 | L36: 0
A37: 2.7. | B37: Прочие обоснованные неподконтрольные расходы | C37: ='Прочие НР'!B15 -> 0 | D37: ='Прочие НР'!C15 -> 0 | E37: ='Прочие НР'!H15 -> 0 | F37: =('Прочие НР'!D15) -> 0 | G37: =ROUND('Прочие НР'!F15,2) -> 0 | H37: =ROUND('Прочие НР'!G15,2) -> 0 | I37: 0 | J37: 0 | K37: 0 | L37: 0
A38: 2.8. | B38: Капитальные вложения производственного характера из прибыли | C38: =' КВЛ'!B26 -> 3569.810899 | D38: =' КВЛ'!C26 -> 6365.54739 | E38: =' КВЛ'!H26 -> 0 | F38: =(' КВЛ'!D26) -> 3255.39133 | G38: =ROUND(' КВЛ'!F26,2) -> 3371.69 | H38: =ROUND(' КВЛ'!G26,2) -> 0 | I38: =IF(D38=0,IF(G38=0,0,100),G38/D38*100) -> 52.96779355 | J38: =IF(F38=0,IF(G38=0,0,100),G38/F38*100) -> 103.5724943 | K38: 0 | L38: 0 | N38: 3493,4 кап вл. На 2022
A39: 2.9. | B39: Расходы, связанные с компенсацией выпадающих доходов от льготного технологического присоединения | C39: ='Выпадающий доход'!B22 -> 1070.72 | D39: х | E39: х | F39: ='Выпадающий доход'!C22 -> 1793.01 | G39: =ROUND('Выпадающий доход'!D22,2) -> 1170.2 | H39: =ROUND('Выпадающий доход'!E22,2) -> 0 | I39: х | J39: 65.26455513 | K39: х | L39: 0
A40: 2.10. | B40: Расходы на возврат и обслуживание долгосрочных заемных средств, направляемых на финансирование капитальных вложений | C40: ='Возврат заемных средств'!B11 -> 0 | D40: ='Возврат заемных средств'!C11 -> 2936.16335 | E40: ='Возврат заемных средств'!H11 -> 0 | F40: =ROUND('Возврат заемных средств'!D11,2) -> 0 | G40: =ROUND('Возврат заемных средств'!F11,2) -> 2936.16 | H40: =ROUND('Возврат заемных средств'!G11,2) -> 0 | I40: =IF(D40=0,IF(G40=0,0,100),G40/D40*100) -> 99.99988591 | J40: 100 | K40: =IF(E40=0,IF(H40=0,0,100),H40/E40*100) -> 0 | L40: 0
A41: 3. | B41: Корректировка НВВ на основании фактических данных (Bi ) | C41: =SUM(C42:C47) -> -1356.303784 | D41: x | E41: х | F41: =SUM(F42:F47) -> -6460.734582 | G41: =G42+G43+G44+G45+G47+G46 -> -1190.304047 | H41: =H42+H43+H44+H45+H47+H46 -> 44409.8817 | I41: х | J41: =IF(F41=0,IF(G41=0,0,100),G41/F41*100) -> 18.42366424 | K41: х | L41: -687.3813053
A42: 3.1. | B42: Корректировка подконтрольных расходов (∆ПР) | C42: 774.1184857 | D42: x | E42: x | F42: 0 | G42: ='Корр. ПР'!D18*(1+'корр НВВ по факт'!E31)*(1+'корр НВВ по факт'!E32) -> 4156.619241 | H42: ='Корр. ПР'!E18*(1+'корр НВВ по факт'!F31)*(1+'корр НВВ по факт'!F32) -> 0 | I42: х | J42: 100 | K42: х | L42: 0
A43: 3.2. | B43: Корректировка неподконтрольных расходов (∆НР) | C43: -470.482781 | D43: x | E43: x | F43: -1517.029971 | G43: ='Корр. НР'!E19*(1+'корр НВВ по факт'!E31)*(1+'корр НВВ по факт'!E32) -> -1189.507084 | H43: ='Корр. НР'!G19*(1+'корр НВВ по факт'!F31)*(1+'корр НВВ по факт'!F32) -> -10971.47066 | I43: х | J43: 78.41025603 | K43: х | L43: 723.2204288
A44: 3.3. | B44: Корректировка НВВ с учетом изменения полезного отпуска и цен на электрическую энергию (ПОi ) | C44: -2499.146131 | D44: x | E44: x | F44: -1468.830118 | G44: ='Корр. ПО'!D57*(1+'корр НВВ по факт'!E31)*(1+'корр НВВ по факт'!E32) -> -2649.089667 | H44: ='Корр. ПО'!E57*(1+'корр НВВ по факт'!F31)*(1+'корр НВВ по факт'!F32) -> 0 | I44: х | J44: 180.3537138 | K44: х | L44: 0
A45: 3.4. | B45: Корректировка необходимой валовой выручки по доходам от осуществления регулируемой деятельности (∆НВВiсод) | C45: 839.2066421 | D45: x | E45: x | F45: 145.6788904 | G45: ='∆НВВ сод'!C8*(1+'корр НВВ по факт'!E31)*(1+'корр НВВ по факт'!E32) -> -5671.578744 | H45: ='∆НВВ сод'!D8*(1+'корр НВВ по факт'!F31)*(1+'корр НВВ по факт'!F32) -> 55381.35236 | I45: х | J45: -3893.205619 | K45: х | L45: 38016.0449
A46: 3.5. | B46: Корректировка расходов по обеспечению коммерческого учета ээ (∆Уi) | C46: 0 | D46: х | E46: x | F46: 0 | G46: ='корр НВВ по факт'!E28*(1+'корр НВВ по факт'!E31)*(1+'корр НВВ по факт'!E32) -> 760.3980903 | H46: ='корр НВВ по факт'!F28*(1+'корр НВВ по факт'!F31)*(1+'корр НВВ по факт'!F32) -> 0 | I46: х | J46: 100 | K46: х | L46: 0
A47: 3.6. | B47: Корректировка НВВ в связи с изменением (неисполнением) инвестиционной программы (ВiкорИП) | C47: 0 | D47: x | E47: x | F47: -3620.553384 | G47: ='Корр. ИП'!D14*(1+'корр НВВ по факт'!E31)*(1+'корр НВВ по факт'!E32) -> 3402.854117 | H47: ='Корр. ИП'!E14*(1+'корр НВВ по факт'!F31)*(1+'корр НВВ по факт'!F32) -> 0 | I47: х | J47: -93.98712728 | K47: х | L47: =IF(F47=0,IF(H47=0,0,100),H47/F47*100) -> 0
A48: 4. | B48: Корректировка НВВ с учетом надежности и качества оказываемых услуг (НВВi-2сод)*КНКi | C48: 745.5679154 | D48: x | E48: x | F48: 626.1662259 | G48: ='Корр. КНК'!D16 -> 664.5762283 | H48: ='Корр. КНК'!E16 -> 664.5762283 | I48: х | J48: 106.1341543 | K48: х | L48: =IF(F48=0,IF(H48=0,0,100),H48/F48*100) -> 106.1341543
A49: 5. | B49: Экономия расходов на оплату потерь электрической энергии (∆ЭПi) | C49: 2045.66 | D49: x | E49: x | F49: 2721.391279 | G49: ='∆ЭП'!E21 -> 4158.214556 | H49: ='∆ЭП'!F21 -> 0 | I49: х | J49: 152.7973793 | K49: х | L49: =IF(F49=0,IF(H49=0,0,100),H49/F49*100) -> 0
A50: 6. | B50: Расходы по обеспечению коммерческого учета ээ (Уi) | D50: x | E50: x | G50: ='Расходы ком. учет'!D12 -> 1590.6088 | H50: ='Расходы ком. учет'!E12 -> 0 | I50: х | J50: 100 | K50: х | L50: =IF(F50=0,IF(H50=0,0,100),H50/F50*100) -> 0
A51: 7. | B51: Результаты деятельности регулируемой организации в соотв. с п.7 Основ ценообразования | D51: x | E51: x | I51: х | J51: 0 | K51: х | L51: =IF(F51=0,IF(H51=0,0,100),H51/F51*100) -> 0
B52: ИТОГО необходимая валовая выручка на содержание электрических сетей (НВВiсод) | C52: =C41+C25+C9+C48+C49+C51 -> 55381.35236 | D52: =D25+D9 -> 58950.43228 | E52: =E25+E9 -> 0 | F52: =F41+F25+F9+F48+F49+F50+F51 -> 51867.16007 | G52: =G41+G25+G9+G48+G49+G50+G51 -> 65933.4778 | H52: =H41+H25+H9+H48+H49+H50+H51 -> 52362.36793 | I52: =IF(D52=0,IF(G52=0,0,100),G52/D52*100) -> 111.8456223 | J52: =IF(F52=0,IF(G52=0,0,100),G52/F52*100) -> 127.1198919 | K52: =IF(E52=0,IF(H52=0,0,100),H52/E52*100) -> 100 | L52: =IF(F52=0,IF(H52=0,0,100),H52/F52*100) -> 100.9547619
A54: Руководитель организации | C54: ='Инф-я'!$C$21 -> Окунев Василий Михайлович

Sheet НВВ для шаблона ЕИАС отчет (hidden)
A2: Наименование организации | B2: Период | C2: Расчет коэффициента индексации | M2: Расчет подконтрольных расходов | AH2: Расчет неподконтрольных расходов | BB2: Расходы, связанные с компенсацией незапланированных расходов или полученного избытка | BC2: Итого НВВ на содержание сетей | BD2: в том числе | BF2: Доля стороннего отпуска в сеть от организаций, занимающихся несколькими видами деятельности (без собственных нужд) | BG2: Отношение НВВ на содержание сетей текущего года к предыдущему года | BH2: Поступление в сеть электроэнергии | BI2: Объем технологического расхода (потерь) | BJ2: Тариф на покупку потерь | BK2: Норматив техноло-гического расхода (потерь) электро-энергии | BL2: Итого расходов на оплату потерь | BM2: в том числе | BO2: Прирост расходов на оплату потерь текущего года к предыдущему году | BP2: Поступление в сеть мощности | BQ2: Уровень надежности реализуемых товаров (услуг) (П п) | BR2: Уровень качества реализуемых товаров (услуг) (П тсо) | BS2: Уровень качества реализуемых товаров (услуг) (П тпр)
C3: Инфляция | D3: Индекс эффективности операционных расходов | E3: Количество активов, всего | F3: ВН | G3: СН1 | H3: СН2 | I3: НН | J3: Индекс изменения количества активов | K3: Коэффициент эластичности затрат по росту активов | L3: Итого коэффициент индексации | M3: Материальные затраты | N3: Сырье, материалы, запасные части, инструмент, топливо | O3: Работы и услуги производственного характера (в т.ч. услуги сторонних организаций по содержанию сетей и распределительных устройств) | P3: Расходы на оплату труда | Q3: Прочие расходы, всего, в том числе: | R3: Ремонт основных фондов | S3: Оплата работ и услуг сторонних организаций | T3: услуги связи | U3: Расходы на услуги вневедомственной охраны и коммунального хозяйства | V3: Расходы на юридические и информационные услуги | W3: Расходы на аудиторские и консультационные услуги | X3: Транспортные услуги | Y3: Прочие услуги сторонних организаций | Z3: Расходы на командировки и представительские | AA3: Расходы на подготовку кадров | AB3: Расходы на обеспечение нормальных условий труда и мер по технике безопасности | AC3: Расходы на страхование | AD3: Другие прочие расходы | AE3: Электроэнергия на хоз. нужды | AF3: Подконтрольные расходы из прибыли | AG3: ИТОГО подконтрольные расходы | AH3: Оплата услуг ОАО "ФСК ЕЭС" | AI3: в том числе | AK3: Теплоэнергия | AL3: Аренда, всего | AM3: в том числе аренда объектов электро- сетевого комплекса | AN3: Налоги (без учета налога на прибыль), всего, в том числе: | AO3: плата за землю | AP3: Налог на имущество | AQ3: Прочие налоги и сборы | AR3: Отчисления на социальные нужды (ЕСН) | AS3: Прочие неподконтрольные расходы | AT3: Налог на прибыль, в том числе: | AU3: налог на прибыль на капитальные вложения | AV3: Выпадающие доходы по п.87 Основ ценообразования | AW3: Амортизация ОС | AX3: Прибыль на капитальные вложения | AY3: Возврат заемных средств, направляемый на финансирование капитальных вложений | AZ3: Проверка прибыли на капитальные вложения (не более 12% от НВВ на содержание сетей) | BA3: ИТОГО неподконтрольных расходов
AI4: Оплата услуг ОАО "ФСК ЕЭС" 1 полугодие | AJ4: Оплата услуг ОАО "ФСК ЕЭС" 2 полугодие | BD4: НВВ на 1 полугодие | BE4: НВВ на 2 полугодие | BM4: расходы на 1 полугодие | BN4: расходы на 2 полугодие
C5: % | D5: % | E5: у.е. | F5: у.е. | G5: у.е. | H5: у.е. | I5: у.е. | J5: % | M5: тыс.руб | N5: тыс.руб | O5: тыс.руб | P5: тыс.руб | Q5: тыс.руб | R5: тыс.руб | S5: тыс.руб | T5: тыс.руб | U5: тыс.руб | V5: тыс.руб | W5: тыс.руб | X5: тыс.руб | Y5: тыс.руб | Z5: тыс.руб | AA5: тыс.руб | AB5: тыс.руб | AC5: тыс.руб | AD5: тыс.руб | AE5: тыс.руб | AF5: тыс.руб | AG5: тыс.руб | AH5: тыс.руб | AI5: тыс.руб | AJ5: тыс.руб | AK5: тыс.руб | AL5: тыс.руб | AM5: тыс.руб | AN5: тыс.руб | AO5: тыс.руб | AP5: тыс.руб | AQ5: тыс.руб | AR5: тыс.руб | AS5: тыс.руб | AT5: тыс.руб | AU5: тыс.руб | AV5: тыс.руб | AW5: тыс.руб | AX5: тыс.руб | AY5: тыс.руб | AZ5: % | BA5: тыс.руб | BB5: тыс.руб | BC5: тыс.руб | BD5: тыс.руб | BE5: тыс.руб | BF5: % | BG5: % | BH5: млн.кВтч | BI5: млн.кВтч | BJ5: руб./МВтч | BK5: % | BL5: тыс.руб | BM5: тыс.руб | BN5: тыс.руб | BO5: % | BP5: МВт
A6: А | B6: Б | C6: 0.1 | D6: 0.2 | E6: 0.3 | F6: 0.3.1 | G6: 0.3.2 | H6: 0.3.3 | I6: 0.3.4 | J6: 0.4 | K6: 0.5 | L6: 0.6 | M6: 1.1 | N6: 1.1.1 | O6: 1.1.2 | P6: 1.2 | Q6: 1.3 | R6: 1.3.1 | S6: 1.3.2 | T6: 1.3.2.1 | U6: 1.3.2.2 | V6: 1.3.2.3 | W6: 1.3.2.4 | X6: 1.3.2.5 | Y6: 1.3.2.6 | Z6: 1.3.3 | AA6: 1.3.4 | AB6: 1.3.5 | AC6: 1.3.6 | AD6: 1.3.7 | AE6: 1.4 | AF6: 1.5 | AG6: 1.6 | AH6: 2.1 | AI6: 2.1.1 | AJ6: 2.1.2 | AK6: 2.2 | AL6: 2.3 | AM6: 2.3.1 | AN6: 2.4 | AO6: 2.4.1 | AP6: 2.4.2 | AQ6: 2.4.3 | AR6: 2.5 | AS6: 2.6 | AT6: 2.7 | AU6: 2.7.1 | AV6: 2.8 | AW6: 2.9 | AX6: 2.10 | AY6: 2.11 | AZ6: 2.12 | BA6: 2.13 | BB6: 3 | BC6: 4 | BD6: 4.1 | BE6: 4.2 | BF6: 5 | BG6: 6 | BH6: 7 | BI6: 8 | BJ6: 9 | BK6: 10 | BL6: 11 | BM6: 11.1 | BN6: 11.2 | BO6: 12 | BP6: 13 | BQ6: 14 | BR6: 15.1 | BS6: 15.2
A7: ='Инф-я'!C14 -> ООО "Энергетик" | B7: 2020 | D7: ='Подконтрольные расходы'!D10 -> 0.05 | E7: =SUM(F7:I7) -> 0 | K7: 0.75 | M7: =SUM(N7:O7) -> 7860.38488 | N7: =' НВВ содержание'!C11 -> 7742.168232 | O7: =' НВВ содержание'!C14 -> 118.2166474 | P7: =' НВВ содержание'!C10 -> 14469.60171 | Q7: =R7+S7+Z7+AA7+AB7+AC7+AD7+AC7+AF7 -> 7535.065689 | R7: =' НВВ содержание'!C12 -> 6869.934631 | S7: =SUM(T7:Y7) -> 0 | Y7: =' НВВ содержание'!C17 -> 0 | Z7: =' НВВ содержание'!C18 -> 0 | AA7: =' НВВ содержание'!C16 -> 357.0260462 | AB7: =' НВВ содержание'!C19 -> 0 | AC7: =' НВВ содержание'!C21+' НВВ содержание'!C20 -> 67.59750598 | AE7: =' НВВ содержание'!C22 -> 733.9342428 | AF7: =' НВВ содержание'!H22 -> 172.91 | AG7: =M7+P7+Q7 -> 29865.05228 | AH7: ='Услуги ФСК'!B33 -> 0 | AI7: =AH7/2 -> 0 | AJ7: =AI7 -> 0 | AK7: ='НВВ по данным предпр.'!$F$33 -> 243.2864512 | AL7: ='НВВ по данным предпр.'!F40 -> 7524.22 | AM7: ='Аренда имущества'!D43 -> 2976 | AN7: =SUM(AO7:AQ7) ->  | AO7: ='НВВ по данным предпр.'!$F$35 -> 17.16 | AP7: ='НВВ по данным предпр.'!F37 -> 0 | AQ7: ='НВВ по данным предпр.'!F36+'НВВ по данным предпр.'!F38 ->  | AR7: ='НВВ по данным предпр.'!F32 -> 3245.099237 | AS7: ='НВВ по данным предпр.'!F42 -> 0 | AT7: =' НВВ содержание'!H34 -> 0 | AU7: =AX7/0.8*0.2 -> 0 | AV7: =' НВВ содержание'!H39 -> 0 | AW7: =' НВВ содержание'!H26 -> 0 | AX7: =' НВВ содержание'!H38 -> 0 | AY7: =' НВВ содержание'!H40 -> 0 | AZ7: =AX7/0.8*0.2 -> 0 | BA7: ='НВВ по данным предпр.'!F44 -> 1793.01 | BB7: =' НВВ содержание'!F41 -> -6460.734582 | BC7: ='НВВ по данным предпр.'!F43 -> 3255.39133 | BD7: ='НВВ по данным предпр.'!F45 -> 0 | BH7: ='НВВ для шаблона ЕИАС предел'!BH7 -> 25196.33508 | BI7: ='Баланс энергии'!AG18 -> 0 | BK7: =IF(BH7=0,0,BI7/BH7) -> 0 | BL7: =BI7*BJ7 -> 0 | BM7: ='НВВ на потери'!J13 -> 0 | BN7: =BL7-BM7 -> 0 | BQ7: ='НВВ по данным экспертов'!F13 -> 1.528 | BR7: ='НВВ по данным экспертов'!F14 -> 0.7958 | BS7: ='НВВ по данным экспертов'!F15 -> 1
B8: 2021 | C8: ='Подконтрольные расходы'!D12 -> х | D8: =D7 -> 0.05 | E8: =SUM(F8:I8) -> 1017.979 | F8: ='УЕ ТП 2020-2023'!P56 -> 0 | G8: ='УЕ ТП 2020-2023'!P57 -> 0 | H8: ='УЕ ТП 2020-2023'!P58 -> 791.047 | I8: ='УЕ ТП 2020-2023'!P59 -> 226.932 | J8: =IF(E7=0,0,(E8-E7)/E7*K8) -> 0 | K8: 0.75 | L8: =(1+C8)*(1-D8)*(1+J8) ->  | M8: =SUM(N8:O8) ->  | N8: =N7*$L8 ->  | O8: =O7*L8 ->  | P8: =P7*$L8 ->  | Q8: =R8+S8+Z8+AA8+AB8+AC8+AD8+AE8+AF8 ->  | R8: =R7*$L8 ->  | S8: =SUM(T8:Y8) ->  | T8: =T7*$L8 ->  | U8: =U7*L8 ->  | V8: =V7*L8 ->  | W8: =W7*$L8 ->  | X8: =X7*$L8 ->  | AG8: =M8+P8+Q8 ->  | AH8: ='Услуги ФСК'!F33 -> 0 | AI8: =AH8/2 -> 0 | AJ8: =AI8 -> 0 | AK8: ='НВВ по данным экспертов'!$G$33 -> 0 | AL8: ='НВВ по данным экспертов'!$G$40 -> 0 | AN8: =SUM(AO8:AQ8) -> 0 | AO8: ='НВВ по данным экспертов'!$G$35 -> 0 | AP8: ='НВВ по данным экспертов'!$G$37 -> 0 | AQ8: =' НВВ содержание'!H31+' НВВ содержание'!H33 -> 0 | AR8: =' НВВ содержание'!H27 -> 0 | AS8: =' НВВ содержание'!H37 -> 0 | AT8: =' НВВ содержание'!H34 -> 0 | AU8: =AX7/0.8*0.2 -> 0 | AV8: =' НВВ содержание'!H39 -> 0 | AW8: =' НВВ содержание'!H26 -> 0 | AX8: =' НВВ содержание'!H38 -> 0 | AY8: =' НВВ содержание'!H40 -> 0 | AZ8: =nerr((AX8+AY8)/(BC8-AH8-AU8-AX8-AY8-AM8)) ->  | BA8: =AH8+AK8+AL8+AN8+AS8+AT8+AV8+AR8+AW8+AX8+AY8 -> 0 | BB8: =' НВВ содержание'!G41 -> -1190.304047 | BC8: =SUM(BA8,BB8,AG8) ->  | BF8: =nerr((BD8+BE8)/BC8) ->  | BG8: =nerr((BC8-BC7)/BC7) ->  | BH8: ='Баланс энергии'!AG8 -> 0 | BI8: =BI7 -> 0 | BK8: =IF(BH8=0,0,BI8/BH8) -> 0 | BL8: =BI8*BJ8 -> 0 | BM8: ='НВВ по данным экспертов'!#REF!/2 ->  | BN8: =BL8-BM8 ->  | BO8: =nerr((BL8-BL7)/BL7) ->  | BQ8: ='НВВ по данным экспертов'!G13 -> 1.5051 | BR8: ='НВВ по данным экспертов'!G14 -> 0.7838 | BS8: ='НВВ по данным экспертов'!G15 -> 1
B9: 2022 | D9: =D8 -> 0.05 | E9: =SUM(F9:I9) -> 1028.8392 | F9: ='УЕ ТП 2020-2023'!R56 -> 0 | G9: ='УЕ ТП 2020-2023'!R57 -> 0 | H9: ='УЕ ТП 2020-2023'!R58 -> 801.9042 | I9: ='УЕ ТП 2020-2023'!R59 -> 226.935 | J9: =IF(E8=0,0,(E9-E8)/E8*K9) -> 0.008001294722 | K9: 0.75 | L9: =(1+C9)*(1-D9)*(1+J9) -> 0.95760123 | M9: =SUM(N9:O9) ->  | N9: =N8*$L9 ->  | O9: =O8*L9 ->  | P9: =P8*$L9 ->  | Q9: =R9+S9+Z9+AA9+AB9+AC9+AD9+AE9+AF9 ->  | R9: =R8*$L9 ->  | S9: =SUM(T9:Y9) ->  | T9: =T8*$L9 ->  | U9: =U8*L9 ->  | V9: =V8*L9 ->  | W9: =W8*$L9 ->  | AG9: =M9+P9+Q9 ->  | AH9: =AI9+AJ9 -> 0 | AI9: ='Услуги ФСК'!J33 -> 0 | AJ9: ='Услуги ФСК'!K33 -> 0 | AN9: =SUM(AO9:AQ9) -> 0 | AZ9: =nerr((AX9+AY9)/(BC9-AH9-AU9-AX9-AY9-AM9)) ->  | BA9: =AH9+AK9+AL9+AN9+AS9+AT9+AV9+AR9+AW9+AX9+AY9 -> 0 | BC9: =SUM(BA9,BB9,AG9) ->  | BF9: =nerr((BD9+BE9)/BC9) ->  | BG9: =nerr((BC9-BC8)/BC8) ->  | BI9: =BI8 -> 0 | BK9: =IF(BH9=0,0,BI9/BH9) -> 0 | BL9: =BI9*BJ9 -> 0 | BM9: ='НВВ по данным экспертов'!#REF!/2 ->  | BN9: =BL9-BM9 ->  | BO9: =nerr((BL9-BL8)/BL8) -> 
B10: 2023 | D10: =D9 -> 0.05 | E10: =SUM(F10:I10) -> 0 | J10: =IF(E9=0,0,(E10-E9)/E9*K10) -> -0.75 | K10: 0.75 | L10: =(1+C10)*(1-D10)*(1+J10) -> 0.2375 | M10: =SUM(N10:O10) ->  | N10: =N9*$L10 ->  | O10: =O9*L10 ->  | P10: =P9*$L10 ->  | Q10: =R10+S10+Z10+AA10+AB10+AC10+AD10+AE10+AF10 ->  | R10: =R9*$L10 ->  | S10: =SUM(T10:Y10) ->  | T10: =T9*$L10 ->  | U10: =U9*L10 ->  | V10: =V9*L10 ->  | W10: =W9*$L10 ->  | AG10: =M10+P10+Q10 ->  | AH10: =AI10+AJ10 -> 0 | AN10: =SUM(AO10:AQ10) -> 0 | AZ10: =nerr((AX10+AY10)/(BC10-AH10-AU10-AX10-AY10-AM10)) ->  | BA10: =AH10+AK10+AL10+AN10+AS10+AT10+AV10+AR10+AW10+AX10+AY10 -> 0 | BC10: =SUM(BA10,BB10,AG10) ->  | BF10: =nerr((BD10+BE10)/BC10) ->  | BG10: =nerr((BC10-BC9)/BC9) ->  | BI10: =BI9 -> 0 | BK10: =IF(BH10=0,0,BI10/BH10) -> 0 | BL10: =BI10*BJ10 -> 0 | BM10: ='НВВ по данным экспертов'!#REF!/2 ->  | BN10: =BL10-BM10 ->  | BO10: =nerr((BL10-BL9)/BL9) -> 
B11: 2024 | D11: =D10 -> 0.05 | E11: =SUM(F11:I11) -> 0 | J11: =IF(E10=0,0,(E11-E10)/E10*K11) -> 0 | K11: 0.75 | L11: =(1+C11)*(1-D11)*(1+J11) -> 0.95 | M11: =SUM(N11:O11) ->  | N11: =N10*$L11 ->  | O11: =O10*L11 ->  | P11: =P10*$L11 ->  | Q11: =R11+S11+Z11+AA11+AB11+AC11+AD11+AE11+AF11 ->  | R11: =R10*$L11 ->  | S11: =SUM(T11:Y11) ->  | T11: =T10*$L11 ->  | U11: =U10*L11 ->  | V11: =V10*L11 ->  | W11: =W10*$L11 ->  | AG11: =M11+P11+Q11 ->  | AH11: =AI11+AJ11 -> 0 | AN11: =SUM(AO11:AQ11) -> 0 | AZ11: =((AX11+AY11)/(BC11-AH11-AU11-AX11-AY11-AM11)) ->  | BA11: =AH11+AK11+AL11+AN11+AS11+AT11+AV11+AR11+AW11+AX11+AY11 -> 0 | BC11: =SUM(BA11,BB11,AG11) ->  | BF11: =((BD11+BE11)/BC11) ->  | BG11: =nerr((BC11-BC10)/BC10) ->  | BI11: =BI10 -> 0 | BK11: =IF(BH11=0,0,BI11/BH11) -> 0 | BL11: =BI11*BJ11 -> 0 | BM11: ='НВВ по данным экспертов'!#REF!/2 ->  | BN11: =BL11-BM11 ->  | BO11: =nerr((BL11-BL10)/BL10) -> 

Sheet НВВ по данным предпр.
A2: Расчет необходимой валовой выручки (НВВ) на оказание услуги по передаче электрической энергии на 2023 год долгосрочного периода регулирования 2020- 2024 годы по данным предприятия
A3: ='Инф-я'!C14 -> ООО "Энергетик"
A5: № п.п. | B5: Наименование | C5: Ед.изм. | D5: 2021 год | F5: 2022 год утверждено | G5: 2023 год
D6: Утверждено | E6: Факт
A7: 1 | B7: 2 | C7: 3 | D7: 4 | E7: 5 | F7: 6 | G7: 7
A8: Долгосрочные параметры регулирования
A9: 1. | B9: Базовый уровень подконтрольных расходов (ПР) | C9: тыс.руб. | D9: 30935.2 | E9: х | F9: х | G9: х
A10: 2. | B10: Индекс эффективности подконтрольных расходов (Хэф) | C10: % | D10: ='Корр. ПР'!D13 -> 0 | E10: =$D$10 -> 0 | F10: =$D$10 -> 0 | G10: 0
A11: 3. | B11: Коэффициент эластичности подконтрольных расходов по количеству активов (К эл) | C11: знач. | D11: 0.75 | E11: 0.75 | F11: 0.75 | G11: 0.75
A12: 4. | B12: Уровень надежности и качества оказываемых услуг | C12: х | D12: х | E12: х | F12: х | G12: х
A13: 4.1. | B13: Показатель средней продолжительности прекращений передачи электрической энергии на точку поставки , час. | C13: знач. | D13: ='Корр. КНК'!D23 -> 1.5512 | E13: ='Корр. КНК'!E23 -> 0.01560682435 | F13: 1.528 | G13: 1.5051
A14: 4.2. | B14: Показатель средней частоты прекращений передачи электрической энергии на точку поставки , шт. | C14: знач. | D14: ='Корр. КНК'!D24 -> 0.8079 | E14: ='Корр. КНК'!E24 -> 0.02869329197 | F14: 0.7958 | G14: 0.7838
A15: 4.3. | B15: Показатель уровня качества осуществляемого технологического присоединения | C15: знач. | D15: ='Корр. КНК'!D25 -> 1 | E15: ='Корр. КНК'!E25 -> 1 | F15: 1 | G15: 1
A16: Планируемые значения параметров расчета тарифов
A17: 1. | B17: Индекс потребительских цен (ИПЦ) | C17: % | D17: х | E17: х | F17: ='Подконтрольные расходы'!D12 -> х | G17: ='Подконтрольные расходы'!E12 -> 0.2
A18: 2. | B18: Количество активов (УЕ) | C18: усл.ед. | D18: ='УЕ ТП 2020-2023'!J60 -> 1127.973 | E18: ='УЕ ТП 2020-2023'!L60 -> 1027.2046 | F18: ='Подконтрольные расходы'!D13 -> 1017.979 | G18: ='Подконтрольные расходы'!E13 -> 1028.8392
A19: 3. | B19: Величина неподконтрольных расходов (НР) | C19: тыс.руб. | D19: =D46 -> 23011.23087 | E19: =E46 -> 26645.08828 | F19: =F46 -> 24294.36269 | G19: =G46 -> 25448.47
A20: 4. | B20: Величина полезного отпуска электрической энергии | C20: тыс.кВт.ч. | D20: ='Баланс энергии'!C21-'Баланс энергии'!C23 -> 21494.20013 | E20: ='Баланс энергии'!H21-'Баланс энергии'!H23 -> 23252.49791 | F20: ='Баланс энергии'!M21-'Баланс энергии'!M23 -> 22308.83508 | G20: ='Баланс энергии'!R21-'Баланс энергии'!R23 -> 23252.06751
A21: 5. | B21: Прогнозная цена (тариф) покупки потерь электрической энергии | C21: руб./МВт.ч. | D21: =D67 -> 3453.076051 | E21: =E67 -> 3386.039002 | F21: =F67 -> 2974.922421 | G21: =G67 -> 3193.092003
A22: Расчетные показатели
A23: 1. | B23: Доля подконтрольных расходов на МВт.ч. | C23: руб.МВт.ч. | D23: =IF(D20=0,0,D29/D20/10) -> 0.1439234639 | E23: =IF(E20=0,0,E29/E20/10) -> 0.1389327896 | F23: =IF(F20=0,0,F29/F20/10) -> 0.1375507701 | G23: =IF(G20=0,0,G29/G20/10) -> 0.1516506532
A24: 2. | B24: Проверка прибыли на капитальные вложения (не более 12 % от НВВ на содержание сетей) | C24: % | D24: х | E24: х | F24: х | G24: =IF(G25=0,0,G43/G25) -> 0.06041729192
A25: 3. | B25: НВВ для расчета КВЛ | C25: тыс.руб. | D25: х | E25: х | F25: х | G25: =G64-' КВЛ'!F26/0.8-'Услуги ФСК'!L17-'Аренда имущества'!F43-'Возврат заемных средств'!F11 -> 55806.70521
A26: 4. | B26: Индекс изменения количества активов (ИКА) | C26: % | D26: х | E26: х | F26: х | G26: ='Подконтрольные расходы'!E14 -> 0.01066839296
A27: 5. | B27: Общий коэффициент индексации подконтрольных расходов ПР= ИПЦ*(1+(Кэл*ИКА))*(1-Хэф) | C27: знач. | D27: х | E27: х | F27: х | G27: ='Подконтрольные расходы'!E15 -> 1.149121476
A28: Подконтрольные расходы организации (ПР)
B29: Итого ПР с учетом индексации: | C29: тыс.руб. | D29: =' НВВ содержание'!C9 -> 30935.19736 | E29: =' НВВ содержание'!D9 -> 32305.344 | F29: =' НВВ содержание'!F9 -> 30685.97446 | G29: =' НВВ содержание'!G9 -> 35261.91227
A31: 1. | B31: Амортизация основных средств | C31: тыс.руб. | D31: ='Свод по амортизации'!B13 -> 7399.229315 | E31: ='Свод по амортизации'!C13 -> 7322.29605 | F31: ='Свод по амортизации'!D13 -> 7437.68867 | G31: =ROUND('Свод по амортизации'!F13,2) -> 8159.98
A32: 2. | B32: Страховые взносы | C32: тыс.руб. | D32: ='Страховые взносы'!D23 -> 4584.300781 | E32: ='Страховые взносы'!E23 -> 3403.52415 | F32: ='Страховые взносы'!F23 -> 3245.099237 | G32: =ROUND('Страховые взносы'!H23,2) -> 3614.96
A33: 3. | B33: Расходы на оплату услуг организаций, осуществляющие регулируемые виды деятельности | C33: тыс.руб. | D33: ='Расходы рег. орг-ий'!B23 -> 272.9959459 | E33: ='Расходы рег. орг-ий'!C23 -> 442.40092 | F33: ='Расходы рег. орг-ий'!D23 -> 243.2864512 | G33: =ROUND('Расходы рег. орг-ий'!F23,2) -> 287.96
A34: 4. | B34: Налоги и сборы, в том числе: | C34: тыс.руб. | D34: =SUM(D35:D39) -> 1378.893933 | E34: =SUM(E35:E39) -> 1172.24483 | F34: =SUM(F35:F39) -> 795.667 | G34: =ROUND(SUM(G35:G39),2) -> 1172.24
A35: 4.1. | B35: Плата за землю | C35: тыс.руб. | D35: ='Плата за землю'!B18 -> 240.7619326 | E35: ='Плата за землю'!C18 -> 1.43 | F35: ='Плата за землю'!D18 -> 17.16 | G35: =ROUND('Плата за землю'!F18,2) -> 1.43
A36: 4.2. | B36: Транспортный налог | C36: тыс.руб. | D36: ='Транспортный налог'!D19 -> 0 | E36: ='Транспортный налог'!E19 -> 0 | F36: ='Транспортный налог'!F19 -> - | G36: =ROUND('Транспортный налог'!I19,2) -> 0
A37: 4.3. | B37: Налог на имущество | C37: тыс.руб. | D37: ='Налог на имущество'!B13 -> 0 | E37: ='Налог на имущество'!C13 -> 0 | F37: ='Налог на имущество'!D13 -> 0 | G37: =ROUND('Налог на имущество'!F13,2) -> 0
A38: 4.4. | B38: Плата за негативное воздействие на окружающую среду | C38: тыс.руб. | D38: ='Негативное возд. на окр. среду '!C29 -> 0 | E38: ='Негативное возд. на окр. среду '!D29 -> 0.15083 | F38: ='Негативное возд. на окр. среду '!E29 -> 0 | G38: =ROUND('Негативное возд. на окр. среду '!G29,2) -> 0.15
A39: 4.5. | B39: Налог на прибыль | C39: тыс.руб. | D39: ='Налог на прибыль'!C10 -> 1138.132 | E39: ='Налог на прибыль'!D10 -> 1170.664 | F39: ='Налог на прибыль'!E10 -> 778.507 | G39: =ROUND('Налог на прибыль'!F10,2) -> 1170.66
A40: 5. | B40: Плата за аренду имущества | C40: тыс.руб. | D40: ='Аренда имущества'!B38 -> 4735.28 | E40: ='Аренда имущества'!C38 -> 5002.91159 | F40: ='Аренда имущества'!D38 -> 7524.22 | G40: =ROUND('Аренда имущества'!F38,2) -> 4735.28
A41: 6. | B41: Оплата услуг ОАО "ФСК ЕЭС" | C41: тыс.руб. | D41: ='Услуги ФСК'!B17 -> 0 | E41: ='Услуги ФСК'!E17 -> 0 | F41: ='Услуги ФСК'!F17 -> 0 | G41: =ROUND('Услуги ФСК'!L17,2) -> 0
A42: 7. | B42: Прочие обоснованные неподконтрольные расходы | C42: тыс.руб. | D42: ='Прочие НР'!B15 -> 0 | E42: ='Прочие НР'!C15 -> 0 | F42: ='Прочие НР'!D15 -> 0 | G42: =ROUND('Прочие НР'!F15,2) -> 0
A43: 8. | B43: Капитальные вложения производственного характера из прибыли | C43: тыс.руб. | D43: =' КВЛ'!B26 -> 3569.810899 | E43: =' КВЛ'!C26 -> 6365.54739 | F43: =' КВЛ'!D26 -> 3255.39133 | G43: =ROUND(' КВЛ'!F26,2) -> 3371.69
A44: 9. | B44: Расходы, связанные с компенсацией выпадающих доходов от льготного технологического присоединения | C44: тыс.руб. | D44: ='Выпадающий доход'!B22 -> 1070.72 | E44: х | F44: ='Выпадающий доход'!C22 -> 1793.01 | G44: =ROUND('Выпадающий доход'!D22,2) -> 1170.2
A45: 10. | B45: =' НВВ содержание'!B40 -> Расходы на возврат и обслуживание долгосрочных заемных средств, направляемых на финансирование капитальных вложений | C45: тыс.руб. | D45: ='Возврат заемных средств'!B11 -> 0 | E45: ='Возврат заемных средств'!C11 -> 2936.16335 | F45: ='Возврат заемных средств'!D11 -> 0 | G45: =ROUND('Возврат заемных средств'!F11,2) -> 2936.16
B46: Итого НР: | C46: тыс.руб. | D46: =SUM(D31:D34,D40:D45) -> 23011.23087 | E46: =SUM(E31:E34,E40:E45) -> 26645.08828 | F46: =SUM(F31:F34,F40:F45) -> 24294.36269 | G46: =SUM(G31:G34,G40:G45) -> 25448.47
A48: Корректировка необходимой валовой выручки
A49: 1. | B49: Корректировка подконтрольных расходов | C49: тыс.руб. | D49: =' НВВ содержание'!C42 -> 774.1184857 | E49: =' НВВ содержание'!D42 -> x | F49: =' НВВ содержание'!F42 -> 0 | G49: =' НВВ содержание'!G42 -> 4156.619241
A50: 2. | B50: Корректировка неподконтрольных расходов | C50: тыс.руб. | D50: =' НВВ содержание'!C43 -> -470.482781 | E50: =' НВВ содержание'!D43 -> x | F50: =' НВВ содержание'!F43 -> -1517.029971 | G50: =' НВВ содержание'!G43 -> -1189.507084
A51: 3. | B51: Корректировка НВВ с учетом изменения полезного отпуска и цен на электрическую энергию | C51: тыс.руб. | D51: =' НВВ содержание'!C44 -> -2499.146131 | E51: =' НВВ содержание'!D44 -> x | F51: =' НВВ содержание'!F44 -> -1468.830118 | G51: =' НВВ содержание'!G44 -> -2649.089667
A52: 4. | B52: Корректировка необходимой валовой выручки по доходам от осуществления регулируемой деятельности | C52: тыс.руб. | D52: =' НВВ содержание'!C45 -> 839.2066421 | E52: =' НВВ содержание'!D45 -> x | F52: =' НВВ содержание'!F45 -> 145.6788904 | G52: =' НВВ содержание'!G45 -> -5671.578744
A53: 5. | B53: Корректировка расходов по обеспечению коммерческого учета ээ | C53: тыс.руб. | D53: =' НВВ содержание'!C46 -> 0 | E53: =' НВВ содержание'!D46 -> х | F53: =' НВВ содержание'!F46 -> 0 | G53: =' НВВ содержание'!G46 -> 760.3980903
A54: 6. | B54: Корректировка НВВ в связи с изменением (неисполнением) инвестиционной программы | C54: тыс.руб. | D54: =' НВВ содержание'!C47 -> 0 | E54: =' НВВ содержание'!D47 -> x | F54: =' НВВ содержание'!F47 -> -3620.553384 | G54: =' НВВ содержание'!G47 -> 3402.854117
B55: Итого корректировка НВВ | C55: тыс.руб. | D55: =SUM(D49:D54) -> -1356.303784 | E55: х | F55: =SUM(F49:F54) -> -6460.734582 | G55: =' НВВ содержание'!G41 -> -1190.304047
A56: Расходы организации на содержание сетей
A57: 1. | B57: Подконтрольные расходы | C57: тыс.руб. | D57: =D29 -> 30935.19736 | E57: =E29 -> 32305.344 | F57: =F29 -> 30685.97446 | G57: =G29 -> 35261.91227
A58: 2. | B58: Неподконтрольные расходы | C58: тыс.руб. | D58: =D46 -> 23011.23087 | E58: =E46 -> 26645.08828 | F58: =F46 -> 24294.36269 | G58: =G46 -> 25448.47
A59: 3. | B59: Корректировка НВВ на основании фактических данных | C59: тыс.руб. | D59: =D55 -> -1356.303784 | E59: =E55 -> х | F59: =F55 -> -6460.734582 | G59: =G55 -> -1190.304047
A60: 4. | B60: Корректировка НВВ с учетом надежности и качества оказываемых услуг | C60: тыс.руб. | D60: =' НВВ содержание'!C48 -> 745.5679154 | E60: х | F60: =' НВВ содержание'!F48 -> 626.1662259 | G60: =ROUND(' НВВ содержание'!G48,2) -> 664.58
A61: 5. | B61: Экономия расходов на оплату потерь электрической энергии | C61: тыс.руб. | D61: =' НВВ содержание'!C49 -> 2045.66 | E61: х | F61: =' НВВ содержание'!F49 -> 2721.391279 | G61: =' НВВ содержание'!G49 -> 4158.214556
A62: 6. | B62: Расходы по обеспечению коммерческого учета ээ | C62: тыс.руб. | D62: х | E62: х | F62: =' НВВ содержание'!F50 -> 0 | G62: =' НВВ содержание'!G50 -> 1590.6088
A63: 7. | B63: Результаты деятельности регулируемой организации в соотв. с п.7 Основ ценообразования | C63: тыс.руб. | D63: =' НВВ содержание'!C51 -> 0 | E63: х | F63: =' НВВ содержание'!F51 -> 0 | G63: =' НВВ содержание'!G51 -> 0
B64: Итого расходы на содержание электрических сетей: | C64: тыс.руб. | D64: =D57+D58+D59+D60+D61+D63 -> 55381.35236 | E64: =E57+E58 -> 58950.43228 | F64: =F57+F58+F59+F60+F61+F63+F62 -> 51867.16007 | G64: =G57+G58+G59+G60+G61+G62+G63 -> 65933.48158
A65: Расходы организации на компенсацию потерь
A66: 1. | B66: Величина технологического расхода (потерь) электрической энергии | C66: млн.кВт.ч. | D66: ='Баланс энергии'!C18/1000 -> 2.782039873 | E66: ='Баланс энергии'!H18/1000 -> 2.369246094 | F66: ='НВВ на потери'!F11 -> 2.8875 | G66: ='НВВ на потери'!I11 -> 2.369245811
A67: 2. | B67: Прогнозная цена (тариф) покупки потерь электрической энергии | C67: руб./МВт.ч. | D67: ='Корр. ПО'!G33 -> 3453.076051 | E67: ='Корр. ПО'!H33 -> 3386.039002 | F67: ='НВВ на потери'!F12 -> 2974.922421 | G67: ='НВВ на потери'!I12 -> 3193.092003
B68: Итого расходы на компенсацию потерь: | C68: тыс.руб. | D68: =D66*D67 -> 9606.595261 | E68: =E66*E67 -> 8022.35968 | F68: =F66*F67 -> 8590.08849 | G68: =G66*G67 -> 7565.219852
A69: Необходимая валовая выручка (НВВ) организации на оказание услуги по передаче электрической энергии
A70: 1. | B70: Расходы на содержание электрических сетей | C70: тыс.руб. | D70: =D64 -> 55381.35236 | E70: =E64 -> 58950.43228 | F70: =F64 -> 51867.16007 | G70: =G64 -> 65933.48158
A71: 2. | B71: Расходы на компенсацию потерь | C71: тыс.руб. | D71: =D68 -> 9606.595261 | E71: =E68 -> 8022.35968 | F71: =F68 -> 8590.08849 | G71: =G68 -> 7565.219852
B72: Необходимая валовая выручка (НВВ) организации на оказание услуги по передаче электрической энергии | C72: тыс.руб. | D72: =D70+D71 -> 64987.94762 | E72: =E70+E71 -> 66972.79196 | F72: =F70+F71 -> 60457.24856 | G72: =G70+G71 -> 73498.70143

Sheet НВВ по данным экспертов (hidden)
A2: Расчет необходимой валовой выручки (НВВ) на оказание услуги по передаче электрической энергии на 2023 год долгосрочного периода регулирования 2020- 2024 годы по данным экспертов
A3: ='Инф-я'!C14 -> ООО "Энергетик"
A5: № п.п. | B5: Наименование | C5: Ед.изм. | D5: 2021 год | F5: 2022 год утверждено | G5: 2023 год
D6: Утверждено | E6: Факт
A7: 1 | B7: 2 | C7: 3 | D7: 4 | E7: 5 | F7: 6 | G7: 7
A8: Долгосрочные параметры регулирования
A9: 1. | B9: Базовый уровень подконтрольных расходов (ПР) | C9: тыс.руб. | D9: х | E9: х | F9: =' НВВ содержание'!F9 -> 30685.97446 | G9: х
A10: 2. | B10: Индекс эффективности подконтрольных расходов (Хэф) | C10: % | D10: ='НВВ по данным предпр.'!E10 -> 0 | E10: =$D$10 -> 0 | F10: =$D$10 -> 0 | G10: 0
A11: 3. | B11: Коэффициент эластичности подконтрольных расходов по количеству активов (К эл) | C11: знач. | D11: 0.75 | E11: 0.75 | F11: 0.75 | G11: 0.75
A12: 4. | B12: Уровень надежности и качества оказываемых услуг | C12: х | D12: х | E12: х | F12: х | G12: х
A13: 4.1. | B13: Показатель средней продолжительности прекращений передачи электрической энергии на точку поставки , час. | C13: знач. | D13: ='Корр. КНК'!D23 -> 1.5512 | E13: ='Корр. КНК'!G23 -> 0 | F13: 1.528 | G13: 1.5051
A14: 4.2. | B14: Показатель средней частоты прекращений передачи электрической энергии на точку поставки , шт. | C14: знач. | D14: ='Корр. КНК'!D24 -> 0.8079 | E14: ='Корр. КНК'!G24 -> 0 | F14: 0.7958 | G14: 0.7838
A15: 4.3. | B15: Показатель уровня качества осуществляемого технологического присоединения | C15: знач. | D15: ='Корр. КНК'!D25 -> 1 | E15: ='Корр. КНК'!G25 -> 1 | F15: 1 | G15: 1
A16: Планируемые значения параметров расчета тарифов
A17: 1. | B17: Индекс потребительских цен (ИПЦ) | C17: % | D17: х | E17: х | F17: ='Подконтрольные расходы'!D12 -> х | G17: ='Подконтрольные расходы'!F12 -> 0
A18: 2. | B18: Количество активов (УЕ) | C18: усл.ед. | D18: ='НВВ по данным предпр.'!D18 -> 1127.973 | E18: ='УЕ ТП 2020-2023'!N60 -> 0 | F18: ='НВВ по данным предпр.'!F18 -> 1017.979 | G18: ='УЕ ТП 2020-2023'!T60 -> 0
A19: 3. | B19: Величина неподконтрольных расходов (НР) | C19: тыс.руб. | D19: =D46 -> 23011.23087 | E19: =E46 -> 0 | F19: =F46 -> 24294.36269 | G19: =G46 -> 0
A20: 4. | B20: Величина полезного отпуска электрической энергии | C20: тыс.кВт.ч. | D20: ='Баланс энергии'!C21-'Баланс энергии'!C23 -> 21494.20013 | E20: ='Баланс энергии'!H21-'Баланс энергии'!H23 -> 23252.49791 | F20: ='Баланс энергии'!M21-'Баланс энергии'!M23 -> 22308.83508 | G20: ='Баланс энергии'!AG21-'Баланс энергии'!AG23 -> 0
A21: 5. | B21: Прогнозная цена (тариф) покупки потерь электрической энергии | C21: руб./МВт.ч. | D21: =D67 -> 0 | E21: =E67 -> 0 | F21: =F67 -> 2974.922421 | G21: =G67 -> 0
A22: Расчетные показатели
A23: 1. | B23: Доля подконтрольных расходов на МВт.ч. | C23: руб.МВт.ч. | D23: =IF(D20=0,0,D29/D20/10) -> 0.1439234639 | E23: =IF(E20=0,0,E29/E20/10) -> 0 | F23: =IF(F20=0,0,F29/F20/10) -> 0.1375507701 | G23: =IF(G20=0,0,G29/G20/10) -> 0
A24: 2. | B24: Проверка прибыли на капитальные вложения (не более 12 % от НВВ на содержание сетей) | C24: % | D24: х | E24: х | F24: х | G24: =IF(G25=0,0,G43/G25) -> 0
A25: 3. | B25: НВВ для расчета КВЛ | C25: тыс.руб. | D25: х | E25: х | F25: х | G25: =G64-' КВЛ'!G26/0.8-'Услуги ФСК'!O17-'Аренда имущества'!N43-'Возврат заемных средств'!G11 -> 52362.3717
A26: 4. | B26: Индекс изменения количества активов (ИКА) | C26: % | D26: х | E26: х | F26: х | G26: ='Подконтрольные расходы'!F14 -> -1
A27: 5. | B27: Общий коэффициент индексации подконтрольных расходов ПР= ИПЦ*(1+(Кэл*ИКА))*(1-Хэф) | C27: знач. | D27: х | E27: х | F27: х | G27: ='Подконтрольные расходы'!F15 -> 0.2375
A28: Подконтрольные расходы организации (ПР)
B29: Итого ПР с учетом индексации: | C29: тыс.руб. | D29: =' НВВ содержание'!C9 -> 30935.19736 | E29: =' НВВ содержание'!E9 -> 0 | F29: =' НВВ содержание'!F9 -> 30685.97446 | G29: =' НВВ содержание'!H9 -> 7287.91
A31: 1. | B31: Амортизация основных средств | C31: тыс.руб. | D31: ='Свод по амортизации'!B13 -> 7399.229315 | E31: ='Свод по амортизации'!H13 -> 0 | F31: ='Свод по амортизации'!D13 -> 7437.68867 | G31: =ROUND('Свод по амортизации'!G13,2) -> 0
